Workbook

Sheet GUIA PARA PREENCHIMENTO
A1: GUIA PARA PREENCHIMENTO
A3: 1 - Preencher apenas as guias azuis:
A5: 2 - Recomendamos preencher somente as células com fundo azul claro. As demais possuem fórmulas e sugerimos não alterá-las.

Sheet MODELO PROPOSTA ND
B2: MODELO DA PROPOSTA COMPLETA
B4: .
B5: I – FORMALIZAÇÃO
B7: PREGÃO ELETRÔNICO N. 90068/2024
B8: OBJETO: Prestação de serviços continuados nas áreas de operação de tráfego, condução e higienização de veículos pelo período de 30 (trinta) meses
B9: LICITANTE: _____________________________________________________
B10: CNPJ: ________________________________________________________
B11: ENDEREÇO COMPLETO: _________________________________________
B12: TELEFONE:_____________________________________________________
B13: E-MAIL: ________________________________________________________
B15: Apresentamos nossa proposta para o item único da presente licitação, de acordo com as disposições do Edital.
B16: Decorre do conteúdo da presente proposta a explicitação do seguinte PREÇO DE JULGAMENTO (GLOBAL para 30 MESES) PARA O ITEM:
B17: =Resumo!H98 -> 36897962.1
B18: =Extenso_Valor(B17) -> trinta e seis milhões, oitocentos e noventa e sete mil, novecentos e sessenta e dois reais e dez centavos
B20: (por extenso)
B22: No valor proposto estão incluídos todos os custos e todas as despesas, diretas e indiretas, para a execução dos serviços objeto da licitação, em conformidade com as especificações e demais condições e exigências constantes do Edital.
B23: Informamos que eventuais rubricas dispostas em Acordo ou Convenção Coletiva de Trabalho que não se relacionem ao custo direto da venda do serviço, tais como “Participação nos Resultados” e “Abono substitutivo de Participação nos Resultados”, serão consideradas nos custos indiretos da proposta.
B24: O prazo de validade da presente proposta é de ______ (por extenso) dias. (observado o disposto no Título 4 do Edital).
B26: Convenção coletiva de trabalho ou a norma coletiva a que estamos obrigados:
B27: Data-Base:
B28: Número do Registro no SRT:
B29: Regime de tributação da empresa:
B30: Empresa é beneficiada pela desoneração da folha de pagamento instituída pela Lei n. 12.546, de 2001, alterada pela Lei n. 13.161, de 2015?
B31: Empresa adere ao PAT (Programa de Alimentação do Trabalhador)?
B32: (Se adere ao PAT): Os valores do auxílio-alimentação apresentados na presente proposta deverão corresponder aos efetivamente pagos pela empresa aos empregados
B34: DECLARAÇÕES
B35: Declaramos que:
B36: a) disponibilizaremos equipamentos e pessoal técnico adequados para realização do objeto da presente licitação;
B37: b) seremos responsável pelo descarte ambientalmente responsável de qualquer resíduo do serviço a ser prestado, objeto desta licitação – incluindo consumíveis, peças usadas, embalagens – e que temos conhecimento da legislação ambiental sobre o descarte de materiais, em especial a Lei n. 9.605/1998 e a Lei n. 12.305/2010, além da NBR 10.004.
B40: A SEREM PRESTADAS SOMENTE NA HIPÓTESE DE LICITANTE MICROEMPRESA OU EMPRESA DE PEQUENO PORTE, EM CONFORMIDADE COM OS ARTIGOS 17, 18, 30 E 31 DA LEI COMPLEMENTAR N. 123/2006, E O ACÓRDÃO TCU 2798/2010-PLENÁRIO
B43: Declaramos que:
B44: a) em se tratando dos serviços vedados descritos no artigo 17 da Lei Complementar n. 123/2006, notadamente os descritos no inciso XII (cessão ou locação de mão de obra), ressalvados os serviços listados nos § 5º-C, inciso VI, c/c § 5º-H do art. 18 ou no § 1º do art. 17 da referida Lei, a proposta apresentada não contempla qualquer benefício tributário referente ao SIMPLES NACIONAL, conforme os itens 4.20 e 4.21 do Edital;
B47: b) na hipótese de contratação desta Microempresa ou Empresa de Pequeno Porte inscrita no SIMPLES NACIONAL e executora de atividade vedada, ficamos sujeitos à exclusão obrigatória no SIMPLES NACIONAL a contar do mês seguinte ao da contratação, em consequência do que dispõem o artigo 17, inciso XII e o artigo 31, inciso II da Lei Complementar n, 123/2006, devendo entregar à Câmara dos Deputados, à título de comprovação, cópia de ofício – com comprovante de entrega e recebimento, que comunique a assinatura do contrato de prestação de serviços mediante cessão de mão de obra e encaminhado pela contratada à Secretaria Especial da Receita Federal do Brasil até o último dia útil do mês subsequente ao da contratação, consoante artigo 30, § 1º, inciso II da Lei Complementar n. 123/2006.
B51: A SEREM PRESTADAS SOMENTE NA HIPÓTESE DE LICITANTE NÃO BENEFICIADA PELA DESONERAÇÃO DA FOLHA DE PAGAMENTO INSTITUÍDA PELA LEI N. 12.546, DE 2011, ALTERADA PELA LEI N. 13.161, DE 2015
B54: Declaramos, sob as penas da Lei, que:
B55: a) não recolhemos a contribuição previdenciária incidente sobre o valor da receita bruta, em substituição às contribuições previdenciárias incidentes sobre a folha de pagamento, previstas nos incisos I e III do caput do artigo 22 da Lei n. 8.212/1991, na forma do caput do artigo 7º (ou 8º) da Lei n. 12.546/2011, alterada pela Lei n. 13.161/2015;;
B58: b) temos ciência que nossa manifestação, conforme alínea “a” anterior, será remetida à Secretaria Especial da Receita Federal do Brasil e que, em caso de constatação de falsidade, estará sujeita às sanções administrativas cabíveis, sem prejuízo do encaminhamento dos documentos ao Ministério Público para apuração de eventual responsabilidade criminal desta declarante.
B62: A SEREM PRESTADAS SOMENTE PARA A LICITANTE QUE SEJA A ATUAL TITULAR DO CONTRATO QUE SERÁ SUCEDIDO PELA CONTRATAÇÃO DECORRENTE DO PREGÃO EM EPÍGRAFE, NA HIPÓTESE DE HAVER SALÁRIO(S) PRATICADO(S) NO CONTRATO VIGENTE SUPERIOR(ES) AOS MÍNIMOS FIXADOS NO EDITAL E QUE TENHA OPTADO POR TOMAR COMO BASE EM SEUS LANCES E NA PRESENTE PROPOSTA DE PREÇOS SALÁRIO(S) FIXADO(S) NESTE EDITAL:
B65: Declaramos que:
B66: a) estamos cientes de que deveremos apresentar à Câmara dos Deputados, no prazo improrrogável de 60 (sessenta) dias, contado da data de início da vigência do contrato, a convenção ou o acordo coletivo de trabalho, entabulado com a participação do sindicato dos trabalhadores, em que se autoriza a redução salarial, na forma do art. 7°, VI, da Constituição Federal, considerado, ainda, o disposto no subitem 10.10.2.1 do Título 10 da minuta do Termo de Contrato anexa;
B70: b) estamos cientes de que, na hipótese de não cumprirmos o disposto no teor da declaração da alínea anterior (“a”) e não logrado êxito na contratação de remanescente, sendo necessária a realização de nova licitação, caso participemos do certame, deveremos tomar como base em nossos lances e em nossa proposta de preços o(s) salário(s) maior(es), absorvendo ou acrescentando eventual diferença no BDI, sob pena de desclassificação.
B73: É OBRIGATÓRIA A COMPROVAÇÃO A QUE SE REFERE O ITEM 4.3 DO TÍTULO 4 DO TERMO DE REFERÊNCIA
B76: (referente ao valor do Fator Acidentário de Prevenção (FAP)).
B80: DADOS PARA ASSINATURA DO CONTRATO
B81: Nome do signatário
B82: Cargo
B83: Qualificação (CPF, naturalidade e domicílio)
B84: OBS.: O signatário deve possuir poderes de administração estabelecidos em contrato social e/ou possuir procuração com poderes para assinar contratos em nome da empresa. A documentação comprobatória deverá ser encaminhada quando da assinatura do contrato.
B86: MODALIDADE DE GARANTIA:
B87: De acordo com o disposto no Termo de Referência anexo ao Edital, informamos que, caso o objeto nos seja adjudicado, optaremos pela seguinte modalidade de garantia de execução do contrato (artigos 96 e seguintes da Lei 14.133/2021):
B88: ____________________________________
B92: Brasília, de de | G92: =YEAR(TODAY()) -> 2024
B94: Assinatura do representante legal da empresa
B97: Nome do representante legal da empresa

Sheet Remunerações
B1: QUADRO DE REMUNERAÇÕES
C3: ITEM | D3: POSTO DE TRABALHO | E3: QUANTIDADE | F3: SALÁRIO | G3: ADICIONAL DE PERICULOSIDADE | H3: ADICIONAL DE INSALUBRIDADE | I3: ADICIONAL NOTURNO | J3: OUTROS | K3: SALÁRIO COM ADICIONAIS
C4: 1 | D4: =HLOOKUP(C4,'Dados Gerais'!$D$6:$BH$11,6) -> OPERADOR DE TRÁFEGO | E4: =HLOOKUP($C4,'Dados Gerais'!$D$6:$BH$15,10) -> 14 | F4: ='1'!$F$9 -> 3300.94 | G4: ='1'!$F$10 -> 0 | H4: ='1'!$F$11 -> 0 | I4: ='1'!$F$12 -> 0 | J4: ='1'!$F$13+'1'!$F$14 -> 0 | K4: =SUM(F4:J4) -> 3300.94
C5: =C4+1 -> 2 | D5: =HLOOKUP(C5,'Dados Gerais'!$D$6:$BH$11,6) -> MOTORISTA EXECUTIVO | E5: =HLOOKUP($C5,'Dados Gerais'!$D$6:$BH$15,10) -> 95 | F5: ='2'!$F$9 -> 4135.51 | G5: ='2'!$F$10 -> 0 | H5: ='2'!$F$11 -> 0 | I5: ='2'!$F$12 -> 0 | J5: ='2'!$F$13+'2'!$F$14 -> 0 | K5: 4135.51
C6: =C5+1 -> 3 | D6: =HLOOKUP(C6,'Dados Gerais'!$D$6:$BH$11,6) -> HIGIENIZADOR DE VEÍCULOS | E6: =HLOOKUP($C6,'Dados Gerais'!$D$6:$BH$15,10) -> 11 | F6: ='3'!$F$9 -> 1935.34 | G6: ='3'!$F$10 -> 0 | H6: ='3'!$F$11 -> 0 | I6: ='3'!$F$12 -> 0 | J6: ='3'!$F$13+'3'!$F$14 -> 0 | K6: 1935.34
C7: =C6+1 -> 4 | D7: =HLOOKUP(C7,'Dados Gerais'!$D$6:$BH$11,6) -> ENCARREGADO | E7: =HLOOKUP($C7,'Dados Gerais'!$D$6:$BH$15,10) -> 2 | F7: ='4'!$F$9 -> 5061.17 | G7: ='4'!$F$10 -> 0 | H7: ='4'!$F$11 -> 0 | I7: ='4'!$F$12 -> 0 | J7: ='4'!$F$13+'4'!$F$14 -> 0 | K7: 5061.17
C8: =C7+1 -> 5 | D8: =HLOOKUP(C8,'Dados Gerais'!$D$6:$BH$11,6) -> MOTORISTA EXECUTIVO - PLANTONISTA DIURNO | E8: =HLOOKUP($C8,'Dados Gerais'!$D$6:$BH$15,10) -> 0 | F8: ='5'!$F$9 -> 4135.51 | G8: ='5'!$F$10 -> 0 | H8: ='5'!$F$11 -> 0 | I8: ='5'!$F$12 -> 0 | J8: ='5'!$F$13+'5'!$F$14 -> 0 | K8: 4135.51
C9: =C8+1 -> 6 | D9: =HLOOKUP(C9,'Dados Gerais'!$D$6:$BH$11,6) -> MOTORISTA EXECUTIVO - PLANTONISTA NOTURNO | E9: =HLOOKUP($C9,'Dados Gerais'!$D$6:$BH$15,10) -> 0 | F9: ='6'!$F$9 -> 4135.51 | G9: ='6'!$F$10 -> 0 | H9: ='6'!$F$11 -> 0 | I9: ='6'!$F$12 -> 0 | J9: ='6'!$F$13+'6'!$F$14 -> 0 | K9: 4135.51
D10: TOTAL | E10: =SUM(E4:E9) -> 122

Sheet Resumo
B1: FATURA ORDINÁRIA
B4: A1. RESUMO - TOTAIS MENSAIS - FATURA ORDINÁRIA (SEM O 13º E SEM OS ITENS SOB DEMANDA)
C7: ITEM | D7: POSTO DE TRABALHO | E7: QUANTIDADE | F7: PREÇO UNIT (SEM O 13º) | G7: DESTAQUE DO 13º | H7: PREÇO POR EMPREGADO | I7: PREÇO TOTAL (MENSAL)
C8: 1 | D8: =HLOOKUP(C8,'Dados Gerais'!$D$6:$BH$11,6) -> OPERADOR DE TRÁFEGO | E8: ='Dados Gerais'!D$15 -> 14 | F8: ='1'!$E$115 -> 8006.54 | G8: 0 | H8: =G8+F8 -> 8006.54 | I8: =H8*E8 -> 112091.56
C9: 2 | D9: =HLOOKUP(C9,'Dados Gerais'!$D$6:$BH$11,6) -> MOTORISTA EXECUTIVO | E9: ='Dados Gerais'!E$15 -> 95 | F9: ='2'!$E$115 -> 9814.3 | G9: 0 | H9: =G9+F9 -> 9814.3 | I9: =H9*E9 -> 932358.5
C10: 3 | D10: =HLOOKUP(C10,'Dados Gerais'!$D$6:$BH$11,6) -> HIGIENIZADOR DE VEÍCULOS | E10: ='Dados Gerais'!F$15 -> 11 | F10: ='3'!$E$115 -> 5364.16 | G10: 0 | H10: =G10+F10 -> 5364.16 | I10: =H10*E10 -> 59005.76
C11: 4 | D11: =HLOOKUP(C11,'Dados Gerais'!$D$6:$BH$11,6) -> ENCARREGADO | E11: ='Dados Gerais'!G$15 -> 2 | F11: ='4'!$E$115 -> 11279.99 | G11: 0 | H11: =G11+F11 -> 11279.99 | I11: =H11*E11 -> 22559.98
C12: 5 | D12: =HLOOKUP(C12,'Dados Gerais'!$D$6:$BH$11,6) -> MOTORISTA EXECUTIVO - PLANTONISTA DIURNO | E12: ='Dados Gerais'!H$15 -> 0 | F12: ='5'!$E$115 -> 9378.75 | G12: 0 | H12: =G12+F12 -> 9378.75 | I12: =H12*E12 -> 0
D14: TOTAL MENSAL - SALÁRIOS | I14: =SUM(I8:I13) -> 1126015.8
B17: A2. RESUMO - TOTAIS MENSAIS - FATURA ORDINÁRIA - DESTAQUE DO 13º SALÁRIO
C20: ITEM | D20: POSTO DE TRABALHO | E20: QUANTIDADE | F20: PREÇO UNIT (SEM O 13º) | G20: DESTAQUE DO 13º | H20: PREÇO POR EMPREGADO | I20: PREÇO TOTAL (MENSAL)
C21: 1 | D21: =HLOOKUP(C21,'Dados Gerais'!$D$6:$BH$11,6) -> OPERADOR DE TRÁFEGO | E21: =E8 -> 14 | F21: 0 | G21: ='1'!$E$116 -> 570.81 | H21: =G21+F21 -> 570.81 | I21: =H21*E21 -> 7991.34
C22: 2 | D22: =HLOOKUP(C22,'Dados Gerais'!$D$6:$BH$11,6) -> MOTORISTA EXECUTIVO | E22: =E9 -> 95 | F22: 0 | G22: ='2'!$E$116 -> 715.13 | H22: =G22+F22 -> 715.13 | I22: =H22*E22 -> 67937.35
C23: 3 | D23: =HLOOKUP(C23,'Dados Gerais'!$D$6:$BH$11,6) -> HIGIENIZADOR DE VEÍCULOS | E23: =E10 -> 11 | F23: 0 | G23: ='3'!$E$116 -> 334.66 | H23: =G23+F23 -> 334.66 | I23: =H23*E23 -> 3681.26
C24: 4 | D24: =HLOOKUP(C24,'Dados Gerais'!$D$6:$BH$11,6) -> ENCARREGADO | E24: =E11 -> 2 | F24: 0 | G24: ='4'!$E$116 -> 875.19 | H24: =G24+F24 -> 875.19 | I24: =H24*E24 -> 1750.38
C25: 5 | D25: =HLOOKUP(C25,'Dados Gerais'!$D$6:$BH$11,6) -> MOTORISTA EXECUTIVO - PLANTONISTA DIURNO | E25: =E12 -> 0 | F25: 0 | G25: ='5'!$E$116 -> 715.13 | H25: =G25+F25 -> 715.13 | I25: =H25*E25 -> 0
D27: TOTAL MENSAL - DESTAQUE DO 13º | I27: =SUM(I21:I26) -> 81360.33
B30: A. RESUMO - TOTAIS MENSAIS - FATURA ORDINÁRIA TOTAL
C33: ITEM | D33: POSTO DE TRABALHO | E33: QUANTIDADE | F33: PREÇO UNIT (SEM O 13º) | G33: DESTAQUE DO 13º | H33: PREÇO POR EMPREGADO | I33: PREÇO TOTAL (MENSAL)
C34: 1 | D34: =HLOOKUP(C34,'Dados Gerais'!$D$6:$BH$11,6) -> OPERADOR DE TRÁFEGO | E34: =E8 -> 14 | F34: 8006.54 | G34: =G21 -> 570.81 | H34: =G34+F34 -> 8577.35 | I34: =H34*E34 -> 120082.9
C35: 2 | D35: =HLOOKUP(C35,'Dados Gerais'!$D$6:$BH$11,6) -> MOTORISTA EXECUTIVO | E35: 95 | F35: 9814.3 | G35: =G22 -> 715.13 | H35: =G35+F35 -> 10529.43 | I35: =H35*E35 -> 1000295.85
C36: 3 | D36: =HLOOKUP(C36,'Dados Gerais'!$D$6:$BH$11,6) -> HIGIENIZADOR DE VEÍCULOS | E36: 11 | F36: 5364.16 | G36: =G23 -> 334.66 | H36: =G36+F36 -> 5698.82 | I36: =H36*E36 -> 62687.02
C37: 4 | D37: =HLOOKUP(C37,'Dados Gerais'!$D$6:$BH$11,6) -> ENCARREGADO | E37: 2 | F37: 11279.99 | G37: =G24 -> 875.19 | H37: =G37+F37 -> 12155.18 | I37: =H37*E37 -> 24310.36
C38: 5 | D38: =HLOOKUP(C38,'Dados Gerais'!$D$6:$BH$11,6) -> MOTORISTA EXECUTIVO - PLANTONISTA DIURNO | E38: 0 | F38: 9378.75 | G38: =G25 -> 715.13 | H38: =G38+F38 -> 10093.88 | I38: =H38*E38 -> 0
D40: TOTAL MENSAL - SALÁRIOS | I40: =SUM(I34:I39) -> 1207376.13
B43: B. RESUMO - TOTAIS MENSAIS - ITENS COMPLEMENTARES À FOLHA
C46: ITEM | D46: DESCRIÇÃO | I46: PREÇO TOTAL (MENSAL)
C47: SREP | D47: SISTEMA DE REGISTRO ELETRÔNICO DE PRESENÇA - SREP | I47: ='Não Rel - SREP'!L46 -> 1328.86
C48: EPI - N.REL | D48: EQUIPAMENTOS DE PROTEÇÃO INDIVIDUAL NÃO RELACIONADOS DIRETAMENTE A UM POSTO DE TRABALHO | I48: =#REF! -> 
C49: EQUIPAMENTOS | D49: EQUIPAMENTOS NÃO RELACIONADAS DIRETAMENTE A UM POSTO DE TRABALHO | I49: ='Não Rel - Equip'!M40 -> 32.81
C50: MATERIAIS | D50: MATERIAIS NÃO RELACIONADAS DIRETAMENTE A UM POSTO DE TRABALHO | I50: ='Não Rel - Materiais'!K23 -> 1425.52
D52: TOTAL MENSAL - ITENS COMPLEMENTARES À FOLHA | I52: =I47+I49+I50 -> 2787.19
B56: C. RESUMO - TOTAIS MENSAIS - ITENS SOB DEMANDA
C59: ITEM | D59: DESCRIÇÃO | I59: PREÇO TOTAL (MENSAL)
C60: NOT. DEMANDA | D60: HORAS NOTURNAS - SOB DEMANDA
C61: HORAS EXTRAS | D61: HORAS EXTRAS - SOB DEMANDA
C62: NOT. SOB DEMANDA | D62: ADICIONAL NOTURNO SOB DEMANDA | I62: ='NOT - Demanda'!G53 -> 17622.91167
C63: INS. SOB DEMANDA | D63: ADICIONAL DE INSALUBRIDADE SOB DEMANDA | I63: ='INS - Demanda'!H33 -> 1616.661929
C64: DIA. SOB DEMANDA | D64: DIÁRIAS SOB DEMANDA | I64: ='DIA - Demanda'!H14 -> 529.18
D66: TOTAL MENSAL - ITENS SOB DEMANDA | I66: =SUM(I62:I65) -> 19768.7536
D68: TOTAL MENSAL
D69: DESCRIÇÃO | H69: VALOR
D70: A. FATURA MENSAL ORDINÁRIA | H70: =I40 -> 1207376.13
D71: B. ESTIMATIVA MENSAL - ITENS COMPLEMENTARES À FOLHA | H71: =I52 -> 2787.19
D72: C. ESTIMATIVA MENSAL - ITENS SOB DEMANDA | H72: =I66 -> 19768.7536
G74: TOTAL MENSAL DA CONTRATAÇÃO | H74: =ROUND(SUM(H70:H73),2) -> 1229932.07
D76: TOTAL GLOBAL DA CONTRATAÇÃO - 12 MESES
G78: 12 x TOTAL MENSAL | H78: =ROUND(H74*12,2) -> 14759184.84
D80: TOTAL MENSAL - ITENS SOB DEMANDA
D81: DESCRIÇÃO | H81: VALOR
D82: Materiais não relacionados diretamente a um posto de trabalho - AQUISIÇÃO SOB DEMANDA | H82: =#REF! -> 
D83: Equipamentos não relacionados diretamente a um posto de trabalho - AQUISIÇÃO SOB DEMANDA | H83: =#REF! -> 
G85: TOTAL MENSAL DA CONTRATAÇÃO | H85: =SUM(H82:H84) -> 
D87: TOTAL ANUAL - ITENS SOB DEMANDA
G89: 12 x TOTAL MENSAL | H89: =H85*12 -> 
D91: TOTAL ANUAL GLOBAL DA CONTRATAÇÃO
H93: =H89+H78 -> 
D96: TOTAL GLOBAL DA CONTRATAÇÃO - 30 MESES
G98: 30 x TOTAL MENSAL | H98: =ROUND(H74*30,2) -> 36897962.1
D100: TOTAL MENSAL - ITENS SOB DEMANDA
D101: DESCRIÇÃO | H101: VALOR
D102: Materiais não relacionados diretamente a um posto de trabalho - AQUISIÇÃO SOB DEMANDA | H102: =#REF! -> 
D103: Equipamentos não relacionados diretamente a um posto de trabalho - AQUISIÇÃO SOB DEMANDA | H103: =#REF! -> 
G105: TOTAL MENSAL DA CONTRATAÇÃO | H105: =SUM(H102:H104) -> 
D107: TOTAL ANUAL - ITENS SOB DEMANDA
G109: 12 x TOTAL MENSAL | H109: =H105*12 -> 
D111: TOTAL ANUAL GLOBAL DA CONTRATAÇÃO
H113: =H109+H98 -> 

Sheet 1
B2: PLANILHA DE ESTIMATIVA DE CUSTOS
B3: Padrão IN 05/2017 e IN 07/2018 - MPDG
B5: 1 | D5: =HLOOKUP($B$5,'Dados Gerais'!$D$6:$BH$22,6) -> OPERADOR DE TRÁFEGO | E5: QUANTIDADE | F5: =HLOOKUP($B$5,'Dados Gerais'!$D$6:$BH$22,10) -> 14
B6: CCT | D6: =HLOOKUP($B$5,'Dados Gerais'!$D$6:$BH$22,16) -> SEAC/DF x SITRATTER/DF CCT 2024/2025 N.º DF000642/2024 | E6: DATA-BASE | F6: =HLOOKUP($B$5,'Dados Gerais'!$D$6:$BH$22,17) -> 2024-01-01
B8: MÓDULO 1 - COMPOSIÇÃO DA REMUNERAÇÃO | F8: Valor
C9: A | D9: Salário-Base | F9: =HLOOKUP($B$5,'Dados Gerais'!$D$6:$BH$22,8) -> 3300.94
C10: B | D10: Adicional de Periculosidade | F10: =HLOOKUP($B$5,'Dados Gerais'!$D$6:$BH$39,26) -> 0
C11: C | D11: Adicional de Insalubridade | F11: =HLOOKUP($B$5,'Dados Gerais'!$D$6:$BH$39,32) -> 0
C12: D | D12: Adicional Noturno | F12: =HLOOKUP($B$5,'Dados Gerais'!$D$6:$BH$52,47) -> 0 | H12: * Nota 1 - O Módulo 1 refere-se ao valor mensal devido ao empregado pela prestação do serviço no período de 12 meses.
C13: E | D13: Adicional de Hora Extra | F13: =HLOOKUP($B$5,'Dados Gerais'!$D$6:$BH$69,64) -> 0 | H13: * Nota 2 - O adicional de hora extra no feriado trabalhado foi suprimido pela Lei 13.467/17
C14: F | D14: Outros | F14: =HLOOKUP($B$5,'Dados Gerais'!$D$6:$BH$69,34) -> 0 | H14: * Nota 3 - ART. 7º, § 2º, DA LEI Nº 605/49.Sendo mensalista o obreiro, o adicional noturno pago de forma fixa já é considerado integrado para os efeitos do pagamento do repouso semanal remunerado, nos termos do art. 7º, § 2º, da Lei nº 605/49.
D16: TOTAL DA REMUNERAÇÃO | F16: =SUM(F9:F14) -> 3300.94
B18: MÓDULO 2 - ENCARGOS E BENEFÍCIOS ANUAIS, MENSAIS E DIÁRIOS | E18: Percentuais | F18: Valor
B19: Submódulo 2.1 - 13º Salário, Férias e Adicional de Férias
C20: A | D20: 13º Salário - Calculado no Módulo 7 - Destacado | E20: 0 | F20: =ROUND(E20*F$16,2) -> 0
C21: B | D21: Adicional de Férias | E21: ='Encargos Sociais'!E31 -> 0.0303 | F21: =ROUND(E21*F$16,2) -> 100.02 | H21: * Nota 1 - O adicional de férias foi calculado dividindo-se por 11, para comportar os 11 meses presentes e ainda o ausente do posto
B23: Submódulo 2.2 - Encargos Previdenciários (GPS), Fundo de Garantia por Tempo de Serviço (FGTS) e Outras Contribuições
C24: A | D24: INSS (art. 22, inciso I, Lei nº 8.212/91) | E24: ='Encargos Sociais'!E14 -> 0.2 | F24: =ROUND(E24*($F$16+$F$73+$F$21),2) -> 753.41 | H24: * Nota 1 - Os percentuais dos encargos previdenciários, do FGTS e demais contribuições são estabelecidos por legislação vigente.
C25: B | D25: Salário Educação (art. 3º, inciso I, Decreto nº 87.043/82) | E25: ='Encargos Sociais'!E15 -> 0.025 | F25: 94.18 | H25: * Nota 2 - O SAT, a depender do grau de risco do serviço, irá variar entre 1%, para risco leve, de 2%, para risco médio, e de 3% para risco grave.
C26: C | D26: SAT/RAT (art. 22, II, Lei 8.212/91 e Anexo V, Decreto 6.042/07) - Enquadramento 8211-3/00 | E26: ='Encargos Sociais'!E16 -> 0.01 | F26: 37.67 | H26: * Nota 3 - Base de cálculo - remuneração + ausências + terço constitucional (férias)
C27: D | D27: SESC ou SESI (art. 30, Lei nº 8.036/90 e art. 1º, Lei 8.154/90) | E27: ='Encargos Sociais'!E17 -> 0.015 | F27: 56.51
C28: E | D28: SENAI ou SENAC (Decreto nº 2.318/86) | E28: ='Encargos Sociais'!E18 -> 0.01 | F28: 37.67
C29: F | D29: SEBRAE (§ 3º, art. 8º, Lei 8.029/90, alterada pela Lei nº 8.154/90) | E29: ='Encargos Sociais'!E19 -> 0.006 | F29: 22.6
C30: G | D30: INCRA (art. 1º, I, Decreto Lei 1.146/70 e Lei 7.787, de 30/06/89) | E30: ='Encargos Sociais'!E20 -> 0.002 | F30: 7.53
C31: H | D31: FGTS (Lei Complementar nº 110/01 e art. 30, Lei nº 8.036/90) | E31: ='Encargos Sociais'!E21 -> 0.08 | F31: 301.36
C32: I | D32: SECONCI (Convenções Coletivas de Trabalho da construção) | E32: ='Encargos Sociais'!E22 -> 0 | F32: 0
B34: Submódulo 2.3 - Benefícios Mensais e Diários
C35: A | D35: Auxílio Transporte | F35: =HLOOKUP($B$5,'Dados Gerais'!$D$6:$BH$95,83) -> 75.62 | H35: * Nota 1 - O valor informado deverá ser o custo real do benefício (descontado o valor eventualmente pago pelo empregado).
C36: B | D36: Auxílio Alimentação | F36: =HLOOKUP($B$5,'Dados Gerais'!$D$6:$BH$95,90) -> 1026.3 | H36: * Nota 2 - Observar a previsão dos benefícios contidos em Acordos, Convenções e Dissídios Coletivos de Trabalho e o disposto no art. 6º da IN 5/2017
C37: C | D37: Assistência Médica e Familiar | F37: =HLOOKUP($B$5,'Dados Gerais'!$D$6:$BH$103,98) -> 0
C38: D | D38: Outros (Seguro de vida, auxílio funeral, auxílio odontológico e auxílio creche) | F38: =HLOOKUP($B$5,'Dados Gerais'!$D$6:$BH$121,115) -> 39.34
D40: QUADRO-RESUMO DO MÓDULO 2
D41: 2.1 - Adicional de Férias | E41: =SUM(E20:E21) -> 0.0303 | F41: =F20+F21 -> 100.02
D42: 2.2 - Encargos Previdenciários (GPS), Fundo de Garantia por Tempo de Serviço (FGTS) e Contribuições | E42: =SUM(E24:E32) -> 0.348 | F42: =SUM(F24:F32) -> 1310.93
D43: 2.3 - Benefícios Mensais e Diários | F43: =SUM(F35:F38) -> 1141.26
D45: TOTAL DOS ENCARGOS E BENEFÍCIOS | F45: =SUM(F41:F43) -> 2552.21
B47: MÓDULO 3 - PREVISÃO PARA RESCISÃO | E47: Percentuais | F47: Valor
C48: A | D48: Aviso Prévio Indenizado (Art. 7º, inciso XXI, da CF/1988 e arts. 477, 487, §1º, e 491 da CLT) | E48: ='Encargos Sociais'!E36 -> 0.0035 | F48: =ROUND(E48*($F$16+$F$41+$F$73),2) -> 13.18 | H48: * Nota 1 - Base de cálculo - remuneração + ausências + 1/3 férias
C49: B | D49: Incidência do FGTS sobre o Aviso Prévio Indenizado (Súmula 305 TST) | E49: ='Encargos Sociais'!E37 -> 0.0003 | F49: 1.13
C50: C | D50: Multa do FGTS e Contribuição Social sobre o Aviso Prévio Indenizado (Art. 18, §1º, da Lei 8.036/1990 e art. 1º da LC nº 110/2001) | E50: ='Encargos Sociais'!E38 -> 0.0011 | F50: 4.14
C51: D | D51: Aviso Prévio Trabalhado (Art. 488, parágrafo único, CLT) | E51: ='Encargos Sociais'!E39 -> 0.0078 | F51: 29.38
C52: E | D52: Incidência de GPS, FGTS e outras contribuições sobre o Aviso Prévio Trabalhado | E52: ='Encargos Sociais'!E40 -> 0.0027 | F52: 10.17
C53: F | D53: Multa do FGTS e Contribuição Social sobre o Aviso Prévio Trabalhado | E53: ='Encargos Sociais'!E41 -> 0.0309 | F53: 116.4
D55: TOTAL DE PREVISÃO PARA RESCISÃO | F55: =SUM(F48:F53) -> 174.4
B57: MÓDULO 4 - CUSTO DO PROFISSIONAL AUSENTE | E57: Percentuais | F57: Valor
B58: Submódulo 4.1 - Ausências Legais
C59: A | D59: Férias (Arts. 129 e 130, inc. I, da CLT) | E59: ='Encargos Sociais'!E25 -> 0.0909 | F59: =ROUND(E59*$F$16,2) -> 300.06 | H59: * Nota 1 - O Módulo 4 refere-se às previsões para custear ausências do próprio profissional (titular do cargo)
C60: B | D60: Ausências Legais (Arts. 131 e 473 da CLT) | E60: ='Encargos Sociais'!E26 -> 0.0079 | F60: 26.08 | H60: * Nota 2 - As férias foram calculadas dividindo-se por 11, para comportar os 11 meses presentes e ainda o ausente do posto
C61: C | D61: Licença-Paternidade (Art. 7º, XIX, e art. 10, §1º, do ADCT, CF/1988 e Art. 1º, II, da Lei 11.770/2008) | E61: ='Encargos Sociais'!E27 -> 0.0008 | F61: 2.64
C62: D | D62: Ausência por Acidente de Trabalho (Art. 131, III, da CLT) | E62: ='Encargos Sociais'!E28 -> 0.0009 | F62: 2.97
C63: E | D63: Afastamento Maternidade (Art. 71 da Lei nº 8.213/1991) | E63: ='Encargos Sociais'!E29 -> 0.0033 | F63: 10.89
C64: F | D64: Auxílio Enfermidade - Doença (Art. 59 da Lei nº 8.213/1991) | E64: ='Encargos Sociais'!E30 -> 0.0071 | F64: 23.44
B66: Submódulo 4.2 - Intrajornada
C67: A | D67: Intervalo para repouso ou alimentação | E67: ='Encargos Sociais'!E33 -> 0 | F67: =ROUND(E67*$F$16,2) -> 0
D69: QUADRO-RESUMO DO MÓDULO 4 | F69: Valor
D70: 4.1 - Ausências Legais | E70: =SUM(E59:E64) -> 0.1109 | F70: =ROUND(E70*$F$16,2) -> 366.07
D71: 4.2 - Intrajornada | E71: =E67 -> 0 | F71: =ROUND(E71*$F$16,2) -> 0
D73: TOTAL DE PREVISÃO PARA RESCISÃO E INTERVALO INTRAJORNADA | F73: =SUM(F70:F71) -> 366.07
B75: MÓDULO 5 - INSUMOS DIVERSOS | F75: Valor
C76: A | D76: Uniformes - aquisição | F76: =Uniformes!J9 -> 78.93
C77: B | D77: Materiais de consumo relacionados ao posto - aquisição | F77: =ROUND(HLOOKUP(B5,'Mat Cons'!I11:DX13,3)/12,2) -> 0
C78: C | D78: Ferramentas relacionadas ao posto - remuneração da sua depreciação / manutenção | F78: =HLOOKUP(B5,'Relacion - Ferram'!Q3:EF5,3) -> 0
C79: D | D79: Equipamentos relacionados ao posto - remuneração da sua depreciação / manutenção | F79: =HLOOKUP(B5,'Equip Rel'!Q11:EF13,3) -> 0
C80: E | D80: Equipamentos de Proteção Individual - EPI - aquisição | F80: 0
D82: TOTAL DE INSUMOS DIVERSOS | F82: =SUM(F76:F81) -> 78.93 | H82: * Nota - Valores mensais por empregado
B84: MÓDULO 6 - CUSTOS INDIRETOS, TRIBUTOS E LUCRO - BDI | E84: Percentuais | F84: Valor
C85: A | D85: Custos Indiretos | E85: ='BDI - Geral'!E7 -> 0.0391
C86: A.1 | D86: Administração Central | E86: ='BDI - Geral'!E8 -> 0.0337
C87: A.2 | D87: Seguros, Garantias e Riscos | E87: ='BDI - Geral'!E9 -> 0.0054
C88: B | D88: Lucro | E88: ='BDI - Geral'!E11 -> 0.038
C89: C | D89: Tributos | E89: =SUM(E90:E91) -> 0.124
C90: C.1 | D90: Tributos Federais (COFINS, PIS e CPRB) | E90: ='BDI - Geral'!E19 -> 0.074
C91: C.2 | D91: Tributos Distritais (ISS) | E91: ='BDI - Geral'!E24 -> 0.05
C92: D | D92: Despesas Financeiras | E92: ='BDI - Geral'!E14 -> 0.0047
D94: TOTAL DE BDI | E94: ='BDI - Geral'!E27 -> 0.237 | F94: =ROUND(E94*E102,2) -> 1533.99
D96: QUADRO-RESUMO DO CUSTO MENSAL POR EMPREGADO - SEM O 13º | E96: Valor
D97: Módulo 1 - Composição da Remuneração | E97: =F16 -> 3300.94
D98: Módulo 2 - Encargos e Benefícios Anuais, Mensais e Diários | E98: =F45 -> 2552.21
D99: Módulo 3 - Provisão para Rescisão | E99: =F55 -> 174.4
D100: Módulo 4 - Custo de Reposição do Profissional Ausente | E100: =F73 -> 366.07
D101: Módulo 5 - Insumos Diversos | E101: =F82 -> 78.93
D102: SUBTOTAL (A+B+C+D+E) | E102: =SUM(E97:E101) -> 6472.55 | I102: =E102*(1+E85+E88+E92) -> 7002.00459 | J102: =I102*E89 -> 868.2485692 | K102: =I102+J102 -> 7870.253159
D103: Módulo 6 - Custos Indiretos, Tributos e Lucro | E103: =F94 -> 1533.99 | I103: =I102/(1-E89) -> 7993.155925
D105: TOTAL DO POSTO | E105: =SUM(E102:E103) -> 8006.54
B107: MÓDULO 7 - DESTAQUE DO MÓDULO 2 - 13º SALÁRIO | E107: Percentuais | F107: Valor
C108: A | D108: 13º Salário | E108: ='Encargos Sociais'!E32*12/11 -> 0.09087272727 | F108: =ROUND(E108*(F$16+$F$73+$F$21),2) -> 342.32 | H108: * Nota 1 - Incluindo-se a reincidência das férias do substituto sobre o titular
C109: B | D109: Encargos Sociais sobre o 13º Salário | E109: ='[1]Encargos Sociais'!E13 -> 0.348 | F109: =ROUND(E109*$F$108,2) -> 119.13 | H109: * Nota 2 - 13º e reflexos calculados à parte a fim de aprovisionamento
C110: C | D110: BDI sobre o 13º Salário - Taxa calculada no MÓDULO 6 | E110: =E94 -> 0.237 | F110: =ROUND(E110*($F$108+$F$109),2) -> 109.36
D112: TOTAL DO DESTAQUE DO 13º SALÁRIO | F112: =SUM(F108:F110) -> 570.81
D114: QUADRO-RESUMO DO CUSTO MENSAL POR EMPREGADO | E114: Valor
D115: Custo total - sem o 13º Salário | E115: =ROUND(E105,2) -> 8006.54
D116: Destaque do 13º Salário (valor mensal) | E116: =ROUND(F112,2) -> 570.81
D118: TOTAL DO POSTO | E118: =E115+E116 -> 8577.35

Sheet 2
B2: PLANILHA DE ESTIMATIVA DE CUSTOS
B3: Padrão IN 05/2017 e IN 07/2018 - MPDG
B5: 2 | D5: =HLOOKUP($B$5,'Dados Gerais'!$D$6:$BH$22,6) -> MOTORISTA EXECUTIVO | E5: QUANTIDADE | F5: =HLOOKUP($B$5,'Dados Gerais'!$D$6:$BH$22,10) -> 95
B6: CCT | D6: =HLOOKUP($B$5,'Dados Gerais'!$D$6:$BH$22,16) -> SEAC/DF x SITRATTER/DF CCT 2024/2025 N.º DF000642/2024 | E6: DATA-BASE | F6: =HLOOKUP($B$5,'Dados Gerais'!$D$6:$BH$22,17) -> 2024-01-01
B8: MÓDULO 1 - COMPOSIÇÃO DA REMUNERAÇÃO | F8: Valor
C9: A | D9: Salário-Base | F9: =HLOOKUP($B$5,'Dados Gerais'!$D$6:$BH$22,8) -> 4135.51
C10: B | D10: Adicional de Periculosidade | F10: =HLOOKUP($B$5,'Dados Gerais'!$D$6:$BH$39,26) -> 0
C11: C | D11: Adicional de Insalubridade | F11: =HLOOKUP($B$5,'Dados Gerais'!$D$6:$BH$39,32) -> 0
C12: D | D12: Adicional Noturno | F12: =HLOOKUP($B$5,'Dados Gerais'!$D$6:$BH$52,47) -> 0 | H12: * Nota 1 - O Módulo 1 refere-se ao valor mensal devido ao empregado pela prestação do serviço no período de 12 meses.
C13: E | D13: Adicional de Hora Extra | F13: =HLOOKUP($B$5,'Dados Gerais'!$D$6:$BH$69,64) -> 0 | H13: * Nota 2 - O adicional de hora extra no feriado trabalhado foi suprimido pela Lei 13.467/17
C14: F | D14: Outros | F14: =HLOOKUP($B$5,'Dados Gerais'!$D$6:$BH$69,34) -> 0 | H14: * Nota 3 - ART. 7º, § 2º, DA LEI Nº 605/49.Sendo mensalista o obreiro, o adicional noturno pago de forma fixa já é considerado integrado para os efeitos do pagamento do repouso semanal remunerado, nos termos do art. 7º, § 2º, da Lei nº 605/49.
D16: TOTAL DA REMUNERAÇÃO | F16: =SUM(F9:F14) -> 4135.51
B18: MÓDULO 2 - ENCARGOS E BENEFÍCIOS ANUAIS, MENSAIS E DIÁRIOS | E18: Percentuais | F18: Valor
B19: Submódulo 2.1 - 13º Salário, Férias e Adicional de Férias
C20: A | D20: 13º Salário - Calculado no Módulo 7 - Destacado | E20: 0 | F20: =ROUND(E20*F$16,2) -> 0
C21: B | D21: Adicional de Férias | E21: ='Encargos Sociais'!E31 -> 0.0303 | F21: =ROUND(E21*F$16,2) -> 125.31 | H21: * Nota 1 - O adicional de férias foi calculado dividindo-se por 11, para comportar os 11 meses presentes e ainda o ausente do posto
B23: Submódulo 2.2 - Encargos Previdenciários (GPS), Fundo de Garantia por Tempo de Serviço (FGTS) e Outras Contribuições
C24: A | D24: INSS (art. 22, inciso I, Lei nº 8.212/91) | E24: ='Encargos Sociais'!E14 -> 0.2 | F24: =ROUND(E24*($F$16+$F$73+$F$21),2) -> 943.89 | H24: * Nota 1 - Os percentuais dos encargos previdenciários, do FGTS e demais contribuições são estabelecidos por legislação vigente.
C25: B | D25: Salário Educação (art. 3º, inciso I, Decreto nº 87.043/82) | E25: ='Encargos Sociais'!E15 -> 0.025 | F25: 117.99 | H25: * Nota 2 - O SAT, a depender do grau de risco do serviço, irá variar entre 1%, para risco leve, de 2%, para risco médio, e de 3% para risco grave.
C26: C | D26: SAT/RAT (art. 22, II, Lei 8.212/91 e Anexo V, Decreto 6.042/07) - Enquadramento 8211-3/00 | E26: ='Encargos Sociais'!E16 -> 0.01 | F26: 47.19 | H26: * Nota 3 - Base de cálculo - remuneração + ausências + terço constitucional (férias)
C27: D | D27: SESC ou SESI (art. 30, Lei nº 8.036/90 e art. 1º, Lei 8.154/90) | E27: ='Encargos Sociais'!E17 -> 0.015 | F27: 70.79
C28: E | D28: SENAI ou SENAC (Decreto nº 2.318/86) | E28: ='Encargos Sociais'!E18 -> 0.01 | F28: 47.19
C29: F | D29: SEBRAE (§ 3º, art. 8º, Lei 8.029/90, alterada pela Lei nº 8.154/90) | E29: ='Encargos Sociais'!E19 -> 0.006 | F29: 28.32
C30: G | D30: INCRA (art. 1º, I, Decreto Lei 1.146/70 e Lei 7.787, de 30/06/89) | E30: ='Encargos Sociais'!E20 -> 0.002 | F30: 9.44
C31: H | D31: FGTS (Lei Complementar nº 110/01 e art. 30, Lei nº 8.036/90) | E31: ='Encargos Sociais'!E21 -> 0.08 | F31: 377.56
C32: I | D32: SECONCI (Convenções Coletivas de Trabalho da construção) | E32: ='Encargos Sociais'!E22 -> 0 | F32: 0
B34: Submódulo 2.3 - Benefícios Mensais e Diários
C35: A | D35: Auxílio Transporte | F35: =HLOOKUP($B$5,'Dados Gerais'!$D$6:$BH$95,83) -> 25.55 | H35: * Nota 1 - O valor informado deverá ser o custo real do benefício (descontado o valor eventualmente pago pelo empregado).
C36: B | D36: Auxílio Alimentação | F36: =HLOOKUP($B$5,'Dados Gerais'!$D$6:$BH$95,90) -> 1026.3 | H36: * Nota 2 - Observar a previsão dos benefícios contidos em Acordos, Convenções e Dissídios Coletivos de Trabalho e o disposto no art. 6º da IN 5/2017
C37: C | D37: Assistência Médica e Familiar | F37: =HLOOKUP($B$5,'Dados Gerais'!$D$6:$BH$103,98) -> 0
C38: D | D38: Outros (Seguro de vida, auxílio funeral, auxílio odontológico e auxílio creche) | F38: =HLOOKUP($B$5,'Dados Gerais'!$D$6:$BH$121,115) -> 39.34
D40: QUADRO-RESUMO DO MÓDULO 2
D41: 2.1 - Adicional de Férias | E41: =SUM(E20:E21) -> 0.0303 | F41: =F20+F21 -> 125.31
D42: 2.2 - Encargos Previdenciários (GPS), Fundo de Garantia por Tempo de Serviço (FGTS) e Contribuições | E42: =SUM(E24:E32) -> 0.348 | F42: =SUM(F24:F32) -> 1642.37
D43: 2.3 - Benefícios Mensais e Diários | F43: =SUM(F35:F38) -> 1091.19
D45: TOTAL DOS ENCARGOS E BENEFÍCIOS | F45: =SUM(F41:F43) -> 2858.87
B47: MÓDULO 3 - PREVISÃO PARA RESCISÃO | E47: Percentuais | F47: Valor
C48: A | D48: Aviso Prévio Indenizado (Art. 7º, inciso XXI, da CF/1988 e arts. 477, 487, §1º, e 491 da CLT) | E48: ='Encargos Sociais'!E36 -> 0.0035 | F48: =ROUND(E48*($F$16+$F$41+$F$73),2) -> 16.52 | H48: * Nota 1 - Base de cálculo - remuneração + ausências + 1/3 férias
C49: B | D49: Incidência do FGTS sobre o Aviso Prévio Indenizado (Súmula 305 TST) | E49: ='Encargos Sociais'!E37 -> 0.0003 | F49: 1.42
C50: C | D50: Multa do FGTS e Contribuição Social sobre o Aviso Prévio Indenizado (Art. 18, §1º, da Lei 8.036/1990 e art. 1º da LC nº 110/2001) | E50: ='Encargos Sociais'!E38 -> 0.0011 | F50: 5.19
C51: D | D51: Aviso Prévio Trabalhado (Art. 488, parágrafo único, CLT) | E51: ='Encargos Sociais'!E39 -> 0.0078 | F51: 36.81
C52: E | D52: Incidência de GPS, FGTS e outras contribuições sobre o Aviso Prévio Trabalhado | E52: ='Encargos Sociais'!E40 -> 0.0027 | F52: 12.74
C53: F | D53: Multa do FGTS e Contribuição Social sobre o Aviso Prévio Trabalhado | E53: ='Encargos Sociais'!E41 -> 0.0309 | F53: 145.83
D55: TOTAL DE PREVISÃO PARA RESCISÃO | F55: =SUM(F48:F53) -> 218.51
B57: MÓDULO 4 - CUSTO DO PROFISSIONAL AUSENTE | E57: Percentuais | F57: Valor
B58: Submódulo 4.1 - Ausências Legais
C59: A | D59: Férias (Arts. 129 e 130, inc. I, da CLT) | E59: ='Encargos Sociais'!E25 -> 0.0909 | F59: =ROUND(E59*$F$16,2) -> 375.92 | H59: * Nota 1 - O Módulo 4 refere-se às previsões para custear ausências do próprio profissional (titular do cargo)
C60: B | D60: Ausências Legais (Arts. 131 e 473 da CLT) | E60: ='Encargos Sociais'!E26 -> 0.0079 | F60: 32.67 | H60: * Nota 2 - As férias foram calculadas dividindo-se por 11, para comportar os 11 meses presentes e ainda o ausente do posto
C61: C | D61: Licença-Paternidade (Art. 7º, XIX, e art. 10, §1º, do ADCT, CF/1988 e Art. 1º, II, da Lei 11.770/2008) | E61: ='Encargos Sociais'!E27 -> 0.0008 | F61: 3.31
C62: D | D62: Ausência por Acidente de Trabalho (Art. 131, III, da CLT) | E62: ='Encargos Sociais'!E28 -> 0.0009 | F62: 3.72
C63: E | D63: Afastamento Maternidade (Art. 71 da Lei nº 8.213/1991) | E63: ='Encargos Sociais'!E29 -> 0.0033 | F63: 13.65
C64: F | D64: Auxílio Enfermidade - Doença (Art. 59 da Lei nº 8.213/1991) | E64: ='Encargos Sociais'!E30 -> 0.0071 | F64: 29.36
B66: Submódulo 4.2 - Intrajornada
C67: A | D67: Intervalo para repouso ou alimentação | E67: ='Encargos Sociais'!E33 -> 0 | F67: =ROUND(E67*$F$16,2) -> 0
D69: QUADRO-RESUMO DO MÓDULO 4 | F69: Valor
D70: 4.1 - Ausências Legais | E70: =SUM(E59:E64) -> 0.1109 | F70: =ROUND(E70*$F$16,2) -> 458.63
D71: 4.2 - Intrajornada | E71: =E67 -> 0 | F71: =ROUND(E71*$F$16,2) -> 0
D73: TOTAL DE PREVISÃO PARA RESCISÃO E INTERVALO INTRAJORNADA | F73: =SUM(F70:F71) -> 458.63
B75: MÓDULO 5 - INSUMOS DIVERSOS | F75: Valor
C76: A | D76: Uniformes - aquisição | F76: =Uniformes!J22 -> 246.3483333
C77: B | D77: Materiais de consumo relacionados ao posto - aquisição | F77: =ROUND(HLOOKUP(B5,'Mat Cons'!I11:DX13,3)/12,2) -> 0
C78: C | D78: Ferramentas relacionadas ao posto - remuneração da sua depreciação / manutenção | F78: =HLOOKUP(B5,'Relacion - Ferram'!Q3:EF5,3) -> 0
C79: D | D79: Equipamentos relacionados ao posto - remuneração da sua depreciação / manutenção | F79: =HLOOKUP(B5,'Equip Rel'!Q11:EF13,3) -> 0
C80: E | D80: Equipamentos de Proteção Individual - EPI - aquisição | F80: =EPI!K28 -> 16.08
D82: TOTAL DE INSUMOS DIVERSOS | F82: =SUM(F76:F81) -> 262.4283333 | H82: * Nota - Valores mensais por empregado
B84: MÓDULO 6 - CUSTOS INDIRETOS, TRIBUTOS E LUCRO - BDI | E84: Percentuais | F84: Valor
C85: A | D85: Custos Indiretos | E85: ='BDI - Geral'!E7 -> 0.0391
C86: A.1 | D86: Administração Central | E86: ='BDI - Geral'!E8 -> 0.0337
C87: A.2 | D87: Seguros, Garantias e Riscos | E87: ='BDI - Geral'!E9 -> 0.0054
C88: B | D88: Lucro | E88: ='BDI - Geral'!E11 -> 0.038
C89: C | D89: Tributos | E89: =SUM(E90:E91) -> 0.124
C90: C.1 | D90: Tributos Federais (COFINS, PIS e CPRB) | E90: ='BDI - Geral'!E19 -> 0.074
C91: C.2 | D91: Tributos Distritais (ISS) | E91: ='BDI - Geral'!E24 -> 0.05
C92: D | D92: Despesas Financeiras | E92: ='BDI - Geral'!E14 -> 0.0047
D94: TOTAL DE BDI | E94: ='BDI - Geral'!E27 -> 0.237 | F94: =ROUND(E94*E102,2) -> 1880.35
D96: QUADRO-RESUMO DO CUSTO MENSAL POR EMPREGADO - SEM O 13º | E96: Valor
D97: Módulo 1 - Composição da Remuneração | E97: =F16 -> 4135.51
D98: Módulo 2 - Encargos e Benefícios Anuais, Mensais e Diários | E98: =F45 -> 2858.87
D99: Módulo 3 - Provisão para Rescisão | E99: =F55 -> 218.51
D100: Módulo 4 - Custo de Reposição do Profissional Ausente | E100: =F73 -> 458.63
D101: Módulo 5 - Insumos Diversos | E101: =F82 -> 262.4283333
D102: SUBTOTAL (A+B+C+D+E) | E102: =SUM(E97:E101) -> 7933.948333
D103: Módulo 6 - Custos Indiretos, Tributos e Lucro | E103: =F94 -> 1880.35
D105: TOTAL DO POSTO | E105: =SUM(E102:E103) -> 9814.298333
B107: MÓDULO 7 - DESTAQUE DO MÓDULO 2 - 13º SALÁRIO | E107: Percentuais | F107: Valor
C108: A | D108: 13º Salário | E108: ='Encargos Sociais'!E32*12/11 -> 0.09087272727 | F108: =ROUND(E108*(F$16+$F$73+$F$21),2) -> 428.87 | H108: * Nota 1 - Incluindo-se a reincidência das férias do substituto sobre o titular
C109: B | D109: Encargos Sociais sobre o 13º Salário | E109: ='[1]Encargos Sociais'!E13 -> 0.348 | F109: =ROUND(E109*$F$108,2) -> 149.25 | H109: * Nota 2 - 13º e reflexos calculados à parte a fim de aprovisionamento
C110: C | D110: BDI sobre o 13º Salário - Taxa calculada no MÓDULO 6 | E110: =E94 -> 0.237 | F110: =ROUND(E110*($F$108+$F$109),2) -> 137.01
D112: TOTAL DO DESTAQUE DO 13º SALÁRIO | F112: =SUM(F108:F110) -> 715.13
D114: QUADRO-RESUMO DO CUSTO MENSAL POR EMPREGADO | E114: Valor
D115: Custo total - sem o 13º Salário | E115: =ROUND(E105,2) -> 9814.3
D116: Destaque do 13º Salário (valor mensal) | E116: =ROUND(F112,2) -> 715.13
D118: TOTAL DO POSTO | E118: =E115+E116 -> 10529.43

Sheet 3
B2: PLANILHA DE ESTIMATIVA DE CUSTOS
B3: Padrão IN 05/2017 e IN 07/2018 - MPDG
B5: 3 | D5: =HLOOKUP($B$5,'Dados Gerais'!$D$6:$BH$22,6) -> HIGIENIZADOR DE VEÍCULOS | E5: QUANTIDADE | F5: =HLOOKUP($B$5,'Dados Gerais'!$D$6:$BH$22,10) -> 11
B6: CCT | D6: =HLOOKUP($B$5,'Dados Gerais'!$D$6:$BH$22,16) -> SEAC/DF x SINDISERVIÇOS/DF CCT 2024/2024 N.º DF000012/2024 | E6: DATA-BASE | F6: =HLOOKUP($B$5,'Dados Gerais'!$D$6:$BH$22,17) -> 2024-01-01
B8: MÓDULO 1 - COMPOSIÇÃO DA REMUNERAÇÃO | F8: Valor
C9: A | D9: Salário-Base | F9: =HLOOKUP($B$5,'Dados Gerais'!$D$6:$BH$22,8) -> 1935.34
C10: B | D10: Adicional de Periculosidade | F10: =HLOOKUP($B$5,'Dados Gerais'!$D$6:$BH$39,26) -> 0
C11: C | D11: Adicional de Insalubridade | F11: =HLOOKUP($B$5,'Dados Gerais'!$D$6:$BH$39,32) -> 0
C12: D | D12: Adicional Noturno | F12: =HLOOKUP($B$5,'Dados Gerais'!$D$6:$BH$52,47) -> 0 | H12: * Nota 1 - O Módulo 1 refere-se ao valor mensal devido ao empregado pela prestação do serviço no período de 12 meses.
C13: E | D13: Adicional de Hora Extra | F13: =HLOOKUP($B$5,'Dados Gerais'!$D$6:$BH$69,64) -> 0 | H13: * Nota 2 - O adicional de hora extra no feriado trabalhado foi suprimido pela Lei 13.467/17
C14: F | D14: Outros | F14: =HLOOKUP($B$5,'Dados Gerais'!$D$6:$BH$69,34) -> 0 | H14: * Nota 3 - ART. 7º, § 2º, DA LEI Nº 605/49.Sendo mensalista o obreiro, o adicional noturno pago de forma fixa já é considerado integrado para os efeitos do pagamento do repouso semanal remunerado, nos termos do art. 7º, § 2º, da Lei nº 605/49.
D16: TOTAL DA REMUNERAÇÃO | F16: =SUM(F9:F14) -> 1935.34
B18: MÓDULO 2 - ENCARGOS E BENEFÍCIOS ANUAIS, MENSAIS E DIÁRIOS | E18: Percentuais | F18: Valor
B19: Submódulo 2.1 - 13º Salário, Férias e Adicional de Férias
C20: A | D20: 13º Salário - Calculado no Módulo 7 - Destacado | E20: 0 | F20: =ROUND(E20*F$16,2) -> 0
C21: B | D21: Adicional de Férias | E21: ='Encargos Sociais'!E31 -> 0.0303 | F21: =ROUND(E21*F$16,2) -> 58.64 | H21: * Nota 1 - O adicional de férias foi calculado dividindo-se por 11, para comportar os 11 meses presentes e ainda o ausente do posto
B23: Submódulo 2.2 - Encargos Previdenciários (GPS), Fundo de Garantia por Tempo de Serviço (FGTS) e Outras Contribuições
C24: A | D24: INSS (art. 22, inciso I, Lei nº 8.212/91) | E24: ='Encargos Sociais'!E14 -> 0.2 | F24: =ROUND(E24*($F$16+$F$73+$F$21),2) -> 441.72 | H24: * Nota 1 - Os percentuais dos encargos previdenciários, do FGTS e demais contribuições são estabelecidos por legislação vigente.
C25: B | D25: Salário Educação (art. 3º, inciso I, Decreto nº 87.043/82) | E25: ='Encargos Sociais'!E15 -> 0.025 | F25: 55.22 | H25: * Nota 2 - O SAT, a depender do grau de risco do serviço, irá variar entre 1%, para risco leve, de 2%, para risco médio, e de 3% para risco grave.
C26: C | D26: SAT/RAT (art. 22, II, Lei 8.212/91 e Anexo V, Decreto 6.042/07) - Enquadramento 8211-3/00 | E26: ='Encargos Sociais'!E16 -> 0.01 | F26: 22.09 | H26: * Nota 3 - Base de cálculo - remuneração + ausências + terço constitucional (férias)
C27: D | D27: SESC ou SESI (art. 30, Lei nº 8.036/90 e art. 1º, Lei 8.154/90) | E27: ='Encargos Sociais'!E17 -> 0.015 | F27: 33.13
C28: E | D28: SENAI ou SENAC (Decreto nº 2.318/86) | E28: ='Encargos Sociais'!E18 -> 0.01 | F28: 22.09
C29: F | D29: SEBRAE (§ 3º, art. 8º, Lei 8.029/90, alterada pela Lei nº 8.154/90) | E29: ='Encargos Sociais'!E19 -> 0.006 | F29: 13.25
C30: G | D30: INCRA (art. 1º, I, Decreto Lei 1.146/70 e Lei 7.787, de 30/06/89) | E30: ='Encargos Sociais'!E20 -> 0.002 | F30: 4.42
C31: H | D31: FGTS (Lei Complementar nº 110/01 e art. 30, Lei nº 8.036/90) | E31: ='Encargos Sociais'!E21 -> 0.08 | F31: 176.69
C32: I | D32: SECONCI (Convenções Coletivas de Trabalho da construção) | E32: ='Encargos Sociais'!E22 -> 0 | F32: 0
B34: Submódulo 2.3 - Benefícios Mensais e Diários
C35: A | D35: Auxílio Transporte | F35: =HLOOKUP($B$5,'Dados Gerais'!$D$6:$BH$95,83) -> 157.56 | H35: * Nota 1 - O valor informado deverá ser o custo real do benefício (descontado o valor eventualmente pago pelo empregado).
C36: B | D36: Auxílio Alimentação | F36: =HLOOKUP($B$5,'Dados Gerais'!$D$6:$BH$95,90) -> 928.4 | H36: * Nota 2 - Observar a previsão dos benefícios contidos em Acordos, Convenções e Dissídios Coletivos de Trabalho e o disposto no art. 6º da IN 5/2017
C37: C | D37: Assistência Médica e Familiar | F37: =HLOOKUP($B$5,'Dados Gerais'!$D$6:$BH$103,98) -> 0
C38: D | D38: Outros (Seguro de vida, auxílio funeral, auxílio odontológico e auxílio creche) | F38: =HLOOKUP($B$5,'Dados Gerais'!$D$6:$BH$121,115) -> 0
D40: QUADRO-RESUMO DO MÓDULO 2
D41: 2.1 - Adicional de Férias | E41: =SUM(E20:E21) -> 0.0303 | F41: =F20+F21 -> 58.64
D42: 2.2 - Encargos Previdenciários (GPS), Fundo de Garantia por Tempo de Serviço (FGTS) e Contribuições | E42: =SUM(E24:E32) -> 0.348 | F42: =SUM(F24:F32) -> 768.61
D43: 2.3 - Benefícios Mensais e Diários | F43: =SUM(F35:F38) -> 1085.96
D45: TOTAL DOS ENCARGOS E BENEFÍCIOS | F45: =SUM(F41:F43) -> 1913.21
B47: MÓDULO 3 - PREVISÃO PARA RESCISÃO | E47: Percentuais | F47: Valor
C48: A | D48: Aviso Prévio Indenizado (Art. 7º, inciso XXI, da CF/1988 e arts. 477, 487, §1º, e 491 da CLT) | E48: ='Encargos Sociais'!E36 -> 0.0035 | F48: =ROUND(E48*($F$16+$F$41+$F$73),2) -> 7.73 | H48: * Nota 1 - Base de cálculo - remuneração + ausências + 1/3 férias
C49: B | D49: Incidência do FGTS sobre o Aviso Prévio Indenizado (Súmula 305 TST) | E49: ='Encargos Sociais'!E37 -> 0.0003 | F49: 0.66
C50: C | D50: Multa do FGTS e Contribuição Social sobre o Aviso Prévio Indenizado (Art. 18, §1º, da Lei 8.036/1990 e art. 1º da LC nº 110/2001) | E50: ='Encargos Sociais'!E38 -> 0.0011 | F50: 2.43
C51: D | D51: Aviso Prévio Trabalhado (Art. 488, parágrafo único, CLT) | E51: ='Encargos Sociais'!E39 -> 0.0078 | F51: 17.23
C52: E | D52: Incidência de GPS, FGTS e outras contribuições sobre o Aviso Prévio Trabalhado | E52: ='Encargos Sociais'!E40 -> 0.0027 | F52: 5.96
C53: F | D53: Multa do FGTS e Contribuição Social sobre o Aviso Prévio Trabalhado | E53: ='Encargos Sociais'!E41 -> 0.0309 | F53: 68.25
D55: TOTAL DE PREVISÃO PARA RESCISÃO | F55: =SUM(F48:F53) -> 102.26
B57: MÓDULO 4 - CUSTO DO PROFISSIONAL AUSENTE | E57: Percentuais | F57: Valor
B58: Submódulo 4.1 - Ausências Legais
C59: A | D59: Férias (Arts. 129 e 130, inc. I, da CLT) | E59: ='Encargos Sociais'!E25 -> 0.0909 | F59: =ROUND(E59*$F$16,2) -> 175.92 | H59: * Nota 1 - O Módulo 4 refere-se às previsões para custear ausências do próprio profissional (titular do cargo)
C60: B | D60: Ausências Legais (Arts. 131 e 473 da CLT) | E60: ='Encargos Sociais'!E26 -> 0.0079 | F60: 15.29 | H60: * Nota 2 - As férias foram calculadas dividindo-se por 11, para comportar os 11 meses presentes e ainda o ausente do posto
C61: C | D61: Licença-Paternidade (Art. 7º, XIX, e art. 10, §1º, do ADCT, CF/1988 e Art. 1º, II, da Lei 11.770/2008) | E61: ='Encargos Sociais'!E27 -> 0.0008 | F61: 1.55
C62: D | D62: Ausência por Acidente de Trabalho (Art. 131, III, da CLT) | E62: ='Encargos Sociais'!E28 -> 0.0009 | F62: 1.74
C63: E | D63: Afastamento Maternidade (Art. 71 da Lei nº 8.213/1991) | E63: ='Encargos Sociais'!E29 -> 0.0033 | F63: 6.39
C64: F | D64: Auxílio Enfermidade - Doença (Art. 59 da Lei nº 8.213/1991) | E64: ='Encargos Sociais'!E30 -> 0.0071 | F64: 13.74
B66: Submódulo 4.2 - Intrajornada
C67: A | D67: Intervalo para repouso ou alimentação | E67: ='Encargos Sociais'!E33 -> 0 | F67: =ROUND(E67*$F$16,2) -> 0
D69: QUADRO-RESUMO DO MÓDULO 4 | F69: Valor
D70: 4.1 - Ausências Legais | E70: =SUM(E59:E64) -> 0.1109 | F70: =ROUND(E70*$F$16,2) -> 214.63
D71: 4.2 - Intrajornada | E71: =E67 -> 0 | F71: =ROUND(E71*$F$16,2) -> 0
D73: TOTAL DE PREVISÃO PARA RESCISÃO E INTERVALO INTRAJORNADA | F73: =SUM(F70:F71) -> 214.63
B75: MÓDULO 5 - INSUMOS DIVERSOS | F75: Valor
C76: A | D76: Uniformes - aquisição | F76: =Uniformes!J38 -> 61.37
C77: B | D77: Materiais de consumo relacionados ao posto - aquisição | F77: =ROUND(HLOOKUP(B5,'Mat Cons'!I11:DX13,3)/12,2) -> 0
C78: C | D78: Ferramentas relacionadas ao posto - remuneração da sua depreciação / manutenção | F78: =HLOOKUP(B5,'Relacion - Ferram'!Q3:EF5,3) -> 0
C79: D | D79: Equipamentos relacionados ao posto - remuneração da sua depreciação / manutenção | F79: =HLOOKUP(B5,'Equip Rel'!Q11:EF13,3) -> 0
C80: E | D80: Equipamentos de Proteção Individual - EPI - aquisição | F80: =EPI!K9 -> 109.62
D82: TOTAL DE INSUMOS DIVERSOS | F82: =SUM(F76:F81) -> 170.99 | H82: * Nota - Valores mensais por empregado
B84: MÓDULO 6 - CUSTOS INDIRETOS, TRIBUTOS E LUCRO - BDI | E84: Percentuais | F84: Valor
C85: A | D85: Custos Indiretos | E85: ='BDI - Geral'!E7 -> 0.0391
C86: A.1 | D86: Administração Central | E86: ='BDI - Geral'!E8 -> 0.0337
C87: A.2 | D87: Seguros, Garantias e Riscos | E87: ='BDI - Geral'!E9 -> 0.0054
C88: B | D88: Lucro | E88: ='BDI - Geral'!E11 -> 0.038
C89: C | D89: Tributos | E89: =SUM(E90:E91) -> 0.124
C90: C.1 | D90: Tributos Federais (COFINS, PIS e CPRB) | E90: ='BDI - Geral'!E19 -> 0.074
C91: C.2 | D91: Tributos Distritais (ISS) | E91: ='BDI - Geral'!E24 -> 0.05
C92: D | D92: Despesas Financeiras | E92: ='BDI - Geral'!E14 -> 0.0047
D94: TOTAL DE BDI | E94: ='BDI - Geral'!E27 -> 0.237 | F94: =ROUND(E94*E102,2) -> 1027.73
D96: QUADRO-RESUMO DO CUSTO MENSAL POR EMPREGADO - SEM O 13º | E96: Valor
D97: Módulo 1 - Composição da Remuneração | E97: =F16 -> 1935.34
D98: Módulo 2 - Encargos e Benefícios Anuais, Mensais e Diários | E98: =F45 -> 1913.21
D99: Módulo 3 - Provisão para Rescisão | E99: =F55 -> 102.26
D100: Módulo 4 - Custo de Reposição do Profissional Ausente | E100: =F73 -> 214.63
D101: Módulo 5 - Insumos Diversos | E101: =F82 -> 170.99
D102: SUBTOTAL (A+B+C+D+E) | E102: =SUM(E97:E101) -> 4336.43
D103: Módulo 6 - Custos Indiretos, Tributos e Lucro | E103: =F94 -> 1027.73
D105: TOTAL DO POSTO | E105: =SUM(E102:E103) -> 5364.16
B107: MÓDULO 7 - DESTAQUE DO MÓDULO 2 - 13º SALÁRIO | E107: Percentuais | F107: Valor
C108: A | D108: 13º Salário | E108: ='Encargos Sociais'!E32*12/11 -> 0.09087272727 | F108: =ROUND(E108*(F$16+$F$73+$F$21),2) -> 200.7 | H108: * Nota 1 - Incluindo-se a reincidência das férias do substituto sobre o titular
C109: B | D109: Encargos Sociais sobre o 13º Salário | E109: ='[1]Encargos Sociais'!E13 -> 0.348 | F109: =ROUND(E109*$F$108,2) -> 69.84 | H109: * Nota 2 - 13º e reflexos calculados à parte a fim de aprovisionamento
C110: C | D110: BDI sobre o 13º Salário - Taxa calculada no MÓDULO 6 | E110: =E94 -> 0.237 | F110: =ROUND(E110*($F$108+$F$109),2) -> 64.12
D112: TOTAL DO DESTAQUE DO 13º SALÁRIO | F112: =SUM(F108:F110) -> 334.66
D114: QUADRO-RESUMO DO CUSTO MENSAL POR EMPREGADO | E114: Valor
D115: Custo total - sem o 13º Salário | E115: =ROUND(E105,2) -> 5364.16
D116: Destaque do 13º Salário (valor mensal) | E116: =ROUND(F112,2) -> 334.66
D118: TOTAL DO POSTO | E118: =E115+E116 -> 5698.82

Sheet 4
B2: PLANILHA DE ESTIMATIVA DE CUSTOS
B3: Padrão IN 05/2017 e IN 07/2018 - MPDG
B5: 4 | D5: =HLOOKUP($B$5,'Dados Gerais'!$D$6:$BH$22,6) -> ENCARREGADO | E5: QUANTIDADE | F5: =HLOOKUP($B$5,'Dados Gerais'!$D$6:$BH$22,10) -> 2
B6: CCT | D6: =HLOOKUP($B$5,'Dados Gerais'!$D$6:$BH$22,16) -> SEAC/DF x SITRATTER/DF CCT 2024/2025 N.º DF000642/2024 | E6: DATA-BASE | F6: =HLOOKUP($B$5,'Dados Gerais'!$D$6:$BH$22,17) -> 2024-01-01
B8: MÓDULO 1 - COMPOSIÇÃO DA REMUNERAÇÃO | F8: Valor
C9: A | D9: Salário-Base | F9: =HLOOKUP($B$5,'Dados Gerais'!$D$6:$BH$22,8) -> 5061.17
C10: B | D10: Adicional de Periculosidade | F10: =HLOOKUP($B$5,'Dados Gerais'!$D$6:$BH$39,26) -> 0
C11: C | D11: Adicional de Insalubridade | F11: =HLOOKUP($B$5,'Dados Gerais'!$D$6:$BH$39,32) -> 0
C12: D | D12: Adicional Noturno | F12: =HLOOKUP($B$5,'Dados Gerais'!$D$6:$BH$52,47) -> 0 | H12: * Nota 1 - O Módulo 1 refere-se ao valor mensal devido ao empregado pela prestação do serviço no período de 12 meses.
C13: E | D13: Adicional de Hora Extra | F13: =HLOOKUP($B$5,'Dados Gerais'!$D$6:$BH$69,64) -> 0 | H13: * Nota 2 - O adicional de hora extra no feriado trabalhado foi suprimido pela Lei 13.467/17
C14: F | D14: Outros | F14: =HLOOKUP($B$5,'Dados Gerais'!$D$6:$BH$69,34) -> 0 | H14: * Nota 3 - ART. 7º, § 2º, DA LEI Nº 605/49.Sendo mensalista o obreiro, o adicional noturno pago de forma fixa já é considerado integrado para os efeitos do pagamento do repouso semanal remunerado, nos termos do art. 7º, § 2º, da Lei nº 605/49.
D16: TOTAL DA REMUNERAÇÃO | F16: =SUM(F9:F14) -> 5061.17
B18: MÓDULO 2 - ENCARGOS E BENEFÍCIOS ANUAIS, MENSAIS E DIÁRIOS | E18: Percentuais | F18: Valor
B19: Submódulo 2.1 - 13º Salário, Férias e Adicional de Férias
C20: A | D20: 13º Salário - Calculado no Módulo 7 - Destacado | E20: 0 | F20: =ROUND(E20*F$16,2) -> 0
C21: B | D21: Adicional de Férias | E21: ='Encargos Sociais'!E31 -> 0.0303 | F21: =ROUND(E21*F$16,2) -> 153.35 | H21: * Nota 1 - O adicional de férias foi calculado dividindo-se por 11, para comportar os 11 meses presentes e ainda o ausente do posto
B23: Submódulo 2.2 - Encargos Previdenciários (GPS), Fundo de Garantia por Tempo de Serviço (FGTS) e Outras Contribuições
C24: A | D24: INSS (art. 22, inciso I, Lei nº 8.212/91) | E24: ='Encargos Sociais'!E14 -> 0.2 | F24: =ROUND(E24*($F$16+$F$73+$F$21),2) -> 1155.16 | H24: * Nota 1 - Os percentuais dos encargos previdenciários, do FGTS e demais contribuições são estabelecidos por legislação vigente.
C25: B | D25: Salário Educação (art. 3º, inciso I, Decreto nº 87.043/82) | E25: ='Encargos Sociais'!E15 -> 0.025 | F25: 144.4 | H25: * Nota 2 - O SAT, a depender do grau de risco do serviço, irá variar entre 1%, para risco leve, de 2%, para risco médio, e de 3% para risco grave.
C26: C | D26: SAT/RAT (art. 22, II, Lei 8.212/91 e Anexo V, Decreto 6.042/07) - Enquadramento 8211-3/00 | E26: ='Encargos Sociais'!E16 -> 0.01 | F26: 57.76 | H26: * Nota 3 - Base de cálculo - remuneração + ausências + terço constitucional (férias)
C27: D | D27: SESC ou SESI (art. 30, Lei nº 8.036/90 e art. 1º, Lei 8.154/90) | E27: ='Encargos Sociais'!E17 -> 0.015 | F27: 86.64
C28: E | D28: SENAI ou SENAC (Decreto nº 2.318/86) | E28: ='Encargos Sociais'!E18 -> 0.01 | F28: 57.76
C29: F | D29: SEBRAE (§ 3º, art. 8º, Lei 8.029/90, alterada pela Lei nº 8.154/90) | E29: ='Encargos Sociais'!E19 -> 0.006 | F29: 34.65
C30: G | D30: INCRA (art. 1º, I, Decreto Lei 1.146/70 e Lei 7.787, de 30/06/89) | E30: ='Encargos Sociais'!E20 -> 0.002 | F30: 11.55
C31: H | D31: FGTS (Lei Complementar nº 110/01 e art. 30, Lei nº 8.036/90) | E31: ='Encargos Sociais'!E21 -> 0.08 | F31: 462.06
C32: I | D32: SECONCI (Convenções Coletivas de Trabalho da construção) | E32: ='Encargos Sociais'!E22 -> 0 | F32: 0
B34: Submódulo 2.3 - Benefícios Mensais e Diários
C35: A | D35: Auxílio Transporte | F35: =HLOOKUP($B$5,'Dados Gerais'!$D$6:$BH$95,83) -> 0 | H35: * Nota 1 - O valor informado deverá ser o custo real do benefício (descontado o valor eventualmente pago pelo empregado).
C36: B | D36: Auxílio Alimentação | F36: =HLOOKUP($B$5,'Dados Gerais'!$D$6:$BH$95,90) -> 1026.3 | H36: * Nota 2 - Observar a previsão dos benefícios contidos em Acordos, Convenções e Dissídios Coletivos de Trabalho e o disposto no art. 6º da IN 5/2017
C37: C | D37: Assistência Médica e Familiar | F37: =HLOOKUP($B$5,'Dados Gerais'!$D$6:$BH$103,98) -> 0
C38: D | D38: Outros (Seguro de vida, auxílio funeral, auxílio odontológico e auxílio creche) | F38: =HLOOKUP($B$5,'Dados Gerais'!$D$6:$BH$121,115) -> 39.34
D40: QUADRO-RESUMO DO MÓDULO 2
D41: 2.1 - Adicional de Férias | E41: =SUM(E20:E21) -> 0.0303 | F41: =F20+F21 -> 153.35
D42: 2.2 - Encargos Previdenciários (GPS), Fundo de Garantia por Tempo de Serviço (FGTS) e Contribuições | E42: =SUM(E24:E32) -> 0.348 | F42: =SUM(F24:F32) -> 2009.98
D43: 2.3 - Benefícios Mensais e Diários | F43: =SUM(F35:F38) -> 1065.64
D45: TOTAL DOS ENCARGOS E BENEFÍCIOS | F45: =SUM(F41:F43) -> 3228.97
B47: MÓDULO 3 - PREVISÃO PARA RESCISÃO | E47: Percentuais | F47: Valor
C48: A | D48: Aviso Prévio Indenizado (Art. 7º, inciso XXI, da CF/1988 e arts. 477, 487, §1º, e 491 da CLT) | E48: ='Encargos Sociais'!E36 -> 0.0035 | F48: =ROUND(E48*($F$16+$F$41+$F$73),2) -> 20.22 | H48: * Nota 1 - Base de cálculo - remuneração + ausências + 1/3 férias
C49: B | D49: Incidência do FGTS sobre o Aviso Prévio Indenizado (Súmula 305 TST) | E49: ='Encargos Sociais'!E37 -> 0.0003 | F49: 1.73
C50: C | D50: Multa do FGTS e Contribuição Social sobre o Aviso Prévio Indenizado (Art. 18, §1º, da Lei 8.036/1990 e art. 1º da LC nº 110/2001) | E50: ='Encargos Sociais'!E38 -> 0.0011 | F50: 6.35
C51: D | D51: Aviso Prévio Trabalhado (Art. 488, parágrafo único, CLT) | E51: ='Encargos Sociais'!E39 -> 0.0078 | F51: 45.05
C52: E | D52: Incidência de GPS, FGTS e outras contribuições sobre o Aviso Prévio Trabalhado | E52: ='Encargos Sociais'!E40 -> 0.0027 | F52: 15.59
C53: F | D53: Multa do FGTS e Contribuição Social sobre o Aviso Prévio Trabalhado | E53: ='Encargos Sociais'!E41 -> 0.0309 | F53: 178.47
D55: TOTAL DE PREVISÃO PARA RESCISÃO | F55: =SUM(F48:F53) -> 267.41
B57: MÓDULO 4 - CUSTO DO PROFISSIONAL AUSENTE | E57: Percentuais | F57: Valor
B58: Submódulo 4.1 - Ausências Legais
C59: A | D59: Férias (Arts. 129 e 130, inc. I, da CLT) | E59: ='Encargos Sociais'!E25 -> 0.0909 | F59: =ROUND(E59*$F$16,2) -> 460.06 | H59: * Nota 1 - O Módulo 4 refere-se às previsões para custear ausências do próprio profissional (titular do cargo)
C60: B | D60: Ausências Legais (Arts. 131 e 473 da CLT) | E60: ='Encargos Sociais'!E26 -> 0.0079 | F60: 39.98 | H60: * Nota 2 - As férias foram calculadas dividindo-se por 11, para comportar os 11 meses presentes e ainda o ausente do posto
C61: C | D61: Licença-Paternidade (Art. 7º, XIX, e art. 10, §1º, do ADCT, CF/1988 e Art. 1º, II, da Lei 11.770/2008) | E61: ='Encargos Sociais'!E27 -> 0.0008 | F61: 4.05
C62: D | D62: Ausência por Acidente de Trabalho (Art. 131, III, da CLT) | E62: ='Encargos Sociais'!E28 -> 0.0009 | F62: 4.56
C63: E | D63: Afastamento Maternidade (Art. 71 da Lei nº 8.213/1991) | E63: ='Encargos Sociais'!E29 -> 0.0033 | F63: 16.7
C64: F | D64: Auxílio Enfermidade - Doença (Art. 59 da Lei nº 8.213/1991) | E64: ='Encargos Sociais'!E30 -> 0.0071 | F64: 35.93
B66: Submódulo 4.2 - Intrajornada
C67: A | D67: Intervalo para repouso ou alimentação | E67: ='Encargos Sociais'!E33 -> 0 | F67: =ROUND(E67*$F$16,2) -> 0
D69: QUADRO-RESUMO DO MÓDULO 4 | F69: Valor
D70: 4.1 - Ausências Legais | E70: =SUM(E59:E64) -> 0.1109 | F70: =ROUND(E70*$F$16,2) -> 561.28
D71: 4.2 - Intrajornada | E71: =E67 -> 0 | F71: =ROUND(E71*$F$16,2) -> 0
D73: TOTAL DE PREVISÃO PARA RESCISÃO E INTERVALO INTRAJORNADA | F73: =SUM(F70:F71) -> 561.28
B75: MÓDULO 5 - INSUMOS DIVERSOS | F75: Valor
C76: A | D76: Uniformes - aquisição | F76: 0
C77: B | D77: Materiais de consumo relacionados ao posto - aquisição | F77: =ROUND(HLOOKUP(B5,'Mat Cons'!I11:DX13,3)/12,2) -> 0
C78: C | D78: Ferramentas relacionadas ao posto - remuneração da sua depreciação / manutenção | F78: =HLOOKUP(B5,'Relacion - Ferram'!Q3:EF5,3) -> 0
C79: D | D79: Equipamentos relacionados ao posto - remuneração da sua depreciação / manutenção | F79: =HLOOKUP(B5,'Equip Rel'!Q11:EF13,3) -> 0
C80: E | D80: Equipamentos de Proteção Individual - EPI - aquisição | F80: 0
D82: TOTAL DE INSUMOS DIVERSOS | F82: =SUM(F76:F81) -> 0 | H82: * Nota - Valores mensais por empregado
B84: MÓDULO 6 - CUSTOS INDIRETOS, TRIBUTOS E LUCRO - BDI | E84: Percentuais | F84: Valor
C85: A | D85: Custos Indiretos | E85: ='BDI - Geral'!E7 -> 0.0391
C86: A.1 | D86: Administração Central | E86: ='BDI - Geral'!E8 -> 0.0337
C87: A.2 | D87: Seguros, Garantias e Riscos | E87: ='BDI - Geral'!E9 -> 0.0054
C88: B | D88: Lucro | E88: ='BDI - Geral'!E11 -> 0.038
C89: C | D89: Tributos | E89: =SUM(E90:E91) -> 0.124
C90: C.1 | D90: Tributos Federais (COFINS, PIS e CPRB) | E90: ='BDI - Geral'!E19 -> 0.074
C91: C.2 | D91: Tributos Distritais (ISS) | E91: ='BDI - Geral'!E24 -> 0.05
C92: D | D92: Despesas Financeiras | E92: ='BDI - Geral'!E14 -> 0.0047
D94: TOTAL DE BDI | E94: ='BDI - Geral'!E27 -> 0.237 | F94: =ROUND(E94*E102,2) -> 2161.16
D96: QUADRO-RESUMO DO CUSTO MENSAL POR EMPREGADO - SEM O 13º | E96: Valor
D97: Módulo 1 - Composição da Remuneração | E97: =F16 -> 5061.17
D98: Módulo 2 - Encargos e Benefícios Anuais, Mensais e Diários | E98: =F45 -> 3228.97
D99: Módulo 3 - Provisão para Rescisão | E99: =F55 -> 267.41
D100: Módulo 4 - Custo de Reposição do Profissional Ausente | E100: =F73 -> 561.28
D101: Módulo 5 - Insumos Diversos | E101: =F82 -> 0
D102: SUBTOTAL (A+B+C+D+E) | E102: =SUM(E97:E101) -> 9118.83
D103: Módulo 6 - Custos Indiretos, Tributos e Lucro | E103: =F94 -> 2161.16
D105: TOTAL DO POSTO | E105: =SUM(E102:E103) -> 11279.99
B107: MÓDULO 7 - DESTAQUE DO MÓDULO 2 - 13º SALÁRIO | E107: Percentuais | F107: Valor
C108: A | D108: 13º Salário | E108: ='Encargos Sociais'!E32*12/11 -> 0.09087272727 | F108: =ROUND(E108*(F$16+$F$73+$F$21),2) -> 524.86 | H108: * Nota 1 - Incluindo-se a reincidência das férias do substituto sobre o titular
C109: B | D109: Encargos Sociais sobre o 13º Salário | E109: ='[1]Encargos Sociais'!E13 -> 0.348 | F109: =ROUND(E109*$F$108,2) -> 182.65 | H109: * Nota 2 - 13º e reflexos calculados à parte a fim de aprovisionamento
C110: C | D110: BDI sobre o 13º Salário - Taxa calculada no MÓDULO 6 | E110: =E94 -> 0.237 | F110: =ROUND(E110*($F$108+$F$109),2) -> 167.68
D112: TOTAL DO DESTAQUE DO 13º SALÁRIO | F112: =SUM(F108:F110) -> 875.19
D114: QUADRO-RESUMO DO CUSTO MENSAL POR EMPREGADO | E114: Valor
D115: Custo total - sem o 13º Salário | E115: =ROUND(E105,2) -> 11279.99
D116: Destaque do 13º Salário (valor mensal) | E116: =ROUND(F112,2) -> 875.19
D118: TOTAL DO POSTO | E118: =E115+E116 -> 12155.18

Sheet 5
B2: PLANILHA DE ESTIMATIVA DE CUSTOS
B3: Padrão IN 05/2017 e IN 07/2018 - MPDG
B5: 5 | D5: =HLOOKUP($B$5,'Dados Gerais'!$D$6:$BH$22,6) -> MOTORISTA EXECUTIVO - PLANTONISTA DIURNO | E5: QUANTIDADE | F5: =HLOOKUP($B$5,'Dados Gerais'!$D$6:$BH$22,10) -> 0
B6: CCT | D6: =HLOOKUP($B$5,'Dados Gerais'!$D$6:$BH$22,16) -> SEAC/DF x SITRATTER/DF CCT 2024/2025 N.º DF000642/2024 | E6: DATA-BASE | F6: =HLOOKUP($B$5,'Dados Gerais'!$D$6:$BH$22,17) -> 2024-01-01
B8: MÓDULO 1 - COMPOSIÇÃO DA REMUNERAÇÃO | F8: Valor
C9: A | D9: Salário-Base | F9: =HLOOKUP($B$5,'Dados Gerais'!$D$6:$BH$22,8) -> 4135.51
C10: B | D10: Adicional de Periculosidade | F10: =HLOOKUP($B$5,'Dados Gerais'!$D$6:$BH$39,26) -> 0
C11: C | D11: Adicional de Insalubridade | F11: =HLOOKUP($B$5,'Dados Gerais'!$D$6:$BH$39,32) -> 0
C12: D | D12: Adicional Noturno | F12: =HLOOKUP($B$5,'Dados Gerais'!$D$6:$BH$52,47) -> 0 | H12: * Nota 1 - O Módulo 1 refere-se ao valor mensal devido ao empregado pela prestação do serviço no período de 12 meses.
C13: E | D13: Adicional de Hora Extra | F13: =HLOOKUP($B$5,'Dados Gerais'!$D$6:$BH$69,64) -> 0 | H13: * Nota 2 - O adicional de hora extra no feriado trabalhado foi suprimido pela Lei 13.467/17
C14: F | D14: Outros | F14: =HLOOKUP($B$5,'Dados Gerais'!$D$6:$BH$69,34) -> 0 | H14: * Nota 3 - ART. 7º, § 2º, DA LEI Nº 605/49.Sendo mensalista o obreiro, o adicional noturno pago de forma fixa já é considerado integrado para os efeitos do pagamento do repouso semanal remunerado, nos termos do art. 7º, § 2º, da Lei nº 605/49.
D16: TOTAL DA REMUNERAÇÃO | F16: =SUM(F9:F14) -> 4135.51
B18: MÓDULO 2 - ENCARGOS E BENEFÍCIOS ANUAIS, MENSAIS E DIÁRIOS | E18: Percentuais | F18: Valor
B19: Submódulo 2.1 - 13º Salário, Férias e Adicional de Férias
C20: A | D20: 13º Salário - Calculado no Módulo 7 - Destacado | E20: 0 | F20: =ROUND(E20*F$16,2) -> 0
C21: B | D21: Adicional de Férias | E21: ='Encargos Sociais'!E31 -> 0.0303 | F21: =ROUND(E21*F$16,2) -> 125.31 | H21: * Nota 1 - O adicional de férias foi calculado dividindo-se por 11, para comportar os 11 meses presentes e ainda o ausente do posto
B23: Submódulo 2.2 - Encargos Previdenciários (GPS), Fundo de Garantia por Tempo de Serviço (FGTS) e Outras Contribuições
C24: A | D24: INSS (art. 22, inciso I, Lei nº 8.212/91) | E24: ='Encargos Sociais'!E14 -> 0.2 | F24: =ROUND(E24*($F$16+$F$73+$F$21),2) -> 943.89 | H24: * Nota 1 - Os percentuais dos encargos previdenciários, do FGTS e demais contribuições são estabelecidos por legislação vigente.
C25: B | D25: Salário Educação (art. 3º, inciso I, Decreto nº 87.043/82) | E25: ='Encargos Sociais'!E15 -> 0.025 | F25: 117.99 | H25: * Nota 2 - O SAT, a depender do grau de risco do serviço, irá variar entre 1%, para risco leve, de 2%, para risco médio, e de 3% para risco grave.
C26: C | D26: SAT/RAT (art. 22, II, Lei 8.212/91 e Anexo V, Decreto 6.042/07) - Enquadramento 8211-3/00 | E26: ='Encargos Sociais'!E16 -> 0.01 | F26: 47.19 | H26: * Nota 3 - Base de cálculo - remuneração + ausências + terço constitucional (férias)
C27: D | D27: SESC ou SESI (art. 30, Lei nº 8.036/90 e art. 1º, Lei 8.154/90) | E27: ='Encargos Sociais'!E17 -> 0.015 | F27: 70.79
C28: E | D28: SENAI ou SENAC (Decreto nº 2.318/86) | E28: ='Encargos Sociais'!E18 -> 0.01 | F28: 47.19
C29: F | D29: SEBRAE (§ 3º, art. 8º, Lei 8.029/90, alterada pela Lei nº 8.154/90) | E29: ='Encargos Sociais'!E19 -> 0.006 | F29: 28.32
C30: G | D30: INCRA (art. 1º, I, Decreto Lei 1.146/70 e Lei 7.787, de 30/06/89) | E30: ='Encargos Sociais'!E20 -> 0.002 | F30: 9.44
C31: H | D31: FGTS (Lei Complementar nº 110/01 e art. 30, Lei nº 8.036/90) | E31: ='Encargos Sociais'!E21 -> 0.08 | F31: 377.56
C32: I | D32: SECONCI (Convenções Coletivas de Trabalho da construção) | E32: ='Encargos Sociais'!E22 -> 0 | F32: 0
B34: Submódulo 2.3 - Benefícios Mensais e Diários
C35: A | D35: Auxílio Transporte | F35: =HLOOKUP($B$5,'Dados Gerais'!$D$6:$BH$95,83) -> 0 | H35: * Nota 1 - O valor informado deverá ser o custo real do benefício (descontado o valor eventualmente pago pelo empregado).
C36: B | D36: Auxílio Alimentação | F36: =HLOOKUP($B$5,'Dados Gerais'!$D$6:$BH$95,90) -> 699.75 | H36: * Nota 2 - Observar a previsão dos benefícios contidos em Acordos, Convenções e Dissídios Coletivos de Trabalho e o disposto no art. 6º da IN 5/2017
C37: C | D37: Assistência Médica e Familiar | F37: =HLOOKUP($B$5,'Dados Gerais'!$D$6:$BH$103,98) -> 0
C38: D | D38: Outros (Seguro de vida, auxílio funeral, auxílio odontológico e auxílio creche) | F38: =HLOOKUP($B$5,'Dados Gerais'!$D$6:$BH$121,115) -> 39.34
D40: QUADRO-RESUMO DO MÓDULO 2
D41: 2.1 - Adicional de Férias | E41: =SUM(E20:E21) -> 0.0303 | F41: =F20+F21 -> 125.31
D42: 2.2 - Encargos Previdenciários (GPS), Fundo de Garantia por Tempo de Serviço (FGTS) e Contribuições | E42: =SUM(E24:E32) -> 0.348 | F42: =SUM(F24:F32) -> 1642.37
D43: 2.3 - Benefícios Mensais e Diários | F43: =SUM(F35:F38) -> 739.09
D45: TOTAL DOS ENCARGOS E BENEFÍCIOS | F45: =SUM(F41:F43) -> 2506.77
B47: MÓDULO 3 - PREVISÃO PARA RESCISÃO | E47: Percentuais | F47: Valor
C48: A | D48: Aviso Prévio Indenizado (Art. 7º, inciso XXI, da CF/1988 e arts. 477, 487, §1º, e 491 da CLT) | E48: ='Encargos Sociais'!E36 -> 0.0035 | F48: =ROUND(E48*($F$16+$F$41+$F$73),2) -> 16.52 | H48: * Nota 1 - Base de cálculo - remuneração + ausências + 1/3 férias
C49: B | D49: Incidência do FGTS sobre o Aviso Prévio Indenizado (Súmula 305 TST) | E49: ='Encargos Sociais'!E37 -> 0.0003 | F49: 1.42
C50: C | D50: Multa do FGTS e Contribuição Social sobre o Aviso Prévio Indenizado (Art. 18, §1º, da Lei 8.036/1990 e art. 1º da LC nº 110/2001) | E50: ='Encargos Sociais'!E38 -> 0.0011 | F50: 5.19
C51: D | D51: Aviso Prévio Trabalhado (Art. 488, parágrafo único, CLT) | E51: ='Encargos Sociais'!E39 -> 0.0078 | F51: 36.81
C52: E | D52: Incidência de GPS, FGTS e outras contribuições sobre o Aviso Prévio Trabalhado | E52: ='Encargos Sociais'!E40 -> 0.0027 | F52: 12.74
C53: F | D53: Multa do FGTS e Contribuição Social sobre o Aviso Prévio Trabalhado | E53: ='Encargos Sociais'!E41 -> 0.0309 | F53: 145.83
D55: TOTAL DE PREVISÃO PARA RESCISÃO | F55: =SUM(F48:F53) -> 218.51
B57: MÓDULO 4 - CUSTO DO PROFISSIONAL AUSENTE | E57: Percentuais | F57: Valor
B58: Submódulo 4.1 - Ausências Legais
C59: A | D59: Férias (Arts. 129 e 130, inc. I, da CLT) | E59: ='Encargos Sociais'!E25 -> 0.0909 | F59: =ROUND(E59*$F$16,2) -> 375.92 | H59: * Nota 1 - O Módulo 4 refere-se às previsões para custear ausências do próprio profissional (titular do cargo)
C60: B | D60: Ausências Legais (Arts. 131 e 473 da CLT) | E60: ='Encargos Sociais'!E26 -> 0.0079 | F60: 32.67 | H60: * Nota 2 - As férias foram calculadas dividindo-se por 11, para comportar os 11 meses presentes e ainda o ausente do posto
C61: C | D61: Licença-Paternidade (Art. 7º, XIX, e art. 10, §1º, do ADCT, CF/1988 e Art. 1º, II, da Lei 11.770/2008) | E61: ='Encargos Sociais'!E27 -> 0.0008 | F61: 3.31
C62: D | D62: Ausência por Acidente de Trabalho (Art. 131, III, da CLT) | E62: ='Encargos Sociais'!E28 -> 0.0009 | F62: 3.72
C63: E | D63: Afastamento Maternidade (Art. 71 da Lei nº 8.213/1991) | E63: ='Encargos Sociais'!E29 -> 0.0033 | F63: 13.65
C64: F | D64: Auxílio Enfermidade - Doença (Art. 59 da Lei nº 8.213/1991) | E64: ='Encargos Sociais'!E30 -> 0.0071 | F64: 29.36
B66: Submódulo 4.2 - Intrajornada
C67: A | D67: Intervalo para repouso ou alimentação | E67: ='Encargos Sociais'!E33 -> 0 | F67: =ROUND(E67*$F$16,2) -> 0
D69: QUADRO-RESUMO DO MÓDULO 4 | F69: Valor
D70: 4.1 - Ausências Legais | E70: =SUM(E59:E64) -> 0.1109 | F70: =ROUND(E70*$F$16,2) -> 458.63
D71: 4.2 - Intrajornada | E71: =E67 -> 0 | F71: =ROUND(E71*$F$16,2) -> 0
D73: TOTAL DE PREVISÃO PARA RESCISÃO E INTERVALO INTRAJORNADA | F73: =SUM(F70:F71) -> 458.63
B75: MÓDULO 5 - INSUMOS DIVERSOS | F75: Valor
C76: A | D76: Uniformes - aquisição | F76: ='2'!F76 -> 246.3483333
C77: B | D77: Materiais de consumo relacionados ao posto - aquisição | F77: =ROUND(HLOOKUP(B5,'Mat Cons'!I11:DX13,3)/12,2) -> 0
C78: C | D78: Ferramentas relacionadas ao posto - remuneração da sua depreciação / manutenção | F78: =HLOOKUP(B5,'Relacion - Ferram'!Q3:EF5,3) -> 0
C79: D | D79: Equipamentos relacionados ao posto - remuneração da sua depreciação / manutenção | F79: =HLOOKUP(B5,'Equip Rel'!Q11:EF13,3) -> 0
C80: E | D80: Equipamentos de Proteção Individual - EPI - aquisição | F80: ='2'!F80 -> 16.08
D82: TOTAL DE INSUMOS DIVERSOS | F82: =SUM(F76:F81) -> 262.4283333 | H82: * Nota - Valores mensais por empregado
B84: MÓDULO 6 - CUSTOS INDIRETOS, TRIBUTOS E LUCRO - BDI | E84: Percentuais | F84: Valor
C85: A | D85: Custos Indiretos | E85: ='BDI - Geral'!E7 -> 0.0391
C86: A.1 | D86: Administração Central | E86: ='BDI - Geral'!E8 -> 0.0337
C87: A.2 | D87: Seguros, Garantias e Riscos | E87: ='BDI - Geral'!E9 -> 0.0054
C88: B | D88: Lucro | E88: ='BDI - Geral'!E11 -> 0.038
C89: C | D89: Tributos | E89: =SUM(E90:E91) -> 0.124
C90: C.1 | D90: Tributos Federais (COFINS, PIS e CPRB) | E90: ='BDI - Geral'!E19 -> 0.074
C91: C.2 | D91: Tributos Distritais (ISS) | E91: ='BDI - Geral'!E24 -> 0.05
C92: D | D92: Despesas Financeiras | E92: ='BDI - Geral'!E14 -> 0.0047
D94: TOTAL DE BDI | E94: ='BDI - Geral'!E27 -> 0.237 | F94: =ROUND(E94*E102,2) -> 1796.9
D96: QUADRO-RESUMO DO CUSTO MENSAL POR EMPREGADO - SEM O 13º | E96: Valor
D97: Módulo 1 - Composição da Remuneração | E97: =F16 -> 4135.51
D98: Módulo 2 - Encargos e Benefícios Anuais, Mensais e Diários | E98: =F45 -> 2506.77
D99: Módulo 3 - Provisão para Rescisão | E99: =F55 -> 218.51
D100: Módulo 4 - Custo de Reposição do Profissional Ausente | E100: =F73 -> 458.63
D101: Módulo 5 - Insumos Diversos | E101: =F82 -> 262.4283333
D102: SUBTOTAL (A+B+C+D+E) | E102: =SUM(E97:E101) -> 7581.848333
D103: Módulo 6 - Custos Indiretos, Tributos e Lucro | E103: =F94 -> 1796.9
D105: TOTAL DO POSTO | E105: =SUM(E102:E103) -> 9378.748333
B107: MÓDULO 7 - DESTAQUE DO MÓDULO 2 - 13º SALÁRIO | E107: Percentuais | F107: Valor
C108: A | D108: 13º Salário | E108: ='Encargos Sociais'!E32*12/11 -> 0.09087272727 | F108: =ROUND(E108*(F$16+$F$73+$F$21),2) -> 428.87 | H108: * Nota 1 - Incluindo-se a reincidência das férias do substituto sobre o titular
C109: B | D109: Encargos Sociais sobre o 13º Salário | E109: ='[1]Encargos Sociais'!E13 -> 0.348 | F109: =ROUND(E109*$F$108,2) -> 149.25 | H109: * Nota 2 - 13º e reflexos calculados à parte a fim de aprovisionamento
C110: C | D110: BDI sobre o 13º Salário - Taxa calculada no MÓDULO 6 | E110: =E94 -> 0.237 | F110: =ROUND(E110*($F$108+$F$109),2) -> 137.01
D112: TOTAL DO DESTAQUE DO 13º SALÁRIO | F112: =SUM(F108:F110) -> 715.13
D114: QUADRO-RESUMO DO CUSTO MENSAL POR EMPREGADO | E114: Valor
D115: Custo total - sem o 13º Salário | E115: =ROUND(E105,2) -> 9378.75
D116: Destaque do 13º Salário (valor mensal) | E116: =ROUND(F112,2) -> 715.13
D118: TOTAL DO POSTO | E118: =E115+E116 -> 10093.88

Sheet 6
B2: PLANILHA DE ESTIMATIVA DE CUSTOS
B3: Padrão IN 05/2017 e IN 07/2018 - MPDG
B5: 6 | D5: =HLOOKUP($B$5,'Dados Gerais'!$D$6:$BI$22,6) -> MOTORISTA EXECUTIVO - PLANTONISTA NOTURNO | E5: QUANTIDADE | F5: =HLOOKUP($B$5,'Dados Gerais'!$D$6:$BH$22,10) -> 0
B6: CCT | D6: =HLOOKUP($B$5,'Dados Gerais'!$D$6:$BH$22,16) -> SEAC/DF x SITRATTER/DF CCT 2024/2025 N.º DF000642/2024 | E6: DATA-BASE | F6: =HLOOKUP($B$5,'Dados Gerais'!$D$6:$BH$22,17) -> 2024-01-01
B8: MÓDULO 1 - COMPOSIÇÃO DA REMUNERAÇÃO | F8: Valor
C9: A | D9: Salário-Base | F9: =HLOOKUP($B$5,'Dados Gerais'!$D$6:$BH$22,8) -> 4135.51
C10: B | D10: Adicional de Periculosidade | F10: =HLOOKUP($B$5,'Dados Gerais'!$D$6:$BH$39,26) -> 0
C11: C | D11: Adicional de Insalubridade | F11: =HLOOKUP($B$5,'Dados Gerais'!$D$6:$BH$39,32) -> 0
C12: D | D12: Adicional Noturno | F12: =HLOOKUP($B$5,'Dados Gerais'!$D$6:$BH$52,47) -> 0 | H12: * Nota 1 - O Módulo 1 refere-se ao valor mensal devido ao empregado pela prestação do serviço no período de 12 meses.
C13: E | D13: Adicional de Hora Extra | F13: =HLOOKUP($B$5,'Dados Gerais'!$D$6:$BH$69,64) -> 0 | H13: * Nota 2 - O adicional de hora extra no feriado trabalhado foi suprimido pela Lei 13.467/17
C14: F | D14: Outros (adicional de sobreaviso) | F14: =HLOOKUP($B$5,'Dados Gerais'!$D$6:$BH$69,34) -> 0 | H14: * Nota 3 - ART. 7º, § 2º, DA LEI Nº 605/49.Sendo mensalista o obreiro, o adicional noturno pago de forma fixa já é considerado integrado para os efeitos do pagamento do repouso semanal remunerado, nos termos do art. 7º, § 2º, da Lei nº 605/49.
D16: TOTAL DA REMUNERAÇÃO | F16: =SUM(F9:F14) -> 4135.51
B18: MÓDULO 2 - ENCARGOS E BENEFÍCIOS ANUAIS, MENSAIS E DIÁRIOS | E18: Percentuais | F18: Valor
B19: Submódulo 2.1 - 13º Salário, Férias e Adicional de Férias
C20: A | D20: 13º Salário - Calculado no Módulo 7 - Destacado | E20: 0 | F20: =ROUND(E20*F$16,2) -> 0
C21: B | D21: Adicional de Férias | E21: ='Encargos Sociais'!E31 -> 0.0303 | F21: =ROUND(E21*F$16,2) -> 125.31 | H21: * Nota 1 - O adicional de férias foi calculado dividindo-se por 11, para comportar os 11 meses presentes e ainda o ausente do posto
B23: Submódulo 2.2 - Encargos Previdenciários (GPS), Fundo de Garantia por Tempo de Serviço (FGTS) e Outras Contribuições
C24: A | D24: INSS (art. 22, inciso I, Lei nº 8.212/91) | E24: ='Encargos Sociais'!E14 -> 0.2 | F24: =ROUND(E24*($F$16+$F$73+$F$21),2) -> 943.89 | H24: * Nota 1 - Os percentuais dos encargos previdenciários, do FGTS e demais contribuições são estabelecidos por legislação vigente.
C25: B | D25: Salário Educação (art. 3º, inciso I, Decreto nº 87.043/82) | E25: ='Encargos Sociais'!E15 -> 0.025 | F25: 117.99 | H25: * Nota 2 - O SAT, a depender do grau de risco do serviço, irá variar entre 1%, para risco leve, de 2%, para risco médio, e de 3% para risco grave.
C26: C | D26: SAT/RAT (art. 22, II, Lei 8.212/91 e Anexo V, Decreto 6.042/07) - Enquadramento 8211-3/00 | E26: ='Encargos Sociais'!E16 -> 0.01 | F26: 47.19 | H26: * Nota 3 - Base de cálculo - remuneração + ausências + terço constitucional (férias)
C27: D | D27: SESC ou SESI (art. 30, Lei nº 8.036/90 e art. 1º, Lei 8.154/90) | E27: ='Encargos Sociais'!E17 -> 0.015 | F27: 70.79
C28: E | D28: SENAI ou SENAC (Decreto nº 2.318/86) | E28: ='Encargos Sociais'!E18 -> 0.01 | F28: 47.19
C29: F | D29: SEBRAE (§ 3º, art. 8º, Lei 8.029/90, alterada pela Lei nº 8.154/90) | E29: ='Encargos Sociais'!E19 -> 0.006 | F29: 28.32
C30: G | D30: INCRA (art. 1º, I, Decreto Lei 1.146/70 e Lei 7.787, de 30/06/89) | E30: ='Encargos Sociais'!E20 -> 0.002 | F30: 9.44
C31: H | D31: FGTS (Lei Complementar nº 110/01 e art. 30, Lei nº 8.036/90) | E31: ='Encargos Sociais'!E21 -> 0.08 | F31: 377.56
C32: I | D32: SECONCI (Convenções Coletivas de Trabalho da construção) | E32: ='Encargos Sociais'!E22 -> 0 | F32: 0
B34: Submódulo 2.3 - Benefícios Mensais e Diários
C35: A | D35: Auxílio Transporte | F35: =HLOOKUP($B$5,'Dados Gerais'!$D$6:$BH$95,83) -> 0 | H35: * Nota 1 - O valor informado deverá ser o custo real do benefício (descontado o valor eventualmente pago pelo empregado).
C36: B | D36: Auxílio Alimentação | F36: =HLOOKUP($B$5,'Dados Gerais'!$D$6:$BH$95,90) -> 699.75 | H36: * Nota 2 - Observar a previsão dos benefícios contidos em Acordos, Convenções e Dissídios Coletivos de Trabalho e o disposto no art. 6º da IN 5/2017
C37: C | D37: Assistência Médica e Familiar | F37: =HLOOKUP($B$5,'Dados Gerais'!$D$6:$BH$103,98) -> 0
C38: D | D38: Outros (Seguro de vida, auxílio funeral, auxílio odontológico e auxílio creche) | F38: =HLOOKUP($B$5,'Dados Gerais'!$D$6:$BH$121,115) -> 39.34
D40: QUADRO-RESUMO DO MÓDULO 2
D41: 2.1 - Adicional de Férias | E41: =SUM(E20:E21) -> 0.0303 | F41: =F20+F21 -> 125.31
D42: 2.2 - Encargos Previdenciários (GPS), Fundo de Garantia por Tempo de Serviço (FGTS) e Contribuições | E42: =SUM(E24:E32) -> 0.348 | F42: =SUM(F24:F32) -> 1642.37
D43: 2.3 - Benefícios Mensais e Diários | F43: =SUM(F35:F38) -> 739.09
D45: TOTAL DOS ENCARGOS E BENEFÍCIOS | F45: =SUM(F41:F43) -> 2506.77
B47: MÓDULO 3 - PREVISÃO PARA RESCISÃO | E47: Percentuais | F47: Valor
C48: A | D48: Aviso Prévio Indenizado (Art. 7º, inciso XXI, da CF/1988 e arts. 477, 487, §1º, e 491 da CLT) | E48: ='Encargos Sociais'!E36 -> 0.0035 | F48: =ROUND(E48*($F$16+$F$41+$F$73),2) -> 16.52 | H48: * Nota 1 - Base de cálculo - remuneração + ausências + 1/3 férias
C49: B | D49: Incidência do FGTS sobre o Aviso Prévio Indenizado (Súmula 305 TST) | E49: ='Encargos Sociais'!E37 -> 0.0003 | F49: 1.42
C50: C | D50: Multa do FGTS e Contribuição Social sobre o Aviso Prévio Indenizado (Art. 18, §1º, da Lei 8.036/1990 e art. 1º da LC nº 110/2001) | E50: ='Encargos Sociais'!E38 -> 0.0011 | F50: 5.19
C51: D | D51: Aviso Prévio Trabalhado (Art. 488, parágrafo único, CLT) | E51: ='Encargos Sociais'!E39 -> 0.0078 | F51: 36.81
C52: E | D52: Incidência de GPS, FGTS e outras contribuições sobre o Aviso Prévio Trabalhado | E52: ='Encargos Sociais'!E40 -> 0.0027 | F52: 12.74
C53: F | D53: Multa do FGTS e Contribuição Social sobre o Aviso Prévio Trabalhado | E53: ='Encargos Sociais'!E41 -> 0.0309 | F53: 145.83
D55: TOTAL DE PREVISÃO PARA RESCISÃO | F55: =SUM(F48:F53) -> 218.51
B57: MÓDULO 4 - CUSTO DO PROFISSIONAL AUSENTE | E57: Percentuais | F57: Valor
B58: Submódulo 4.1 - Ausências Legais
C59: A | D59: Férias (Arts. 129 e 130, inc. I, da CLT) | E59: ='Encargos Sociais'!E25 -> 0.0909 | F59: =ROUND(E59*$F$16,2) -> 375.92 | H59: * Nota 1 - O Módulo 4 refere-se às previsões para custear ausências do próprio profissional (titular do cargo)
C60: B | D60: Ausências Legais (Arts. 131 e 473 da CLT) | E60: ='Encargos Sociais'!E26 -> 0.0079 | F60: 32.67 | H60: * Nota 2 - As férias foram calculadas dividindo-se por 11, para comportar os 11 meses presentes e ainda o ausente do posto
C61: C | D61: Licença-Paternidade (Art. 7º, XIX, e art. 10, §1º, do ADCT, CF/1988 e Art. 1º, II, da Lei 11.770/2008) | E61: ='Encargos Sociais'!E27 -> 0.0008 | F61: 3.31
C62: D | D62: Ausência por Acidente de Trabalho (Art. 131, III, da CLT) | E62: ='Encargos Sociais'!E28 -> 0.0009 | F62: 3.72
C63: E | D63: Afastamento Maternidade (Art. 71 da Lei nº 8.213/1991) | E63: ='Encargos Sociais'!E29 -> 0.0033 | F63: 13.65
C64: F | D64: Auxílio Enfermidade - Doença (Art. 59 da Lei nº 8.213/1991) | E64: ='Encargos Sociais'!E30 -> 0.0071 | F64: 29.36
B66: Submódulo 4.2 - Intrajornada
C67: A | D67: Intervalo para repouso ou alimentação | E67: ='Encargos Sociais'!E33 -> 0 | F67: =ROUND(E67*$F$16,2) -> 0
D69: QUADRO-RESUMO DO MÓDULO 4 | F69: Valor
D70: 4.1 - Ausências Legais | E70: =SUM(E59:E64) -> 0.1109 | F70: =ROUND(E70*$F$16,2) -> 458.63
D71: 4.2 - Intrajornada | E71: =E67 -> 0 | F71: =ROUND(E71*$F$16,2) -> 0
D73: TOTAL DE PREVISÃO PARA RESCISÃO E INTERVALO INTRAJORNADA | F73: =SUM(F70:F71) -> 458.63
B75: MÓDULO 5 - INSUMOS DIVERSOS | F75: Valor
C76: A | D76: Uniformes - aquisição | F76: ='5'!F76 -> 246.3483333
C77: B | D77: Materiais de consumo relacionados ao posto - aquisição | F77: =ROUND(HLOOKUP(B5,'Mat Cons'!I11:DX13,3)/12,2) -> 0
C78: C | D78: Ferramentas relacionadas ao posto - remuneração da sua depreciação / manutenção | F78: =HLOOKUP(B5,'Relacion - Ferram'!Q3:EF5,3) -> 0
C79: D | D79: Equipamentos relacionados ao posto - remuneração da sua depreciação / manutenção | F79: =HLOOKUP(B5,'Equip Rel'!Q11:EF13,3) -> 0
C80: E | D80: Equipamentos de Proteção Individual - EPI - aquisição | F80: ='5'!F80 -> 16.08
D82: TOTAL DE INSUMOS DIVERSOS | F82: =SUM(F76:F81) -> 262.4283333 | H82: * Nota - Valores mensais por empregado
B84: MÓDULO 6 - CUSTOS INDIRETOS, TRIBUTOS E LUCRO - BDI | E84: Percentuais | F84: Valor
C85: A | D85: Custos Indiretos | E85: ='BDI - Geral'!E7 -> 0.0391
C86: A.1 | D86: Administração Central | E86: ='BDI - Geral'!E8 -> 0.0337
C87: A.2 | D87: Seguros, Garantias e Riscos | E87: ='BDI - Geral'!E9 -> 0.0054
C88: B | D88: Lucro | E88: ='BDI - Geral'!E11 -> 0.038
C89: C | D89: Tributos | E89: =SUM(E90:E91) -> 0.124
C90: C.1 | D90: Tributos Federais (COFINS, PIS e CPRB) | E90: ='BDI - Geral'!E19 -> 0.074
C91: C.2 | D91: Tributos Distritais (ISS) | E91: ='BDI - Geral'!E24 -> 0.05
C92: D | D92: Despesas Financeiras | E92: ='BDI - Geral'!E14 -> 0.0047
D94: TOTAL DE BDI | E94: ='BDI - Geral'!E27 -> 0.237 | F94: =E94*E102 -> 1796.898055
D96: QUADRO-RESUMO DO CUSTO MENSAL POR EMPREGADO - SEM O 13º | E96: Valor
D97: Módulo 1 - Composição da Remuneração | E97: =F16 -> 4135.51
D98: Módulo 2 - Encargos e Benefícios Anuais, Mensais e Diários | E98: =F45 -> 2506.77
D99: Módulo 3 - Provisão para Rescisão | E99: =F55 -> 218.51
D100: Módulo 4 - Custo de Reposição do Profissional Ausente | E100: =F73 -> 458.63
D101: Módulo 5 - Insumos Diversos | E101: =F82 -> 262.4283333
D102: SUBTOTAL (A+B+C+D+E) | E102: =SUM(E97:E101) -> 7581.848333
D103: Módulo 6 - Custos Indiretos, Tributos e Lucro | E103: =F94 -> 1796.898055
D105: TOTAL DO POSTO | E105: =SUM(E102:E103) -> 9378.746388
B107: MÓDULO 7 - DESTAQUE DO MÓDULO 2 - 13º SALÁRIO | E107: Percentuais | F107: Valor
C108: A | D108: 13º Salário | E108: ='Encargos Sociais'!E32*12/11 -> 0.09087272727 | F108: =ROUND(E108*(F$16+$F$73+$F$21),2) -> 428.87 | H108: * Nota 1 - Incluindo-se a reincidência das férias do substituto sobre o titular
C109: B | D109: Encargos Sociais sobre o 13º Salário | E109: ='[1]Encargos Sociais'!E13 -> 0.348 | F109: =ROUND(E109*$F$108,2) -> 149.25 | H109: * Nota 2 - 13º e reflexos calculados à parte a fim de aprovisionamento
C110: C | D110: BDI sobre o 13º Salário - Taxa calculada no MÓDULO 6 | E110: =E94 -> 0.237 | F110: =ROUND(E110*($F$108+$F$109),2) -> 137.01
D112: TOTAL DO DESTAQUE DO 13º SALÁRIO | F112: =SUM(F108:F110) -> 715.13
D114: QUADRO-RESUMO DO CUSTO MENSAL POR EMPREGADO | E114: Valor
D115: Custo total - sem o 13º Salário | E115: =ROUND(E105,2) -> 9378.75
D116: Destaque do 13º Salário (valor mensal) | E116: =ROUND(F112,2) -> 715.13
D118: TOTAL DO POSTO | E118: =E115+E116 -> 10093.88

Sheet 7 (hidden)
B2: PLANILHA DE ESTIMATIVA DE CUSTOS
B3: Padrão IN 05/2017 e IN 07/2018 - MPDG
B5: 7 | D5: =HLOOKUP($B$5,'Dados Gerais'!$D$6:$BH$22,6) -> MOTORISTA EXECUTIVO - PLANTONISTA NOTURNO | E5: QUANTIDADE | F5: =HLOOKUP($B$5,'Dados Gerais'!$D$6:$BH$22,10) -> 0
B6: CCT | D6: =HLOOKUP($B$5,'Dados Gerais'!$D$6:$BH$22,16) -> SEAC/DF x SITRATTER/DF CCT 2024/2025 N.º DF000642/2024 | E6: DATA-BASE | F6: =HLOOKUP($B$5,'Dados Gerais'!$D$6:$BH$22,17) -> 2024-01-01
B8: MÓDULO 1 - COMPOSIÇÃO DA REMUNERAÇÃO | F8: Valor
C9: A | D9: Salário-Base | F9: =HLOOKUP($B$5,'Dados Gerais'!$D$6:$BH$22,8) -> 4135.51
C10: B | D10: Adicional de Periculosidade | F10: =HLOOKUP($B$5,'Dados Gerais'!$D$6:$BH$39,26) -> 0
C11: C | D11: Adicional de Insalubridade | F11: =HLOOKUP($B$5,'Dados Gerais'!$D$6:$BH$39,32) -> 0
C12: D | D12: Adicional Noturno | F12: =HLOOKUP($B$5,'Dados Gerais'!$D$6:$BH$52,47) -> 0 | H12: * Nota 1 - O Módulo 1 refere-se ao valor mensal devido ao empregado pela prestação do serviço no período de 12 meses.
C13: E | D13: Adicional de Hora Extra | F13: =HLOOKUP($B$5,'Dados Gerais'!$D$6:$BH$69,64) -> 0 | H13: * Nota 2 - O adicional de hora extra no feriado trabalhado foi suprimido pela Lei 13.467/17
C14: F | D14: Outros (adicional de sobreaviso) | F14: =HLOOKUP($B$5,'Dados Gerais'!$D$6:$BH$69,34) -> 0 | H14: * Nota 3 - ART. 7º, § 2º, DA LEI Nº 605/49.Sendo mensalista o obreiro, o adicional noturno pago de forma fixa já é considerado integrado para os efeitos do pagamento do repouso semanal remunerado, nos termos do art. 7º, § 2º, da Lei nº 605/49.
D16: TOTAL DA REMUNERAÇÃO | F16: =SUM(F9:F14) -> 4135.51
B18: MÓDULO 2 - ENCARGOS E BENEFÍCIOS ANUAIS, MENSAIS E DIÁRIOS | E18: Percentuais | F18: Valor
B19: Submódulo 2.1 - 13º Salário, Férias e Adicional de Férias
C20: A | D20: 13º Salário - Calculado no Módulo 7 - Destacado | E20: 0 | F20: =ROUND(E20*F$16,2) -> 0
C21: B | D21: Férias e Adicional de Férias | E21: ='Encargos Sociais'!E25+'Encargos Sociais'!E31 -> 0.1212 | F21: =ROUND(E21*F$16,2) -> 501.22 | H21: * Nota 1 - Provisiona-se, mensalmente, o proporcional a 1/12 dos valores referentes a gratificação natalina, férias e adicional de férias.
H22: * Nota 2 - O adicional de férias contido no Submódulo 2.1 corresponde a 1/3 da remuneração que, por sua vez, é dividida por 12 contome Nota 1.
B23: Submódulo 2.2 - Encargos Previdenciários (GPS), Fundo de Garantia por Tempo de Serviço (FGTS) e Outras Contribuições
C24: A | D24: INSS (art. 22, inciso I, Lei nº 8.212/91) | E24: ='Encargos Sociais'!E14 -> 0.2 | F24: =ROUND(E24*($F$16+$F$41+$F$73),2) -> 943.89
C25: B | D25: Salário Educação (art. 3º, inciso I, Decreto nº 87.043/82) | E25: ='Encargos Sociais'!E15 -> 0.025 | F25: =ROUND(E25*($F$16+$F$41+$F$73),2) -> 117.99
C26: C | D26: SAT/RAT (art. 22, II, Lei 8.212/91 e Anexo V, Decreto 6.042/07) - Enquadramento 8211-3/00 | E26: ='Encargos Sociais'!E16 -> 0.01 | F26: 47.19
C27: D | D27: SESC ou SESI (art. 30, Lei nº 8.036/90 e art. 1º, Lei 8.154/90) | E27: ='Encargos Sociais'!E17 -> 0.015 | F27: 70.79
C28: E | D28: SENAI ou SENAC (Decreto nº 2.318/86) | E28: ='Encargos Sociais'!E18 -> 0.01 | F28: 47.19
C29: F | D29: SEBRAE (§ 3º, art. 8º, Lei 8.029/90, alterada pela Lei nº 8.154/90) | E29: ='Encargos Sociais'!E19 -> 0.006 | F29: 28.32
C30: G | D30: INCRA (art. 1º, I, Decreto Lei 1.146/70 e Lei 7.787, de 30/06/89) | E30: ='Encargos Sociais'!E20 -> 0.002 | F30: 9.44 | H30: * Nota 1 - Os percentuais dos encargos previdenciários, do FGTS e demais contribuições são estabelecidos por legislação vigente.
C31: H | D31: FGTS (Lei Complementar nº 110/01 e art. 30, Lei nº 8.036/90) | E31: ='Encargos Sociais'!E21 -> 0.08 | F31: 377.56 | H31: * Nota 2 - O SAT, a depender do grau de risco do serviço, irá variar entre 1%, para risco leve, de 2%, para risco médio, e de 3% para risco grave.
C32: I | D32: SECONCI (Convenções Coletivas de Trabalho da construção) | E32: ='Encargos Sociais'!E22 -> 0 | F32: 0 | H32: * Nota 3 - Os percentuais do Submódulo 2.2 incidem sobre o Módulo 1 e o Submódulo 2.1.
B34: Submódulo 2.3 - Benefícios Mensais e Diários
C35: A | D35: Auxílio Transporte | F35: =HLOOKUP($B$5,'Dados Gerais'!$D$6:$BH$95,83) -> 0
C36: B | D36: Auxílio Alimentação | F36: =HLOOKUP($B$5,'Dados Gerais'!$D$6:$BH$95,90) -> 699.75
C37: C | D37: Assistência Médica e Familiar | F37: =HLOOKUP($B$5,'Dados Gerais'!$D$6:$BH$103,98) -> 0
C38: D | D38: Outros (Seguro de vida, auxílio funeral, auxílio odontológico e auxílio creche) | F38: =HLOOKUP($B$5,'Dados Gerais'!$D$6:$BH$121,115) -> 39.34 | H38: * Nota 1 - O valor informado deverá ser o custo real do benefício (descontado o valor eventualmente pago pelo empregado).
H39: * Nota 2 - Observar a previsão dos benefícios contidos em Acordos, Convenções e Dissídios Coletivos de Trabalho e o disposto no art. 6º da IN 5/2017
D40: QUADRO-RESUMO DO MÓDULO 2
D41: 2.1 - 13º Salário, Férias e Adicional de Férias - 13º Destacado - Calculado no Módulo 7 | E41: =SUM(E20:E21) -> 0.1212 | F41: =F20+F21 -> 501.22
D42: 2.2 - Encargos Previdenciários (GPS), Fundo de Garantia por Tempo de Serviço (FGTS) e Contribuições | E42: =SUM(E24:E32) -> 0.348 | F42: =SUM(F24:F32) -> 1642.37
D43: 2.3 - Benefícios Mensais e Diários | F43: =SUM(F35:F38) -> 739.09
D45: TOTAL DOS ENCARGOS E BENEFÍCIOS | F45: =SUM(F41:F43) -> 2882.68
B47: MÓDULO 3 - PREVISÃO PARA RESCISÃO | E47: Percentuais | F47: Valor
C48: A | D48: Aviso Prévio Indenizado (Art. 7º, inciso XXI, da CF/1988 e arts. 477, 487, §1º, e 491 da CLT) | E48: ='Encargos Sociais'!E36 -> 0.0035 | F48: =ROUND(E48*$F$16,2) -> 14.47
C49: B | D49: Incidência do FGTS sobre o Aviso Prévio Indenizado (Súmula 305 TST) | E49: ='Encargos Sociais'!E37 -> 0.0003 | F49: 1.24 | H49: * Nota 1 - Adotou-se os parâmetros do estudo do STF (http://www.stf.jus.br/arquivo/cms/sobrestfestudosci/anexo/encargos_sociais_03102007.pdf), onde 5% do pessoal é demitido pelo empregador no decurso do contrato (para estes, considerou-se o aviso prévio indenizado). Desprezou-se as demissões por justa causa e os pedidos de demissão.
C50: C | D50: Multa do FGTS e Contribuição Social sobre o Aviso Prévio Indenizado (Art. 18, §1º, da Lei 8.036/1990 e art. 1º da LC nº 110/2001) | E50: ='Encargos Sociais'!E38 -> 0.0011 | F50: 4.55 | H50: * Nota 2 - No cálculo do percentual, considerou-se 36 dias, correspondendo à metade da duração média dos contratos (2 anos)
C51: D | D51: Aviso Prévio Trabalhado (Art. 488, parágrafo único, CLT) | E51: ='Encargos Sociais'!E39 -> 0.0078 | F51: 32.26 | H51: * Nota 3 - Incide sobre a Remuneração + 13º salário (1/12) + Férias (1/12) + Adicional de Férias (1/36) x 50% multa (40% para o empregado e 10% de contribuição social) x 8% FGTS
C52: E | D52: Incidência de GPS, FGTS e outras contribuições sobre o Aviso Prévio Trabalhado | E52: ='Encargos Sociais'!E40 -> 0.0027 | F52: 11.17 | H52: * Nota 4 - Os 95% restantes do cálculo, a um prazo médio de contrato de 4 anos. Assim, calcula-se 7 dias para o 1º ano de contrato e mais 3 dias para os 3 anos seguintes.
C53: F | D53: Multa do FGTS e Contribuição Social sobre o Aviso Prévio Trabalhado | E53: ='Encargos Sociais'!E41 -> 0.0309 | F53: 127.79
D55: TOTAL DE PREVISÃO PARA RESCISÃO | F55: =SUM(F48:F53) -> 191.48
B57: MÓDULO 4 - CUSTO DO PROFISSIONAL AUSENTE | E57: Percentuais | F57: Valor
B58: Submódulo 4.1 - Ausências Legais
C59: A | D59: Férias (Arts. 129 e 130, inc. I, da CLT) - Calculado no Submódulo 2.1 | E59: 0 | F59: =ROUND(E59*$F$16,2) -> 0 | H59: * Nota 1 - As alíneas “A” a “F” referem-se somente ao custo que será pago ao repositor pelos dias trabalhados quando da necessidade de substituir a mão de obra alocada na prestação do serviço.
C60: B | D60: Ausências Legais (Arts. 131 e 473 da CLT) | E60: ='Encargos Sociais'!E26 -> 0.0079 | F60: 32.67 | H60: * Nota 2 - Adotou-se a estimativa do SINAPI de 2 dias por ano.
C61: C | D61: Licença-Paternidade (Art. 7º, XIX, e art. 10, §1º, do ADCT, CF/1988 e Art. 1º, II, da Lei 11.770/2008) | E61: ='Encargos Sociais'!E27 -> 0.0008 | F61: 3.31 | H61: * Nota 3 - Utilizada a proporção de 50% para homens, 5 dias de afastamento, e a probabilidade de um trabalhador requerer a Licença Paternidade em 5,22%, conforme SINAPI (citando dados da PNAD 2015)
C62: D | D62: Ausência por Acidente de Trabalho (Art. 131, III, da CLT) | E62: ='Encargos Sociais'!E28 -> 0.0009 | F62: 3.72 | H62: * Nota 4 - Utilzada a estatística de 1,96% dos contribuintes beneficiados com a emissão do auxílio, conforme Anuário Estatístico da Previdência Social. Afastamento de 15 dias a cargo da empresa.
C63: E | D63: Afastamento Maternidade (Art. 71 da Lei nº 8.213/1991) | E63: ='Encargos Sociais'!E29 -> 0.0033 | F63: 13.65 | H63: * Nota 5 - Utilizada a proporção de 50% para mulheres, 180 dias de afastamento, e a probabilidade de uma trabalhadora requerer a Licença Maternidade em 4,91%, conforme SINAPI (citando dados do IBGE 2016)
C64: F | D64: Auxílio Enfermidade - Doença (Art. 59 da Lei nº 8.213/1991) | E64: ='Encargos Sociais'!E30 -> 0.0071 | F64: 29.36 | H64: * Nota 6 - Utilizada a estatística de 3,37% dos contribuintes beneficiados com o auxílio, conforme Anuário Estatístico da Previdência Social de 2015 (acrescidos de 2 dias ao ano, para os quais o trabalhador nem requer o benefício da Previdência - conforme SINAPI)
B66: Submódulo 4.2 - Intrajornada
C67: A | D67: Intervalo para repouso ou alimentação | E67: ='Encargos Sociais'!E33 -> 0 | F67: =ROUND(E67*$F$16,2) -> 0
D69: QUADRO-RESUMO DO MÓDULO 4 | F69: Valor
D70: 4.1 - Ausências Legais | E70: =SUM(E59:E64) -> 0.02 | F70: =ROUND(E70*$F$16,2) -> 82.71
D71: 4.2 - Intrajornada | E71: =E67 -> 0 | F71: =ROUND(E71*$F$16,2) -> 0
D73: TOTAL DE PREVISÃO PARA RESCISÃO E INTERVALO INTRAJORNADA | F73: =SUM(F70:F71) -> 82.71
B75: MÓDULO 5 - INSUMOS DIVERSOS | F75: Valor
C76: A | D76: Uniformes - aquisição | F76: 0
C77: B | D77: Materiais de consumo relacionados ao posto - aquisição | F77: =ROUND(HLOOKUP(B5,'Mat Cons'!I11:DX13,3)/12,2) -> 0
C78: C | D78: Ferramentas relacionadas ao posto - remuneração da sua depreciação / manutenção | F78: =HLOOKUP(B5,'Relacion - Ferram'!Q3:EF5,3) -> 0
C79: D | D79: Equipamentos relacionados ao posto - remuneração da sua depreciação / manutenção | F79: =HLOOKUP(B5,'Equip Rel'!Q11:EF13,3) -> 0
C80: E | D80: Equipamentos de Proteção Individual - EPI - aquisição | F80: =ROUND(HLOOKUP(B5,Uniformes!#REF!,3)/12,2) -> 
D82: TOTAL DE INSUMOS DIVERSOS | F82: =SUM(F76:F81) ->  | H82: * Nota - Valores mensais por empregado
B84: MÓDULO 6 - CUSTOS INDIRETOS, TRIBUTOS E LUCRO - BDI | E84: Percentuais | F84: Valor
C85: A | D85: Custos Indiretos | E85: ='BDI - Geral'!E7 -> 0.0391
C86: A.1 | D86: Administração Central | E86: ='BDI - Geral'!E8 -> 0.0337
C87: A.2 | D87: Seguros, Garantias e Riscos | E87: ='BDI - Geral'!E9 -> 0.0054
C88: B | D88: Lucro | E88: ='BDI - Geral'!E11 -> 0.038
C89: C | D89: Tributos | E89: =SUM(E90:E91) -> 0.124
C90: C.1 | D90: Tributos Federais (COFINS, PIS e CPRB) | E90: ='BDI - Geral'!E19 -> 0.074
C91: C.2 | D91: Tributos Distritais (ISS) | E91: ='BDI - Geral'!E24 -> 0.05 | H91: * Nota - Utilizou-se o indicado pelo Sindicato da Arquitetura e da Engenharia (Sinaenco, 2008, p. 22), que adota um percentual redutor de 20% no cálculo dos custos tributários relativos às contribuições PIS e COFINS
C92: D | D92: Despesas Financeiras | E92: ='BDI - Geral'!E14 -> 0.0047
D94: TOTAL DE BDI | E94: ='BDI - Geral'!E27 -> 0.237 | F94: =E94*E102 -> 
D96: QUADRO-RESUMO DO CUSTO MENSAL POR EMPREGADO - SEM O 13º | E96: Valor
D97: Módulo 1 - Composição da Remuneração | E97: =F16 -> 4135.51
D98: Módulo 2 - Encargos e Benefícios Anuais, Mensais e Diários | E98: =F45 -> 2882.68
D99: Módulo 3 - Provisão para Rescisão | E99: =F55 -> 191.48
D100: Módulo 4 - Custo de Reposição do Profissional Ausente | E100: =F73 -> 82.71
D101: Módulo 5 - Insumos Diversos | E101: =F82 -> 
D102: SUBTOTAL (A+B+C+D+E) | E102: =SUM(E97:E101) -> 
D103: Módulo 6 - Custos Indiretos, Tributos e Lucro | E103: =F94 -> 
D105: TOTAL DO POSTO | E105: =SUM(E102:E103) -> 
B107: MÓDULO 7 - DESTAQUE DO MÓDULO 2 - 13º SALÁRIO | E107: Percentuais | F107: Valor
C108: A | D108: 13º Salário | E108: ='Encargos Sociais'!E32 -> 0.0833 | F108: =ROUND(E108*F$16,2) -> 344.49
C109: B | D109: Encargos Sociais sobre o 13º Salário - Taxa calculada no SUBMÓDULO 2.2 | E109: =SUM($E$24:$E$32) -> 0.348 | F109: =ROUND(E109*$F$108,2) -> 119.88 | H109: * Nota 1 - Provisiona-se, mensalmente, o proporcional a 1/12 dos valores referentes a gratificação natalina e adicional de férias.
C110: C | D110: BDI sobre o 13º Salário - Taxa calculada no MÓDULO 6 | E110: =E94 -> 0.237 | F110: =ROUND(E110*($F$108+$F$109),2) -> 110.06
D112: TOTAL DO DESTAQUE DO 13º SALÁRIO | F112: =SUM(F108:F110) -> 574.43
D114: QUADRO-RESUMO DO CUSTO MENSAL POR EMPREGADO | E114: Valor
D115: Custo total - sem o 13º Salário | E115: =ROUND(E105,2) -> 
D116: Destaque do 13º Salário (valor mensal) | E116: =ROUND(F112,2) -> 574.43
D118: TOTAL DO POSTO | E118: =E115+E116 -> 

Sheet 8 (hidden)
B2: PLANILHA DE ESTIMATIVA DE CUSTOS
B3: Padrão IN 05/2017 e IN 07/2018 - MPDG
B5: 8 | D5: =HLOOKUP($B$5,'Dados Gerais'!$D$6:$BH$22,6) -> 0 | E5: QUANTIDADE | F5: =HLOOKUP($B$5,'Dados Gerais'!$D$6:$BH$22,10) -> 0
B6: CCT | D6: =HLOOKUP($B$5,'Dados Gerais'!$D$6:$BH$22,16) -> 0 | E6: DATA-BASE | F6: =HLOOKUP($B$5,'Dados Gerais'!$D$6:$BH$22,17) -> 00:00:00
B8: MÓDULO 1 - COMPOSIÇÃO DA REMUNERAÇÃO | F8: Valor
C9: A | D9: Salário-Base | F9: =HLOOKUP($B$5,'Dados Gerais'!$D$6:$BH$22,8) -> 0
C10: B | D10: Adicional de Periculosidade | F10: =HLOOKUP($B$5,'Dados Gerais'!$D$6:$BH$39,26) -> 0
C11: C | D11: Adicional de Insalubridade | F11: =HLOOKUP($B$5,'Dados Gerais'!$D$6:$BH$39,32) -> 0
C12: D | D12: Adicional Noturno | F12: =HLOOKUP($B$5,'Dados Gerais'!$D$6:$BH$52,47) -> 0 | H12: * Nota 1 - O Módulo 1 refere-se ao valor mensal devido ao empregado pela prestação do serviço no período de 12 meses.
C13: E | D13: Adicional de Hora Extra | F13: =HLOOKUP($B$5,'Dados Gerais'!$D$6:$BH$69,64) -> 0 | H13: * Nota 2 - O adicional de hora extra no feriado trabalhado foi suprimido pela Lei 13.467/17
C14: F | D14: Outros (adicional de sobreaviso) | F14: =HLOOKUP($B$5,'Dados Gerais'!$D$6:$BH$69,34) -> 0 | H14: * Nota 3 - ART. 7º, § 2º, DA LEI Nº 605/49.Sendo mensalista o obreiro, o adicional noturno pago de forma fixa já é considerado integrado para os efeitos do pagamento do repouso semanal remunerado, nos termos do art. 7º, § 2º, da Lei nº 605/49.
D16: TOTAL DA REMUNERAÇÃO | F16: =SUM(F9:F14) -> 0
B18: MÓDULO 2 - ENCARGOS E BENEFÍCIOS ANUAIS, MENSAIS E DIÁRIOS | E18: Percentuais | F18: Valor
B19: Submódulo 2.1 - 13º Salário, Férias e Adicional de Férias
C20: A | D20: 13º Salário - Calculado no Módulo 7 - Destacado | E20: 0 | F20: =ROUND(E20*F$16,2) -> 0
C21: B | D21: Férias e Adicional de Férias | E21: ='Encargos Sociais'!E25+'Encargos Sociais'!E31 -> 0.1212 | F21: =ROUND(E21*F$16,2) -> 0 | H21: * Nota 1 - Provisiona-se, mensalmente, o proporcional a 1/12 dos valores referentes a gratificação natalina, férias e adicional de férias.
H22: * Nota 2 - O adicional de férias contido no Submódulo 2.1 corresponde a 1/3 da remuneração que, por sua vez, é dividida por 12 contome Nota 1.
B23: Submódulo 2.2 - Encargos Previdenciários (GPS), Fundo de Garantia por Tempo de Serviço (FGTS) e Outras Contribuições
C24: A | D24: INSS (art. 22, inciso I, Lei nº 8.212/91) | E24: ='Encargos Sociais'!E14 -> 0.2 | F24: =ROUND(E24*($F$16+$F$41+$F$73),2) -> 0
C25: B | D25: Salário Educação (art. 3º, inciso I, Decreto nº 87.043/82) | E25: ='Encargos Sociais'!E15 -> 0.025 | F25: =ROUND(E25*($F$16+$F$41+$F$73),2) -> 0
C26: C | D26: SAT/RAT (art. 22, II, Lei 8.212/91 e Anexo V, Decreto 6.042/07) - Enquadramento 8211-3/00 | E26: ='Encargos Sociais'!E16 -> 0.01 | F26: 0
C27: D | D27: SESC ou SESI (art. 30, Lei nº 8.036/90 e art. 1º, Lei 8.154/90) | E27: ='Encargos Sociais'!E17 -> 0.015 | F27: 0
C28: E | D28: SENAI ou SENAC (Decreto nº 2.318/86) | E28: ='Encargos Sociais'!E18 -> 0.01 | F28: 0
C29: F | D29: SEBRAE (§ 3º, art. 8º, Lei 8.029/90, alterada pela Lei nº 8.154/90) | E29: ='Encargos Sociais'!E19 -> 0.006 | F29: 0
C30: G | D30: INCRA (art. 1º, I, Decreto Lei 1.146/70 e Lei 7.787, de 30/06/89) | E30: ='Encargos Sociais'!E20 -> 0.002 | F30: 0 | H30: * Nota 1 - Os percentuais dos encargos previdenciários, do FGTS e demais contribuições são estabelecidos por legislação vigente.
C31: H | D31: FGTS (Lei Complementar nº 110/01 e art. 30, Lei nº 8.036/90) | E31: ='Encargos Sociais'!E21 -> 0.08 | F31: 0 | H31: * Nota 2 - O SAT, a depender do grau de risco do serviço, irá variar entre 1%, para risco leve, de 2%, para risco médio, e de 3% para risco grave.
C32: I | D32: SECONCI (Convenções Coletivas de Trabalho da construção) | E32: ='Encargos Sociais'!E22 -> 0 | F32: 0 | H32: * Nota 3 - Os percentuais do Submódulo 2.2 incidem sobre o Módulo 1 e o Submódulo 2.1.
B34: Submódulo 2.3 - Benefícios Mensais e Diários
C35: A | D35: Auxílio Transporte | F35: =HLOOKUP($B$5,'Dados Gerais'!$D$6:$BH$95,83) -> 0
C36: B | D36: Auxílio Alimentação | F36: =HLOOKUP($B$5,'Dados Gerais'!$D$6:$BH$95,90) -> 0
C37: C | D37: Assistência Médica e Familiar | F37: =HLOOKUP($B$5,'Dados Gerais'!$D$6:$BH$103,98) -> 0
C38: D | D38: Outros (Seguro de vida, auxílio funeral, auxílio odontológico e auxílio creche) | F38: =HLOOKUP($B$5,'Dados Gerais'!$D$6:$BH$121,115) -> 0 | H38: * Nota 1 - O valor informado deverá ser o custo real do benefício (descontado o valor eventualmente pago pelo empregado).
H39: * Nota 2 - Observar a previsão dos benefícios contidos em Acordos, Convenções e Dissídios Coletivos de Trabalho e o disposto no art. 6º da IN 5/2017
D40: QUADRO-RESUMO DO MÓDULO 2
D41: 2.1 - 13º Salário, Férias e Adicional de Férias - 13º Destacado - Calculado no Módulo 7 | E41: =SUM(E20:E21) -> 0.1212 | F41: =F20+F21 -> 0
D42: 2.2 - Encargos Previdenciários (GPS), Fundo de Garantia por Tempo de Serviço (FGTS) e Contribuições | E42: =SUM(E24:E32) -> 0.348 | F42: =SUM(F24:F32) -> 0
D43: 2.3 - Benefícios Mensais e Diários | F43: =SUM(F35:F38) -> 0
D45: TOTAL DOS ENCARGOS E BENEFÍCIOS | F45: =SUM(F41:F43) -> 0
B47: MÓDULO 3 - PREVISÃO PARA RESCISÃO | E47: Percentuais | F47: Valor
C48: A | D48: Aviso Prévio Indenizado (Art. 7º, inciso XXI, da CF/1988 e arts. 477, 487, §1º, e 491 da CLT) | E48: ='Encargos Sociais'!E36 -> 0.0035 | F48: =ROUND(E48*$F$16,2) -> 0
C49: B | D49: Incidência do FGTS sobre o Aviso Prévio Indenizado (Súmula 305 TST) | E49: ='Encargos Sociais'!E37 -> 0.0003 | F49: 0 | H49: * Nota 1 - Adotou-se os parâmetros do estudo do STF (http://www.stf.jus.br/arquivo/cms/sobrestfestudosci/anexo/encargos_sociais_03102007.pdf), onde 5% do pessoal é demitido pelo empregador no decurso do contrato (para estes, considerou-se o aviso prévio indenizado). Desprezou-se as demissões por justa causa e os pedidos de demissão.
C50: C | D50: Multa do FGTS e Contribuição Social sobre o Aviso Prévio Indenizado (Art. 18, §1º, da Lei 8.036/1990 e art. 1º da LC nº 110/2001) | E50: ='Encargos Sociais'!E38 -> 0.0011 | F50: 0 | H50: * Nota 2 - No cálculo do percentual, considerou-se 36 dias, correspondendo à metade da duração média dos contratos (2 anos)
C51: D | D51: Aviso Prévio Trabalhado (Art. 488, parágrafo único, CLT) | E51: ='Encargos Sociais'!E39 -> 0.0078 | F51: 0 | H51: * Nota 3 - Incide sobre a Remuneração + 13º salário (1/12) + Férias (1/12) + Adicional de Férias (1/36) x 50% multa (40% para o empregado e 10% de contribuição social) x 8% FGTS
C52: E | D52: Incidência de GPS, FGTS e outras contribuições sobre o Aviso Prévio Trabalhado | E52: ='Encargos Sociais'!E40 -> 0.0027 | F52: 0 | H52: * Nota 4 - Os 95% restantes do cálculo, a um prazo médio de contrato de 4 anos. Assim, calcula-se 7 dias para o 1º ano de contrato e mais 3 dias para os 3 anos seguintes.
C53: F | D53: Multa do FGTS e Contribuição Social sobre o Aviso Prévio Trabalhado | E53: ='Encargos Sociais'!E41 -> 0.0309 | F53: 0
D55: TOTAL DE PREVISÃO PARA RESCISÃO | F55: =SUM(F48:F53) -> 0
B57: MÓDULO 4 - CUSTO DO PROFISSIONAL AUSENTE | E57: Percentuais | F57: Valor
B58: Submódulo 4.1 - Ausências Legais
C59: A | D59: Férias (Arts. 129 e 130, inc. I, da CLT) - Calculado no Submódulo 2.1 | E59: 0 | F59: =ROUND(E59*$F$16,2) -> 0 | H59: * Nota 1 - As alíneas “A” a “F” referem-se somente ao custo que será pago ao repositor pelos dias trabalhados quando da necessidade de substituir a mão de obra alocada na prestação do serviço.
C60: B | D60: Ausências Legais (Arts. 131 e 473 da CLT) | E60: ='Encargos Sociais'!E26 -> 0.0079 | F60: 0 | H60: * Nota 2 - Adotou-se a estimativa do SINAPI de 2 dias por ano.
C61: C | D61: Licença-Paternidade (Art. 7º, XIX, e art. 10, §1º, do ADCT, CF/1988 e Art. 1º, II, da Lei 11.770/2008) | E61: ='Encargos Sociais'!E27 -> 0.0008 | F61: 0 | H61: * Nota 3 - Utilizada a proporção de 50% para homens, 5 dias de afastamento, e a probabilidade de um trabalhador requerer a Licença Paternidade em 5,22%, conforme SINAPI (citando dados da PNAD 2015)
C62: D | D62: Ausência por Acidente de Trabalho (Art. 131, III, da CLT) | E62: ='Encargos Sociais'!E28 -> 0.0009 | F62: 0 | H62: * Nota 4 - Utilzada a estatística de 1,96% dos contribuintes beneficiados com a emissão do auxílio, conforme Anuário Estatístico da Previdência Social. Afastamento de 15 dias a cargo da empresa.
C63: E | D63: Afastamento Maternidade (Art. 71 da Lei nº 8.213/1991) | E63: ='Encargos Sociais'!E29 -> 0.0033 | F63: 0 | H63: * Nota 5 - Utilizada a proporção de 50% para mulheres, 180 dias de afastamento, e a probabilidade de uma trabalhadora requerer a Licença Maternidade em 4,91%, conforme SINAPI (citando dados do IBGE 2016)
C64: F | D64: Auxílio Enfermidade - Doença (Art. 59 da Lei nº 8.213/1991) | E64: ='Encargos Sociais'!E30 -> 0.0071 | F64: 0 | H64: * Nota 6 - Utilizada a estatística de 3,37% dos contribuintes beneficiados com o auxílio, conforme Anuário Estatístico da Previdência Social de 2015 (acrescidos de 2 dias ao ano, para os quais o trabalhador nem requer o benefício da Previdência - conforme SINAPI)
B66: Submódulo 4.2 - Intrajornada
C67: A | D67: Intervalo para repouso ou alimentação | E67: ='Encargos Sociais'!E33 -> 0 | F67: =ROUND(E67*$F$16,2) -> 0
D69: QUADRO-RESUMO DO MÓDULO 4 | F69: Valor
D70: 4.1 - Ausências Legais | E70: =SUM(E59:E64) -> 0.02 | F70: =ROUND(E70*$F$16,2) -> 0
D71: 4.2 - Intrajornada | E71: =E67 -> 0 | F71: =ROUND(E71*$F$16,2) -> 0
D73: TOTAL DE PREVISÃO PARA RESCISÃO E INTERVALO INTRAJORNADA | F73: =SUM(F70:F71) -> 0
B75: MÓDULO 5 - INSUMOS DIVERSOS | F75: Valor
C76: A | D76: Uniformes - aquisição | F76: 0
C77: B | D77: Materiais de consumo relacionados ao posto - aquisição | F77: =ROUND(HLOOKUP(B5,'Mat Cons'!I11:DX13,3)/12,2) -> 0
C78: C | D78: Ferramentas relacionadas ao posto - remuneração da sua depreciação / manutenção | F78: =HLOOKUP(B5,'Relacion - Ferram'!Q3:EF5,3) -> 0
C79: D | D79: Equipamentos relacionados ao posto - remuneração da sua depreciação / manutenção | F79: =HLOOKUP(B5,'Equip Rel'!Q11:EF13,3) -> 0
C80: E | D80: Equipamentos de Proteção Individual - EPI - aquisição | F80: =ROUND(HLOOKUP(B5,Uniformes!#REF!,3)/12,2) -> 
D82: TOTAL DE INSUMOS DIVERSOS | F82: =SUM(F76:F81) ->  | H82: * Nota - Valores mensais por empregado
B84: MÓDULO 6 - CUSTOS INDIRETOS, TRIBUTOS E LUCRO - BDI | E84: Percentuais | F84: Valor
C85: A | D85: Custos Indiretos | E85: ='BDI - Geral'!E7 -> 0.0391
C86: A.1 | D86: Administração Central | E86: ='BDI - Geral'!E8 -> 0.0337
C87: A.2 | D87: Seguros, Garantias e Riscos | E87: ='BDI - Geral'!E9 -> 0.0054
C88: B | D88: Lucro | E88: ='BDI - Geral'!E11 -> 0.038
C89: C | D89: Tributos | E89: =SUM(E90:E91) -> 0.124
C90: C.1 | D90: Tributos Federais (COFINS, PIS e CPRB) | E90: ='BDI - Geral'!E19 -> 0.074
C91: C.2 | D91: Tributos Distritais (ISS) | E91: ='BDI - Geral'!E24 -> 0.05 | H91: * Nota - Utilizou-se o indicado pelo Sindicato da Arquitetura e da Engenharia (Sinaenco, 2008, p. 22), que adota um percentual redutor de 20% no cálculo dos custos tributários relativos às contribuições PIS e COFINS
C92: D | D92: Despesas Financeiras | E92: ='BDI - Geral'!E14 -> 0.0047
D94: TOTAL DE BDI | E94: ='BDI - Geral'!E27 -> 0.237 | F94: =E94*E102 -> 
D96: QUADRO-RESUMO DO CUSTO MENSAL POR EMPREGADO - SEM O 13º | E96: Valor
D97: Módulo 1 - Composição da Remuneração | E97: =F16 -> 0
D98: Módulo 2 - Encargos e Benefícios Anuais, Mensais e Diários | E98: =F45 -> 0
D99: Módulo 3 - Provisão para Rescisão | E99: =F55 -> 0
D100: Módulo 4 - Custo de Reposição do Profissional Ausente | E100: =F73 -> 0
D101: Módulo 5 - Insumos Diversos | E101: =F82 -> 
D102: SUBTOTAL (A+B+C+D+E) | E102: =SUM(E97:E101) -> 
D103: Módulo 6 - Custos Indiretos, Tributos e Lucro | E103: =F94 -> 
D105: TOTAL DO POSTO | E105: =SUM(E102:E103) -> 
B107: MÓDULO 7 - DESTAQUE DO MÓDULO 2 - 13º SALÁRIO | E107: Percentuais | F107: Valor
C108: A | D108: 13º Salário | E108: ='Encargos Sociais'!E32 -> 0.0833 | F108: =ROUND(E108*F$16,2) -> 0
C109: B | D109: Encargos Sociais sobre o 13º Salário - Taxa calculada no SUBMÓDULO 2.2 | E109: =SUM($E$24:$E$32) -> 0.348 | F109: =ROUND(E109*$F$108,2) -> 0 | H109: * Nota 1 - Provisiona-se, mensalmente, o proporcional a 1/12 dos valores referentes a gratificação natalina e adicional de férias.
C110: C | D110: BDI sobre o 13º Salário - Taxa calculada no MÓDULO 6 | E110: =E94 -> 0.237 | F110: =ROUND(E110*($F$108+$F$109),2) -> 0
D112: TOTAL DO DESTAQUE DO 13º SALÁRIO | F112: =SUM(F108:F110) -> 0
D114: QUADRO-RESUMO DO CUSTO MENSAL POR EMPREGADO | E114: Valor
D115: Custo total - sem o 13º Salário | E115: =ROUND(E105,2) -> 
D116: Destaque do 13º Salário (valor mensal) | E116: =ROUND(F112,2) -> 0
D118: TOTAL DO POSTO | E118: =E115+E116 -> 

Sheet 9 (hidden)
B2: PLANILHA DE ESTIMATIVA DE CUSTOS
B3: Padrão IN 05/2017 e IN 07/2018 - MPDG
B5: 9 | D5: =HLOOKUP($B$5,'Dados Gerais'!$D$6:$BH$22,6) -> 0 | E5: QUANTIDADE | F5: =HLOOKUP($B$5,'Dados Gerais'!$D$6:$BH$22,10) -> 0
B6: CCT | D6: =HLOOKUP($B$5,'Dados Gerais'!$D$6:$BH$22,16) -> 0 | E6: DATA-BASE | F6: =HLOOKUP($B$5,'Dados Gerais'!$D$6:$BH$22,17) -> 00:00:00
B8: MÓDULO 1 - COMPOSIÇÃO DA REMUNERAÇÃO | F8: Valor
C9: A | D9: Salário-Base | F9: =HLOOKUP($B$5,'Dados Gerais'!$D$6:$BH$22,8) -> 0
C10: B | D10: Adicional de Periculosidade | F10: =HLOOKUP($B$5,'Dados Gerais'!$D$6:$BH$39,26) -> 0
C11: C | D11: Adicional de Insalubridade | F11: =HLOOKUP($B$5,'Dados Gerais'!$D$6:$BH$39,32) -> 0
C12: D | D12: Adicional Noturno | F12: =HLOOKUP($B$5,'Dados Gerais'!$D$6:$BH$52,47) -> 0 | H12: * Nota 1 - O Módulo 1 refere-se ao valor mensal devido ao empregado pela prestação do serviço no período de 12 meses.
C13: E | D13: Adicional de Hora Extra | F13: =HLOOKUP($B$5,'Dados Gerais'!$D$6:$BH$69,64) -> 0 | H13: * Nota 2 - O adicional de hora extra no feriado trabalhado foi suprimido pela Lei 13.467/17
C14: F | D14: Outros (adicional de sobreaviso) | F14: =HLOOKUP($B$5,'Dados Gerais'!$D$6:$BH$69,34) -> 0 | H14: * Nota 3 - ART. 7º, § 2º, DA LEI Nº 605/49.Sendo mensalista o obreiro, o adicional noturno pago de forma fixa já é considerado integrado para os efeitos do pagamento do repouso semanal remunerado, nos termos do art. 7º, § 2º, da Lei nº 605/49.
D16: TOTAL DA REMUNERAÇÃO | F16: =SUM(F9:F14) -> 0
B18: MÓDULO 2 - ENCARGOS E BENEFÍCIOS ANUAIS, MENSAIS E DIÁRIOS | E18: Percentuais | F18: Valor
B19: Submódulo 2.1 - 13º Salário, Férias e Adicional de Férias
C20: A | D20: 13º Salário - Calculado no Módulo 7 - Destacado | E20: 0 | F20: =ROUND(E20*F$16,2) -> 0
C21: B | D21: Férias e Adicional de Férias | E21: ='Encargos Sociais'!E25+'Encargos Sociais'!E31 -> 0.1212 | F21: =ROUND(E21*F$16,2) -> 0 | H21: * Nota 1 - Provisiona-se, mensalmente, o proporcional a 1/12 dos valores referentes a gratificação natalina, férias e adicional de férias.
H22: * Nota 2 - O adicional de férias contido no Submódulo 2.1 corresponde a 1/3 da remuneração que, por sua vez, é dividida por 12 contome Nota 1.
B23: Submódulo 2.2 - Encargos Previdenciários (GPS), Fundo de Garantia por Tempo de Serviço (FGTS) e Outras Contribuições
C24: A | D24: INSS (art. 22, inciso I, Lei nº 8.212/91) | E24: ='Encargos Sociais'!E14 -> 0.2 | F24: =ROUND(E24*($F$16+$F$41+$F$73),2) -> 0
C25: B | D25: Salário Educação (art. 3º, inciso I, Decreto nº 87.043/82) | E25: ='Encargos Sociais'!E15 -> 0.025 | F25: =ROUND(E25*($F$16+$F$41+$F$73),2) -> 0
C26: C | D26: SAT/RAT (art. 22, II, Lei 8.212/91 e Anexo V, Decreto 6.042/07) - Enquadramento 8211-3/00 | E26: ='Encargos Sociais'!E16 -> 0.01 | F26: 0
C27: D | D27: SESC ou SESI (art. 30, Lei nº 8.036/90 e art. 1º, Lei 8.154/90) | E27: ='Encargos Sociais'!E17 -> 0.015 | F27: 0
C28: E | D28: SENAI ou SENAC (Decreto nº 2.318/86) | E28: ='Encargos Sociais'!E18 -> 0.01 | F28: 0
C29: F | D29: SEBRAE (§ 3º, art. 8º, Lei 8.029/90, alterada pela Lei nº 8.154/90) | E29: ='Encargos Sociais'!E19 -> 0.006 | F29: 0
C30: G | D30: INCRA (art. 1º, I, Decreto Lei 1.146/70 e Lei 7.787, de 30/06/89) | E30: ='Encargos Sociais'!E20 -> 0.002 | F30: 0 | H30: * Nota 1 - Os percentuais dos encargos previdenciários, do FGTS e demais contribuições são estabelecidos por legislação vigente.
C31: H | D31: FGTS (Lei Complementar nº 110/01 e art. 30, Lei nº 8.036/90) | E31: ='Encargos Sociais'!E21 -> 0.08 | F31: 0 | H31: * Nota 2 - O SAT, a depender do grau de risco do serviço, irá variar entre 1%, para risco leve, de 2%, para risco médio, e de 3% para risco grave.
C32: I | D32: SECONCI (Convenções Coletivas de Trabalho da construção) | E32: ='Encargos Sociais'!E22 -> 0 | F32: 0 | H32: * Nota 3 - Os percentuais do Submódulo 2.2 incidem sobre o Módulo 1 e o Submódulo 2.1.
B34: Submódulo 2.3 - Benefícios Mensais e Diários
C35: A | D35: Auxílio Transporte | F35: =HLOOKUP($B$5,'Dados Gerais'!$D$6:$BH$95,83) -> 0
C36: B | D36: Auxílio Alimentação | F36: =HLOOKUP($B$5,'Dados Gerais'!$D$6:$BH$95,90) -> 0
C37: C | D37: Assistência Médica e Familiar | F37: =HLOOKUP($B$5,'Dados Gerais'!$D$6:$BH$103,98) -> 0
C38: D | D38: Outros (Seguro de vida, auxílio funeral, auxílio odontológico e auxílio creche) | F38: =HLOOKUP($B$5,'Dados Gerais'!$D$6:$BH$121,115) -> 0 | H38: * Nota 1 - O valor informado deverá ser o custo real do benefício (descontado o valor eventualmente pago pelo empregado).
H39: * Nota 2 - Observar a previsão dos benefícios contidos em Acordos, Convenções e Dissídios Coletivos de Trabalho e o disposto no art. 6º da IN 5/2017
D40: QUADRO-RESUMO DO MÓDULO 2
D41: 2.1 - 13º Salário, Férias e Adicional de Férias - 13º Destacado - Calculado no Módulo 7 | E41: =SUM(E20:E21) -> 0.1212 | F41: =F20+F21 -> 0
D42: 2.2 - Encargos Previdenciários (GPS), Fundo de Garantia por Tempo de Serviço (FGTS) e Contribuições | E42: =SUM(E24:E32) -> 0.348 | F42: =SUM(F24:F32) -> 0
D43: 2.3 - Benefícios Mensais e Diários | F43: =SUM(F35:F38) -> 0
D45: TOTAL DOS ENCARGOS E BENEFÍCIOS | F45: =SUM(F41:F43) -> 0
B47: MÓDULO 3 - PREVISÃO PARA RESCISÃO | E47: Percentuais | F47: Valor
C48: A | D48: Aviso Prévio Indenizado (Art. 7º, inciso XXI, da CF/1988 e arts. 477, 487, §1º, e 491 da CLT) | E48: ='Encargos Sociais'!E36 -> 0.0035 | F48: =ROUND(E48*$F$16,2) -> 0
C49: B | D49: Incidência do FGTS sobre o Aviso Prévio Indenizado (Súmula 305 TST) | E49: ='Encargos Sociais'!E37 -> 0.0003 | F49: 0 | H49: * Nota 1 - Adotou-se os parâmetros do estudo do STF (http://www.stf.jus.br/arquivo/cms/sobrestfestudosci/anexo/encargos_sociais_03102007.pdf), onde 5% do pessoal é demitido pelo empregador no decurso do contrato (para estes, considerou-se o aviso prévio indenizado). Desprezou-se as demissões por justa causa e os pedidos de demissão.
C50: C | D50: Multa do FGTS e Contribuição Social sobre o Aviso Prévio Indenizado (Art. 18, §1º, da Lei 8.036/1990 e art. 1º da LC nº 110/2001) | E50: ='Encargos Sociais'!E38 -> 0.0011 | F50: 0 | H50: * Nota 2 - No cálculo do percentual, considerou-se 36 dias, correspondendo à metade da duração média dos contratos (2 anos)
C51: D | D51: Aviso Prévio Trabalhado (Art. 488, parágrafo único, CLT) | E51: ='Encargos Sociais'!E39 -> 0.0078 | F51: 0 | H51: * Nota 3 - Incide sobre a Remuneração + 13º salário (1/12) + Férias (1/12) + Adicional de Férias (1/36) x 50% multa (40% para o empregado e 10% de contribuição social) x 8% FGTS
C52: E | D52: Incidência de GPS, FGTS e outras contribuições sobre o Aviso Prévio Trabalhado | E52: ='Encargos Sociais'!E40 -> 0.0027 | F52: 0 | H52: * Nota 4 - Os 95% restantes do cálculo, a um prazo médio de contrato de 4 anos. Assim, calcula-se 7 dias para o 1º ano de contrato e mais 3 dias para os 3 anos seguintes.
C53: F | D53: Multa do FGTS e Contribuição Social sobre o Aviso Prévio Trabalhado | E53: ='Encargos Sociais'!E41 -> 0.0309 | F53: 0
D55: TOTAL DE PREVISÃO PARA RESCISÃO | F55: =SUM(F48:F53) -> 0
B57: MÓDULO 4 - CUSTO DO PROFISSIONAL AUSENTE | E57: Percentuais | F57: Valor
B58: Submódulo 4.1 - Ausências Legais
C59: A | D59: Férias (Arts. 129 e 130, inc. I, da CLT) - Calculado no Submódulo 2.1 | E59: 0 | F59: =ROUND(E59*$F$16,2) -> 0 | H59: * Nota 1 - As alíneas “A” a “F” referem-se somente ao custo que será pago ao repositor pelos dias trabalhados quando da necessidade de substituir a mão de obra alocada na prestação do serviço.
C60: B | D60: Ausências Legais (Arts. 131 e 473 da CLT) | E60: ='Encargos Sociais'!E26 -> 0.0079 | F60: 0 | H60: * Nota 2 - Adotou-se a estimativa do SINAPI de 2 dias por ano.
C61: C | D61: Licença-Paternidade (Art. 7º, XIX, e art. 10, §1º, do ADCT, CF/1988 e Art. 1º, II, da Lei 11.770/2008) | E61: ='Encargos Sociais'!E27 -> 0.0008 | F61: 0 | H61: * Nota 3 - Utilizada a proporção de 50% para homens, 5 dias de afastamento, e a probabilidade de um trabalhador requerer a Licença Paternidade em 5,22%, conforme SINAPI (citando dados da PNAD 2015)
C62: D | D62: Ausência por Acidente de Trabalho (Art. 131, III, da CLT) | E62: ='Encargos Sociais'!E28 -> 0.0009 | F62: 0 | H62: * Nota 4 - Utilzada a estatística de 1,96% dos contribuintes beneficiados com a emissão do auxílio, conforme Anuário Estatístico da Previdência Social. Afastamento de 15 dias a cargo da empresa.
C63: E | D63: Afastamento Maternidade (Art. 71 da Lei nº 8.213/1991) | E63: ='Encargos Sociais'!E29 -> 0.0033 | F63: 0 | H63: * Nota 5 - Utilizada a proporção de 50% para mulheres, 180 dias de afastamento, e a probabilidade de uma trabalhadora requerer a Licença Maternidade em 4,91%, conforme SINAPI (citando dados do IBGE 2016)
C64: F | D64: Auxílio Enfermidade - Doença (Art. 59 da Lei nº 8.213/1991) | E64: ='Encargos Sociais'!E30 -> 0.0071 | F64: 0 | H64: * Nota 6 - Utilizada a estatística de 3,37% dos contribuintes beneficiados com o auxílio, conforme Anuário Estatístico da Previdência Social de 2015 (acrescidos de 2 dias ao ano, para os quais o trabalhador nem requer o benefício da Previdência - conforme SINAPI)
B66: Submódulo 4.2 - Intrajornada
C67: A | D67: Intervalo para repouso ou alimentação | E67: ='Encargos Sociais'!E33 -> 0 | F67: =ROUND(E67*$F$16,2) -> 0
D69: QUADRO-RESUMO DO MÓDULO 4 | F69: Valor
D70: 4.1 - Ausências Legais | E70: =SUM(E59:E64) -> 0.02 | F70: =ROUND(E70*$F$16,2) -> 0
D71: 4.2 - Intrajornada | E71: =E67 -> 0 | F71: =ROUND(E71*$F$16,2) -> 0
D73: TOTAL DE PREVISÃO PARA RESCISÃO E INTERVALO INTRAJORNADA | F73: =SUM(F70:F71) -> 0
B75: MÓDULO 5 - INSUMOS DIVERSOS | F75: Valor
C76: A | D76: Uniformes - aquisição | F76: 0
C77: B | D77: Materiais de consumo relacionados ao posto - aquisição | F77: =ROUND(HLOOKUP(B5,'Mat Cons'!I11:DX13,3)/12,2) -> 0
C78: C | D78: Ferramentas relacionadas ao posto - remuneração da sua depreciação / manutenção | F78: =HLOOKUP(B5,'Relacion - Ferram'!Q3:EF5,3) -> 0
C79: D | D79: Equipamentos relacionados ao posto - remuneração da sua depreciação / manutenção | F79: =HLOOKUP(B5,'Equip Rel'!Q11:EF13,3) -> 0
C80: E | D80: Equipamentos de Proteção Individual - EPI - aquisição | F80: =ROUND(HLOOKUP(B5,Uniformes!#REF!,3)/12,2) -> 
D82: TOTAL DE INSUMOS DIVERSOS | F82: =SUM(F76:F81) ->  | H82: * Nota - Valores mensais por empregado
B84: MÓDULO 6 - CUSTOS INDIRETOS, TRIBUTOS E LUCRO - BDI | E84: Percentuais | F84: Valor
C85: A | D85: Custos Indiretos | E85: ='BDI - Geral'!E7 -> 0.0391
C86: A.1 | D86: Administração Central | E86: ='BDI - Geral'!E8 -> 0.0337
C87: A.2 | D87: Seguros, Garantias e Riscos | E87: ='BDI - Geral'!E9 -> 0.0054
C88: B | D88: Lucro | E88: ='BDI - Geral'!E11 -> 0.038
C89: C | D89: Tributos | E89: =SUM(E90:E91) -> 0.124
C90: C.1 | D90: Tributos Federais (COFINS, PIS e CPRB) | E90: ='BDI - Geral'!E19 -> 0.074
C91: C.2 | D91: Tributos Distritais (ISS) | E91: ='BDI - Geral'!E24 -> 0.05 | H91: * Nota - Utilizou-se o indicado pelo Sindicato da Arquitetura e da Engenharia (Sinaenco, 2008, p. 22), que adota um percentual redutor de 20% no cálculo dos custos tributários relativos às contribuições PIS e COFINS
C92: D | D92: Despesas Financeiras | E92: ='BDI - Geral'!E14 -> 0.0047
D94: TOTAL DE BDI | E94: ='BDI - Geral'!E27 -> 0.237 | F94: =E94*E102 -> 
D96: QUADRO-RESUMO DO CUSTO MENSAL POR EMPREGADO - SEM O 13º | E96: Valor
D97: Módulo 1 - Composição da Remuneração | E97: =F16 -> 0
D98: Módulo 2 - Encargos e Benefícios Anuais, Mensais e Diários | E98: =F45 -> 0
D99: Módulo 3 - Provisão para Rescisão | E99: =F55 -> 0
D100: Módulo 4 - Custo de Reposição do Profissional Ausente | E100: =F73 -> 0
D101: Módulo 5 - Insumos Diversos | E101: =F82 -> 
D102: SUBTOTAL (A+B+C+D+E) | E102: =SUM(E97:E101) -> 
D103: Módulo 6 - Custos Indiretos, Tributos e Lucro | E103: =F94 -> 
D105: TOTAL DO POSTO | E105: =SUM(E102:E103) -> 
B107: MÓDULO 7 - DESTAQUE DO MÓDULO 2 - 13º SALÁRIO | E107: Percentuais | F107: Valor
C108: A | D108: 13º Salário | E108: ='Encargos Sociais'!E32 -> 0.0833 | F108: =ROUND(E108*F$16,2) -> 0
C109: B | D109: Encargos Sociais sobre o 13º Salário - Taxa calculada no SUBMÓDULO 2.2 | E109: =SUM($E$24:$E$32) -> 0.348 | F109: =ROUND(E109*$F$108,2) -> 0 | H109: * Nota 1 - Provisiona-se, mensalmente, o proporcional a 1/12 dos valores referentes a gratificação natalina e adicional de férias.
C110: C | D110: BDI sobre o 13º Salário - Taxa calculada no MÓDULO 6 | E110: =E94 -> 0.237 | F110: =ROUND(E110*($F$108+$F$109),2) -> 0
D112: TOTAL DO DESTAQUE DO 13º SALÁRIO | F112: =SUM(F108:F110) -> 0
D114: QUADRO-RESUMO DO CUSTO MENSAL POR EMPREGADO | E114: Valor
D115: Custo total - sem o 13º Salário | E115: =ROUND(E105,2) -> 
D116: Destaque do 13º Salário (valor mensal) | E116: =ROUND(F112,2) -> 0
D118: TOTAL DO POSTO | E118: =E115+E116 -> 

Sheet 10 (hidden)
B2: PLANILHA DE ESTIMATIVA DE CUSTOS
B3: Padrão IN 05/2017 e IN 07/2018 - MPDG
B5: 10 | D5: =HLOOKUP($B$5,'Dados Gerais'!$D$6:$BH$22,6) -> 0 | E5: QUANTIDADE | F5: =HLOOKUP($B$5,'Dados Gerais'!$D$6:$BH$22,10) -> 0
B6: CCT | D6: =HLOOKUP($B$5,'Dados Gerais'!$D$6:$BH$22,16) -> 0 | E6: DATA-BASE | F6: =HLOOKUP($B$5,'Dados Gerais'!$D$6:$BH$22,17) -> 00:00:00
B8: MÓDULO 1 - COMPOSIÇÃO DA REMUNERAÇÃO | F8: Valor
C9: A | D9: Salário-Base | F9: =HLOOKUP($B$5,'Dados Gerais'!$D$6:$BH$22,8) -> 0
C10: B | D10: Adicional de Periculosidade | F10: =HLOOKUP($B$5,'Dados Gerais'!$D$6:$BH$39,26) -> 0
C11: C | D11: Adicional de Insalubridade | F11: =HLOOKUP($B$5,'Dados Gerais'!$D$6:$BH$39,32) -> 0
C12: D | D12: Adicional Noturno | F12: =HLOOKUP($B$5,'Dados Gerais'!$D$6:$BH$52,47) -> 0 | H12: * Nota 1 - O Módulo 1 refere-se ao valor mensal devido ao empregado pela prestação do serviço no período de 12 meses.
C13: E | D13: Adicional de Hora Extra | F13: =HLOOKUP($B$5,'Dados Gerais'!$D$6:$BH$69,64) -> 0 | H13: * Nota 2 - O adicional de hora extra no feriado trabalhado foi suprimido pela Lei 13.467/17
C14: F | D14: Outros (adicional de sobreaviso) | F14: =HLOOKUP($B$5,'Dados Gerais'!$D$6:$BH$69,34) -> 0 | H14: * Nota 3 - ART. 7º, § 2º, DA LEI Nº 605/49.Sendo mensalista o obreiro, o adicional noturno pago de forma fixa já é considerado integrado para os efeitos do pagamento do repouso semanal remunerado, nos termos do art. 7º, § 2º, da Lei nº 605/49.
D16: TOTAL DA REMUNERAÇÃO | F16: =SUM(F9:F14) -> 0
B18: MÓDULO 2 - ENCARGOS E BENEFÍCIOS ANUAIS, MENSAIS E DIÁRIOS | E18: Percentuais | F18: Valor
B19: Submódulo 2.1 - 13º Salário, Férias e Adicional de Férias
C20: A | D20: 13º Salário - Calculado no Módulo 7 - Destacado | E20: 0 | F20: =ROUND(E20*F$16,2) -> 0
C21: B | D21: Férias e Adicional de Férias | E21: ='Encargos Sociais'!E25+'Encargos Sociais'!E31 -> 0.1212 | F21: =ROUND(E21*F$16,2) -> 0 | H21: * Nota 1 - Provisiona-se, mensalmente, o proporcional a 1/12 dos valores referentes a gratificação natalina, férias e adicional de férias.
H22: * Nota 2 - O adicional de férias contido no Submódulo 2.1 corresponde a 1/3 da remuneração que, por sua vez, é dividida por 12 contome Nota 1.
B23: Submódulo 2.2 - Encargos Previdenciários (GPS), Fundo de Garantia por Tempo de Serviço (FGTS) e Outras Contribuições
C24: A | D24: INSS (art. 22, inciso I, Lei nº 8.212/91) | E24: ='Encargos Sociais'!E14 -> 0.2 | F24: =ROUND(E24*($F$16+$F$41+$F$73),2) -> 0
C25: B | D25: Salário Educação (art. 3º, inciso I, Decreto nº 87.043/82) | E25: ='Encargos Sociais'!E15 -> 0.025 | F25: =ROUND(E25*($F$16+$F$41+$F$73),2) -> 0
C26: C | D26: SAT/RAT (art. 22, II, Lei 8.212/91 e Anexo V, Decreto 6.042/07) - Enquadramento 8211-3/00 | E26: ='Encargos Sociais'!E16 -> 0.01 | F26: 0
C27: D | D27: SESC ou SESI (art. 30, Lei nº 8.036/90 e art. 1º, Lei 8.154/90) | E27: ='Encargos Sociais'!E17 -> 0.015 | F27: 0
C28: E | D28: SENAI ou SENAC (Decreto nº 2.318/86) | E28: ='Encargos Sociais'!E18 -> 0.01 | F28: 0
C29: F | D29: SEBRAE (§ 3º, art. 8º, Lei 8.029/90, alterada pela Lei nº 8.154/90) | E29: ='Encargos Sociais'!E19 -> 0.006 | F29: 0
C30: G | D30: INCRA (art. 1º, I, Decreto Lei 1.146/70 e Lei 7.787, de 30/06/89) | E30: ='Encargos Sociais'!E20 -> 0.002 | F30: 0 | H30: * Nota 1 - Os percentuais dos encargos previdenciários, do FGTS e demais contribuições são estabelecidos por legislação vigente.
C31: H | D31: FGTS (Lei Complementar nº 110/01 e art. 30, Lei nº 8.036/90) | E31: ='Encargos Sociais'!E21 -> 0.08 | F31: 0 | H31: * Nota 2 - O SAT, a depender do grau de risco do serviço, irá variar entre 1%, para risco leve, de 2%, para risco médio, e de 3% para risco grave.
C32: I | D32: SECONCI (Convenções Coletivas de Trabalho da construção) | E32: ='Encargos Sociais'!E22 -> 0 | F32: 0 | H32: * Nota 3 - Os percentuais do Submódulo 2.2 incidem sobre o Módulo 1 e o Submódulo 2.1.
B34: Submódulo 2.3 - Benefícios Mensais e Diários
C35: A | D35: Auxílio Transporte | F35: =HLOOKUP($B$5,'Dados Gerais'!$D$6:$BH$95,83) -> 0
C36: B | D36: Auxílio Alimentação | F36: =HLOOKUP($B$5,'Dados Gerais'!$D$6:$BH$95,90) -> 0
C37: C | D37: Assistência Médica e Familiar | F37: =HLOOKUP($B$5,'Dados Gerais'!$D$6:$BH$103,98) -> 0
C38: D | D38: Outros (Seguro de vida, auxílio funeral, auxílio odontológico e auxílio creche) | F38: =HLOOKUP($B$5,'Dados Gerais'!$D$6:$BH$121,115) -> 0 | H38: * Nota 1 - O valor informado deverá ser o custo real do benefício (descontado o valor eventualmente pago pelo empregado).
H39: * Nota 2 - Observar a previsão dos benefícios contidos em Acordos, Convenções e Dissídios Coletivos de Trabalho e o disposto no art. 6º da IN 5/2017
D40: QUADRO-RESUMO DO MÓDULO 2
D41: 2.1 - 13º Salário, Férias e Adicional de Férias - 13º Destacado - Calculado no Módulo 7 | E41: =SUM(E20:E21) -> 0.1212 | F41: =F20+F21 -> 0
D42: 2.2 - Encargos Previdenciários (GPS), Fundo de Garantia por Tempo de Serviço (FGTS) e Contribuições | E42: =SUM(E24:E32) -> 0.348 | F42: =SUM(F24:F32) -> 0
D43: 2.3 - Benefícios Mensais e Diários | F43: =SUM(F35:F38) -> 0
D45: TOTAL DOS ENCARGOS E BENEFÍCIOS | F45: =SUM(F41:F43) -> 0
B47: MÓDULO 3 - PREVISÃO PARA RESCISÃO | E47: Percentuais | F47: Valor
C48: A | D48: Aviso Prévio Indenizado (Art. 7º, inciso XXI, da CF/1988 e arts. 477, 487, §1º, e 491 da CLT) | E48: ='Encargos Sociais'!E36 -> 0.0035 | F48: =ROUND(E48*$F$16,2) -> 0
C49: B | D49: Incidência do FGTS sobre o Aviso Prévio Indenizado (Súmula 305 TST) | E49: ='Encargos Sociais'!E37 -> 0.0003 | F49: 0 | H49: * Nota 1 - Adotou-se os parâmetros do estudo do STF (http://www.stf.jus.br/arquivo/cms/sobrestfestudosci/anexo/encargos_sociais_03102007.pdf), onde 5% do pessoal é demitido pelo empregador no decurso do contrato (para estes, considerou-se o aviso prévio indenizado). Desprezou-se as demissões por justa causa e os pedidos de demissão.
C50: C | D50: Multa do FGTS e Contribuição Social sobre o Aviso Prévio Indenizado (Art. 18, §1º, da Lei 8.036/1990 e art. 1º da LC nº 110/2001) | E50: ='Encargos Sociais'!E38 -> 0.0011 | F50: 0 | H50: * Nota 2 - No cálculo do percentual, considerou-se 36 dias, correspondendo à metade da duração média dos contratos (2 anos)
C51: D | D51: Aviso Prévio Trabalhado (Art. 488, parágrafo único, CLT) | E51: ='Encargos Sociais'!E39 -> 0.0078 | F51: 0 | H51: * Nota 3 - Incide sobre a Remuneração + 13º salário (1/12) + Férias (1/12) + Adicional de Férias (1/36) x 50% multa (40% para o empregado e 10% de contribuição social) x 8% FGTS
C52: E | D52: Incidência de GPS, FGTS e outras contribuições sobre o Aviso Prévio Trabalhado | E52: ='Encargos Sociais'!E40 -> 0.0027 | F52: 0 | H52: * Nota 4 - Os 95% restantes do cálculo, a um prazo médio de contrato de 4 anos. Assim, calcula-se 7 dias para o 1º ano de contrato e mais 3 dias para os 3 anos seguintes.
C53: F | D53: Multa do FGTS e Contribuição Social sobre o Aviso Prévio Trabalhado | E53: ='Encargos Sociais'!E41 -> 0.0309 | F53: 0
D55: TOTAL DE PREVISÃO PARA RESCISÃO | F55: =SUM(F48:F53) -> 0
B57: MÓDULO 4 - CUSTO DO PROFISSIONAL AUSENTE | E57: Percentuais | F57: Valor
B58: Submódulo 4.1 - Ausências Legais
C59: A | D59: Férias (Arts. 129 e 130, inc. I, da CLT) - Calculado no Submódulo 2.1 | E59: 0 | F59: =ROUND(E59*$F$16,2) -> 0 | H59: * Nota 1 - As alíneas “A” a “F” referem-se somente ao custo que será pago ao repositor pelos dias trabalhados quando da necessidade de substituir a mão de obra alocada na prestação do serviço.
C60: B | D60: Ausências Legais (Arts. 131 e 473 da CLT) | E60: ='Encargos Sociais'!E26 -> 0.0079 | F60: 0 | H60: * Nota 2 - Adotou-se a estimativa do SINAPI de 2 dias por ano.
C61: C | D61: Licença-Paternidade (Art. 7º, XIX, e art. 10, §1º, do ADCT, CF/1988 e Art. 1º, II, da Lei 11.770/2008) | E61: ='Encargos Sociais'!E27 -> 0.0008 | F61: 0 | H61: * Nota 3 - Utilizada a proporção de 50% para homens, 5 dias de afastamento, e a probabilidade de um trabalhador requerer a Licença Paternidade em 5,22%, conforme SINAPI (citando dados da PNAD 2015)
C62: D | D62: Ausência por Acidente de Trabalho (Art. 131, III, da CLT) | E62: ='Encargos Sociais'!E28 -> 0.0009 | F62: 0 | H62: * Nota 4 - Utilzada a estatística de 1,96% dos contribuintes beneficiados com a emissão do auxílio, conforme Anuário Estatístico da Previdência Social. Afastamento de 15 dias a cargo da empresa.
C63: E | D63: Afastamento Maternidade (Art. 71 da Lei nº 8.213/1991) | E63: ='Encargos Sociais'!E29 -> 0.0033 | F63: 0 | H63: * Nota 5 - Utilizada a proporção de 50% para mulheres, 180 dias de afastamento, e a probabilidade de uma trabalhadora requerer a Licença Maternidade em 4,91%, conforme SINAPI (citando dados do IBGE 2016)
C64: F | D64: Auxílio Enfermidade - Doença (Art. 59 da Lei nº 8.213/1991) | E64: ='Encargos Sociais'!E30 -> 0.0071 | F64: 0 | H64: * Nota 6 - Utilizada a estatística de 3,37% dos contribuintes beneficiados com o auxílio, conforme Anuário Estatístico da Previdência Social de 2015 (acrescidos de 2 dias ao ano, para os quais o trabalhador nem requer o benefício da Previdência - conforme SINAPI)
B66: Submódulo 4.2 - Intrajornada
C67: A | D67: Intervalo para repouso ou alimentação | E67: ='Encargos Sociais'!E33 -> 0 | F67: =ROUND(E67*$F$16,2) -> 0
D69: QUADRO-RESUMO DO MÓDULO 4 | F69: Valor
D70: 4.1 - Ausências Legais | E70: =SUM(E59:E64) -> 0.02 | F70: =ROUND(E70*$F$16,2) -> 0
D71: 4.2 - Intrajornada | E71: =E67 -> 0 | F71: =ROUND(E71*$F$16,2) -> 0
D73: TOTAL DE PREVISÃO PARA RESCISÃO E INTERVALO INTRAJORNADA | F73: =SUM(F70:F71) -> 0
B75: MÓDULO 5 - INSUMOS DIVERSOS | F75: Valor
C76: A | D76: Uniformes - aquisição | F76: 0
C77: B | D77: Materiais de consumo relacionados ao posto - aquisição | F77: =ROUND(HLOOKUP(B5,'Mat Cons'!I11:DX13,3)/12,2) -> 0
C78: C | D78: Ferramentas relacionadas ao posto - remuneração da sua depreciação / manutenção | F78: =HLOOKUP(B5,'Relacion - Ferram'!Q3:EF5,3) -> 0
C79: D | D79: Equipamentos relacionados ao posto - remuneração da sua depreciação / manutenção | F79: =HLOOKUP(B5,'Equip Rel'!Q11:EF13,3) -> 0
C80: E | D80: Equipamentos de Proteção Individual - EPI - aquisição | F80: =ROUND(HLOOKUP(B5,Uniformes!#REF!,3)/12,2) -> 
D82: TOTAL DE INSUMOS DIVERSOS | F82: =SUM(F76:F81) ->  | H82: * Nota - Valores mensais por empregado
B84: MÓDULO 6 - CUSTOS INDIRETOS, TRIBUTOS E LUCRO - BDI | E84: Percentuais | F84: Valor
C85: A | D85: Custos Indiretos | E85: ='BDI - Geral'!E7 -> 0.0391
C86: A.1 | D86: Administração Central | E86: ='BDI - Geral'!E8 -> 0.0337
C87: A.2 | D87: Seguros, Garantias e Riscos | E87: ='BDI - Geral'!E9 -> 0.0054
C88: B | D88: Lucro | E88: ='BDI - Geral'!E11 -> 0.038
C89: C | D89: Tributos | E89: =SUM(E90:E91) -> 0.124
C90: C.1 | D90: Tributos Federais (COFINS, PIS e CPRB) | E90: ='BDI - Geral'!E19 -> 0.074
C91: C.2 | D91: Tributos Distritais (ISS) | E91: ='BDI - Geral'!E24 -> 0.05 | H91: * Nota - Utilizou-se o indicado pelo Sindicato da Arquitetura e da Engenharia (Sinaenco, 2008, p. 22), que adota um percentual redutor de 20% no cálculo dos custos tributários relativos às contribuições PIS e COFINS
C92: D | D92: Despesas Financeiras | E92: ='BDI - Geral'!E14 -> 0.0047
D94: TOTAL DE BDI | E94: ='BDI - Geral'!E27 -> 0.237 | F94: =E94*E102 -> 
D96: QUADRO-RESUMO DO CUSTO MENSAL POR EMPREGADO - SEM O 13º | E96: Valor
D97: Módulo 1 - Composição da Remuneração | E97: =F16 -> 0
D98: Módulo 2 - Encargos e Benefícios Anuais, Mensais e Diários | E98: =F45 -> 0
D99: Módulo 3 - Provisão para Rescisão | E99: =F55 -> 0
D100: Módulo 4 - Custo de Reposição do Profissional Ausente | E100: =F73 -> 0
D101: Módulo 5 - Insumos Diversos | E101: =F82 -> 
D102: SUBTOTAL (A+B+C+D+E) | E102: =SUM(E97:E101) -> 
D103: Módulo 6 - Custos Indiretos, Tributos e Lucro | E103: =F94 -> 
D105: TOTAL DO POSTO | E105: =SUM(E102:E103) -> 
B107: MÓDULO 7 - DESTAQUE DO MÓDULO 2 - 13º SALÁRIO | E107: Percentuais | F107: Valor
C108: A | D108: 13º Salário | E108: ='Encargos Sociais'!E32 -> 0.0833 | F108: =ROUND(E108*F$16,2) -> 0
C109: B | D109: Encargos Sociais sobre o 13º Salário - Taxa calculada no SUBMÓDULO 2.2 | E109: =SUM($E$24:$E$32) -> 0.348 | F109: =ROUND(E109*$F$108,2) -> 0 | H109: * Nota 1 - Provisiona-se, mensalmente, o proporcional a 1/12 dos valores referentes a gratificação natalina e adicional de férias.
C110: C | D110: BDI sobre o 13º Salário - Taxa calculada no MÓDULO 6 | E110: =E94 -> 0.237 | F110: =ROUND(E110*($F$108+$F$109),2) -> 0
D112: TOTAL DO DESTAQUE DO 13º SALÁRIO | F112: =SUM(F108:F110) -> 0
D114: QUADRO-RESUMO DO CUSTO MENSAL POR EMPREGADO | E114: Valor
D115: Custo total - sem o 13º Salário | E115: =ROUND(E105,2) -> 
D116: Destaque do 13º Salário (valor mensal) | E116: =ROUND(F112,2) -> 0
D118: TOTAL DO POSTO | E118: =E115+E116 -> 

Sheet 11 (hidden)
B2: PLANILHA DE ESTIMATIVA DE CUSTOS
B3: Padrão IN 05/2017 e IN 07/2018 - MPDG
B5: 11 | D5: =HLOOKUP($B$5,'Dados Gerais'!$D$6:$BH$22,6) -> 0 | E5: QUANTIDADE | F5: =HLOOKUP($B$5,'Dados Gerais'!$D$6:$BH$22,10) -> 0
B6: CCT | D6: =HLOOKUP($B$5,'Dados Gerais'!$D$6:$BH$22,16) -> 0 | E6: DATA-BASE | F6: =HLOOKUP($B$5,'Dados Gerais'!$D$6:$BH$22,17) -> 00:00:00
B8: MÓDULO 1 - COMPOSIÇÃO DA REMUNERAÇÃO | F8: Valor
C9: A | D9: Salário-Base | F9: =HLOOKUP($B$5,'Dados Gerais'!$D$6:$BH$22,8) -> 0
C10: B | D10: Adicional de Periculosidade | F10: =HLOOKUP($B$5,'Dados Gerais'!$D$6:$BH$39,26) -> 0
C11: C | D11: Adicional de Insalubridade | F11: =HLOOKUP($B$5,'Dados Gerais'!$D$6:$BH$39,32) -> 0
C12: D | D12: Adicional Noturno | F12: =HLOOKUP($B$5,'Dados Gerais'!$D$6:$BH$52,47) -> 0 | H12: * Nota 1 - O Módulo 1 refere-se ao valor mensal devido ao empregado pela prestação do serviço no período de 12 meses.
C13: E | D13: Adicional de Hora Extra | F13: =HLOOKUP($B$5,'Dados Gerais'!$D$6:$BH$69,64) -> 0 | H13: * Nota 2 - O adicional de hora extra no feriado trabalhado foi suprimido pela Lei 13.467/17
C14: F | D14: Outros (adicional de sobreaviso) | F14: =HLOOKUP($B$5,'Dados Gerais'!$D$6:$BH$69,34) -> 0 | H14: * Nota 3 - ART. 7º, § 2º, DA LEI Nº 605/49.Sendo mensalista o obreiro, o adicional noturno pago de forma fixa já é considerado integrado para os efeitos do pagamento do repouso semanal remunerado, nos termos do art. 7º, § 2º, da Lei nº 605/49.
D16: TOTAL DA REMUNERAÇÃO | F16: =SUM(F9:F14) -> 0
B18: MÓDULO 2 - ENCARGOS E BENEFÍCIOS ANUAIS, MENSAIS E DIÁRIOS | E18: Percentuais | F18: Valor
B19: Submódulo 2.1 - 13º Salário, Férias e Adicional de Férias
C20: A | D20: 13º Salário - Calculado no Módulo 7 - Destacado | E20: 0 | F20: =ROUND(E20*F$16,2) -> 0
C21: B | D21: Férias e Adicional de Férias | E21: ='Encargos Sociais'!E25+'Encargos Sociais'!E31 -> 0.1212 | F21: =ROUND(E21*F$16,2) -> 0 | H21: * Nota 1 - Provisiona-se, mensalmente, o proporcional a 1/12 dos valores referentes a gratificação natalina, férias e adicional de férias.
H22: * Nota 2 - O adicional de férias contido no Submódulo 2.1 corresponde a 1/3 da remuneração que, por sua vez, é dividida por 12 contome Nota 1.
B23: Submódulo 2.2 - Encargos Previdenciários (GPS), Fundo de Garantia por Tempo de Serviço (FGTS) e Outras Contribuições
C24: A | D24: INSS (art. 22, inciso I, Lei nº 8.212/91) | E24: ='Encargos Sociais'!E14 -> 0.2 | F24: =ROUND(E24*($F$16+$F$41+$F$73),2) -> 0
C25: B | D25: Salário Educação (art. 3º, inciso I, Decreto nº 87.043/82) | E25: ='Encargos Sociais'!E15 -> 0.025 | F25: =ROUND(E25*($F$16+$F$41+$F$73),2) -> 0
C26: C | D26: SAT/RAT (art. 22, II, Lei 8.212/91 e Anexo V, Decreto 6.042/07) - Enquadramento 8211-3/00 | E26: ='Encargos Sociais'!E16 -> 0.01 | F26: 0
C27: D | D27: SESC ou SESI (art. 30, Lei nº 8.036/90 e art. 1º, Lei 8.154/90) | E27: ='Encargos Sociais'!E17 -> 0.015 | F27: 0
C28: E | D28: SENAI ou SENAC (Decreto nº 2.318/86) | E28: ='Encargos Sociais'!E18 -> 0.01 | F28: 0
C29: F | D29: SEBRAE (§ 3º, art. 8º, Lei 8.029/90, alterada pela Lei nº 8.154/90) | E29: ='Encargos Sociais'!E19 -> 0.006 | F29: 0
C30: G | D30: INCRA (art. 1º, I, Decreto Lei 1.146/70 e Lei 7.787, de 30/06/89) | E30: ='Encargos Sociais'!E20 -> 0.002 | F30: 0 | H30: * Nota 1 - Os percentuais dos encargos previdenciários, do FGTS e demais contribuições são estabelecidos por legislação vigente.
C31: H | D31: FGTS (Lei Complementar nº 110/01 e art. 30, Lei nº 8.036/90) | E31: ='Encargos Sociais'!E21 -> 0.08 | F31: 0 | H31: * Nota 2 - O SAT, a depender do grau de risco do serviço, irá variar entre 1%, para risco leve, de 2%, para risco médio, e de 3% para risco grave.
C32: I | D32: SECONCI (Convenções Coletivas de Trabalho da construção) | E32: ='Encargos Sociais'!E22 -> 0 | F32: 0 | H32: * Nota 3 - Os percentuais do Submódulo 2.2 incidem sobre o Módulo 1 e o Submódulo 2.1.
B34: Submódulo 2.3 - Benefícios Mensais e Diários
C35: A | D35: Auxílio Transporte | F35: =HLOOKUP($B$5,'Dados Gerais'!$D$6:$BH$95,83) -> 0
C36: B | D36: Auxílio Alimentação | F36: =HLOOKUP($B$5,'Dados Gerais'!$D$6:$BH$95,90) -> 0
C37: C | D37: Assistência Médica e Familiar | F37: =HLOOKUP($B$5,'Dados Gerais'!$D$6:$BH$103,98) -> 0
C38: D | D38: Outros (Seguro de vida, auxílio funeral, auxílio odontológico e auxílio creche) | F38: =HLOOKUP($B$5,'Dados Gerais'!$D$6:$BH$121,115) -> 0 | H38: * Nota 1 - O valor informado deverá ser o custo real do benefício (descontado o valor eventualmente pago pelo empregado).
H39: * Nota 2 - Observar a previsão dos benefícios contidos em Acordos, Convenções e Dissídios Coletivos de Trabalho e o disposto no art. 6º da IN 5/2017
D40: QUADRO-RESUMO DO MÓDULO 2
D41: 2.1 - 13º Salário, Férias e Adicional de Férias - 13º Destacado - Calculado no Módulo 7 | E41: =SUM(E20:E21) -> 0.1212 | F41: =F20+F21 -> 0
D42: 2.2 - Encargos Previdenciários (GPS), Fundo de Garantia por Tempo de Serviço (FGTS) e Contribuições | E42: =SUM(E24:E32) -> 0.348 | F42: =SUM(F24:F32) -> 0
D43: 2.3 - Benefícios Mensais e Diários | F43: =SUM(F35:F38) -> 0
D45: TOTAL DOS ENCARGOS E BENEFÍCIOS | F45: =SUM(F41:F43) -> 0
B47: MÓDULO 3 - PREVISÃO PARA RESCISÃO | E47: Percentuais | F47: Valor
C48: A | D48: Aviso Prévio Indenizado (Art. 7º, inciso XXI, da CF/1988 e arts. 477, 487, §1º, e 491 da CLT) | E48: ='Encargos Sociais'!E36 -> 0.0035 | F48: =ROUND(E48*$F$16,2) -> 0
C49: B | D49: Incidência do FGTS sobre o Aviso Prévio Indenizado (Súmula 305 TST) | E49: ='Encargos Sociais'!E37 -> 0.0003 | F49: 0 | H49: * Nota 1 - Adotou-se os parâmetros do estudo do STF (http://www.stf.jus.br/arquivo/cms/sobrestfestudosci/anexo/encargos_sociais_03102007.pdf), onde 5% do pessoal é demitido pelo empregador no decurso do contrato (para estes, considerou-se o aviso prévio indenizado). Desprezou-se as demissões por justa causa e os pedidos de demissão.
C50: C | D50: Multa do FGTS e Contribuição Social sobre o Aviso Prévio Indenizado (Art. 18, §1º, da Lei 8.036/1990 e art. 1º da LC nº 110/2001) | E50: ='Encargos Sociais'!E38 -> 0.0011 | F50: 0 | H50: * Nota 2 - No cálculo do percentual, considerou-se 36 dias, correspondendo à metade da duração média dos contratos (2 anos)
C51: D | D51: Aviso Prévio Trabalhado (Art. 488, parágrafo único, CLT) | E51: ='Encargos Sociais'!E39 -> 0.0078 | F51: 0 | H51: * Nota 3 - Incide sobre a Remuneração + 13º salário (1/12) + Férias (1/12) + Adicional de Férias (1/36) x 50% multa (40% para o empregado e 10% de contribuição social) x 8% FGTS
C52: E | D52: Incidência de GPS, FGTS e outras contribuições sobre o Aviso Prévio Trabalhado | E52: ='Encargos Sociais'!E40 -> 0.0027 | F52: 0 | H52: * Nota 4 - Os 95% restantes do cálculo, a um prazo médio de contrato de 4 anos. Assim, calcula-se 7 dias para o 1º ano de contrato e mais 3 dias para os 3 anos seguintes.
C53: F | D53: Multa do FGTS e Contribuição Social sobre o Aviso Prévio Trabalhado | E53: ='Encargos Sociais'!E41 -> 0.0309 | F53: 0
D55: TOTAL DE PREVISÃO PARA RESCISÃO | F55: =SUM(F48:F53) -> 0
B57: MÓDULO 4 - CUSTO DO PROFISSIONAL AUSENTE | E57: Percentuais | F57: Valor
B58: Submódulo 4.1 - Ausências Legais
C59: A | D59: Férias (Arts. 129 e 130, inc. I, da CLT) - Calculado no Submódulo 2.1 | E59: 0 | F59: =ROUND(E59*$F$16,2) -> 0 | H59: * Nota 1 - As alíneas “A” a “F” referem-se somente ao custo que será pago ao repositor pelos dias trabalhados quando da necessidade de substituir a mão de obra alocada na prestação do serviço.
C60: B | D60: Ausências Legais (Arts. 131 e 473 da CLT) | E60: ='Encargos Sociais'!E26 -> 0.0079 | F60: 0 | H60: * Nota 2 - Adotou-se a estimativa do SINAPI de 2 dias por ano.
C61: C | D61: Licença-Paternidade (Art. 7º, XIX, e art. 10, §1º, do ADCT, CF/1988 e Art. 1º, II, da Lei 11.770/2008) | E61: ='Encargos Sociais'!E27 -> 0.0008 | F61: 0 | H61: * Nota 3 - Utilizada a proporção de 50% para homens, 5 dias de afastamento, e a probabilidade de um trabalhador requerer a Licença Paternidade em 5,22%, conforme SINAPI (citando dados da PNAD 2015)
C62: D | D62: Ausência por Acidente de Trabalho (Art. 131, III, da CLT) | E62: ='Encargos Sociais'!E28 -> 0.0009 | F62: 0 | H62: * Nota 4 - Utilzada a estatística de 1,96% dos contribuintes beneficiados com a emissão do auxílio, conforme Anuário Estatístico da Previdência Social. Afastamento de 15 dias a cargo da empresa.
C63: E | D63: Afastamento Maternidade (Art. 71 da Lei nº 8.213/1991) | E63: ='Encargos Sociais'!E29 -> 0.0033 | F63: 0 | H63: * Nota 5 - Utilizada a proporção de 50% para mulheres, 180 dias de afastamento, e a probabilidade de uma trabalhadora requerer a Licença Maternidade em 4,91%, conforme SINAPI (citando dados do IBGE 2016)
C64: F | D64: Auxílio Enfermidade - Doença (Art. 59 da Lei nº 8.213/1991) | E64: ='Encargos Sociais'!E30 -> 0.0071 | F64: 0 | H64: * Nota 6 - Utilizada a estatística de 3,37% dos contribuintes beneficiados com o auxílio, conforme Anuário Estatístico da Previdência Social de 2015 (acrescidos de 2 dias ao ano, para os quais o trabalhador nem requer o benefício da Previdência - conforme SINAPI)
B66: Submódulo 4.2 - Intrajornada
C67: A | D67: Intervalo para repouso ou alimentação | E67: ='Encargos Sociais'!E33 -> 0 | F67: =ROUND(E67*$F$16,2) -> 0
D69: QUADRO-RESUMO DO MÓDULO 4 | F69: Valor
D70: 4.1 - Ausências Legais | E70: =SUM(E59:E64) -> 0.02 | F70: =ROUND(E70*$F$16,2) -> 0
D71: 4.2 - Intrajornada | E71: =E67 -> 0 | F71: =ROUND(E71*$F$16,2) -> 0
D73: TOTAL DE PREVISÃO PARA RESCISÃO E INTERVALO INTRAJORNADA | F73: =SUM(F70:F71) -> 0
B75: MÓDULO 5 - INSUMOS DIVERSOS | F75: Valor
C76: A | D76: Uniformes - aquisição | F76: 0
C77: B | D77: Materiais de consumo relacionados ao posto - aquisição | F77: =ROUND(HLOOKUP(B5,'Mat Cons'!I11:DX13,3)/12,2) -> 0
C78: C | D78: Ferramentas relacionadas ao posto - remuneração da sua depreciação / manutenção | F78: =HLOOKUP(B5,'Relacion - Ferram'!Q3:EF5,3) -> 0
C79: D | D79: Equipamentos relacionados ao posto - remuneração da sua depreciação / manutenção | F79: =HLOOKUP(B5,'Equip Rel'!Q11:EF13,3) -> 0
C80: E | D80: Equipamentos de Proteção Individual - EPI - aquisição | F80: =ROUND(HLOOKUP(B5,Uniformes!#REF!,3)/12,2) -> 
D82: TOTAL DE INSUMOS DIVERSOS | F82: =SUM(F76:F81) ->  | H82: * Nota - Valores mensais por empregado
B84: MÓDULO 6 - CUSTOS INDIRETOS, TRIBUTOS E LUCRO - BDI | E84: Percentuais | F84: Valor
C85: A | D85: Custos Indiretos | E85: ='BDI - Geral'!E7 -> 0.0391
C86: A.1 | D86: Administração Central | E86: ='BDI - Geral'!E8 -> 0.0337
C87: A.2 | D87: Seguros, Garantias e Riscos | E87: ='BDI - Geral'!E9 -> 0.0054
C88: B | D88: Lucro | E88: ='BDI - Geral'!E11 -> 0.038
C89: C | D89: Tributos | E89: =SUM(E90:E91) -> 0.124
C90: C.1 | D90: Tributos Federais (COFINS, PIS e CPRB) | E90: ='BDI - Geral'!E19 -> 0.074
C91: C.2 | D91: Tributos Distritais (ISS) | E91: ='BDI - Geral'!E24 -> 0.05 | H91: * Nota - Utilizou-se o indicado pelo Sindicato da Arquitetura e da Engenharia (Sinaenco, 2008, p. 22), que adota um percentual redutor de 20% no cálculo dos custos tributários relativos às contribuições PIS e COFINS
C92: D | D92: Despesas Financeiras | E92: ='BDI - Geral'!E14 -> 0.0047
D94: TOTAL DE BDI | E94: ='BDI - Geral'!E27 -> 0.237 | F94: =E94*E102 -> 
D96: QUADRO-RESUMO DO CUSTO MENSAL POR EMPREGADO - SEM O 13º | E96: Valor
D97: Módulo 1 - Composição da Remuneração | E97: =F16 -> 0
D98: Módulo 2 - Encargos e Benefícios Anuais, Mensais e Diários | E98: =F45 -> 0
D99: Módulo 3 - Provisão para Rescisão | E99: =F55 -> 0
D100: Módulo 4 - Custo de Reposição do Profissional Ausente | E100: =F73 -> 0
D101: Módulo 5 - Insumos Diversos | E101: =F82 -> 
D102: SUBTOTAL (A+B+C+D+E) | E102: =SUM(E97:E101) -> 
D103: Módulo 6 - Custos Indiretos, Tributos e Lucro | E103: =F94 -> 
D105: TOTAL DO POSTO | E105: =SUM(E102:E103) -> 
B107: MÓDULO 7 - DESTAQUE DO MÓDULO 2 - 13º SALÁRIO | E107: Percentuais | F107: Valor
C108: A | D108: 13º Salário | E108: ='Encargos Sociais'!E32 -> 0.0833 | F108: =ROUND(E108*F$16,2) -> 0
C109: B | D109: Encargos Sociais sobre o 13º Salário - Taxa calculada no SUBMÓDULO 2.2 | E109: =SUM($E$24:$E$32) -> 0.348 | F109: =ROUND(E109*$F$108,2) -> 0 | H109: * Nota 1 - Provisiona-se, mensalmente, o proporcional a 1/12 dos valores referentes a gratificação natalina e adicional de férias.
C110: C | D110: BDI sobre o 13º Salário - Taxa calculada no MÓDULO 6 | E110: =E94 -> 0.237 | F110: =ROUND(E110*($F$108+$F$109),2) -> 0
D112: TOTAL DO DESTAQUE DO 13º SALÁRIO | F112: =SUM(F108:F110) -> 0
D114: QUADRO-RESUMO DO CUSTO MENSAL POR EMPREGADO | E114: Valor
D115: Custo total - sem o 13º Salário | E115: =ROUND(E105,2) -> 
D116: Destaque do 13º Salário (valor mensal) | E116: =ROUND(F112,2) -> 0
D118: TOTAL DO POSTO | E118: =E115+E116 -> 

Sheet 12 (hidden)
B2: PLANILHA DE ESTIMATIVA DE CUSTOS
B3: Padrão IN 05/2017 e IN 07/2018 - MPDG
B5: 12 | D5: =HLOOKUP($B$5,'Dados Gerais'!$D$6:$BH$22,6) -> 0 | E5: QUANTIDADE | F5: =HLOOKUP($B$5,'Dados Gerais'!$D$6:$BH$22,10) -> 0
B6: CCT | D6: =HLOOKUP($B$5,'Dados Gerais'!$D$6:$BH$22,16) -> 0 | E6: DATA-BASE | F6: =HLOOKUP($B$5,'Dados Gerais'!$D$6:$BH$22,17) -> 00:00:00
B8: MÓDULO 1 - COMPOSIÇÃO DA REMUNERAÇÃO | F8: Valor
C9: A | D9: Salário-Base | F9: =HLOOKUP($B$5,'Dados Gerais'!$D$6:$BH$22,8) -> 0
C10: B | D10: Adicional de Periculosidade | F10: =HLOOKUP($B$5,'Dados Gerais'!$D$6:$BH$39,26) -> 0
C11: C | D11: Adicional de Insalubridade | F11: =HLOOKUP($B$5,'Dados Gerais'!$D$6:$BH$39,32) -> 0
C12: D | D12: Adicional Noturno | F12: =HLOOKUP($B$5,'Dados Gerais'!$D$6:$BH$52,47) -> 0 | H12: * Nota 1 - O Módulo 1 refere-se ao valor mensal devido ao empregado pela prestação do serviço no período de 12 meses.
C13: E | D13: Adicional de Hora Extra | F13: =HLOOKUP($B$5,'Dados Gerais'!$D$6:$BH$69,64) -> 0 | H13: * Nota 2 - O adicional de hora extra no feriado trabalhado foi suprimido pela Lei 13.467/17
C14: F | D14: Outros (adicional de sobreaviso) | F14: =HLOOKUP($B$5,'Dados Gerais'!$D$6:$BH$69,34) -> 0 | H14: * Nota 3 - ART. 7º, § 2º, DA LEI Nº 605/49.Sendo mensalista o obreiro, o adicional noturno pago de forma fixa já é considerado integrado para os efeitos do pagamento do repouso semanal remunerado, nos termos do art. 7º, § 2º, da Lei nº 605/49.
D16: TOTAL DA REMUNERAÇÃO | F16: =SUM(F9:F14) -> 0
B18: MÓDULO 2 - ENCARGOS E BENEFÍCIOS ANUAIS, MENSAIS E DIÁRIOS | E18: Percentuais | F18: Valor
B19: Submódulo 2.1 - 13º Salário, Férias e Adicional de Férias
C20: A | D20: 13º Salário - Calculado no Módulo 7 - Destacado | E20: 0 | F20: =ROUND(E20*F$16,2) -> 0
C21: B | D21: Férias e Adicional de Férias | E21: ='Encargos Sociais'!E25+'Encargos Sociais'!E31 -> 0.1212 | F21: =ROUND(E21*F$16,2) -> 0 | H21: * Nota 1 - Provisiona-se, mensalmente, o proporcional a 1/12 dos valores referentes a gratificação natalina, férias e adicional de férias.
H22: * Nota 2 - O adicional de férias contido no Submódulo 2.1 corresponde a 1/3 da remuneração que, por sua vez, é dividida por 12 contome Nota 1.
B23: Submódulo 2.2 - Encargos Previdenciários (GPS), Fundo de Garantia por Tempo de Serviço (FGTS) e Outras Contribuições
C24: A | D24: INSS (art. 22, inciso I, Lei nº 8.212/91) | E24: ='Encargos Sociais'!E14 -> 0.2 | F24: =ROUND(E24*($F$16+$F$41+$F$73),2) -> 0
C25: B | D25: Salário Educação (art. 3º, inciso I, Decreto nº 87.043/82) | E25: ='Encargos Sociais'!E15 -> 0.025 | F25: =ROUND(E25*($F$16+$F$41+$F$73),2) -> 0
C26: C | D26: SAT/RAT (art. 22, II, Lei 8.212/91 e Anexo V, Decreto 6.042/07) - Enquadramento 8211-3/00 | E26: ='Encargos Sociais'!E16 -> 0.01 | F26: 0
C27: D | D27: SESC ou SESI (art. 30, Lei nº 8.036/90 e art. 1º, Lei 8.154/90) | E27: ='Encargos Sociais'!E17 -> 0.015 | F27: 0
C28: E | D28: SENAI ou SENAC (Decreto nº 2.318/86) | E28: ='Encargos Sociais'!E18 -> 0.01 | F28: 0
C29: F | D29: SEBRAE (§ 3º, art. 8º, Lei 8.029/90, alterada pela Lei nº 8.154/90) | E29: ='Encargos Sociais'!E19 -> 0.006 | F29: 0
C30: G | D30: INCRA (art. 1º, I, Decreto Lei 1.146/70 e Lei 7.787, de 30/06/89) | E30: ='Encargos Sociais'!E20 -> 0.002 | F30: 0 | H30: * Nota 1 - Os percentuais dos encargos previdenciários, do FGTS e demais contribuições são estabelecidos por legislação vigente.
C31: H | D31: FGTS (Lei Complementar nº 110/01 e art. 30, Lei nº 8.036/90) | E31: ='Encargos Sociais'!E21 -> 0.08 | F31: 0 | H31: * Nota 2 - O SAT, a depender do grau de risco do serviço, irá variar entre 1%, para risco leve, de 2%, para risco médio, e de 3% para risco grave.
C32: I | D32: SECONCI (Convenções Coletivas de Trabalho da construção) | E32: ='Encargos Sociais'!E22 -> 0 | F32: 0 | H32: * Nota 3 - Os percentuais do Submódulo 2.2 incidem sobre o Módulo 1 e o Submódulo 2.1.
B34: Submódulo 2.3 - Benefícios Mensais e Diários
C35: A | D35: Auxílio Transporte | F35: =HLOOKUP($B$5,'Dados Gerais'!$D$6:$BH$95,83) -> 0
C36: B | D36: Auxílio Alimentação | F36: =HLOOKUP($B$5,'Dados Gerais'!$D$6:$BH$95,90) -> 0
C37: C | D37: Assistência Médica e Familiar | F37: =HLOOKUP($B$5,'Dados Gerais'!$D$6:$BH$103,98) -> 0
C38: D | D38: Outros (Seguro de vida, auxílio funeral, auxílio odontológico e auxílio creche) | F38: =HLOOKUP($B$5,'Dados Gerais'!$D$6:$BH$121,115) -> 0 | H38: * Nota 1 - O valor informado deverá ser o custo real do benefício (descontado o valor eventualmente pago pelo empregado).
H39: * Nota 2 - Observar a previsão dos benefícios contidos em Acordos, Convenções e Dissídios Coletivos de Trabalho e o disposto no art. 6º da IN 5/2017
D40: QUADRO-RESUMO DO MÓDULO 2
D41: 2.1 - 13º Salário, Férias e Adicional de Férias - 13º Destacado - Calculado no Módulo 7 | E41: =SUM(E20:E21) -> 0.1212 | F41: =F20+F21 -> 0
D42: 2.2 - Encargos Previdenciários (GPS), Fundo de Garantia por Tempo de Serviço (FGTS) e Contribuições | E42: =SUM(E24:E32) -> 0.348 | F42: =SUM(F24:F32) -> 0
D43: 2.3 - Benefícios Mensais e Diários | F43: =SUM(F35:F38) -> 0
D45: TOTAL DOS ENCARGOS E BENEFÍCIOS | F45: =SUM(F41:F43) -> 0
B47: MÓDULO 3 - PREVISÃO PARA RESCISÃO | E47: Percentuais | F47: Valor
C48: A | D48: Aviso Prévio Indenizado (Art. 7º, inciso XXI, da CF/1988 e arts. 477, 487, §1º, e 491 da CLT) | E48: ='Encargos Sociais'!E36 -> 0.0035 | F48: =ROUND(E48*$F$16,2) -> 0
C49: B | D49: Incidência do FGTS sobre o Aviso Prévio Indenizado (Súmula 305 TST) | E49: ='Encargos Sociais'!E37 -> 0.0003 | F49: 0 | H49: * Nota 1 - Adotou-se os parâmetros do estudo do STF (http://www.stf.jus.br/arquivo/cms/sobrestfestudosci/anexo/encargos_sociais_03102007.pdf), onde 5% do pessoal é demitido pelo empregador no decurso do contrato (para estes, considerou-se o aviso prévio indenizado). Desprezou-se as demissões por justa causa e os pedidos de demissão.
C50: C | D50: Multa do FGTS e Contribuição Social sobre o Aviso Prévio Indenizado (Art. 18, §1º, da Lei 8.036/1990 e art. 1º da LC nº 110/2001) | E50: ='Encargos Sociais'!E38 -> 0.0011 | F50: 0 | H50: * Nota 2 - No cálculo do percentual, considerou-se 36 dias, correspondendo à metade da duração média dos contratos (2 anos)
C51: D | D51: Aviso Prévio Trabalhado (Art. 488, parágrafo único, CLT) | E51: ='Encargos Sociais'!E39 -> 0.0078 | F51: 0 | H51: * Nota 3 - Incide sobre a Remuneração + 13º salário (1/12) + Férias (1/12) + Adicional de Férias (1/36) x 50% multa (40% para o empregado e 10% de contribuição social) x 8% FGTS
C52: E | D52: Incidência de GPS, FGTS e outras contribuições sobre o Aviso Prévio Trabalhado | E52: ='Encargos Sociais'!E40 -> 0.0027 | F52: 0 | H52: * Nota 4 - Os 95% restantes do cálculo, a um prazo médio de contrato de 4 anos. Assim, calcula-se 7 dias para o 1º ano de contrato e mais 3 dias para os 3 anos seguintes.
C53: F | D53: Multa do FGTS e Contribuição Social sobre o Aviso Prévio Trabalhado | E53: ='Encargos Sociais'!E41 -> 0.0309 | F53: 0
D55: TOTAL DE PREVISÃO PARA RESCISÃO | F55: =SUM(F48:F53) -> 0
B57: MÓDULO 4 - CUSTO DO PROFISSIONAL AUSENTE | E57: Percentuais | F57: Valor
B58: Submódulo 4.1 - Ausências Legais
C59: A | D59: Férias (Arts. 129 e 130, inc. I, da CLT) - Calculado no Submódulo 2.1 | E59: 0 | F59: =ROUND(E59*$F$16,2) -> 0 | H59: * Nota 1 - As alíneas “A” a “F” referem-se somente ao custo que será pago ao repositor pelos dias trabalhados quando da necessidade de substituir a mão de obra alocada na prestação do serviço.
C60: B | D60: Ausências Legais (Arts. 131 e 473 da CLT) | E60: ='Encargos Sociais'!E26 -> 0.0079 | F60: 0 | H60: * Nota 2 - Adotou-se a estimativa do SINAPI de 2 dias por ano.
C61: C | D61: Licença-Paternidade (Art. 7º, XIX, e art. 10, §1º, do ADCT, CF/1988 e Art. 1º, II, da Lei 11.770/2008) | E61: ='Encargos Sociais'!E27 -> 0.0008 | F61: 0 | H61: * Nota 3 - Utilizada a proporção de 50% para homens, 5 dias de afastamento, e a probabilidade de um trabalhador requerer a Licença Paternidade em 5,22%, conforme SINAPI (citando dados da PNAD 2015)
C62: D | D62: Ausência por Acidente de Trabalho (Art. 131, III, da CLT) | E62: ='Encargos Sociais'!E28 -> 0.0009 | F62: 0 | H62: * Nota 4 - Utilzada a estatística de 1,96% dos contribuintes beneficiados com a emissão do auxílio, conforme Anuário Estatístico da Previdência Social. Afastamento de 15 dias a cargo da empresa.
C63: E | D63: Afastamento Maternidade (Art. 71 da Lei nº 8.213/1991) | E63: ='Encargos Sociais'!E29 -> 0.0033 | F63: 0 | H63: * Nota 5 - Utilizada a proporção de 50% para mulheres, 180 dias de afastamento, e a probabilidade de uma trabalhadora requerer a Licença Maternidade em 4,91%, conforme SINAPI (citando dados do IBGE 2016)
C64: F | D64: Auxílio Enfermidade - Doença (Art. 59 da Lei nº 8.213/1991) | E64: ='Encargos Sociais'!E30 -> 0.0071 | F64: 0 | H64: * Nota 6 - Utilizada a estatística de 3,37% dos contribuintes beneficiados com o auxílio, conforme Anuário Estatístico da Previdência Social de 2015 (acrescidos de 2 dias ao ano, para os quais o trabalhador nem requer o benefício da Previdência - conforme SINAPI)
B66: Submódulo 4.2 - Intrajornada
C67: A | D67: Intervalo para repouso ou alimentação | E67: ='Encargos Sociais'!E33 -> 0 | F67: =ROUND(E67*$F$16,2) -> 0
D69: QUADRO-RESUMO DO MÓDULO 4 | F69: Valor
D70: 4.1 - Ausências Legais | E70: =SUM(E59:E64) -> 0.02 | F70: =ROUND(E70*$F$16,2) -> 0
D71: 4.2 - Intrajornada | E71: =E67 -> 0 | F71: =ROUND(E71*$F$16,2) -> 0
D73: TOTAL DE PREVISÃO PARA RESCISÃO E INTERVALO INTRAJORNADA | F73: =SUM(F70:F71) -> 0
B75: MÓDULO 5 - INSUMOS DIVERSOS | F75: Valor
C76: A | D76: Uniformes - aquisição | F76: 0
C77: B | D77: Materiais de consumo relacionados ao posto - aquisição | F77: =ROUND(HLOOKUP(B5,'Mat Cons'!I11:DX13,3)/12,2) -> 0
C78: C | D78: Ferramentas relacionadas ao posto - remuneração da sua depreciação / manutenção | F78: =HLOOKUP(B5,'Relacion - Ferram'!Q3:EF5,3) -> 0
C79: D | D79: Equipamentos relacionados ao posto - remuneração da sua depreciação / manutenção | F79: =HLOOKUP(B5,'Equip Rel'!Q11:EF13,3) -> 0
C80: E | D80: Equipamentos de Proteção Individual - EPI - aquisição | F80: =ROUND(HLOOKUP(B5,Uniformes!#REF!,3)/12,2) -> 
D82: TOTAL DE INSUMOS DIVERSOS | F82: =SUM(F76:F81) ->  | H82: * Nota - Valores mensais por empregado
B84: MÓDULO 6 - CUSTOS INDIRETOS, TRIBUTOS E LUCRO - BDI | E84: Percentuais | F84: Valor
C85: A | D85: Custos Indiretos | E85: ='BDI - Geral'!E7 -> 0.0391
C86: A.1 | D86: Administração Central | E86: ='BDI - Geral'!E8 -> 0.0337
C87: A.2 | D87: Seguros, Garantias e Riscos | E87: ='BDI - Geral'!E9 -> 0.0054
C88: B | D88: Lucro | E88: ='BDI - Geral'!E11 -> 0.038
C89: C | D89: Tributos | E89: =SUM(E90:E91) -> 0.124
C90: C.1 | D90: Tributos Federais (COFINS, PIS e CPRB) | E90: ='BDI - Geral'!E19 -> 0.074
C91: C.2 | D91: Tributos Distritais (ISS) | E91: ='BDI - Geral'!E24 -> 0.05 | H91: * Nota - Utilizou-se o indicado pelo Sindicato da Arquitetura e da Engenharia (Sinaenco, 2008, p. 22), que adota um percentual redutor de 20% no cálculo dos custos tributários relativos às contribuições PIS e COFINS
C92: D | D92: Despesas Financeiras | E92: ='BDI - Geral'!E14 -> 0.0047
D94: TOTAL DE BDI | E94: ='BDI - Geral'!E27 -> 0.237 | F94: =E94*E102 -> 
D96: QUADRO-RESUMO DO CUSTO MENSAL POR EMPREGADO - SEM O 13º | E96: Valor
D97: Módulo 1 - Composição da Remuneração | E97: =F16 -> 0
D98: Módulo 2 - Encargos e Benefícios Anuais, Mensais e Diários | E98: =F45 -> 0
D99: Módulo 3 - Provisão para Rescisão | E99: =F55 -> 0
D100: Módulo 4 - Custo de Reposição do Profissional Ausente | E100: =F73 -> 0
D101: Módulo 5 - Insumos Diversos | E101: =F82 -> 
D102: SUBTOTAL (A+B+C+D+E) | E102: =SUM(E97:E101) -> 
D103: Módulo 6 - Custos Indiretos, Tributos e Lucro | E103: =F94 -> 
D105: TOTAL DO POSTO | E105: =SUM(E102:E103) -> 
B107: MÓDULO 7 - DESTAQUE DO MÓDULO 2 - 13º SALÁRIO | E107: Percentuais | F107: Valor
C108: A | D108: 13º Salário | E108: ='Encargos Sociais'!E32 -> 0.0833 | F108: =ROUND(E108*F$16,2) -> 0
C109: B | D109: Encargos Sociais sobre o 13º Salário - Taxa calculada no SUBMÓDULO 2.2 | E109: =SUM($E$24:$E$32) -> 0.348 | F109: =ROUND(E109*$F$108,2) -> 0 | H109: * Nota 1 - Provisiona-se, mensalmente, o proporcional a 1/12 dos valores referentes a gratificação natalina e adicional de férias.
C110: C | D110: BDI sobre o 13º Salário - Taxa calculada no MÓDULO 6 | E110: =E94 -> 0.237 | F110: =ROUND(E110*($F$108+$F$109),2) -> 0
D112: TOTAL DO DESTAQUE DO 13º SALÁRIO | F112: =SUM(F108:F110) -> 0
D114: QUADRO-RESUMO DO CUSTO MENSAL POR EMPREGADO | E114: Valor
D115: Custo total - sem o 13º Salário | E115: =ROUND(E105,2) -> 
D116: Destaque do 13º Salário (valor mensal) | E116: =ROUND(F112,2) -> 0
D118: TOTAL DO POSTO | E118: =E115+E116 -> 

Sheet 13 (hidden)
B2: PLANILHA DE ESTIMATIVA DE CUSTOS
B3: Padrão IN 05/2017 e IN 07/2018 - MPDG
B5: 13 | D5: =HLOOKUP($B$5,'Dados Gerais'!$D$6:$BH$22,6) -> 0 | E5: QUANTIDADE | F5: =HLOOKUP($B$5,'Dados Gerais'!$D$6:$BH$22,10) -> 0
B6: CCT | D6: =HLOOKUP($B$5,'Dados Gerais'!$D$6:$BH$22,16) -> 0 | E6: DATA-BASE | F6: =HLOOKUP($B$5,'Dados Gerais'!$D$6:$BH$22,17) -> 00:00:00
B8: MÓDULO 1 - COMPOSIÇÃO DA REMUNERAÇÃO | F8: Valor
C9: A | D9: Salário-Base | F9: =HLOOKUP($B$5,'Dados Gerais'!$D$6:$BH$22,8) -> 0
C10: B | D10: Adicional de Periculosidade | F10: =HLOOKUP($B$5,'Dados Gerais'!$D$6:$BH$39,26) -> 0
C11: C | D11: Adicional de Insalubridade | F11: =HLOOKUP($B$5,'Dados Gerais'!$D$6:$BH$39,32) -> 0
C12: D | D12: Adicional Noturno | F12: =HLOOKUP($B$5,'Dados Gerais'!$D$6:$BH$52,47) -> 0 | H12: * Nota 1 - O Módulo 1 refere-se ao valor mensal devido ao empregado pela prestação do serviço no período de 12 meses.
C13: E | D13: Adicional de Hora Extra | F13: =HLOOKUP($B$5,'Dados Gerais'!$D$6:$BH$69,64) -> 0 | H13: * Nota 2 - O adicional de hora extra no feriado trabalhado foi suprimido pela Lei 13.467/17
C14: F | D14: Outros (adicional de sobreaviso) | F14: =HLOOKUP($B$5,'Dados Gerais'!$D$6:$BH$69,34) -> 0 | H14: * Nota 3 - ART. 7º, § 2º, DA LEI Nº 605/49.Sendo mensalista o obreiro, o adicional noturno pago de forma fixa já é considerado integrado para os efeitos do pagamento do repouso semanal remunerado, nos termos do art. 7º, § 2º, da Lei nº 605/49.
D16: TOTAL DA REMUNERAÇÃO | F16: =SUM(F9:F14) -> 0
B18: MÓDULO 2 - ENCARGOS E BENEFÍCIOS ANUAIS, MENSAIS E DIÁRIOS | E18: Percentuais | F18: Valor
B19: Submódulo 2.1 - 13º Salário, Férias e Adicional de Férias
C20: A | D20: 13º Salário - Calculado no Módulo 7 - Destacado | E20: 0 | F20: =ROUND(E20*F$16,2) -> 0
C21: B | D21: Férias e Adicional de Férias | E21: ='Encargos Sociais'!E25+'Encargos Sociais'!E31 -> 0.1212 | F21: =ROUND(E21*F$16,2) -> 0 | H21: * Nota 1 - Provisiona-se, mensalmente, o proporcional a 1/12 dos valores referentes a gratificação natalina, férias e adicional de férias.
H22: * Nota 2 - O adicional de férias contido no Submódulo 2.1 corresponde a 1/3 da remuneração que, por sua vez, é dividida por 12 contome Nota 1.
B23: Submódulo 2.2 - Encargos Previdenciários (GPS), Fundo de Garantia por Tempo de Serviço (FGTS) e Outras Contribuições
C24: A | D24: INSS (art. 22, inciso I, Lei nº 8.212/91) | E24: ='Encargos Sociais'!E14 -> 0.2 | F24: =ROUND(E24*($F$16+$F$41+$F$73),2) -> 0
C25: B | D25: Salário Educação (art. 3º, inciso I, Decreto nº 87.043/82) | E25: ='Encargos Sociais'!E15 -> 0.025 | F25: =ROUND(E25*($F$16+$F$41+$F$73),2) -> 0
C26: C | D26: SAT/RAT (art. 22, II, Lei 8.212/91 e Anexo V, Decreto 6.042/07) - Enquadramento 8211-3/00 | E26: ='Encargos Sociais'!E16 -> 0.01 | F26: 0
C27: D | D27: SESC ou SESI (art. 30, Lei nº 8.036/90 e art. 1º, Lei 8.154/90) | E27: ='Encargos Sociais'!E17 -> 0.015 | F27: 0
C28: E | D28: SENAI ou SENAC (Decreto nº 2.318/86) | E28: ='Encargos Sociais'!E18 -> 0.01 | F28: 0
C29: F | D29: SEBRAE (§ 3º, art. 8º, Lei 8.029/90, alterada pela Lei nº 8.154/90) | E29: ='Encargos Sociais'!E19 -> 0.006 | F29: 0
C30: G | D30: INCRA (art. 1º, I, Decreto Lei 1.146/70 e Lei 7.787, de 30/06/89) | E30: ='Encargos Sociais'!E20 -> 0.002 | F30: 0 | H30: * Nota 1 - Os percentuais dos encargos previdenciários, do FGTS e demais contribuições são estabelecidos por legislação vigente.
C31: H | D31: FGTS (Lei Complementar nº 110/01 e art. 30, Lei nº 8.036/90) | E31: ='Encargos Sociais'!E21 -> 0.08 | F31: 0 | H31: * Nota 2 - O SAT, a depender do grau de risco do serviço, irá variar entre 1%, para risco leve, de 2%, para risco médio, e de 3% para risco grave.
C32: I | D32: SECONCI (Convenções Coletivas de Trabalho da construção) | E32: ='Encargos Sociais'!E22 -> 0 | F32: 0 | H32: * Nota 3 - Os percentuais do Submódulo 2.2 incidem sobre o Módulo 1 e o Submódulo 2.1.
B34: Submódulo 2.3 - Benefícios Mensais e Diários
C35: A | D35: Auxílio Transporte | F35: =HLOOKUP($B$5,'Dados Gerais'!$D$6:$BH$95,83) -> 0
C36: B | D36: Auxílio Alimentação | F36: =HLOOKUP($B$5,'Dados Gerais'!$D$6:$BH$95,90) -> 0
C37: C | D37: Assistência Médica e Familiar | F37: =HLOOKUP($B$5,'Dados Gerais'!$D$6:$BH$103,98) -> 0
C38: D | D38: Outros (Seguro de vida, auxílio funeral, auxílio odontológico e auxílio creche) | F38: =HLOOKUP($B$5,'Dados Gerais'!$D$6:$BH$121,115) -> 0 | H38: * Nota 1 - O valor informado deverá ser o custo real do benefício (descontado o valor eventualmente pago pelo empregado).
H39: * Nota 2 - Observar a previsão dos benefícios contidos em Acordos, Convenções e Dissídios Coletivos de Trabalho e o disposto no art. 6º da IN 5/2017
D40: QUADRO-RESUMO DO MÓDULO 2
D41: 2.1 - 13º Salário, Férias e Adicional de Férias - 13º Destacado - Calculado no Módulo 7 | E41: =SUM(E20:E21) -> 0.1212 | F41: =F20+F21 -> 0
D42: 2.2 - Encargos Previdenciários (GPS), Fundo de Garantia por Tempo de Serviço (FGTS) e Contribuições | E42: =SUM(E24:E32) -> 0.348 | F42: =SUM(F24:F32) -> 0
D43: 2.3 - Benefícios Mensais e Diários | F43: =SUM(F35:F38) -> 0
D45: TOTAL DOS ENCARGOS E BENEFÍCIOS | F45: =SUM(F41:F43) -> 0
B47: MÓDULO 3 - PREVISÃO PARA RESCISÃO | E47: Percentuais | F47: Valor
C48: A | D48: Aviso Prévio Indenizado (Art. 7º, inciso XXI, da CF/1988 e arts. 477, 487, §1º, e 491 da CLT) | E48: ='Encargos Sociais'!E36 -> 0.0035 | F48: =ROUND(E48*$F$16,2) -> 0
C49: B | D49: Incidência do FGTS sobre o Aviso Prévio Indenizado (Súmula 305 TST) | E49: ='Encargos Sociais'!E37 -> 0.0003 | F49: 0 | H49: * Nota 1 - Adotou-se os parâmetros do estudo do STF (http://www.stf.jus.br/arquivo/cms/sobrestfestudosci/anexo/encargos_sociais_03102007.pdf), onde 5% do pessoal é demitido pelo empregador no decurso do contrato (para estes, considerou-se o aviso prévio indenizado). Desprezou-se as demissões por justa causa e os pedidos de demissão.
C50: C | D50: Multa do FGTS e Contribuição Social sobre o Aviso Prévio Indenizado (Art. 18, §1º, da Lei 8.036/1990 e art. 1º da LC nº 110/2001) | E50: ='Encargos Sociais'!E38 -> 0.0011 | F50: 0 | H50: * Nota 2 - No cálculo do percentual, considerou-se 36 dias, correspondendo à metade da duração média dos contratos (2 anos)
C51: D | D51: Aviso Prévio Trabalhado (Art. 488, parágrafo único, CLT) | E51: ='Encargos Sociais'!E39 -> 0.0078 | F51: 0 | H51: * Nota 3 - Incide sobre a Remuneração + 13º salário (1/12) + Férias (1/12) + Adicional de Férias (1/36) x 50% multa (40% para o empregado e 10% de contribuição social) x 8% FGTS
C52: E | D52: Incidência de GPS, FGTS e outras contribuições sobre o Aviso Prévio Trabalhado | E52: ='Encargos Sociais'!E40 -> 0.0027 | F52: 0 | H52: * Nota 4 - Os 95% restantes do cálculo, a um prazo médio de contrato de 4 anos. Assim, calcula-se 7 dias para o 1º ano de contrato e mais 3 dias para os 3 anos seguintes.
C53: F | D53: Multa do FGTS e Contribuição Social sobre o Aviso Prévio Trabalhado | E53: ='Encargos Sociais'!E41 -> 0.0309 | F53: 0
D55: TOTAL DE PREVISÃO PARA RESCISÃO | F55: =SUM(F48:F53) -> 0
B57: MÓDULO 4 - CUSTO DO PROFISSIONAL AUSENTE | E57: Percentuais | F57: Valor
B58: Submódulo 4.1 - Ausências Legais
C59: A | D59: Férias (Arts. 129 e 130, inc. I, da CLT) - Calculado no Submódulo 2.1 | E59: 0 | F59: =ROUND(E59*$F$16,2) -> 0 | H59: * Nota 1 - As alíneas “A” a “F” referem-se somente ao custo que será pago ao repositor pelos dias trabalhados quando da necessidade de substituir a mão de obra alocada na prestação do serviço.
C60: B | D60: Ausências Legais (Arts. 131 e 473 da CLT) | E60: ='Encargos Sociais'!E26 -> 0.0079 | F60: 0 | H60: * Nota 2 - Adotou-se a estimativa do SINAPI de 2 dias por ano.
C61: C | D61: Licença-Paternidade (Art. 7º, XIX, e art. 10, §1º, do ADCT, CF/1988 e Art. 1º, II, da Lei 11.770/2008) | E61: ='Encargos Sociais'!E27 -> 0.0008 | F61: 0 | H61: * Nota 3 - Utilizada a proporção de 50% para homens, 5 dias de afastamento, e a probabilidade de um trabalhador requerer a Licença Paternidade em 5,22%, conforme SINAPI (citando dados da PNAD 2015)
C62: D | D62: Ausência por Acidente de Trabalho (Art. 131, III, da CLT) | E62: ='Encargos Sociais'!E28 -> 0.0009 | F62: 0 | H62: * Nota 4 - Utilzada a estatística de 1,96% dos contribuintes beneficiados com a emissão do auxílio, conforme Anuário Estatístico da Previdência Social. Afastamento de 15 dias a cargo da empresa.
C63: E | D63: Afastamento Maternidade (Art. 71 da Lei nº 8.213/1991) | E63: ='Encargos Sociais'!E29 -> 0.0033 | F63: 0 | H63: * Nota 5 - Utilizada a proporção de 50% para mulheres, 180 dias de afastamento, e a probabilidade de uma trabalhadora requerer a Licença Maternidade em 4,91%, conforme SINAPI (citando dados do IBGE 2016)
C64: F | D64: Auxílio Enfermidade - Doença (Art. 59 da Lei nº 8.213/1991) | E64: ='Encargos Sociais'!E30 -> 0.0071 | F64: 0 | H64: * Nota 6 - Utilizada a estatística de 3,37% dos contribuintes beneficiados com o auxílio, conforme Anuário Estatístico da Previdência Social de 2015 (acrescidos de 2 dias ao ano, para os quais o trabalhador nem requer o benefício da Previdência - conforme SINAPI)
B66: Submódulo 4.2 - Intrajornada
C67: A | D67: Intervalo para repouso ou alimentação | E67: ='Encargos Sociais'!E33 -> 0 | F67: =ROUND(E67*$F$16,2) -> 0
D69: QUADRO-RESUMO DO MÓDULO 4 | F69: Valor
D70: 4.1 - Ausências Legais | E70: =SUM(E59:E64) -> 0.02 | F70: =ROUND(E70*$F$16,2) -> 0
D71: 4.2 - Intrajornada | E71: =E67 -> 0 | F71: =ROUND(E71*$F$16,2) -> 0
D73: TOTAL DE PREVISÃO PARA RESCISÃO E INTERVALO INTRAJORNADA | F73: =SUM(F70:F71) -> 0
B75: MÓDULO 5 - INSUMOS DIVERSOS | F75: Valor
C76: A | D76: Uniformes - aquisição | F76: 0
C77: B | D77: Materiais de consumo relacionados ao posto - aquisição | F77: =ROUND(HLOOKUP(B5,'Mat Cons'!I11:DX13,3)/12,2) -> 0
C78: C | D78: Ferramentas relacionadas ao posto - remuneração da sua depreciação / manutenção | F78: =HLOOKUP(B5,'Relacion - Ferram'!Q3:EF5,3) -> 0
C79: D | D79: Equipamentos relacionados ao posto - remuneração da sua depreciação / manutenção | F79: =HLOOKUP(B5,'Equip Rel'!Q11:EF13,3) -> 0
C80: E | D80: Equipamentos de Proteção Individual - EPI - aquisição | F80: =ROUND(HLOOKUP(B5,Uniformes!#REF!,3)/12,2) -> 
D82: TOTAL DE INSUMOS DIVERSOS | F82: =SUM(F76:F81) ->  | H82: * Nota - Valores mensais por empregado
B84: MÓDULO 6 - CUSTOS INDIRETOS, TRIBUTOS E LUCRO - BDI | E84: Percentuais | F84: Valor
C85: A | D85: Custos Indiretos | E85: ='BDI - Geral'!E7 -> 0.0391
C86: A.1 | D86: Administração Central | E86: ='BDI - Geral'!E8 -> 0.0337
C87: A.2 | D87: Seguros, Garantias e Riscos | E87: ='BDI - Geral'!E9 -> 0.0054
C88: B | D88: Lucro | E88: ='BDI - Geral'!E11 -> 0.038
C89: C | D89: Tributos | E89: =SUM(E90:E91) -> 0.124
C90: C.1 | D90: Tributos Federais (COFINS, PIS e CPRB) | E90: ='BDI - Geral'!E19 -> 0.074
C91: C.2 | D91: Tributos Distritais (ISS) | E91: ='BDI - Geral'!E24 -> 0.05 | H91: * Nota - Utilizou-se o indicado pelo Sindicato da Arquitetura e da Engenharia (Sinaenco, 2008, p. 22), que adota um percentual redutor de 20% no cálculo dos custos tributários relativos às contribuições PIS e COFINS
C92: D | D92: Despesas Financeiras | E92: ='BDI - Geral'!E14 -> 0.0047
D94: TOTAL DE BDI | E94: ='BDI - Geral'!E27 -> 0.237 | F94: =E94*E102 -> 
D96: QUADRO-RESUMO DO CUSTO MENSAL POR EMPREGADO - SEM O 13º | E96: Valor
D97: Módulo 1 - Composição da Remuneração | E97: =F16 -> 0
D98: Módulo 2 - Encargos e Benefícios Anuais, Mensais e Diários | E98: =F45 -> 0
D99: Módulo 3 - Provisão para Rescisão | E99: =F55 -> 0
D100: Módulo 4 - Custo de Reposição do Profissional Ausente | E100: =F73 -> 0
D101: Módulo 5 - Insumos Diversos | E101: =F82 -> 
D102: SUBTOTAL (A+B+C+D+E) | E102: =SUM(E97:E101) -> 
D103: Módulo 6 - Custos Indiretos, Tributos e Lucro | E103: =F94 -> 
D105: TOTAL DO POSTO | E105: =SUM(E102:E103) -> 
B107: MÓDULO 7 - DESTAQUE DO MÓDULO 2 - 13º SALÁRIO | E107: Percentuais | F107: Valor
C108: A | D108: 13º Salário | E108: ='Encargos Sociais'!E32 -> 0.0833 | F108: =ROUND(E108*F$16,2) -> 0
C109: B | D109: Encargos Sociais sobre o 13º Salário - Taxa calculada no SUBMÓDULO 2.2 | E109: =SUM($E$24:$E$32) -> 0.348 | F109: =ROUND(E109*$F$108,2) -> 0 | H109: * Nota 1 - Provisiona-se, mensalmente, o proporcional a 1/12 dos valores referentes a gratificação natalina e adicional de férias.
C110: C | D110: BDI sobre o 13º Salário - Taxa calculada no MÓDULO 6 | E110: =E94 -> 0.237 | F110: =ROUND(E110*($F$108+$F$109),2) -> 0
D112: TOTAL DO DESTAQUE DO 13º SALÁRIO | F112: =SUM(F108:F110) -> 0
D114: QUADRO-RESUMO DO CUSTO MENSAL POR EMPREGADO | E114: Valor
D115: Custo total - sem o 13º Salário | E115: =ROUND(E105,2) -> 
D116: Destaque do 13º Salário (valor mensal) | E116: =ROUND(F112,2) -> 0
D118: TOTAL DO POSTO | E118: =E115+E116 -> 

Sheet 14 (hidden)
B2: PLANILHA DE ESTIMATIVA DE CUSTOS
B3: Padrão IN 05/2017 e IN 07/2018 - MPDG
B5: 14 | D5: =HLOOKUP($B$5,'Dados Gerais'!$D$6:$BH$22,6) -> 0 | E5: QUANTIDADE | F5: =HLOOKUP($B$5,'Dados Gerais'!$D$6:$BH$22,10) -> 0
B6: CCT | D6: =HLOOKUP($B$5,'Dados Gerais'!$D$6:$BH$22,16) -> 0 | E6: DATA-BASE | F6: =HLOOKUP($B$5,'Dados Gerais'!$D$6:$BH$22,17) -> 00:00:00
B8: MÓDULO 1 - COMPOSIÇÃO DA REMUNERAÇÃO | F8: Valor
C9: A | D9: Salário-Base | F9: =HLOOKUP($B$5,'Dados Gerais'!$D$6:$BH$22,8) -> 0
C10: B | D10: Adicional de Periculosidade | F10: =HLOOKUP($B$5,'Dados Gerais'!$D$6:$BH$39,26) -> 0
C11: C | D11: Adicional de Insalubridade | F11: =HLOOKUP($B$5,'Dados Gerais'!$D$6:$BH$39,32) -> 0
C12: D | D12: Adicional Noturno | F12: =HLOOKUP($B$5,'Dados Gerais'!$D$6:$BH$52,47) -> 0 | H12: * Nota 1 - O Módulo 1 refere-se ao valor mensal devido ao empregado pela prestação do serviço no período de 12 meses.
C13: E | D13: Adicional de Hora Extra | F13: =HLOOKUP($B$5,'Dados Gerais'!$D$6:$BH$69,64) -> 0 | H13: * Nota 2 - O adicional de hora extra no feriado trabalhado foi suprimido pela Lei 13.467/17
C14: F | D14: Outros (adicional de sobreaviso) | F14: =HLOOKUP($B$5,'Dados Gerais'!$D$6:$BH$69,34) -> 0 | H14: * Nota 3 - ART. 7º, § 2º, DA LEI Nº 605/49.Sendo mensalista o obreiro, o adicional noturno pago de forma fixa já é considerado integrado para os efeitos do pagamento do repouso semanal remunerado, nos termos do art. 7º, § 2º, da Lei nº 605/49.
D16: TOTAL DA REMUNERAÇÃO | F16: =SUM(F9:F14) -> 0
B18: MÓDULO 2 - ENCARGOS E BENEFÍCIOS ANUAIS, MENSAIS E DIÁRIOS | E18: Percentuais | F18: Valor
B19: Submódulo 2.1 - 13º Salário, Férias e Adicional de Férias
C20: A | D20: 13º Salário - Calculado no Módulo 7 - Destacado | E20: 0 | F20: =ROUND(E20*F$16,2) -> 0
C21: B | D21: Férias e Adicional de Férias | E21: ='Encargos Sociais'!E25+'Encargos Sociais'!E31 -> 0.1212 | F21: =ROUND(E21*F$16,2) -> 0 | H21: * Nota 1 - Provisiona-se, mensalmente, o proporcional a 1/12 dos valores referentes a gratificação natalina, férias e adicional de férias.
H22: * Nota 2 - O adicional de férias contido no Submódulo 2.1 corresponde a 1/3 da remuneração que, por sua vez, é dividida por 12 contome Nota 1.
B23: Submódulo 2.2 - Encargos Previdenciários (GPS), Fundo de Garantia por Tempo de Serviço (FGTS) e Outras Contribuições
C24: A | D24: INSS (art. 22, inciso I, Lei nº 8.212/91) | E24: ='Encargos Sociais'!E14 -> 0.2 | F24: =ROUND(E24*($F$16+$F$41+$F$73),2) -> 0
C25: B | D25: Salário Educação (art. 3º, inciso I, Decreto nº 87.043/82) | E25: ='Encargos Sociais'!E15 -> 0.025 | F25: =ROUND(E25*($F$16+$F$41+$F$73),2) -> 0
C26: C | D26: SAT/RAT (art. 22, II, Lei 8.212/91 e Anexo V, Decreto 6.042/07) - Enquadramento 8211-3/00 | E26: ='Encargos Sociais'!E16 -> 0.01 | F26: 0
C27: D | D27: SESC ou SESI (art. 30, Lei nº 8.036/90 e art. 1º, Lei 8.154/90) | E27: ='Encargos Sociais'!E17 -> 0.015 | F27: 0
C28: E | D28: SENAI ou SENAC (Decreto nº 2.318/86) | E28: ='Encargos Sociais'!E18 -> 0.01 | F28: 0
C29: F | D29: SEBRAE (§ 3º, art. 8º, Lei 8.029/90, alterada pela Lei nº 8.154/90) | E29: ='Encargos Sociais'!E19 -> 0.006 | F29: 0
C30: G | D30: INCRA (art. 1º, I, Decreto Lei 1.146/70 e Lei 7.787, de 30/06/89) | E30: ='Encargos Sociais'!E20 -> 0.002 | F30: 0 | H30: * Nota 1 - Os percentuais dos encargos previdenciários, do FGTS e demais contribuições são estabelecidos por legislação vigente.
C31: H | D31: FGTS (Lei Complementar nº 110/01 e art. 30, Lei nº 8.036/90) | E31: ='Encargos Sociais'!E21 -> 0.08 | F31: 0 | H31: * Nota 2 - O SAT, a depender do grau de risco do serviço, irá variar entre 1%, para risco leve, de 2%, para risco médio, e de 3% para risco grave.
C32: I | D32: SECONCI (Convenções Coletivas de Trabalho da construção) | E32: ='Encargos Sociais'!E22 -> 0 | F32: 0 | H32: * Nota 3 - Os percentuais do Submódulo 2.2 incidem sobre o Módulo 1 e o Submódulo 2.1.
B34: Submódulo 2.3 - Benefícios Mensais e Diários
C35: A | D35: Auxílio Transporte | F35: =HLOOKUP($B$5,'Dados Gerais'!$D$6:$BH$95,83) -> 0
C36: B | D36: Auxílio Alimentação | F36: =HLOOKUP($B$5,'Dados Gerais'!$D$6:$BH$95,90) -> 0
C37: C | D37: Assistência Médica e Familiar | F37: =HLOOKUP($B$5,'Dados Gerais'!$D$6:$BH$103,98) -> 0
C38: D | D38: Outros (Seguro de vida, auxílio funeral, auxílio odontológico e auxílio creche) | F38: =HLOOKUP($B$5,'Dados Gerais'!$D$6:$BH$121,115) -> 0 | H38: * Nota 1 - O valor informado deverá ser o custo real do benefício (descontado o valor eventualmente pago pelo empregado).
H39: * Nota 2 - Observar a previsão dos benefícios contidos em Acordos, Convenções e Dissídios Coletivos de Trabalho e o disposto no art. 6º da IN 5/2017
D40: QUADRO-RESUMO DO MÓDULO 2
D41: 2.1 - 13º Salário, Férias e Adicional de Férias - 13º Destacado - Calculado no Módulo 7 | E41: =SUM(E20:E21) -> 0.1212 | F41: =F20+F21 -> 0
D42: 2.2 - Encargos Previdenciários (GPS), Fundo de Garantia por Tempo de Serviço (FGTS) e Contribuições | E42: =SUM(E24:E32) -> 0.348 | F42: =SUM(F24:F32) -> 0
D43: 2.3 - Benefícios Mensais e Diários | F43: =SUM(F35:F38) -> 0
D45: TOTAL DOS ENCARGOS E BENEFÍCIOS | F45: =SUM(F41:F43) -> 0
B47: MÓDULO 3 - PREVISÃO PARA RESCISÃO | E47: Percentuais | F47: Valor
C48: A | D48: Aviso Prévio Indenizado (Art. 7º, inciso XXI, da CF/1988 e arts. 477, 487, §1º, e 491 da CLT) | E48: ='Encargos Sociais'!E36 -> 0.0035 | F48: =ROUND(E48*$F$16,2) -> 0
C49: B | D49: Incidência do FGTS sobre o Aviso Prévio Indenizado (Súmula 305 TST) | E49: ='Encargos Sociais'!E37 -> 0.0003 | F49: 0 | H49: * Nota 1 - Adotou-se os parâmetros do estudo do STF (http://www.stf.jus.br/arquivo/cms/sobrestfestudosci/anexo/encargos_sociais_03102007.pdf), onde 5% do pessoal é demitido pelo empregador no decurso do contrato (para estes, considerou-se o aviso prévio indenizado). Desprezou-se as demissões por justa causa e os pedidos de demissão.
C50: C | D50: Multa do FGTS e Contribuição Social sobre o Aviso Prévio Indenizado (Art. 18, §1º, da Lei 8.036/1990 e art. 1º da LC nº 110/2001) | E50: ='Encargos Sociais'!E38 -> 0.0011 | F50: 0 | H50: * Nota 2 - No cálculo do percentual, considerou-se 36 dias, correspondendo à metade da duração média dos contratos (2 anos)
C51: D | D51: Aviso Prévio Trabalhado (Art. 488, parágrafo único, CLT) | E51: ='Encargos Sociais'!E39 -> 0.0078 | F51: 0 | H51: * Nota 3 - Incide sobre a Remuneração + 13º salário (1/12) + Férias (1/12) + Adicional de Férias (1/36) x 50% multa (40% para o empregado e 10% de contribuição social) x 8% FGTS
C52: E | D52: Incidência de GPS, FGTS e outras contribuições sobre o Aviso Prévio Trabalhado | E52: ='Encargos Sociais'!E40 -> 0.0027 | F52: 0 | H52: * Nota 4 - Os 95% restantes do cálculo, a um prazo médio de contrato de 4 anos. Assim, calcula-se 7 dias para o 1º ano de contrato e mais 3 dias para os 3 anos seguintes.
C53: F | D53: Multa do FGTS e Contribuição Social sobre o Aviso Prévio Trabalhado | E53: ='Encargos Sociais'!E41 -> 0.0309 | F53: 0
D55: TOTAL DE PREVISÃO PARA RESCISÃO | F55: =SUM(F48:F53) -> 0
B57: MÓDULO 4 - CUSTO DO PROFISSIONAL AUSENTE | E57: Percentuais | F57: Valor
B58: Submódulo 4.1 - Ausências Legais
C59: A | D59: Férias (Arts. 129 e 130, inc. I, da CLT) - Calculado no Submódulo 2.1 | E59: 0 | F59: =ROUND(E59*$F$16,2) -> 0 | H59: * Nota 1 - As alíneas “A” a “F” referem-se somente ao custo que será pago ao repositor pelos dias trabalhados quando da necessidade de substituir a mão de obra alocada na prestação do serviço.
C60: B | D60: Ausências Legais (Arts. 131 e 473 da CLT) | E60: ='Encargos Sociais'!E26 -> 0.0079 | F60: 0 | H60: * Nota 2 - Adotou-se a estimativa do SINAPI de 2 dias por ano.
C61: C | D61: Licença-Paternidade (Art. 7º, XIX, e art. 10, §1º, do ADCT, CF/1988 e Art. 1º, II, da Lei 11.770/2008) | E61: ='Encargos Sociais'!E27 -> 0.0008 | F61: 0 | H61: * Nota 3 - Utilizada a proporção de 50% para homens, 5 dias de afastamento, e a probabilidade de um trabalhador requerer a Licença Paternidade em 5,22%, conforme SINAPI (citando dados da PNAD 2015)
C62: D | D62: Ausência por Acidente de Trabalho (Art. 131, III, da CLT) | E62: ='Encargos Sociais'!E28 -> 0.0009 | F62: 0 | H62: * Nota 4 - Utilzada a estatística de 1,96% dos contribuintes beneficiados com a emissão do auxílio, conforme Anuário Estatístico da Previdência Social. Afastamento de 15 dias a cargo da empresa.
C63: E | D63: Afastamento Maternidade (Art. 71 da Lei nº 8.213/1991) | E63: ='Encargos Sociais'!E29 -> 0.0033 | F63: 0 | H63: * Nota 5 - Utilizada a proporção de 50% para mulheres, 180 dias de afastamento, e a probabilidade de uma trabalhadora requerer a Licença Maternidade em 4,91%, conforme SINAPI (citando dados do IBGE 2016)
C64: F | D64: Auxílio Enfermidade - Doença (Art. 59 da Lei nº 8.213/1991) | E64: ='Encargos Sociais'!E30 -> 0.0071 | F64: 0 | H64: * Nota 6 - Utilizada a estatística de 3,37% dos contribuintes beneficiados com o auxílio, conforme Anuário Estatístico da Previdência Social de 2015 (acrescidos de 2 dias ao ano, para os quais o trabalhador nem requer o benefício da Previdência - conforme SINAPI)
B66: Submódulo 4.2 - Intrajornada
C67: A | D67: Intervalo para repouso ou alimentação | E67: ='Encargos Sociais'!E33 -> 0 | F67: =ROUND(E67*$F$16,2) -> 0
D69: QUADRO-RESUMO DO MÓDULO 4 | F69: Valor
D70: 4.1 - Ausências Legais | E70: =SUM(E59:E64) -> 0.02 | F70: =ROUND(E70*$F$16,2) -> 0
D71: 4.2 - Intrajornada | E71: =E67 -> 0 | F71: =ROUND(E71*$F$16,2) -> 0
D73: TOTAL DE PREVISÃO PARA RESCISÃO E INTERVALO INTRAJORNADA | F73: =SUM(F70:F71) -> 0
B75: MÓDULO 5 - INSUMOS DIVERSOS | F75: Valor
C76: A | D76: Uniformes - aquisição | F76: 0
C77: B | D77: Materiais de consumo relacionados ao posto - aquisição | F77: =ROUND(HLOOKUP(B5,'Mat Cons'!I11:DX13,3)/12,2) -> 0
C78: C | D78: Ferramentas relacionadas ao posto - remuneração da sua depreciação / manutenção | F78: =HLOOKUP(B5,'Relacion - Ferram'!Q3:EF5,3) -> 0
C79: D | D79: Equipamentos relacionados ao posto - remuneração da sua depreciação / manutenção | F79: =HLOOKUP(B5,'Equip Rel'!Q11:EF13,3) -> 0
C80: E | D80: Equipamentos de Proteção Individual - EPI - aquisição | F80: =ROUND(HLOOKUP(B5,Uniformes!#REF!,3)/12,2) -> 
D82: TOTAL DE INSUMOS DIVERSOS | F82: =SUM(F76:F81) ->  | H82: * Nota - Valores mensais por empregado
B84: MÓDULO 6 - CUSTOS INDIRETOS, TRIBUTOS E LUCRO - BDI | E84: Percentuais | F84: Valor
C85: A | D85: Custos Indiretos | E85: ='BDI - Geral'!E7 -> 0.0391
C86: A.1 | D86: Administração Central | E86: ='BDI - Geral'!E8 -> 0.0337
C87: A.2 | D87: Seguros, Garantias e Riscos | E87: ='BDI - Geral'!E9 -> 0.0054
C88: B | D88: Lucro | E88: ='BDI - Geral'!E11 -> 0.038
C89: C | D89: Tributos | E89: =SUM(E90:E91) -> 0.124
C90: C.1 | D90: Tributos Federais (COFINS, PIS e CPRB) | E90: ='BDI - Geral'!E19 -> 0.074
C91: C.2 | D91: Tributos Distritais (ISS) | E91: ='BDI - Geral'!E24 -> 0.05 | H91: * Nota - Utilizou-se o indicado pelo Sindicato da Arquitetura e da Engenharia (Sinaenco, 2008, p. 22), que adota um percentual redutor de 20% no cálculo dos custos tributários relativos às contribuições PIS e COFINS
C92: D | D92: Despesas Financeiras | E92: ='BDI - Geral'!E14 -> 0.0047
D94: TOTAL DE BDI | E94: ='BDI - Geral'!E27 -> 0.237 | F94: =E94*E102 -> 
D96: QUADRO-RESUMO DO CUSTO MENSAL POR EMPREGADO - SEM O 13º | E96: Valor
D97: Módulo 1 - Composição da Remuneração | E97: =F16 -> 0
D98: Módulo 2 - Encargos e Benefícios Anuais, Mensais e Diários | E98: =F45 -> 0
D99: Módulo 3 - Provisão para Rescisão | E99: =F55 -> 0
D100: Módulo 4 - Custo de Reposição do Profissional Ausente | E100: =F73 -> 0
D101: Módulo 5 - Insumos Diversos | E101: =F82 -> 
D102: SUBTOTAL (A+B+C+D+E) | E102: =SUM(E97:E101) -> 
D103: Módulo 6 - Custos Indiretos, Tributos e Lucro | E103: =F94 -> 
D105: TOTAL DO POSTO | E105: =SUM(E102:E103) -> 
B107: MÓDULO 7 - DESTAQUE DO MÓDULO 2 - 13º SALÁRIO | E107: Percentuais | F107: Valor
C108: A | D108: 13º Salário | E108: ='Encargos Sociais'!E32 -> 0.0833 | F108: =ROUND(E108*F$16,2) -> 0
C109: B | D109: Encargos Sociais sobre o 13º Salário - Taxa calculada no SUBMÓDULO 2.2 | E109: =SUM($E$24:$E$32) -> 0.348 | F109: =ROUND(E109*$F$108,2) -> 0 | H109: * Nota 1 - Provisiona-se, mensalmente, o proporcional a 1/12 dos valores referentes a gratificação natalina e adicional de férias.
C110: C | D110: BDI sobre o 13º Salário - Taxa calculada no MÓDULO 6 | E110: =E94 -> 0.237 | F110: =ROUND(E110*($F$108+$F$109),2) -> 0
D112: TOTAL DO DESTAQUE DO 13º SALÁRIO | F112: =SUM(F108:F110) -> 0
D114: QUADRO-RESUMO DO CUSTO MENSAL POR EMPREGADO | E114: Valor
D115: Custo total - sem o 13º Salário | E115: =ROUND(E105,2) -> 
D116: Destaque do 13º Salário (valor mensal) | E116: =ROUND(F112,2) -> 0
D118: TOTAL DO POSTO | E118: =E115+E116 -> 

Sheet 15 (hidden)
B2: PLANILHA DE ESTIMATIVA DE CUSTOS
B3: Padrão IN 05/2017 e IN 07/2018 - MPDG
B5: 15 | D5: =HLOOKUP($B$5,'Dados Gerais'!$D$6:$BH$22,6) -> 0 | E5: QUANTIDADE | F5: =HLOOKUP($B$5,'Dados Gerais'!$D$6:$BH$22,10) -> 0
B6: CCT | D6: =HLOOKUP($B$5,'Dados Gerais'!$D$6:$BH$22,16) -> 0 | E6: DATA-BASE | F6: =HLOOKUP($B$5,'Dados Gerais'!$D$6:$BH$22,17) -> 00:00:00
B8: MÓDULO 1 - COMPOSIÇÃO DA REMUNERAÇÃO | F8: Valor
C9: A | D9: Salário-Base | F9: =HLOOKUP($B$5,'Dados Gerais'!$D$6:$BH$22,8) -> 0
C10: B | D10: Adicional de Periculosidade | F10: =HLOOKUP($B$5,'Dados Gerais'!$D$6:$BH$39,26) -> 0
C11: C | D11: Adicional de Insalubridade | F11: =HLOOKUP($B$5,'Dados Gerais'!$D$6:$BH$39,32) -> 0
C12: D | D12: Adicional Noturno | F12: =HLOOKUP($B$5,'Dados Gerais'!$D$6:$BH$52,47) -> 0 | H12: * Nota 1 - O Módulo 1 refere-se ao valor mensal devido ao empregado pela prestação do serviço no período de 12 meses.
C13: E | D13: Adicional de Hora Extra | F13: =HLOOKUP($B$5,'Dados Gerais'!$D$6:$BH$69,64) -> 0 | H13: * Nota 2 - O adicional de hora extra no feriado trabalhado foi suprimido pela Lei 13.467/17
C14: F | D14: Outros (adicional de sobreaviso) | F14: =HLOOKUP($B$5,'Dados Gerais'!$D$6:$BH$69,34) -> 0 | H14: * Nota 3 - ART. 7º, § 2º, DA LEI Nº 605/49.Sendo mensalista o obreiro, o adicional noturno pago de forma fixa já é considerado integrado para os efeitos do pagamento do repouso semanal remunerado, nos termos do art. 7º, § 2º, da Lei nº 605/49.
D16: TOTAL DA REMUNERAÇÃO | F16: =SUM(F9:F14) -> 0
B18: MÓDULO 2 - ENCARGOS E BENEFÍCIOS ANUAIS, MENSAIS E DIÁRIOS | E18: Percentuais | F18: Valor
B19: Submódulo 2.1 - 13º Salário, Férias e Adicional de Férias
C20: A | D20: 13º Salário - Calculado no Módulo 7 - Destacado | E20: 0 | F20: =ROUND(E20*F$16,2) -> 0
C21: B | D21: Férias e Adicional de Férias | E21: ='Encargos Sociais'!E25+'Encargos Sociais'!E31 -> 0.1212 | F21: =ROUND(E21*F$16,2) -> 0 | H21: * Nota 1 - Provisiona-se, mensalmente, o proporcional a 1/12 dos valores referentes a gratificação natalina, férias e adicional de férias.
H22: * Nota 2 - O adicional de férias contido no Submódulo 2.1 corresponde a 1/3 da remuneração que, por sua vez, é dividida por 12 contome Nota 1.
B23: Submódulo 2.2 - Encargos Previdenciários (GPS), Fundo de Garantia por Tempo de Serviço (FGTS) e Outras Contribuições
C24: A | D24: INSS (art. 22, inciso I, Lei nº 8.212/91) | E24: ='Encargos Sociais'!E14 -> 0.2 | F24: =ROUND(E24*($F$16+$F$41+$F$73),2) -> 0
C25: B | D25: Salário Educação (art. 3º, inciso I, Decreto nº 87.043/82) | E25: ='Encargos Sociais'!E15 -> 0.025 | F25: =ROUND(E25*($F$16+$F$41+$F$73),2) -> 0
C26: C | D26: SAT/RAT (art. 22, II, Lei 8.212/91 e Anexo V, Decreto 6.042/07) - Enquadramento 8211-3/00 | E26: ='Encargos Sociais'!E16 -> 0.01 | F26: 0
C27: D | D27: SESC ou SESI (art. 30, Lei nº 8.036/90 e art. 1º, Lei 8.154/90) | E27: ='Encargos Sociais'!E17 -> 0.015 | F27: 0
C28: E | D28: SENAI ou SENAC (Decreto nº 2.318/86) | E28: ='Encargos Sociais'!E18 -> 0.01 | F28: 0
C29: F | D29: SEBRAE (§ 3º, art. 8º, Lei 8.029/90, alterada pela Lei nº 8.154/90) | E29: ='Encargos Sociais'!E19 -> 0.006 | F29: 0
C30: G | D30: INCRA (art. 1º, I, Decreto Lei 1.146/70 e Lei 7.787, de 30/06/89) | E30: ='Encargos Sociais'!E20 -> 0.002 | F30: 0 | H30: * Nota 1 - Os percentuais dos encargos previdenciários, do FGTS e demais contribuições são estabelecidos por legislação vigente.
C31: H | D31: FGTS (Lei Complementar nº 110/01 e art. 30, Lei nº 8.036/90) | E31: ='Encargos Sociais'!E21 -> 0.08 | F31: 0 | H31: * Nota 2 - O SAT, a depender do grau de risco do serviço, irá variar entre 1%, para risco leve, de 2%, para risco médio, e de 3% para risco grave.
C32: I | D32: SECONCI (Convenções Coletivas de Trabalho da construção) | E32: ='Encargos Sociais'!E22 -> 0 | F32: 0 | H32: * Nota 3 - Os percentuais do Submódulo 2.2 incidem sobre o Módulo 1 e o Submódulo 2.1.
B34: Submódulo 2.3 - Benefícios Mensais e Diários
C35: A | D35: Auxílio Transporte | F35: =HLOOKUP($B$5,'Dados Gerais'!$D$6:$BH$95,83) -> 0
C36: B | D36: Auxílio Alimentação | F36: =HLOOKUP($B$5,'Dados Gerais'!$D$6:$BH$95,90) -> 0
C37: C | D37: Assistência Médica e Familiar | F37: =HLOOKUP($B$5,'Dados Gerais'!$D$6:$BH$103,98) -> 0
C38: D | D38: Outros (Seguro de vida, auxílio funeral, auxílio odontológico e auxílio creche) | F38: =HLOOKUP($B$5,'Dados Gerais'!$D$6:$BH$121,115) -> 0 | H38: * Nota 1 - O valor informado deverá ser o custo real do benefício (descontado o valor eventualmente pago pelo empregado).
H39: * Nota 2 - Observar a previsão dos benefícios contidos em Acordos, Convenções e Dissídios Coletivos de Trabalho e o disposto no art. 6º da IN 5/2017
D40: QUADRO-RESUMO DO MÓDULO 2
D41: 2.1 - 13º Salário, Férias e Adicional de Férias - 13º Destacado - Calculado no Módulo 7 | E41: =SUM(E20:E21) -> 0.1212 | F41: =F20+F21 -> 0
D42: 2.2 - Encargos Previdenciários (GPS), Fundo de Garantia por Tempo de Serviço (FGTS) e Contribuições | E42: =SUM(E24:E32) -> 0.348 | F42: =SUM(F24:F32) -> 0
D43: 2.3 - Benefícios Mensais e Diários | F43: =SUM(F35:F38) -> 0
D45: TOTAL DOS ENCARGOS E BENEFÍCIOS | F45: =SUM(F41:F43) -> 0
B47: MÓDULO 3 - PREVISÃO PARA RESCISÃO | E47: Percentuais | F47: Valor
C48: A | D48: Aviso Prévio Indenizado (Art. 7º, inciso XXI, da CF/1988 e arts. 477, 487, §1º, e 491 da CLT) | E48: ='Encargos Sociais'!E36 -> 0.0035 | F48: =ROUND(E48*$F$16,2) -> 0
C49: B | D49: Incidência do FGTS sobre o Aviso Prévio Indenizado (Súmula 305 TST) | E49: ='Encargos Sociais'!E37 -> 0.0003 | F49: 0 | H49: * Nota 1 - Adotou-se os parâmetros do estudo do STF (http://www.stf.jus.br/arquivo/cms/sobrestfestudosci/anexo/encargos_sociais_03102007.pdf), onde 5% do pessoal é demitido pelo empregador no decurso do contrato (para estes, considerou-se o aviso prévio indenizado). Desprezou-se as demissões por justa causa e os pedidos de demissão.
C50: C | D50: Multa do FGTS e Contribuição Social sobre o Aviso Prévio Indenizado (Art. 18, §1º, da Lei 8.036/1990 e art. 1º da LC nº 110/2001) | E50: ='Encargos Sociais'!E38 -> 0.0011 | F50: 0 | H50: * Nota 2 - No cálculo do percentual, considerou-se 36 dias, correspondendo à metade da duração média dos contratos (2 anos)
C51: D | D51: Aviso Prévio Trabalhado (Art. 488, parágrafo único, CLT) | E51: ='Encargos Sociais'!E39 -> 0.0078 | F51: 0 | H51: * Nota 3 - Incide sobre a Remuneração + 13º salário (1/12) + Férias (1/12) + Adicional de Férias (1/36) x 50% multa (40% para o empregado e 10% de contribuição social) x 8% FGTS
C52: E | D52: Incidência de GPS, FGTS e outras contribuições sobre o Aviso Prévio Trabalhado | E52: ='Encargos Sociais'!E40 -> 0.0027 | F52: 0 | H52: * Nota 4 - Os 95% restantes do cálculo, a um prazo médio de contrato de 4 anos. Assim, calcula-se 7 dias para o 1º ano de contrato e mais 3 dias para os 3 anos seguintes.
C53: F | D53: Multa do FGTS e Contribuição Social sobre o Aviso Prévio Trabalhado | E53: ='Encargos Sociais'!E41 -> 0.0309 | F53: 0
D55: TOTAL DE PREVISÃO PARA RESCISÃO | F55: =SUM(F48:F53) -> 0
B57: MÓDULO 4 - CUSTO DO PROFISSIONAL AUSENTE | E57: Percentuais | F57: Valor
B58: Submódulo 4.1 - Ausências Legais
C59: A | D59: Férias (Arts. 129 e 130, inc. I, da CLT) - Calculado no Submódulo 2.1 | E59: 0 | F59: =ROUND(E59*$F$16,2) -> 0 | H59: * Nota 1 - As alíneas “A” a “F” referem-se somente ao custo que será pago ao repositor pelos dias trabalhados quando da necessidade de substituir a mão de obra alocada na prestação do serviço.
C60: B | D60: Ausências Legais (Arts. 131 e 473 da CLT) | E60: ='Encargos Sociais'!E26 -> 0.0079 | F60: 0 | H60: * Nota 2 - Adotou-se a estimativa do SINAPI de 2 dias por ano.
C61: C | D61: Licença-Paternidade (Art. 7º, XIX, e art. 10, §1º, do ADCT, CF/1988 e Art. 1º, II, da Lei 11.770/2008) | E61: ='Encargos Sociais'!E27 -> 0.0008 | F61: 0 | H61: * Nota 3 - Utilizada a proporção de 50% para homens, 5 dias de afastamento, e a probabilidade de um trabalhador requerer a Licença Paternidade em 5,22%, conforme SINAPI (citando dados da PNAD 2015)
C62: D | D62: Ausência por Acidente de Trabalho (Art. 131, III, da CLT) | E62: ='Encargos Sociais'!E28 -> 0.0009 | F62: 0 | H62: * Nota 4 - Utilzada a estatística de 1,96% dos contribuintes beneficiados com a emissão do auxílio, conforme Anuário Estatístico da Previdência Social. Afastamento de 15 dias a cargo da empresa.
C63: E | D63: Afastamento Maternidade (Art. 71 da Lei nº 8.213/1991) | E63: ='Encargos Sociais'!E29 -> 0.0033 | F63: 0 | H63: * Nota 5 - Utilizada a proporção de 50% para mulheres, 180 dias de afastamento, e a probabilidade de uma trabalhadora requerer a Licença Maternidade em 4,91%, conforme SINAPI (citando dados do IBGE 2016)
C64: F | D64: Auxílio Enfermidade - Doença (Art. 59 da Lei nº 8.213/1991) | E64: ='Encargos Sociais'!E30 -> 0.0071 | F64: 0 | H64: * Nota 6 - Utilizada a estatística de 3,37% dos contribuintes beneficiados com o auxílio, conforme Anuário Estatístico da Previdência Social de 2015 (acrescidos de 2 dias ao ano, para os quais o trabalhador nem requer o benefício da Previdência - conforme SINAPI)
B66: Submódulo 4.2 - Intrajornada
C67: A | D67: Intervalo para repouso ou alimentação | E67: ='Encargos Sociais'!E33 -> 0 | F67: =ROUND(E67*$F$16,2) -> 0
D69: QUADRO-RESUMO DO MÓDULO 4 | F69: Valor
D70: 4.1 - Ausências Legais | E70: =SUM(E59:E64) -> 0.02 | F70: =ROUND(E70*$F$16,2) -> 0
D71: 4.2 - Intrajornada | E71: =E67 -> 0 | F71: =ROUND(E71*$F$16,2) -> 0
D73: TOTAL DE PREVISÃO PARA RESCISÃO E INTERVALO INTRAJORNADA | F73: =SUM(F70:F71) -> 0
B75: MÓDULO 5 - INSUMOS DIVERSOS | F75: Valor
C76: A | D76: Uniformes - aquisição | F76: 0
C77: B | D77: Materiais de consumo relacionados ao posto - aquisição | F77: =ROUND(HLOOKUP(B5,'Mat Cons'!I11:DX13,3)/12,2) -> 0
C78: C | D78: Ferramentas relacionadas ao posto - remuneração da sua depreciação / manutenção | F78: =HLOOKUP(B5,'Relacion - Ferram'!Q3:EF5,3) -> 0
C79: D | D79: Equipamentos relacionados ao posto - remuneração da sua depreciação / manutenção | F79: =HLOOKUP(B5,'Equip Rel'!Q11:EF13,3) -> 0
C80: E | D80: Equipamentos de Proteção Individual - EPI - aquisição | F80: =ROUND(HLOOKUP(B5,Uniformes!#REF!,3)/12,2) -> 
D82: TOTAL DE INSUMOS DIVERSOS | F82: =SUM(F76:F81) ->  | H82: * Nota - Valores mensais por empregado
B84: MÓDULO 6 - CUSTOS INDIRETOS, TRIBUTOS E LUCRO - BDI | E84: Percentuais | F84: Valor
C85: A | D85: Custos Indiretos | E85: ='BDI - Geral'!E7 -> 0.0391
C86: A.1 | D86: Administração Central | E86: ='BDI - Geral'!E8 -> 0.0337
C87: A.2 | D87: Seguros, Garantias e Riscos | E87: ='BDI - Geral'!E9 -> 0.0054
C88: B | D88: Lucro | E88: ='BDI - Geral'!E11 -> 0.038
C89: C | D89: Tributos | E89: =SUM(E90:E91) -> 0.124
C90: C.1 | D90: Tributos Federais (COFINS, PIS e CPRB) | E90: ='BDI - Geral'!E19 -> 0.074
C91: C.2 | D91: Tributos Distritais (ISS) | E91: ='BDI - Geral'!E24 -> 0.05 | H91: * Nota - Utilizou-se o indicado pelo Sindicato da Arquitetura e da Engenharia (Sinaenco, 2008, p. 22), que adota um percentual redutor de 20% no cálculo dos custos tributários relativos às contribuições PIS e COFINS
C92: D | D92: Despesas Financeiras | E92: ='BDI - Geral'!E14 -> 0.0047
D94: TOTAL DE BDI | E94: ='BDI - Geral'!E27 -> 0.237 | F94: =E94*E102 -> 
D96: QUADRO-RESUMO DO CUSTO MENSAL POR EMPREGADO - SEM O 13º | E96: Valor
D97: Módulo 1 - Composição da Remuneração | E97: =F16 -> 0
D98: Módulo 2 - Encargos e Benefícios Anuais, Mensais e Diários | E98: =F45 -> 0
D99: Módulo 3 - Provisão para Rescisão | E99: =F55 -> 0
D100: Módulo 4 - Custo de Reposição do Profissional Ausente | E100: =F73 -> 0
D101: Módulo 5 - Insumos Diversos | E101: =F82 -> 
D102: SUBTOTAL (A+B+C+D+E) | E102: =SUM(E97:E101) -> 
D103: Módulo 6 - Custos Indiretos, Tributos e Lucro | E103: =F94 -> 
D105: TOTAL DO POSTO | E105: =SUM(E102:E103) -> 
B107: MÓDULO 7 - DESTAQUE DO MÓDULO 2 - 13º SALÁRIO | E107: Percentuais | F107: Valor
C108: A | D108: 13º Salário | E108: ='Encargos Sociais'!E32 -> 0.0833 | F108: =ROUND(E108*F$16,2) -> 0
C109: B | D109: Encargos Sociais sobre o 13º Salário - Taxa calculada no SUBMÓDULO 2.2 | E109: =SUM($E$24:$E$32) -> 0.348 | F109: =ROUND(E109*$F$108,2) -> 0 | H109: * Nota 1 - Provisiona-se, mensalmente, o proporcional a 1/12 dos valores referentes a gratificação natalina e adicional de férias.
C110: C | D110: BDI sobre o 13º Salário - Taxa calculada no MÓDULO 6 | E110: =E94 -> 0.237 | F110: =ROUND(E110*($F$108+$F$109),2) -> 0
D112: TOTAL DO DESTAQUE DO 13º SALÁRIO | F112: =SUM(F108:F110) -> 0
D114: QUADRO-RESUMO DO CUSTO MENSAL POR EMPREGADO | E114: Valor
D115: Custo total - sem o 13º Salário | E115: =ROUND(E105,2) -> 
D116: Destaque do 13º Salário (valor mensal) | E116: =ROUND(F112,2) -> 0
D118: TOTAL DO POSTO | E118: =E115+E116 -> 

Sheet 16 (hidden)
B2: PLANILHA DE ESTIMATIVA DE CUSTOS
B3: Padrão IN 05/2017 e IN 07/2018 - MPDG
B5: 16 | D5: =HLOOKUP($B$5,'Dados Gerais'!$D$6:$BH$22,6) -> 0 | E5: QUANTIDADE | F5: =HLOOKUP($B$5,'Dados Gerais'!$D$6:$BH$22,10) -> 0
B6: CCT | D6: =HLOOKUP($B$5,'Dados Gerais'!$D$6:$BH$22,16) -> 0 | E6: DATA-BASE | F6: =HLOOKUP($B$5,'Dados Gerais'!$D$6:$BH$22,17) -> 00:00:00
B8: MÓDULO 1 - COMPOSIÇÃO DA REMUNERAÇÃO | F8: Valor
C9: A | D9: Salário-Base | F9: =HLOOKUP($B$5,'Dados Gerais'!$D$6:$BH$22,8) -> 0
C10: B | D10: Adicional de Periculosidade | F10: =HLOOKUP($B$5,'Dados Gerais'!$D$6:$BH$39,26) -> 0
C11: C | D11: Adicional de Insalubridade | F11: =HLOOKUP($B$5,'Dados Gerais'!$D$6:$BH$39,32) -> 0
C12: D | D12: Adicional Noturno | F12: =HLOOKUP($B$5,'Dados Gerais'!$D$6:$BH$52,47) -> 0 | H12: * Nota 1 - O Módulo 1 refere-se ao valor mensal devido ao empregado pela prestação do serviço no período de 12 meses.
C13: E | D13: Adicional de Hora Extra | F13: =HLOOKUP($B$5,'Dados Gerais'!$D$6:$BH$69,64) -> 0 | H13: * Nota 2 - O adicional de hora extra no feriado trabalhado foi suprimido pela Lei 13.467/17
C14: F | D14: Outros (adicional de sobreaviso) | F14: =HLOOKUP($B$5,'Dados Gerais'!$D$6:$BH$69,34) -> 0 | H14: * Nota 3 - ART. 7º, § 2º, DA LEI Nº 605/49.Sendo mensalista o obreiro, o adicional noturno pago de forma fixa já é considerado integrado para os efeitos do pagamento do repouso semanal remunerado, nos termos do art. 7º, § 2º, da Lei nº 605/49.
D16: TOTAL DA REMUNERAÇÃO | F16: =SUM(F9:F14) -> 0
B18: MÓDULO 2 - ENCARGOS E BENEFÍCIOS ANUAIS, MENSAIS E DIÁRIOS | E18: Percentuais | F18: Valor
B19: Submódulo 2.1 - 13º Salário, Férias e Adicional de Férias
C20: A | D20: 13º Salário - Calculado no Módulo 7 - Destacado | E20: 0 | F20: =ROUND(E20*F$16,2) -> 0
C21: B | D21: Férias e Adicional de Férias | E21: ='Encargos Sociais'!E25+'Encargos Sociais'!E31 -> 0.1212 | F21: =ROUND(E21*F$16,2) -> 0 | H21: * Nota 1 - Provisiona-se, mensalmente, o proporcional a 1/12 dos valores referentes a gratificação natalina, férias e adicional de férias.
H22: * Nota 2 - O adicional de férias contido no Submódulo 2.1 corresponde a 1/3 da remuneração que, por sua vez, é dividida por 12 contome Nota 1.
B23: Submódulo 2.2 - Encargos Previdenciários (GPS), Fundo de Garantia por Tempo de Serviço (FGTS) e Outras Contribuições
C24: A | D24: INSS (art. 22, inciso I, Lei nº 8.212/91) | E24: ='Encargos Sociais'!E14 -> 0.2 | F24: =ROUND(E24*($F$16+$F$41+$F$73),2) -> 0
C25: B | D25: Salário Educação (art. 3º, inciso I, Decreto nº 87.043/82) | E25: ='Encargos Sociais'!E15 -> 0.025 | F25: =ROUND(E25*($F$16+$F$41+$F$73),2) -> 0
C26: C | D26: SAT/RAT (art. 22, II, Lei 8.212/91 e Anexo V, Decreto 6.042/07) - Enquadramento 8211-3/00 | E26: ='Encargos Sociais'!E16 -> 0.01 | F26: 0
C27: D | D27: SESC ou SESI (art. 30, Lei nº 8.036/90 e art. 1º, Lei 8.154/90) | E27: ='Encargos Sociais'!E17 -> 0.015 | F27: 0
C28: E | D28: SENAI ou SENAC (Decreto nº 2.318/86) | E28: ='Encargos Sociais'!E18 -> 0.01 | F28: 0
C29: F | D29: SEBRAE (§ 3º, art. 8º, Lei 8.029/90, alterada pela Lei nº 8.154/90) | E29: ='Encargos Sociais'!E19 -> 0.006 | F29: 0
C30: G | D30: INCRA (art. 1º, I, Decreto Lei 1.146/70 e Lei 7.787, de 30/06/89) | E30: ='Encargos Sociais'!E20 -> 0.002 | F30: 0 | H30: * Nota 1 - Os percentuais dos encargos previdenciários, do FGTS e demais contribuições são estabelecidos por legislação vigente.
C31: H | D31: FGTS (Lei Complementar nº 110/01 e art. 30, Lei nº 8.036/90) | E31: ='Encargos Sociais'!E21 -> 0.08 | F31: 0 | H31: * Nota 2 - O SAT, a depender do grau de risco do serviço, irá variar entre 1%, para risco leve, de 2%, para risco médio, e de 3% para risco grave.
C32: I | D32: SECONCI (Convenções Coletivas de Trabalho da construção) | E32: ='Encargos Sociais'!E22 -> 0 | F32: 0 | H32: * Nota 3 - Os percentuais do Submódulo 2.2 incidem sobre o Módulo 1 e o Submódulo 2.1.
B34: Submódulo 2.3 - Benefícios Mensais e Diários
C35: A | D35: Auxílio Transporte | F35: =HLOOKUP($B$5,'Dados Gerais'!$D$6:$BH$95,83) -> 0
C36: B | D36: Auxílio Alimentação | F36: =HLOOKUP($B$5,'Dados Gerais'!$D$6:$BH$95,90) -> 0
C37: C | D37: Assistência Médica e Familiar | F37: =HLOOKUP($B$5,'Dados Gerais'!$D$6:$BH$103,98) -> 0
C38: D | D38: Outros (Seguro de vida, auxílio funeral, auxílio odontológico e auxílio creche) | F38: =HLOOKUP($B$5,'Dados Gerais'!$D$6:$BH$121,115) -> 0 | H38: * Nota 1 - O valor informado deverá ser o custo real do benefício (descontado o valor eventualmente pago pelo empregado).
H39: * Nota 2 - Observar a previsão dos benefícios contidos em Acordos, Convenções e Dissídios Coletivos de Trabalho e o disposto no art. 6º da IN 5/2017
D40: QUADRO-RESUMO DO MÓDULO 2
D41: 2.1 - 13º Salário, Férias e Adicional de Férias - 13º Destacado - Calculado no Módulo 7 | E41: =SUM(E20:E21) -> 0.1212 | F41: =F20+F21 -> 0
D42: 2.2 - Encargos Previdenciários (GPS), Fundo de Garantia por Tempo de Serviço (FGTS) e Contribuições | E42: =SUM(E24:E32) -> 0.348 | F42: =SUM(F24:F32) -> 0
D43: 2.3 - Benefícios Mensais e Diários | F43: =SUM(F35:F38) -> 0
D45: TOTAL DOS ENCARGOS E BENEFÍCIOS | F45: =SUM(F41:F43) -> 0
B47: MÓDULO 3 - PREVISÃO PARA RESCISÃO | E47: Percentuais | F47: Valor
C48: A | D48: Aviso Prévio Indenizado (Art. 7º, inciso XXI, da CF/1988 e arts. 477, 487, §1º, e 491 da CLT) | E48: ='Encargos Sociais'!E36 -> 0.0035 | F48: =ROUND(E48*$F$16,2) -> 0
C49: B | D49: Incidência do FGTS sobre o Aviso Prévio Indenizado (Súmula 305 TST) | E49: ='Encargos Sociais'!E37 -> 0.0003 | F49: 0 | H49: * Nota 1 - Adotou-se os parâmetros do estudo do STF (http://www.stf.jus.br/arquivo/cms/sobrestfestudosci/anexo/encargos_sociais_03102007.pdf), onde 5% do pessoal é demitido pelo empregador no decurso do contrato (para estes, considerou-se o aviso prévio indenizado). Desprezou-se as demissões por justa causa e os pedidos de demissão.
C50: C | D50: Multa do FGTS e Contribuição Social sobre o Aviso Prévio Indenizado (Art. 18, §1º, da Lei 8.036/1990 e art. 1º da LC nº 110/2001) | E50: ='Encargos Sociais'!E38 -> 0.0011 | F50: 0 | H50: * Nota 2 - No cálculo do percentual, considerou-se 36 dias, correspondendo à metade da duração média dos contratos (2 anos)
C51: D | D51: Aviso Prévio Trabalhado (Art. 488, parágrafo único, CLT) | E51: ='Encargos Sociais'!E39 -> 0.0078 | F51: 0 | H51: * Nota 3 - Incide sobre a Remuneração + 13º salário (1/12) + Férias (1/12) + Adicional de Férias (1/36) x 50% multa (40% para o empregado e 10% de contribuição social) x 8% FGTS
C52: E | D52: Incidência de GPS, FGTS e outras contribuições sobre o Aviso Prévio Trabalhado | E52: ='Encargos Sociais'!E40 -> 0.0027 | F52: 0 | H52: * Nota 4 - Os 95% restantes do cálculo, a um prazo médio de contrato de 4 anos. Assim, calcula-se 7 dias para o 1º ano de contrato e mais 3 dias para os 3 anos seguintes.
C53: F | D53: Multa do FGTS e Contribuição Social sobre o Aviso Prévio Trabalhado | E53: ='Encargos Sociais'!E41 -> 0.0309 | F53: 0
D55: TOTAL DE PREVISÃO PARA RESCISÃO | F55: =SUM(F48:F53) -> 0
B57: MÓDULO 4 - CUSTO DO PROFISSIONAL AUSENTE | E57: Percentuais | F57: Valor
B58: Submódulo 4.1 - Ausências Legais
C59: A | D59: Férias (Arts. 129 e 130, inc. I, da CLT) - Calculado no Submódulo 2.1 | E59: 0 | F59: =ROUND(E59*$F$16,2) -> 0 | H59: * Nota 1 - As alíneas “A” a “F” referem-se somente ao custo que será pago ao repositor pelos dias trabalhados quando da necessidade de substituir a mão de obra alocada na prestação do serviço.
C60: B | D60: Ausências Legais (Arts. 131 e 473 da CLT) | E60: ='Encargos Sociais'!E26 -> 0.0079 | F60: 0 | H60: * Nota 2 - Adotou-se a estimativa do SINAPI de 2 dias por ano.
C61: C | D61: Licença-Paternidade (Art. 7º, XIX, e art. 10, §1º, do ADCT, CF/1988 e Art. 1º, II, da Lei 11.770/2008) | E61: ='Encargos Sociais'!E27 -> 0.0008 | F61: 0 | H61: * Nota 3 - Utilizada a proporção de 50% para homens, 5 dias de afastamento, e a probabilidade de um trabalhador requerer a Licença Paternidade em 5,22%, conforme SINAPI (citando dados da PNAD 2015)
C62: D | D62: Ausência por Acidente de Trabalho (Art. 131, III, da CLT) | E62: ='Encargos Sociais'!E28 -> 0.0009 | F62: 0 | H62: * Nota 4 - Utilzada a estatística de 1,96% dos contribuintes beneficiados com a emissão do auxílio, conforme Anuário Estatístico da Previdência Social. Afastamento de 15 dias a cargo da empresa.
C63: E | D63: Afastamento Maternidade (Art. 71 da Lei nº 8.213/1991) | E63: ='Encargos Sociais'!E29 -> 0.0033 | F63: 0 | H63: * Nota 5 - Utilizada a proporção de 50% para mulheres, 180 dias de afastamento, e a probabilidade de uma trabalhadora requerer a Licença Maternidade em 4,91%, conforme SINAPI (citando dados do IBGE 2016)
C64: F | D64: Auxílio Enfermidade - Doença (Art. 59 da Lei nº 8.213/1991) | E64: ='Encargos Sociais'!E30 -> 0.0071 | F64: 0 | H64: * Nota 6 - Utilizada a estatística de 3,37% dos contribuintes beneficiados com o auxílio, conforme Anuário Estatístico da Previdência Social de 2015 (acrescidos de 2 dias ao ano, para os quais o trabalhador nem requer o benefício da Previdência - conforme SINAPI)
B66: Submódulo 4.2 - Intrajornada
C67: A | D67: Intervalo para repouso ou alimentação | E67: ='Encargos Sociais'!E33 -> 0 | F67: =ROUND(E67*$F$16,2) -> 0
D69: QUADRO-RESUMO DO MÓDULO 4 | F69: Valor
D70: 4.1 - Ausências Legais | E70: =SUM(E59:E64) -> 0.02 | F70: =ROUND(E70*$F$16,2) -> 0
D71: 4.2 - Intrajornada | E71: =E67 -> 0 | F71: =ROUND(E71*$F$16,2) -> 0
D73: TOTAL DE PREVISÃO PARA RESCISÃO E INTERVALO INTRAJORNADA | F73: =SUM(F70:F71) -> 0
B75: MÓDULO 5 - INSUMOS DIVERSOS | F75: Valor
C76: A | D76: Uniformes - aquisição | F76: 0
C77: B | D77: Materiais de consumo relacionados ao posto - aquisição | F77: =ROUND(HLOOKUP(B5,'Mat Cons'!I11:DX13,3)/12,2) -> 0
C78: C | D78: Ferramentas relacionadas ao posto - remuneração da sua depreciação / manutenção | F78: =HLOOKUP(B5,'Relacion - Ferram'!Q3:EF5,3) -> 0
C79: D | D79: Equipamentos relacionados ao posto - remuneração da sua depreciação / manutenção | F79: =HLOOKUP(B5,'Equip Rel'!Q11:EF13,3) -> 0
C80: E | D80: Equipamentos de Proteção Individual - EPI - aquisição | F80: =ROUND(HLOOKUP(B5,Uniformes!#REF!,3)/12,2) -> 
D82: TOTAL DE INSUMOS DIVERSOS | F82: =SUM(F76:F81) ->  | H82: * Nota - Valores mensais por empregado
B84: MÓDULO 6 - CUSTOS INDIRETOS, TRIBUTOS E LUCRO - BDI | E84: Percentuais | F84: Valor
C85: A | D85: Custos Indiretos | E85: ='BDI - Geral'!E7 -> 0.0391
C86: A.1 | D86: Administração Central | E86: ='BDI - Geral'!E8 -> 0.0337
C87: A.2 | D87: Seguros, Garantias e Riscos | E87: ='BDI - Geral'!E9 -> 0.0054
C88: B | D88: Lucro | E88: ='BDI - Geral'!E11 -> 0.038
C89: C | D89: Tributos | E89: =SUM(E90:E91) -> 0.124
C90: C.1 | D90: Tributos Federais (COFINS, PIS e CPRB) | E90: ='BDI - Geral'!E19 -> 0.074
C91: C.2 | D91: Tributos Distritais (ISS) | E91: ='BDI - Geral'!E24 -> 0.05 | H91: * Nota - Utilizou-se o indicado pelo Sindicato da Arquitetura e da Engenharia (Sinaenco, 2008, p. 22), que adota um percentual redutor de 20% no cálculo dos custos tributários relativos às contribuições PIS e COFINS
C92: D | D92: Despesas Financeiras | E92: ='BDI - Geral'!E14 -> 0.0047
D94: TOTAL DE BDI | E94: ='BDI - Geral'!E27 -> 0.237 | F94: =E94*E102 -> 
D96: QUADRO-RESUMO DO CUSTO MENSAL POR EMPREGADO - SEM O 13º | E96: Valor
D97: Módulo 1 - Composição da Remuneração | E97: =F16 -> 0
D98: Módulo 2 - Encargos e Benefícios Anuais, Mensais e Diários | E98: =F45 -> 0
D99: Módulo 3 - Provisão para Rescisão | E99: =F55 -> 0
D100: Módulo 4 - Custo de Reposição do Profissional Ausente | E100: =F73 -> 0
D101: Módulo 5 - Insumos Diversos | E101: =F82 -> 
D102: SUBTOTAL (A+B+C+D+E) | E102: =SUM(E97:E101) -> 
D103: Módulo 6 - Custos Indiretos, Tributos e Lucro | E103: =F94 -> 
D105: TOTAL DO POSTO | E105: =SUM(E102:E103) -> 
B107: MÓDULO 7 - DESTAQUE DO MÓDULO 2 - 13º SALÁRIO | E107: Percentuais | F107: Valor
C108: A | D108: 13º Salário | E108: ='Encargos Sociais'!E32 -> 0.0833 | F108: =ROUND(E108*F$16,2) -> 0
C109: B | D109: Encargos Sociais sobre o 13º Salário - Taxa calculada no SUBMÓDULO 2.2 | E109: =SUM($E$24:$E$32) -> 0.348 | F109: =ROUND(E109*$F$108,2) -> 0 | H109: * Nota 1 - Provisiona-se, mensalmente, o proporcional a 1/12 dos valores referentes a gratificação natalina e adicional de férias.
C110: C | D110: BDI sobre o 13º Salário - Taxa calculada no MÓDULO 6 | E110: =E94 -> 0.237 | F110: =ROUND(E110*($F$108+$F$109),2) -> 0
D112: TOTAL DO DESTAQUE DO 13º SALÁRIO | F112: =SUM(F108:F110) -> 0
D114: QUADRO-RESUMO DO CUSTO MENSAL POR EMPREGADO | E114: Valor
D115: Custo total - sem o 13º Salário | E115: =ROUND(E105,2) -> 
D116: Destaque do 13º Salário (valor mensal) | E116: =ROUND(F112,2) -> 0
D118: TOTAL DO POSTO | E118: =E115+E116 -> 

Sheet 17 (hidden)
B2: PLANILHA DE ESTIMATIVA DE CUSTOS
B3: Padrão IN 05/2017 e IN 07/2018 - MPDG
B5: 17 | D5: =HLOOKUP($B$5,'Dados Gerais'!$D$6:$BH$22,6) -> 0 | E5: QUANTIDADE | F5: =HLOOKUP($B$5,'Dados Gerais'!$D$6:$BH$22,10) -> 0
B6: CCT | D6: =HLOOKUP($B$5,'Dados Gerais'!$D$6:$BH$22,16) -> 0 | E6: DATA-BASE | F6: =HLOOKUP($B$5,'Dados Gerais'!$D$6:$BH$22,17) -> 00:00:00
B8: MÓDULO 1 - COMPOSIÇÃO DA REMUNERAÇÃO | F8: Valor
C9: A | D9: Salário-Base | F9: =HLOOKUP($B$5,'Dados Gerais'!$D$6:$BH$22,8) -> 0
C10: B | D10: Adicional de Periculosidade | F10: =HLOOKUP($B$5,'Dados Gerais'!$D$6:$BH$39,26) -> 0
C11: C | D11: Adicional de Insalubridade | F11: =HLOOKUP($B$5,'Dados Gerais'!$D$6:$BH$39,32) -> 0
C12: D | D12: Adicional Noturno | F12: =HLOOKUP($B$5,'Dados Gerais'!$D$6:$BH$52,47) -> 0 | H12: * Nota 1 - O Módulo 1 refere-se ao valor mensal devido ao empregado pela prestação do serviço no período de 12 meses.
C13: E | D13: Adicional de Hora Extra | F13: =HLOOKUP($B$5,'Dados Gerais'!$D$6:$BH$69,64) -> 0 | H13: * Nota 2 - O adicional de hora extra no feriado trabalhado foi suprimido pela Lei 13.467/17
C14: F | D14: Outros (adicional de sobreaviso) | F14: =HLOOKUP($B$5,'Dados Gerais'!$D$6:$BH$69,34) -> 0 | H14: * Nota 3 - ART. 7º, § 2º, DA LEI Nº 605/49.Sendo mensalista o obreiro, o adicional noturno pago de forma fixa já é considerado integrado para os efeitos do pagamento do repouso semanal remunerado, nos termos do art. 7º, § 2º, da Lei nº 605/49.
D16: TOTAL DA REMUNERAÇÃO | F16: =SUM(F9:F14) -> 0
B18: MÓDULO 2 - ENCARGOS E BENEFÍCIOS ANUAIS, MENSAIS E DIÁRIOS | E18: Percentuais | F18: Valor
B19: Submódulo 2.1 - 13º Salário, Férias e Adicional de Férias
C20: A | D20: 13º Salário - Calculado no Módulo 7 - Destacado | E20: 0 | F20: =ROUND(E20*F$16,2) -> 0
C21: B | D21: Férias e Adicional de Férias | E21: ='Encargos Sociais'!E25+'Encargos Sociais'!E31 -> 0.1212 | F21: =ROUND(E21*F$16,2) -> 0 | H21: * Nota 1 - Provisiona-se, mensalmente, o proporcional a 1/12 dos valores referentes a gratificação natalina, férias e adicional de férias.
H22: * Nota 2 - O adicional de férias contido no Submódulo 2.1 corresponde a 1/3 da remuneração que, por sua vez, é dividida por 12 contome Nota 1.
B23: Submódulo 2.2 - Encargos Previdenciários (GPS), Fundo de Garantia por Tempo de Serviço (FGTS) e Outras Contribuições
C24: A | D24: INSS (art. 22, inciso I, Lei nº 8.212/91) | E24: ='Encargos Sociais'!E14 -> 0.2 | F24: =ROUND(E24*($F$16+$F$41+$F$73),2) -> 0
C25: B | D25: Salário Educação (art. 3º, inciso I, Decreto nº 87.043/82) | E25: ='Encargos Sociais'!E15 -> 0.025 | F25: =ROUND(E25*($F$16+$F$41+$F$73),2) -> 0
C26: C | D26: SAT/RAT (art. 22, II, Lei 8.212/91 e Anexo V, Decreto 6.042/07) - Enquadramento 8211-3/00 | E26: ='Encargos Sociais'!E16 -> 0.01 | F26: 0
C27: D | D27: SESC ou SESI (art. 30, Lei nº 8.036/90 e art. 1º, Lei 8.154/90) | E27: ='Encargos Sociais'!E17 -> 0.015 | F27: 0
C28: E | D28: SENAI ou SENAC (Decreto nº 2.318/86) | E28: ='Encargos Sociais'!E18 -> 0.01 | F28: 0
C29: F | D29: SEBRAE (§ 3º, art. 8º, Lei 8.029/90, alterada pela Lei nº 8.154/90) | E29: ='Encargos Sociais'!E19 -> 0.006 | F29: 0
C30: G | D30: INCRA (art. 1º, I, Decreto Lei 1.146/70 e Lei 7.787, de 30/06/89) | E30: ='Encargos Sociais'!E20 -> 0.002 | F30: 0 | H30: * Nota 1 - Os percentuais dos encargos previdenciários, do FGTS e demais contribuições são estabelecidos por legislação vigente.
C31: H | D31: FGTS (Lei Complementar nº 110/01 e art. 30, Lei nº 8.036/90) | E31: ='Encargos Sociais'!E21 -> 0.08 | F31: 0 | H31: * Nota 2 - O SAT, a depender do grau de risco do serviço, irá variar entre 1%, para risco leve, de 2%, para risco médio, e de 3% para risco grave.
C32: I | D32: SECONCI (Convenções Coletivas de Trabalho da construção) | E32: ='Encargos Sociais'!E22 -> 0 | F32: 0 | H32: * Nota 3 - Os percentuais do Submódulo 2.2 incidem sobre o Módulo 1 e o Submódulo 2.1.
B34: Submódulo 2.3 - Benefícios Mensais e Diários
C35: A | D35: Auxílio Transporte | F35: =HLOOKUP($B$5,'Dados Gerais'!$D$6:$BH$95,83) -> 0
C36: B | D36: Auxílio Alimentação | F36: =HLOOKUP($B$5,'Dados Gerais'!$D$6:$BH$95,90) -> 0
C37: C | D37: Assistência Médica e Familiar | F37: =HLOOKUP($B$5,'Dados Gerais'!$D$6:$BH$103,98) -> 0
C38: D | D38: Outros (Seguro de vida, auxílio funeral, auxílio odontológico e auxílio creche) | F38: =HLOOKUP($B$5,'Dados Gerais'!$D$6:$BH$121,115) -> 0 | H38: * Nota 1 - O valor informado deverá ser o custo real do benefício (descontado o valor eventualmente pago pelo empregado).
H39: * Nota 2 - Observar a previsão dos benefícios contidos em Acordos, Convenções e Dissídios Coletivos de Trabalho e o disposto no art. 6º da IN 5/2017
D40: QUADRO-RESUMO DO MÓDULO 2
D41: 2.1 - 13º Salário, Férias e Adicional de Férias - 13º Destacado - Calculado no Módulo 7 | E41: =SUM(E20:E21) -> 0.1212 | F41: =F20+F21 -> 0
D42: 2.2 - Encargos Previdenciários (GPS), Fundo de Garantia por Tempo de Serviço (FGTS) e Contribuições | E42: =SUM(E24:E32) -> 0.348 | F42: =SUM(F24:F32) -> 0
D43: 2.3 - Benefícios Mensais e Diários | F43: =SUM(F35:F38) -> 0
D45: TOTAL DOS ENCARGOS E BENEFÍCIOS | F45: =SUM(F41:F43) -> 0
B47: MÓDULO 3 - PREVISÃO PARA RESCISÃO | E47: Percentuais | F47: Valor
C48: A | D48: Aviso Prévio Indenizado (Art. 7º, inciso XXI, da CF/1988 e arts. 477, 487, §1º, e 491 da CLT) | E48: ='Encargos Sociais'!E36 -> 0.0035 | F48: =ROUND(E48*$F$16,2) -> 0
C49: B | D49: Incidência do FGTS sobre o Aviso Prévio Indenizado (Súmula 305 TST) | E49: ='Encargos Sociais'!E37 -> 0.0003 | F49: 0 | H49: * Nota 1 - Adotou-se os parâmetros do estudo do STF (http://www.stf.jus.br/arquivo/cms/sobrestfestudosci/anexo/encargos_sociais_03102007.pdf), onde 5% do pessoal é demitido pelo empregador no decurso do contrato (para estes, considerou-se o aviso prévio indenizado). Desprezou-se as demissões por justa causa e os pedidos de demissão.
C50: C | D50: Multa do FGTS e Contribuição Social sobre o Aviso Prévio Indenizado (Art. 18, §1º, da Lei 8.036/1990 e art. 1º da LC nº 110/2001) | E50: ='Encargos Sociais'!E38 -> 0.0011 | F50: 0 | H50: * Nota 2 - No cálculo do percentual, considerou-se 36 dias, correspondendo à metade da duração média dos contratos (2 anos)
C51: D | D51: Aviso Prévio Trabalhado (Art. 488, parágrafo único, CLT) | E51: ='Encargos Sociais'!E39 -> 0.0078 | F51: 0 | H51: * Nota 3 - Incide sobre a Remuneração + 13º salário (1/12) + Férias (1/12) + Adicional de Férias (1/36) x 50% multa (40% para o empregado e 10% de contribuição social) x 8% FGTS
C52: E | D52: Incidência de GPS, FGTS e outras contribuições sobre o Aviso Prévio Trabalhado | E52: ='Encargos Sociais'!E40 -> 0.0027 | F52: 0 | H52: * Nota 4 - Os 95% restantes do cálculo, a um prazo médio de contrato de 4 anos. Assim, calcula-se 7 dias para o 1º ano de contrato e mais 3 dias para os 3 anos seguintes.
C53: F | D53: Multa do FGTS e Contribuição Social sobre o Aviso Prévio Trabalhado | E53: ='Encargos Sociais'!E41 -> 0.0309 | F53: 0
D55: TOTAL DE PREVISÃO PARA RESCISÃO | F55: =SUM(F48:F53) -> 0
B57: MÓDULO 4 - CUSTO DO PROFISSIONAL AUSENTE | E57: Percentuais | F57: Valor
B58: Submódulo 4.1 - Ausências Legais
C59: A | D59: Férias (Arts. 129 e 130, inc. I, da CLT) - Calculado no Submódulo 2.1 | E59: 0 | F59: =ROUND(E59*$F$16,2) -> 0 | H59: * Nota 1 - As alíneas “A” a “F” referem-se somente ao custo que será pago ao repositor pelos dias trabalhados quando da necessidade de substituir a mão de obra alocada na prestação do serviço.
C60: B | D60: Ausências Legais (Arts. 131 e 473 da CLT) | E60: ='Encargos Sociais'!E26 -> 0.0079 | F60: 0 | H60: * Nota 2 - Adotou-se a estimativa do SINAPI de 2 dias por ano.
C61: C | D61: Licença-Paternidade (Art. 7º, XIX, e art. 10, §1º, do ADCT, CF/1988 e Art. 1º, II, da Lei 11.770/2008) | E61: ='Encargos Sociais'!E27 -> 0.0008 | F61: 0 | H61: * Nota 3 - Utilizada a proporção de 50% para homens, 5 dias de afastamento, e a probabilidade de um trabalhador requerer a Licença Paternidade em 5,22%, conforme SINAPI (citando dados da PNAD 2015)
C62: D | D62: Ausência por Acidente de Trabalho (Art. 131, III, da CLT) | E62: ='Encargos Sociais'!E28 -> 0.0009 | F62: 0 | H62: * Nota 4 - Utilzada a estatística de 1,96% dos contribuintes beneficiados com a emissão do auxílio, conforme Anuário Estatístico da Previdência Social. Afastamento de 15 dias a cargo da empresa.
C63: E | D63: Afastamento Maternidade (Art. 71 da Lei nº 8.213/1991) | E63: ='Encargos Sociais'!E29 -> 0.0033 | F63: 0 | H63: * Nota 5 - Utilizada a proporção de 50% para mulheres, 180 dias de afastamento, e a probabilidade de uma trabalhadora requerer a Licença Maternidade em 4,91%, conforme SINAPI (citando dados do IBGE 2016)
C64: F | D64: Auxílio Enfermidade - Doença (Art. 59 da Lei nº 8.213/1991) | E64: ='Encargos Sociais'!E30 -> 0.0071 | F64: 0 | H64: * Nota 6 - Utilizada a estatística de 3,37% dos contribuintes beneficiados com o auxílio, conforme Anuário Estatístico da Previdência Social de 2015 (acrescidos de 2 dias ao ano, para os quais o trabalhador nem requer o benefício da Previdência - conforme SINAPI)
B66: Submódulo 4.2 - Intrajornada
C67: A | D67: Intervalo para repouso ou alimentação | E67: ='Encargos Sociais'!E33 -> 0 | F67: =ROUND(E67*$F$16,2) -> 0
D69: QUADRO-RESUMO DO MÓDULO 4 | F69: Valor
D70: 4.1 - Ausências Legais | E70: =SUM(E59:E64) -> 0.02 | F70: =ROUND(E70*$F$16,2) -> 0
D71: 4.2 - Intrajornada | E71: =E67 -> 0 | F71: =ROUND(E71*$F$16,2) -> 0
D73: TOTAL DE PREVISÃO PARA RESCISÃO E INTERVALO INTRAJORNADA | F73: =SUM(F70:F71) -> 0
B75: MÓDULO 5 - INSUMOS DIVERSOS | F75: Valor
C76: A | D76: Uniformes - aquisição | F76: 0
C77: B | D77: Materiais de consumo relacionados ao posto - aquisição | F77: =ROUND(HLOOKUP(B5,'Mat Cons'!I11:DX13,3)/12,2) -> 0
C78: C | D78: Ferramentas relacionadas ao posto - remuneração da sua depreciação / manutenção | F78: =HLOOKUP(B5,'Relacion - Ferram'!Q3:EF5,3) -> 0
C79: D | D79: Equipamentos relacionados ao posto - remuneração da sua depreciação / manutenção | F79: =HLOOKUP(B5,'Equip Rel'!Q11:EF13,3) -> 0
C80: E | D80: Equipamentos de Proteção Individual - EPI - aquisição | F80: =ROUND(HLOOKUP(B5,Uniformes!#REF!,3)/12,2) -> 
D82: TOTAL DE INSUMOS DIVERSOS | F82: =SUM(F76:F81) ->  | H82: * Nota - Valores mensais por empregado
B84: MÓDULO 6 - CUSTOS INDIRETOS, TRIBUTOS E LUCRO - BDI | E84: Percentuais | F84: Valor
C85: A | D85: Custos Indiretos | E85: ='BDI - Geral'!E7 -> 0.0391
C86: A.1 | D86: Administração Central | E86: ='BDI - Geral'!E8 -> 0.0337
C87: A.2 | D87: Seguros, Garantias e Riscos | E87: ='BDI - Geral'!E9 -> 0.0054
C88: B | D88: Lucro | E88: ='BDI - Geral'!E11 -> 0.038
C89: C | D89: Tributos | E89: =SUM(E90:E91) -> 0.124
C90: C.1 | D90: Tributos Federais (COFINS, PIS e CPRB) | E90: ='BDI - Geral'!E19 -> 0.074
C91: C.2 | D91: Tributos Distritais (ISS) | E91: ='BDI - Geral'!E24 -> 0.05 | H91: * Nota - Utilizou-se o indicado pelo Sindicato da Arquitetura e da Engenharia (Sinaenco, 2008, p. 22), que adota um percentual redutor de 20% no cálculo dos custos tributários relativos às contribuições PIS e COFINS
C92: D | D92: Despesas Financeiras | E92: ='BDI - Geral'!E14 -> 0.0047
D94: TOTAL DE BDI | E94: ='BDI - Geral'!E27 -> 0.237 | F94: =E94*E102 -> 
D96: QUADRO-RESUMO DO CUSTO MENSAL POR EMPREGADO - SEM O 13º | E96: Valor
D97: Módulo 1 - Composição da Remuneração | E97: =F16 -> 0
D98: Módulo 2 - Encargos e Benefícios Anuais, Mensais e Diários | E98: =F45 -> 0
D99: Módulo 3 - Provisão para Rescisão | E99: =F55 -> 0
D100: Módulo 4 - Custo de Reposição do Profissional Ausente | E100: =F73 -> 0
D101: Módulo 5 - Insumos Diversos | E101: =F82 -> 
D102: SUBTOTAL (A+B+C+D+E) | E102: =SUM(E97:E101) -> 
D103: Módulo 6 - Custos Indiretos, Tributos e Lucro | E103: =F94 -> 
D105: TOTAL DO POSTO | E105: =SUM(E102:E103) -> 
B107: MÓDULO 7 - DESTAQUE DO MÓDULO 2 - 13º SALÁRIO | E107: Percentuais | F107: Valor
C108: A | D108: 13º Salário | E108: ='Encargos Sociais'!E32 -> 0.0833 | F108: =ROUND(E108*F$16,2) -> 0
C109: B | D109: Encargos Sociais sobre o 13º Salário - Taxa calculada no SUBMÓDULO 2.2 | E109: =SUM($E$24:$E$32) -> 0.348 | F109: =ROUND(E109*$F$108,2) -> 0 | H109: * Nota 1 - Provisiona-se, mensalmente, o proporcional a 1/12 dos valores referentes a gratificação natalina e adicional de férias.
C110: C | D110: BDI sobre o 13º Salário - Taxa calculada no MÓDULO 6 | E110: =E94 -> 0.237 | F110: =ROUND(E110*($F$108+$F$109),2) -> 0
D112: TOTAL DO DESTAQUE DO 13º SALÁRIO | F112: =SUM(F108:F110) -> 0
D114: QUADRO-RESUMO DO CUSTO MENSAL POR EMPREGADO | E114: Valor
D115: Custo total - sem o 13º Salário | E115: =ROUND(E105,2) -> 
D116: Destaque do 13º Salário (valor mensal) | E116: =ROUND(F112,2) -> 0
D118: TOTAL DO POSTO | E118: =E115+E116 -> 

Sheet 18 (hidden)
B2: PLANILHA DE ESTIMATIVA DE CUSTOS
B3: Padrão IN 05/2017 e IN 07/2018 - MPDG
B5: 18 | D5: =HLOOKUP($B$5,'Dados Gerais'!$D$6:$BH$22,6) -> 0 | E5: QUANTIDADE | F5: =HLOOKUP($B$5,'Dados Gerais'!$D$6:$BH$22,10) -> 0
B6: CCT | D6: =HLOOKUP($B$5,'Dados Gerais'!$D$6:$BH$22,16) -> 0 | E6: DATA-BASE | F6: =HLOOKUP($B$5,'Dados Gerais'!$D$6:$BH$22,17) -> 00:00:00
B8: MÓDULO 1 - COMPOSIÇÃO DA REMUNERAÇÃO | F8: Valor
C9: A | D9: Salário-Base | F9: =HLOOKUP($B$5,'Dados Gerais'!$D$6:$BH$22,8) -> 0
C10: B | D10: Adicional de Periculosidade | F10: =HLOOKUP($B$5,'Dados Gerais'!$D$6:$BH$39,26) -> 0
C11: C | D11: Adicional de Insalubridade | F11: =HLOOKUP($B$5,'Dados Gerais'!$D$6:$BH$39,32) -> 0
C12: D | D12: Adicional Noturno | F12: =HLOOKUP($B$5,'Dados Gerais'!$D$6:$BH$52,47) -> 0 | H12: * Nota 1 - O Módulo 1 refere-se ao valor mensal devido ao empregado pela prestação do serviço no período de 12 meses.
C13: E | D13: Adicional de Hora Extra | F13: =HLOOKUP($B$5,'Dados Gerais'!$D$6:$BH$69,64) -> 0 | H13: * Nota 2 - O adicional de hora extra no feriado trabalhado foi suprimido pela Lei 13.467/17
C14: F | D14: Outros (adicional de sobreaviso) | F14: =HLOOKUP($B$5,'Dados Gerais'!$D$6:$BH$69,34) -> 0 | H14: * Nota 3 - ART. 7º, § 2º, DA LEI Nº 605/49.Sendo mensalista o obreiro, o adicional noturno pago de forma fixa já é considerado integrado para os efeitos do pagamento do repouso semanal remunerado, nos termos do art. 7º, § 2º, da Lei nº 605/49.
D16: TOTAL DA REMUNERAÇÃO | F16: =SUM(F9:F14) -> 0
B18: MÓDULO 2 - ENCARGOS E BENEFÍCIOS ANUAIS, MENSAIS E DIÁRIOS | E18: Percentuais | F18: Valor
B19: Submódulo 2.1 - 13º Salário, Férias e Adicional de Férias
C20: A | D20: 13º Salário - Calculado no Módulo 7 - Destacado | E20: 0 | F20: =ROUND(E20*F$16,2) -> 0
C21: B | D21: Férias e Adicional de Férias | E21: ='Encargos Sociais'!E25+'Encargos Sociais'!E31 -> 0.1212 | F21: =ROUND(E21*F$16,2) -> 0 | H21: * Nota 1 - Provisiona-se, mensalmente, o proporcional a 1/12 dos valores referentes a gratificação natalina, férias e adicional de férias.
H22: * Nota 2 - O adicional de férias contido no Submódulo 2.1 corresponde a 1/3 da remuneração que, por sua vez, é dividida por 12 contome Nota 1.
B23: Submódulo 2.2 - Encargos Previdenciários (GPS), Fundo de Garantia por Tempo de Serviço (FGTS) e Outras Contribuições
C24: A | D24: INSS (art. 22, inciso I, Lei nº 8.212/91) | E24: ='Encargos Sociais'!E14 -> 0.2 | F24: =ROUND(E24*($F$16+$F$41+$F$73),2) -> 0
C25: B | D25: Salário Educação (art. 3º, inciso I, Decreto nº 87.043/82) | E25: ='Encargos Sociais'!E15 -> 0.025 | F25: =ROUND(E25*($F$16+$F$41+$F$73),2) -> 0
C26: C | D26: SAT/RAT (art. 22, II, Lei 8.212/91 e Anexo V, Decreto 6.042/07) - Enquadramento 8211-3/00 | E26: ='Encargos Sociais'!E16 -> 0.01 | F26: 0
C27: D | D27: SESC ou SESI (art. 30, Lei nº 8.036/90 e art. 1º, Lei 8.154/90) | E27: ='Encargos Sociais'!E17 -> 0.015 | F27: 0
C28: E | D28: SENAI ou SENAC (Decreto nº 2.318/86) | E28: ='Encargos Sociais'!E18 -> 0.01 | F28: 0
C29: F | D29: SEBRAE (§ 3º, art. 8º, Lei 8.029/90, alterada pela Lei nº 8.154/90) | E29: ='Encargos Sociais'!E19 -> 0.006 | F29: 0
C30: G | D30: INCRA (art. 1º, I, Decreto Lei 1.146/70 e Lei 7.787, de 30/06/89) | E30: ='Encargos Sociais'!E20 -> 0.002 | F30: 0 | H30: * Nota 1 - Os percentuais dos encargos previdenciários, do FGTS e demais contribuições são estabelecidos por legislação vigente.
C31: H | D31: FGTS (Lei Complementar nº 110/01 e art. 30, Lei nº 8.036/90) | E31: ='Encargos Sociais'!E21 -> 0.08 | F31: 0 | H31: * Nota 2 - O SAT, a depender do grau de risco do serviço, irá variar entre 1%, para risco leve, de 2%, para risco médio, e de 3% para risco grave.
C32: I | D32: SECONCI (Convenções Coletivas de Trabalho da construção) | E32: ='Encargos Sociais'!E22 -> 0 | F32: 0 | H32: * Nota 3 - Os percentuais do Submódulo 2.2 incidem sobre o Módulo 1 e o Submódulo 2.1.
B34: Submódulo 2.3 - Benefícios Mensais e Diários
C35: A | D35: Auxílio Transporte | F35: =HLOOKUP($B$5,'Dados Gerais'!$D$6:$BH$95,83) -> 0
C36: B | D36: Auxílio Alimentação | F36: =HLOOKUP($B$5,'Dados Gerais'!$D$6:$BH$95,90) -> 0
C37: C | D37: Assistência Médica e Familiar | F37: =HLOOKUP($B$5,'Dados Gerais'!$D$6:$BH$103,98) -> 0
C38: D | D38: Outros (Seguro de vida, auxílio funeral, auxílio odontológico e auxílio creche) | F38: =HLOOKUP($B$5,'Dados Gerais'!$D$6:$BH$121,115) -> 0 | H38: * Nota 1 - O valor informado deverá ser o custo real do benefício (descontado o valor eventualmente pago pelo empregado).
H39: * Nota 2 - Observar a previsão dos benefícios contidos em Acordos, Convenções e Dissídios Coletivos de Trabalho e o disposto no art. 6º da IN 5/2017
D40: QUADRO-RESUMO DO MÓDULO 2
D41: 2.1 - 13º Salário, Férias e Adicional de Férias - 13º Destacado - Calculado no Módulo 7 | E41: =SUM(E20:E21) -> 0.1212 | F41: =F20+F21 -> 0
D42: 2.2 - Encargos Previdenciários (GPS), Fundo de Garantia por Tempo de Serviço (FGTS) e Contribuições | E42: =SUM(E24:E32) -> 0.348 | F42: =SUM(F24:F32) -> 0
D43: 2.3 - Benefícios Mensais e Diários | F43: =SUM(F35:F38) -> 0
D45: TOTAL DOS ENCARGOS E BENEFÍCIOS | F45: =SUM(F41:F43) -> 0
B47: MÓDULO 3 - PREVISÃO PARA RESCISÃO | E47: Percentuais | F47: Valor
C48: A | D48: Aviso Prévio Indenizado (Art. 7º, inciso XXI, da CF/1988 e arts. 477, 487, §1º, e 491 da CLT) | E48: ='Encargos Sociais'!E36 -> 0.0035 | F48: =ROUND(E48*$F$16,2) -> 0
C49: B | D49: Incidência do FGTS sobre o Aviso Prévio Indenizado (Súmula 305 TST) | E49: ='Encargos Sociais'!E37 -> 0.0003 | F49: 0 | H49: * Nota 1 - Adotou-se os parâmetros do estudo do STF (http://www.stf.jus.br/arquivo/cms/sobrestfestudosci/anexo/encargos_sociais_03102007.pdf), onde 5% do pessoal é demitido pelo empregador no decurso do contrato (para estes, considerou-se o aviso prévio indenizado). Desprezou-se as demissões por justa causa e os pedidos de demissão.
C50: C | D50: Multa do FGTS e Contribuição Social sobre o Aviso Prévio Indenizado (Art. 18, §1º, da Lei 8.036/1990 e art. 1º da LC nº 110/2001) | E50: ='Encargos Sociais'!E38 -> 0.0011 | F50: 0 | H50: * Nota 2 - No cálculo do percentual, considerou-se 36 dias, correspondendo à metade da duração média dos contratos (2 anos)
C51: D | D51: Aviso Prévio Trabalhado (Art. 488, parágrafo único, CLT) | E51: ='Encargos Sociais'!E39 -> 0.0078 | F51: 0 | H51: * Nota 3 - Incide sobre a Remuneração + 13º salário (1/12) + Férias (1/12) + Adicional de Férias (1/36) x 50% multa (40% para o empregado e 10% de contribuição social) x 8% FGTS
C52: E | D52: Incidência de GPS, FGTS e outras contribuições sobre o Aviso Prévio Trabalhado | E52: ='Encargos Sociais'!E40 -> 0.0027 | F52: 0 | H52: * Nota 4 - Os 95% restantes do cálculo, a um prazo médio de contrato de 4 anos. Assim, calcula-se 7 dias para o 1º ano de contrato e mais 3 dias para os 3 anos seguintes.
C53: F | D53: Multa do FGTS e Contribuição Social sobre o Aviso Prévio Trabalhado | E53: ='Encargos Sociais'!E41 -> 0.0309 | F53: 0
D55: TOTAL DE PREVISÃO PARA RESCISÃO | F55: =SUM(F48:F53) -> 0
B57: MÓDULO 4 - CUSTO DO PROFISSIONAL AUSENTE | E57: Percentuais | F57: Valor
B58: Submódulo 4.1 - Ausências Legais
C59: A | D59: Férias (Arts. 129 e 130, inc. I, da CLT) - Calculado no Submódulo 2.1 | E59: 0 | F59: =ROUND(E59*$F$16,2) -> 0 | H59: * Nota 1 - As alíneas “A” a “F” referem-se somente ao custo que será pago ao repositor pelos dias trabalhados quando da necessidade de substituir a mão de obra alocada na prestação do serviço.
C60: B | D60: Ausências Legais (Arts. 131 e 473 da CLT) | E60: ='Encargos Sociais'!E26 -> 0.0079 | F60: 0 | H60: * Nota 2 - Adotou-se a estimativa do SINAPI de 2 dias por ano.
C61: C | D61: Licença-Paternidade (Art. 7º, XIX, e art. 10, §1º, do ADCT, CF/1988 e Art. 1º, II, da Lei 11.770/2008) | E61: ='Encargos Sociais'!E27 -> 0.0008 | F61: 0 | H61: * Nota 3 - Utilizada a proporção de 50% para homens, 5 dias de afastamento, e a probabilidade de um trabalhador requerer a Licença Paternidade em 5,22%, conforme SINAPI (citando dados da PNAD 2015)
C62: D | D62: Ausência por Acidente de Trabalho (Art. 131, III, da CLT) | E62: ='Encargos Sociais'!E28 -> 0.0009 | F62: 0 | H62: * Nota 4 - Utilzada a estatística de 1,96% dos contribuintes beneficiados com a emissão do auxílio, conforme Anuário Estatístico da Previdência Social. Afastamento de 15 dias a cargo da empresa.
C63: E | D63: Afastamento Maternidade (Art. 71 da Lei nº 8.213/1991) | E63: ='Encargos Sociais'!E29 -> 0.0033 | F63: 0 | H63: * Nota 5 - Utilizada a proporção de 50% para mulheres, 180 dias de afastamento, e a probabilidade de uma trabalhadora requerer a Licença Maternidade em 4,91%, conforme SINAPI (citando dados do IBGE 2016)
C64: F | D64: Auxílio Enfermidade - Doença (Art. 59 da Lei nº 8.213/1991) | E64: ='Encargos Sociais'!E30 -> 0.0071 | F64: 0 | H64: * Nota 6 - Utilizada a estatística de 3,37% dos contribuintes beneficiados com o auxílio, conforme Anuário Estatístico da Previdência Social de 2015 (acrescidos de 2 dias ao ano, para os quais o trabalhador nem requer o benefício da Previdência - conforme SINAPI)
B66: Submódulo 4.2 - Intrajornada
C67: A | D67: Intervalo para repouso ou alimentação | E67: ='Encargos Sociais'!E33 -> 0 | F67: =ROUND(E67*$F$16,2) -> 0
D69: QUADRO-RESUMO DO MÓDULO 4 | F69: Valor
D70: 4.1 - Ausências Legais | E70: =SUM(E59:E64) -> 0.02 | F70: =ROUND(E70*$F$16,2) -> 0
D71: 4.2 - Intrajornada | E71: =E67 -> 0 | F71: =ROUND(E71*$F$16,2) -> 0
D73: TOTAL DE PREVISÃO PARA RESCISÃO E INTERVALO INTRAJORNADA | F73: =SUM(F70:F71) -> 0
B75: MÓDULO 5 - INSUMOS DIVERSOS | F75: Valor
C76: A | D76: Uniformes - aquisição | F76: 0
C77: B | D77: Materiais de consumo relacionados ao posto - aquisição | F77: =ROUND(HLOOKUP(B5,'Mat Cons'!I11:DX13,3)/12,2) -> 0
C78: C | D78: Ferramentas relacionadas ao posto - remuneração da sua depreciação / manutenção | F78: =HLOOKUP(B5,'Relacion - Ferram'!Q3:EF5,3) -> 0
C79: D | D79: Equipamentos relacionados ao posto - remuneração da sua depreciação / manutenção | F79: =HLOOKUP(B5,'Equip Rel'!Q11:EF13,3) -> 0
C80: E | D80: Equipamentos de Proteção Individual - EPI - aquisição | F80: =ROUND(HLOOKUP(B5,Uniformes!#REF!,3)/12,2) -> 
D82: TOTAL DE INSUMOS DIVERSOS | F82: =SUM(F76:F81) ->  | H82: * Nota - Valores mensais por empregado
B84: MÓDULO 6 - CUSTOS INDIRETOS, TRIBUTOS E LUCRO - BDI | E84: Percentuais | F84: Valor
C85: A | D85: Custos Indiretos | E85: ='BDI - Geral'!E7 -> 0.0391
C86: A.1 | D86: Administração Central | E86: ='BDI - Geral'!E8 -> 0.0337
C87: A.2 | D87: Seguros, Garantias e Riscos | E87: ='BDI - Geral'!E9 -> 0.0054
C88: B | D88: Lucro | E88: ='BDI - Geral'!E11 -> 0.038
C89: C | D89: Tributos | E89: =SUM(E90:E91) -> 0.124
C90: C.1 | D90: Tributos Federais (COFINS, PIS e CPRB) | E90: ='BDI - Geral'!E19 -> 0.074
C91: C.2 | D91: Tributos Distritais (ISS) | E91: ='BDI - Geral'!E24 -> 0.05 | H91: * Nota - Utilizou-se o indicado pelo Sindicato da Arquitetura e da Engenharia (Sinaenco, 2008, p. 22), que adota um percentual redutor de 20% no cálculo dos custos tributários relativos às contribuições PIS e COFINS
C92: D | D92: Despesas Financeiras | E92: ='BDI - Geral'!E14 -> 0.0047
D94: TOTAL DE BDI | E94: ='BDI - Geral'!E27 -> 0.237 | F94: =E94*E102 -> 
D96: QUADRO-RESUMO DO CUSTO MENSAL POR EMPREGADO - SEM O 13º | E96: Valor
D97: Módulo 1 - Composição da Remuneração | E97: =F16 -> 0
D98: Módulo 2 - Encargos e Benefícios Anuais, Mensais e Diários | E98: =F45 -> 0
D99: Módulo 3 - Provisão para Rescisão | E99: =F55 -> 0
D100: Módulo 4 - Custo de Reposição do Profissional Ausente | E100: =F73 -> 0
D101: Módulo 5 - Insumos Diversos | E101: =F82 -> 
D102: SUBTOTAL (A+B+C+D+E) | E102: =SUM(E97:E101) -> 
D103: Módulo 6 - Custos Indiretos, Tributos e Lucro | E103: =F94 -> 
D105: TOTAL DO POSTO | E105: =SUM(E102:E103) -> 
B107: MÓDULO 7 - DESTAQUE DO MÓDULO 2 - 13º SALÁRIO | E107: Percentuais | F107: Valor
C108: A | D108: 13º Salário | E108: ='Encargos Sociais'!E32 -> 0.0833 | F108: =ROUND(E108*F$16,2) -> 0
C109: B | D109: Encargos Sociais sobre o 13º Salário - Taxa calculada no SUBMÓDULO 2.2 | E109: =SUM($E$24:$E$32) -> 0.348 | F109: =ROUND(E109*$F$108,2) -> 0 | H109: * Nota 1 - Provisiona-se, mensalmente, o proporcional a 1/12 dos valores referentes a gratificação natalina e adicional de férias.
C110: C | D110: BDI sobre o 13º Salário - Taxa calculada no MÓDULO 6 | E110: =E94 -> 0.237 | F110: =ROUND(E110*($F$108+$F$109),2) -> 0
D112: TOTAL DO DESTAQUE DO 13º SALÁRIO | F112: =SUM(F108:F110) -> 0
D114: QUADRO-RESUMO DO CUSTO MENSAL POR EMPREGADO | E114: Valor
D115: Custo total - sem o 13º Salário | E115: =ROUND(E105,2) -> 
D116: Destaque do 13º Salário (valor mensal) | E116: =ROUND(F112,2) -> 0
D118: TOTAL DO POSTO | E118: =E115+E116 -> 

Sheet 19 (hidden)
B2: PLANILHA DE ESTIMATIVA DE CUSTOS
B3: Padrão IN 05/2017 e IN 07/2018 - MPDG
B5: 19 | D5: =HLOOKUP($B$5,'Dados Gerais'!$D$6:$BH$22,6) -> 0 | E5: QUANTIDADE | F5: =HLOOKUP($B$5,'Dados Gerais'!$D$6:$BH$22,10) -> 0
B6: CCT | D6: =HLOOKUP($B$5,'Dados Gerais'!$D$6:$BH$22,16) -> 0 | E6: DATA-BASE | F6: =HLOOKUP($B$5,'Dados Gerais'!$D$6:$BH$22,17) -> 00:00:00
B8: MÓDULO 1 - COMPOSIÇÃO DA REMUNERAÇÃO | F8: Valor
C9: A | D9: Salário-Base | F9: =HLOOKUP($B$5,'Dados Gerais'!$D$6:$BH$22,8) -> 0
C10: B | D10: Adicional de Periculosidade | F10: =HLOOKUP($B$5,'Dados Gerais'!$D$6:$BH$39,26) -> 0
C11: C | D11: Adicional de Insalubridade | F11: =HLOOKUP($B$5,'Dados Gerais'!$D$6:$BH$39,32) -> 0
C12: D | D12: Adicional Noturno | F12: =HLOOKUP($B$5,'Dados Gerais'!$D$6:$BH$52,47) -> 0 | H12: * Nota 1 - O Módulo 1 refere-se ao valor mensal devido ao empregado pela prestação do serviço no período de 12 meses.
C13: E | D13: Adicional de Hora Extra | F13: =HLOOKUP($B$5,'Dados Gerais'!$D$6:$BH$69,64) -> 0 | H13: * Nota 2 - O adicional de hora extra no feriado trabalhado foi suprimido pela Lei 13.467/17
C14: F | D14: Outros (adicional de sobreaviso) | F14: =HLOOKUP($B$5,'Dados Gerais'!$D$6:$BH$69,34) -> 0 | H14: * Nota 3 - ART. 7º, § 2º, DA LEI Nº 605/49.Sendo mensalista o obreiro, o adicional noturno pago de forma fixa já é considerado integrado para os efeitos do pagamento do repouso semanal remunerado, nos termos do art. 7º, § 2º, da Lei nº 605/49.
D16: TOTAL DA REMUNERAÇÃO | F16: =SUM(F9:F14) -> 0
B18: MÓDULO 2 - ENCARGOS E BENEFÍCIOS ANUAIS, MENSAIS E DIÁRIOS | E18: Percentuais | F18: Valor
B19: Submódulo 2.1 - 13º Salário, Férias e Adicional de Férias
C20: A | D20: 13º Salário - Calculado no Módulo 7 - Destacado | E20: 0 | F20: =ROUND(E20*F$16,2) -> 0
C21: B | D21: Férias e Adicional de Férias | E21: ='Encargos Sociais'!E25+'Encargos Sociais'!E31 -> 0.1212 | F21: =ROUND(E21*F$16,2) -> 0 | H21: * Nota 1 - Provisiona-se, mensalmente, o proporcional a 1/12 dos valores referentes a gratificação natalina, férias e adicional de férias.
H22: * Nota 2 - O adicional de férias contido no Submódulo 2.1 corresponde a 1/3 da remuneração que, por sua vez, é dividida por 12 contome Nota 1.
B23: Submódulo 2.2 - Encargos Previdenciários (GPS), Fundo de Garantia por Tempo de Serviço (FGTS) e Outras Contribuições
C24: A | D24: INSS (art. 22, inciso I, Lei nº 8.212/91) | E24: ='Encargos Sociais'!E14 -> 0.2 | F24: =ROUND(E24*($F$16+$F$41+$F$73),2) -> 0
C25: B | D25: Salário Educação (art. 3º, inciso I, Decreto nº 87.043/82) | E25: ='Encargos Sociais'!E15 -> 0.025 | F25: =ROUND(E25*($F$16+$F$41+$F$73),2) -> 0
C26: C | D26: SAT/RAT (art. 22, II, Lei 8.212/91 e Anexo V, Decreto 6.042/07) - Enquadramento 8211-3/00 | E26: ='Encargos Sociais'!E16 -> 0.01 | F26: 0
C27: D | D27: SESC ou SESI (art. 30, Lei nº 8.036/90 e art. 1º, Lei 8.154/90) | E27: ='Encargos Sociais'!E17 -> 0.015 | F27: 0
C28: E | D28: SENAI ou SENAC (Decreto nº 2.318/86) | E28: ='Encargos Sociais'!E18 -> 0.01 | F28: 0
C29: F | D29: SEBRAE (§ 3º, art. 8º, Lei 8.029/90, alterada pela Lei nº 8.154/90) | E29: ='Encargos Sociais'!E19 -> 0.006 | F29: 0
C30: G | D30: INCRA (art. 1º, I, Decreto Lei 1.146/70 e Lei 7.787, de 30/06/89) | E30: ='Encargos Sociais'!E20 -> 0.002 | F30: 0 | H30: * Nota 1 - Os percentuais dos encargos previdenciários, do FGTS e demais contribuições são estabelecidos por legislação vigente.
C31: H | D31: FGTS (Lei Complementar nº 110/01 e art. 30, Lei nº 8.036/90) | E31: ='Encargos Sociais'!E21 -> 0.08 | F31: 0 | H31: * Nota 2 - O SAT, a depender do grau de risco do serviço, irá variar entre 1%, para risco leve, de 2%, para risco médio, e de 3% para risco grave.
C32: I | D32: SECONCI (Convenções Coletivas de Trabalho da construção) | E32: ='Encargos Sociais'!E22 -> 0 | F32: 0 | H32: * Nota 3 - Os percentuais do Submódulo 2.2 incidem sobre o Módulo 1 e o Submódulo 2.1.
B34: Submódulo 2.3 - Benefícios Mensais e Diários
C35: A | D35: Auxílio Transporte | F35: =HLOOKUP($B$5,'Dados Gerais'!$D$6:$BH$95,83) -> 0
C36: B | D36: Auxílio Alimentação | F36: =HLOOKUP($B$5,'Dados Gerais'!$D$6:$BH$95,90) -> 0
C37: C | D37: Assistência Médica e Familiar | F37: =HLOOKUP($B$5,'Dados Gerais'!$D$6:$BH$103,98) -> 0
C38: D | D38: Outros (Seguro de vida, auxílio funeral, auxílio odontológico e auxílio creche) | F38: =HLOOKUP($B$5,'Dados Gerais'!$D$6:$BH$121,115) -> 0 | H38: * Nota 1 - O valor informado deverá ser o custo real do benefício (descontado o valor eventualmente pago pelo empregado).
H39: * Nota 2 - Observar a previsão dos benefícios contidos em Acordos, Convenções e Dissídios Coletivos de Trabalho e o disposto no art. 6º da IN 5/2017
D40: QUADRO-RESUMO DO MÓDULO 2
D41: 2.1 - 13º Salário, Férias e Adicional de Férias - 13º Destacado - Calculado no Módulo 7 | E41: =SUM(E20:E21) -> 0.1212 | F41: =F20+F21 -> 0
D42: 2.2 - Encargos Previdenciários (GPS), Fundo de Garantia por Tempo de Serviço (FGTS) e Contribuições | E42: =SUM(E24:E32) -> 0.348 | F42: =SUM(F24:F32) -> 0
D43: 2.3 - Benefícios Mensais e Diários | F43: =SUM(F35:F38) -> 0
D45: TOTAL DOS ENCARGOS E BENEFÍCIOS | F45: =SUM(F41:F43) -> 0
B47: MÓDULO 3 - PREVISÃO PARA RESCISÃO | E47: Percentuais | F47: Valor
C48: A | D48: Aviso Prévio Indenizado (Art. 7º, inciso XXI, da CF/1988 e arts. 477, 487, §1º, e 491 da CLT) | E48: ='Encargos Sociais'!E36 -> 0.0035 | F48: =ROUND(E48*$F$16,2) -> 0
C49: B | D49: Incidência do FGTS sobre o Aviso Prévio Indenizado (Súmula 305 TST) | E49: ='Encargos Sociais'!E37 -> 0.0003 | F49: 0 | H49: * Nota 1 - Adotou-se os parâmetros do estudo do STF (http://www.stf.jus.br/arquivo/cms/sobrestfestudosci/anexo/encargos_sociais_03102007.pdf), onde 5% do pessoal é demitido pelo empregador no decurso do contrato (para estes, considerou-se o aviso prévio indenizado). Desprezou-se as demissões por justa causa e os pedidos de demissão.
C50: C | D50: Multa do FGTS e Contribuição Social sobre o Aviso Prévio Indenizado (Art. 18, §1º, da Lei 8.036/1990 e art. 1º da LC nº 110/2001) | E50: ='Encargos Sociais'!E38 -> 0.0011 | F50: 0 | H50: * Nota 2 - No cálculo do percentual, considerou-se 36 dias, correspondendo à metade da duração média dos contratos (2 anos)
C51: D | D51: Aviso Prévio Trabalhado (Art. 488, parágrafo único, CLT) | E51: ='Encargos Sociais'!E39 -> 0.0078 | F51: 0 | H51: * Nota 3 - Incide sobre a Remuneração + 13º salário (1/12) + Férias (1/12) + Adicional de Férias (1/36) x 50% multa (40% para o empregado e 10% de contribuição social) x 8% FGTS
C52: E | D52: Incidência de GPS, FGTS e outras contribuições sobre o Aviso Prévio Trabalhado | E52: ='Encargos Sociais'!E40 -> 0.0027 | F52: 0 | H52: * Nota 4 - Os 95% restantes do cálculo, a um prazo médio de contrato de 4 anos. Assim, calcula-se 7 dias para o 1º ano de contrato e mais 3 dias para os 3 anos seguintes.
C53: F | D53: Multa do FGTS e Contribuição Social sobre o Aviso Prévio Trabalhado | E53: ='Encargos Sociais'!E41 -> 0.0309 | F53: 0
D55: TOTAL DE PREVISÃO PARA RESCISÃO | F55: =SUM(F48:F53) -> 0
B57: MÓDULO 4 - CUSTO DO PROFISSIONAL AUSENTE | E57: Percentuais | F57: Valor
B58: Submódulo 4.1 - Ausências Legais
C59: A | D59: Férias (Arts. 129 e 130, inc. I, da CLT) - Calculado no Submódulo 2.1 | E59: 0 | F59: =ROUND(E59*$F$16,2) -> 0 | H59: * Nota 1 - As alíneas “A” a “F” referem-se somente ao custo que será pago ao repositor pelos dias trabalhados quando da necessidade de substituir a mão de obra alocada na prestação do serviço.
C60: B | D60: Ausências Legais (Arts. 131 e 473 da CLT) | E60: ='Encargos Sociais'!E26 -> 0.0079 | F60: 0 | H60: * Nota 2 - Adotou-se a estimativa do SINAPI de 2 dias por ano.
C61: C | D61: Licença-Paternidade (Art. 7º, XIX, e art. 10, §1º, do ADCT, CF/1988 e Art. 1º, II, da Lei 11.770/2008) | E61: ='Encargos Sociais'!E27 -> 0.0008 | F61: 0 | H61: * Nota 3 - Utilizada a proporção de 50% para homens, 5 dias de afastamento, e a probabilidade de um trabalhador requerer a Licença Paternidade em 5,22%, conforme SINAPI (citando dados da PNAD 2015)
C62: D | D62: Ausência por Acidente de Trabalho (Art. 131, III, da CLT) | E62: ='Encargos Sociais'!E28 -> 0.0009 | F62: 0 | H62: * Nota 4 - Utilzada a estatística de 1,96% dos contribuintes beneficiados com a emissão do auxílio, conforme Anuário Estatístico da Previdência Social. Afastamento de 15 dias a cargo da empresa.
C63: E | D63: Afastamento Maternidade (Art. 71 da Lei nº 8.213/1991) | E63: ='Encargos Sociais'!E29 -> 0.0033 | F63: 0 | H63: * Nota 5 - Utilizada a proporção de 50% para mulheres, 180 dias de afastamento, e a probabilidade de uma trabalhadora requerer a Licença Maternidade em 4,91%, conforme SINAPI (citando dados do IBGE 2016)
C64: F | D64: Auxílio Enfermidade - Doença (Art. 59 da Lei nº 8.213/1991) | E64: ='Encargos Sociais'!E30 -> 0.0071 | F64: 0 | H64: * Nota 6 - Utilizada a estatística de 3,37% dos contribuintes beneficiados com o auxílio, conforme Anuário Estatístico da Previdência Social de 2015 (acrescidos de 2 dias ao ano, para os quais o trabalhador nem requer o benefício da Previdência - conforme SINAPI)
B66: Submódulo 4.2 - Intrajornada
C67: A | D67: Intervalo para repouso ou alimentação | E67: ='Encargos Sociais'!E33 -> 0 | F67: =ROUND(E67*$F$16,2) -> 0
D69: QUADRO-RESUMO DO MÓDULO 4 | F69: Valor
D70: 4.1 - Ausências Legais | E70: =SUM(E59:E64) -> 0.02 | F70: =ROUND(E70*$F$16,2) -> 0
D71: 4.2 - Intrajornada | E71: =E67 -> 0 | F71: =ROUND(E71*$F$16,2) -> 0
D73: TOTAL DE PREVISÃO PARA RESCISÃO E INTERVALO INTRAJORNADA | F73: =SUM(F70:F71) -> 0
B75: MÓDULO 5 - INSUMOS DIVERSOS | F75: Valor
C76: A | D76: Uniformes - aquisição | F76: 0
C77: B | D77: Materiais de consumo relacionados ao posto - aquisição | F77: =ROUND(HLOOKUP(B5,'Mat Cons'!I11:DX13,3)/12,2) -> 0
C78: C | D78: Ferramentas relacionadas ao posto - remuneração da sua depreciação / manutenção | F78: =HLOOKUP(B5,'Relacion - Ferram'!Q3:EF5,3) -> 0
C79: D | D79: Equipamentos relacionados ao posto - remuneração da sua depreciação / manutenção | F79: =HLOOKUP(B5,'Equip Rel'!Q11:EF13,3) -> 0
C80: E | D80: Equipamentos de Proteção Individual - EPI - aquisição | F80: =ROUND(HLOOKUP(B5,Uniformes!#REF!,3)/12,2) -> 
D82: TOTAL DE INSUMOS DIVERSOS | F82: =SUM(F76:F81) ->  | H82: * Nota - Valores mensais por empregado
B84: MÓDULO 6 - CUSTOS INDIRETOS, TRIBUTOS E LUCRO - BDI | E84: Percentuais | F84: Valor
C85: A | D85: Custos Indiretos | E85: ='BDI - Geral'!E7 -> 0.0391
C86: A.1 | D86: Administração Central | E86: ='BDI - Geral'!E8 -> 0.0337
C87: A.2 | D87: Seguros, Garantias e Riscos | E87: ='BDI - Geral'!E9 -> 0.0054
C88: B | D88: Lucro | E88: ='BDI - Geral'!E11 -> 0.038
C89: C | D89: Tributos | E89: =SUM(E90:E91) -> 0.124
C90: C.1 | D90: Tributos Federais (COFINS, PIS e CPRB) | E90: ='BDI - Geral'!E19 -> 0.074
C91: C.2 | D91: Tributos Distritais (ISS) | E91: ='BDI - Geral'!E24 -> 0.05 | H91: * Nota - Utilizou-se o indicado pelo Sindicato da Arquitetura e da Engenharia (Sinaenco, 2008, p. 22), que adota um percentual redutor de 20% no cálculo dos custos tributários relativos às contribuições PIS e COFINS
C92: D | D92: Despesas Financeiras | E92: ='BDI - Geral'!E14 -> 0.0047
D94: TOTAL DE BDI | E94: ='BDI - Geral'!E27 -> 0.237 | F94: =E94*E102 -> 
D96: QUADRO-RESUMO DO CUSTO MENSAL POR EMPREGADO - SEM O 13º | E96: Valor
D97: Módulo 1 - Composição da Remuneração | E97: =F16 -> 0
D98: Módulo 2 - Encargos e Benefícios Anuais, Mensais e Diários | E98: =F45 -> 0
D99: Módulo 3 - Provisão para Rescisão | E99: =F55 -> 0
D100: Módulo 4 - Custo de Reposição do Profissional Ausente | E100: =F73 -> 0
D101: Módulo 5 - Insumos Diversos | E101: =F82 -> 
D102: SUBTOTAL (A+B+C+D+E) | E102: =SUM(E97:E101) -> 
D103: Módulo 6 - Custos Indiretos, Tributos e Lucro | E103: =F94 -> 
D105: TOTAL DO POSTO | E105: =SUM(E102:E103) -> 
B107: MÓDULO 7 - DESTAQUE DO MÓDULO 2 - 13º SALÁRIO | E107: Percentuais | F107: Valor
C108: A | D108: 13º Salário | E108: ='Encargos Sociais'!E32 -> 0.0833 | F108: =ROUND(E108*F$16,2) -> 0
C109: B | D109: Encargos Sociais sobre o 13º Salário - Taxa calculada no SUBMÓDULO 2.2 | E109: =SUM($E$24:$E$32) -> 0.348 | F109: =ROUND(E109*$F$108,2) -> 0 | H109: * Nota 1 - Provisiona-se, mensalmente, o proporcional a 1/12 dos valores referentes a gratificação natalina e adicional de férias.
C110: C | D110: BDI sobre o 13º Salário - Taxa calculada no MÓDULO 6 | E110: =E94 -> 0.237 | F110: =ROUND(E110*($F$108+$F$109),2) -> 0
D112: TOTAL DO DESTAQUE DO 13º SALÁRIO | F112: =SUM(F108:F110) -> 0
D114: QUADRO-RESUMO DO CUSTO MENSAL POR EMPREGADO | E114: Valor
D115: Custo total - sem o 13º Salário | E115: =ROUND(E105,2) -> 
D116: Destaque do 13º Salário (valor mensal) | E116: =ROUND(F112,2) -> 0
D118: TOTAL DO POSTO | E118: =E115+E116 -> 

Sheet 20 (hidden)
B2: PLANILHA DE ESTIMATIVA DE CUSTOS
B3: Padrão IN 05/2017 e IN 07/2018 - MPDG
B5: 20 | D5: =HLOOKUP($B$5,'Dados Gerais'!$D$6:$BH$22,6) -> 0 | E5: QUANTIDADE | F5: =HLOOKUP($B$5,'Dados Gerais'!$D$6:$BH$22,10) -> 0
B6: CCT | D6: =HLOOKUP($B$5,'Dados Gerais'!$D$6:$BH$22,16) -> 0 | E6: DATA-BASE | F6: =HLOOKUP($B$5,'Dados Gerais'!$D$6:$BH$22,17) -> 00:00:00
B8: MÓDULO 1 - COMPOSIÇÃO DA REMUNERAÇÃO | F8: Valor
C9: A | D9: Salário-Base | F9: =HLOOKUP($B$5,'Dados Gerais'!$D$6:$BH$22,8) -> 0
C10: B | D10: Adicional de Periculosidade | F10: =HLOOKUP($B$5,'Dados Gerais'!$D$6:$BH$39,26) -> 0
C11: C | D11: Adicional de Insalubridade | F11: =HLOOKUP($B$5,'Dados Gerais'!$D$6:$BH$39,32) -> 0
C12: D | D12: Adicional Noturno | F12: =HLOOKUP($B$5,'Dados Gerais'!$D$6:$BH$52,47) -> 0 | H12: * Nota 1 - O Módulo 1 refere-se ao valor mensal devido ao empregado pela prestação do serviço no período de 12 meses.
C13: E | D13: Adicional de Hora Extra | F13: =HLOOKUP($B$5,'Dados Gerais'!$D$6:$BH$69,64) -> 0 | H13: * Nota 2 - O adicional de hora extra no feriado trabalhado foi suprimido pela Lei 13.467/17
C14: F | D14: Outros (adicional de sobreaviso) | F14: =HLOOKUP($B$5,'Dados Gerais'!$D$6:$BH$69,34) -> 0 | H14: * Nota 3 - ART. 7º, § 2º, DA LEI Nº 605/49.Sendo mensalista o obreiro, o adicional noturno pago de forma fixa já é considerado integrado para os efeitos do pagamento do repouso semanal remunerado, nos termos do art. 7º, § 2º, da Lei nº 605/49.
D16: TOTAL DA REMUNERAÇÃO | F16: =SUM(F9:F14) -> 0
B18: MÓDULO 2 - ENCARGOS E BENEFÍCIOS ANUAIS, MENSAIS E DIÁRIOS | E18: Percentuais | F18: Valor
B19: Submódulo 2.1 - 13º Salário, Férias e Adicional de Férias
C20: A | D20: 13º Salário - Calculado no Módulo 7 - Destacado | E20: 0 | F20: =ROUND(E20*F$16,2) -> 0
C21: B | D21: Férias e Adicional de Férias | E21: ='Encargos Sociais'!E25+'Encargos Sociais'!E31 -> 0.1212 | F21: =ROUND(E21*F$16,2) -> 0 | H21: * Nota 1 - Provisiona-se, mensalmente, o proporcional a 1/12 dos valores referentes a gratificação natalina, férias e adicional de férias.
H22: * Nota 2 - O adicional de férias contido no Submódulo 2.1 corresponde a 1/3 da remuneração que, por sua vez, é dividida por 12 contome Nota 1.
B23: Submódulo 2.2 - Encargos Previdenciários (GPS), Fundo de Garantia por Tempo de Serviço (FGTS) e Outras Contribuições
C24: A | D24: INSS (art. 22, inciso I, Lei nº 8.212/91) | E24: ='Encargos Sociais'!E14 -> 0.2 | F24: =ROUND(E24*($F$16+$F$41+$F$73),2) -> 0
C25: B | D25: Salário Educação (art. 3º, inciso I, Decreto nº 87.043/82) | E25: ='Encargos Sociais'!E15 -> 0.025 | F25: =ROUND(E25*($F$16+$F$41+$F$73),2) -> 0
C26: C | D26: SAT/RAT (art. 22, II, Lei 8.212/91 e Anexo V, Decreto 6.042/07) - Enquadramento 8211-3/00 | E26: ='Encargos Sociais'!E16 -> 0.01 | F26: 0
C27: D | D27: SESC ou SESI (art. 30, Lei nº 8.036/90 e art. 1º, Lei 8.154/90) | E27: ='Encargos Sociais'!E17 -> 0.015 | F27: 0
C28: E | D28: SENAI ou SENAC (Decreto nº 2.318/86) | E28: ='Encargos Sociais'!E18 -> 0.01 | F28: 0
C29: F | D29: SEBRAE (§ 3º, art. 8º, Lei 8.029/90, alterada pela Lei nº 8.154/90) | E29: ='Encargos Sociais'!E19 -> 0.006 | F29: 0
C30: G | D30: INCRA (art. 1º, I, Decreto Lei 1.146/70 e Lei 7.787, de 30/06/89) | E30: ='Encargos Sociais'!E20 -> 0.002 | F30: 0 | H30: * Nota 1 - Os percentuais dos encargos previdenciários, do FGTS e demais contribuições são estabelecidos por legislação vigente.
C31: H | D31: FGTS (Lei Complementar nº 110/01 e art. 30, Lei nº 8.036/90) | E31: ='Encargos Sociais'!E21 -> 0.08 | F31: 0 | H31: * Nota 2 - O SAT, a depender do grau de risco do serviço, irá variar entre 1%, para risco leve, de 2%, para risco médio, e de 3% para risco grave.
C32: I | D32: SECONCI (Convenções Coletivas de Trabalho da construção) | E32: ='Encargos Sociais'!E22 -> 0 | F32: 0 | H32: * Nota 3 - Os percentuais do Submódulo 2.2 incidem sobre o Módulo 1 e o Submódulo 2.1.
B34: Submódulo 2.3 - Benefícios Mensais e Diários
C35: A | D35: Auxílio Transporte | F35: =HLOOKUP($B$5,'Dados Gerais'!$D$6:$BH$95,83) -> 0
C36: B | D36: Auxílio Alimentação | F36: =HLOOKUP($B$5,'Dados Gerais'!$D$6:$BH$95,90) -> 0
C37: C | D37: Assistência Médica e Familiar | F37: =HLOOKUP($B$5,'Dados Gerais'!$D$6:$BH$103,98) -> 0
C38: D | D38: Outros (Seguro de vida, auxílio funeral, auxílio odontológico e auxílio creche) | F38: =HLOOKUP($B$5,'Dados Gerais'!$D$6:$BH$121,115) -> 0 | H38: * Nota 1 - O valor informado deverá ser o custo real do benefício (descontado o valor eventualmente pago pelo empregado).
H39: * Nota 2 - Observar a previsão dos benefícios contidos em Acordos, Convenções e Dissídios Coletivos de Trabalho e o disposto no art. 6º da IN 5/2017
D40: QUADRO-RESUMO DO MÓDULO 2
D41: 2.1 - 13º Salário, Férias e Adicional de Férias - 13º Destacado - Calculado no Módulo 7 | E41: =SUM(E20:E21) -> 0.1212 | F41: =F20+F21 -> 0
D42: 2.2 - Encargos Previdenciários (GPS), Fundo de Garantia por Tempo de Serviço (FGTS) e Contribuições | E42: =SUM(E24:E32) -> 0.348 | F42: =SUM(F24:F32) -> 0
D43: 2.3 - Benefícios Mensais e Diários | F43: =SUM(F35:F38) -> 0
D45: TOTAL DOS ENCARGOS E BENEFÍCIOS | F45: =SUM(F41:F43) -> 0
B47: MÓDULO 3 - PREVISÃO PARA RESCISÃO | E47: Percentuais | F47: Valor
C48: A | D48: Aviso Prévio Indenizado (Art. 7º, inciso XXI, da CF/1988 e arts. 477, 487, §1º, e 491 da CLT) | E48: ='Encargos Sociais'!E36 -> 0.0035 | F48: =ROUND(E48*$F$16,2) -> 0
C49: B | D49: Incidência do FGTS sobre o Aviso Prévio Indenizado (Súmula 305 TST) | E49: ='Encargos Sociais'!E37 -> 0.0003 | F49: 0 | H49: * Nota 1 - Adotou-se os parâmetros do estudo do STF (http://www.stf.jus.br/arquivo/cms/sobrestfestudosci/anexo/encargos_sociais_03102007.pdf), onde 5% do pessoal é demitido pelo empregador no decurso do contrato (para estes, considerou-se o aviso prévio indenizado). Desprezou-se as demissões por justa causa e os pedidos de demissão.
C50: C | D50: Multa do FGTS e Contribuição Social sobre o Aviso Prévio Indenizado (Art. 18, §1º, da Lei 8.036/1990 e art. 1º da LC nº 110/2001) | E50: ='Encargos Sociais'!E38 -> 0.0011 | F50: 0 | H50: * Nota 2 - No cálculo do percentual, considerou-se 36 dias, correspondendo à metade da duração média dos contratos (2 anos)
C51: D | D51: Aviso Prévio Trabalhado (Art. 488, parágrafo único, CLT) | E51: ='Encargos Sociais'!E39 -> 0.0078 | F51: 0 | H51: * Nota 3 - Incide sobre a Remuneração + 13º salário (1/12) + Férias (1/12) + Adicional de Férias (1/36) x 50% multa (40% para o empregado e 10% de contribuição social) x 8% FGTS
C52: E | D52: Incidência de GPS, FGTS e outras contribuições sobre o Aviso Prévio Trabalhado | E52: ='Encargos Sociais'!E40 -> 0.0027 | F52: 0 | H52: * Nota 4 - Os 95% restantes do cálculo, a um prazo médio de contrato de 4 anos. Assim, calcula-se 7 dias para o 1º ano de contrato e mais 3 dias para os 3 anos seguintes.
C53: F | D53: Multa do FGTS e Contribuição Social sobre o Aviso Prévio Trabalhado | E53: ='Encargos Sociais'!E41 -> 0.0309 | F53: 0
D55: TOTAL DE PREVISÃO PARA RESCISÃO | F55: =SUM(F48:F53) -> 0
B57: MÓDULO 4 - CUSTO DO PROFISSIONAL AUSENTE | E57: Percentuais | F57: Valor
B58: Submódulo 4.1 - Ausências Legais
C59: A | D59: Férias (Arts. 129 e 130, inc. I, da CLT) - Calculado no Submódulo 2.1 | E59: 0 | F59: =ROUND(E59*$F$16,2) -> 0 | H59: * Nota 1 - As alíneas “A” a “F” referem-se somente ao custo que será pago ao repositor pelos dias trabalhados quando da necessidade de substituir a mão de obra alocada na prestação do serviço.
C60: B | D60: Ausências Legais (Arts. 131 e 473 da CLT) | E60: ='Encargos Sociais'!E26 -> 0.0079 | F60: 0 | H60: * Nota 2 - Adotou-se a estimativa do SINAPI de 2 dias por ano.
C61: C | D61: Licença-Paternidade (Art. 7º, XIX, e art. 10, §1º, do ADCT, CF/1988 e Art. 1º, II, da Lei 11.770/2008) | E61: ='Encargos Sociais'!E27 -> 0.0008 | F61: 0 | H61: * Nota 3 - Utilizada a proporção de 50% para homens, 5 dias de afastamento, e a probabilidade de um trabalhador requerer a Licença Paternidade em 5,22%, conforme SINAPI (citando dados da PNAD 2015)
C62: D | D62: Ausência por Acidente de Trabalho (Art. 131, III, da CLT) | E62: ='Encargos Sociais'!E28 -> 0.0009 | F62: 0 | H62: * Nota 4 - Utilzada a estatística de 1,96% dos contribuintes beneficiados com a emissão do auxílio, conforme Anuário Estatístico da Previdência Social. Afastamento de 15 dias a cargo da empresa.
C63: E | D63: Afastamento Maternidade (Art. 71 da Lei nº 8.213/1991) | E63: ='Encargos Sociais'!E29 -> 0.0033 | F63: 0 | H63: * Nota 5 - Utilizada a proporção de 50% para mulheres, 180 dias de afastamento, e a probabilidade de uma trabalhadora requerer a Licença Maternidade em 4,91%, conforme SINAPI (citando dados do IBGE 2016)
C64: F | D64: Auxílio Enfermidade - Doença (Art. 59 da Lei nº 8.213/1991) | E64: ='Encargos Sociais'!E30 -> 0.0071 | F64: 0 | H64: * Nota 6 - Utilizada a estatística de 3,37% dos contribuintes beneficiados com o auxílio, conforme Anuário Estatístico da Previdência Social de 2015 (acrescidos de 2 dias ao ano, para os quais o trabalhador nem requer o benefício da Previdência - conforme SINAPI)
B66: Submódulo 4.2 - Intrajornada
C67: A | D67: Intervalo para repouso ou alimentação | E67: ='Encargos Sociais'!E33 -> 0 | F67: =ROUND(E67*$F$16,2) -> 0
D69: QUADRO-RESUMO DO MÓDULO 4 | F69: Valor
D70: 4.1 - Ausências Legais | E70: =SUM(E59:E64) -> 0.02 | F70: =ROUND(E70*$F$16,2) -> 0
D71: 4.2 - Intrajornada | E71: =E67 -> 0 | F71: =ROUND(E71*$F$16,2) -> 0
D73: TOTAL DE PREVISÃO PARA RESCISÃO E INTERVALO INTRAJORNADA | F73: =SUM(F70:F71) -> 0
B75: MÓDULO 5 - INSUMOS DIVERSOS | F75: Valor
C76: A | D76: Uniformes - aquisição | F76: 0
C77: B | D77: Materiais de consumo relacionados ao posto - aquisição | F77: =ROUND(HLOOKUP(B5,'Mat Cons'!I11:DX13,3)/12,2) -> 0
C78: C | D78: Ferramentas relacionadas ao posto - remuneração da sua depreciação / manutenção | F78: =HLOOKUP(B5,'Relacion - Ferram'!Q3:EF5,3) -> 0
C79: D | D79: Equipamentos relacionados ao posto - remuneração da sua depreciação / manutenção | F79: =HLOOKUP(B5,'Equip Rel'!Q11:EF13,3) -> 0
C80: E | D80: Equipamentos de Proteção Individual - EPI - aquisição | F80: =ROUND(HLOOKUP(B5,Uniformes!#REF!,3)/12,2) -> 
D82: TOTAL DE INSUMOS DIVERSOS | F82: =SUM(F76:F81) ->  | H82: * Nota - Valores mensais por empregado
B84: MÓDULO 6 - CUSTOS INDIRETOS, TRIBUTOS E LUCRO - BDI | E84: Percentuais | F84: Valor
C85: A | D85: Custos Indiretos | E85: ='BDI - Geral'!E7 -> 0.0391
C86: A.1 | D86: Administração Central | E86: ='BDI - Geral'!E8 -> 0.0337
C87: A.2 | D87: Seguros, Garantias e Riscos | E87: ='BDI - Geral'!E9 -> 0.0054
C88: B | D88: Lucro | E88: ='BDI - Geral'!E11 -> 0.038
C89: C | D89: Tributos | E89: =SUM(E90:E91) -> 0.124
C90: C.1 | D90: Tributos Federais (COFINS, PIS e CPRB) | E90: ='BDI - Geral'!E19 -> 0.074
C91: C.2 | D91: Tributos Distritais (ISS) | E91: ='BDI - Geral'!E24 -> 0.05 | H91: * Nota - Utilizou-se o indicado pelo Sindicato da Arquitetura e da Engenharia (Sinaenco, 2008, p. 22), que adota um percentual redutor de 20% no cálculo dos custos tributários relativos às contribuições PIS e COFINS
C92: D | D92: Despesas Financeiras | E92: ='BDI - Geral'!E14 -> 0.0047
D94: TOTAL DE BDI | E94: ='BDI - Geral'!E27 -> 0.237 | F94: =E94*E102 -> 
D96: QUADRO-RESUMO DO CUSTO MENSAL POR EMPREGADO - SEM O 13º | E96: Valor
D97: Módulo 1 - Composição da Remuneração | E97: =F16 -> 0
D98: Módulo 2 - Encargos e Benefícios Anuais, Mensais e Diários | E98: =F45 -> 0
D99: Módulo 3 - Provisão para Rescisão | E99: =F55 -> 0
D100: Módulo 4 - Custo de Reposição do Profissional Ausente | E100: =F73 -> 0
D101: Módulo 5 - Insumos Diversos | E101: =F82 -> 
D102: SUBTOTAL (A+B+C+D+E) | E102: =SUM(E97:E101) -> 
D103: Módulo 6 - Custos Indiretos, Tributos e Lucro | E103: =F94 -> 
D105: TOTAL DO POSTO | E105: =SUM(E102:E103) -> 
B107: MÓDULO 7 - DESTAQUE DO MÓDULO 2 - 13º SALÁRIO | E107: Percentuais | F107: Valor
C108: A | D108: 13º Salário | E108: ='Encargos Sociais'!E32 -> 0.0833 | F108: =ROUND(E108*F$16,2) -> 0
C109: B | D109: Encargos Sociais sobre o 13º Salário - Taxa calculada no SUBMÓDULO 2.2 | E109: =SUM($E$24:$E$32) -> 0.348 | F109: =ROUND(E109*$F$108,2) -> 0 | H109: * Nota 1 - Provisiona-se, mensalmente, o proporcional a 1/12 dos valores referentes a gratificação natalina e adicional de férias.
C110: C | D110: BDI sobre o 13º Salário - Taxa calculada no MÓDULO 6 | E110: =E94 -> 0.237 | F110: =ROUND(E110*($F$108+$F$109),2) -> 0
D112: TOTAL DO DESTAQUE DO 13º SALÁRIO | F112: =SUM(F108:F110) -> 0
D114: QUADRO-RESUMO DO CUSTO MENSAL POR EMPREGADO | E114: Valor
D115: Custo total - sem o 13º Salário | E115: =ROUND(E105,2) -> 
D116: Destaque do 13º Salário (valor mensal) | E116: =ROUND(F112,2) -> 0
D118: TOTAL DO POSTO | E118: =E115+E116 -> 

Sheet 21 (hidden)
B2: PLANILHA DE ESTIMATIVA DE CUSTOS
B3: Padrão IN 05/2017 e IN 07/2018 - MPDG
B5: 21 | D5: =HLOOKUP($B$5,'Dados Gerais'!$D$6:$BH$22,6) -> 0 | E5: QUANTIDADE | F5: =HLOOKUP($B$5,'Dados Gerais'!$D$6:$BH$22,10) -> 0
B6: CCT | D6: =HLOOKUP($B$5,'Dados Gerais'!$D$6:$BH$22,16) -> 0 | E6: DATA-BASE | F6: =HLOOKUP($B$5,'Dados Gerais'!$D$6:$BH$22,17) -> 00:00:00
B8: MÓDULO 1 - COMPOSIÇÃO DA REMUNERAÇÃO | F8: Valor
C9: A | D9: Salário-Base | F9: =HLOOKUP($B$5,'Dados Gerais'!$D$6:$BH$22,8) -> 0
C10: B | D10: Adicional de Periculosidade | F10: =HLOOKUP($B$5,'Dados Gerais'!$D$6:$BH$39,26) -> 0
C11: C | D11: Adicional de Insalubridade | F11: =HLOOKUP($B$5,'Dados Gerais'!$D$6:$BH$39,32) -> 0
C12: D | D12: Adicional Noturno | F12: =HLOOKUP($B$5,'Dados Gerais'!$D$6:$BH$52,47) -> 0 | H12: * Nota 1 - O Módulo 1 refere-se ao valor mensal devido ao empregado pela prestação do serviço no período de 12 meses.
C13: E | D13: Adicional de Hora Extra | F13: =HLOOKUP($B$5,'Dados Gerais'!$D$6:$BH$69,64) -> 0 | H13: * Nota 2 - O adicional de hora extra no feriado trabalhado foi suprimido pela Lei 13.467/17
C14: F | D14: Outros (especificar) | F14: 0 | H14: * Nota 3 - ART. 7º, § 2º, DA LEI Nº 605/49.Sendo mensalista o obreiro, o adicional noturno pago de forma fixa já é considerado integrado para os efeitos do pagamento do repouso semanal remunerado, nos termos do art. 7º, § 2º, da Lei nº 605/49.
D16: TOTAL DA REMUNERAÇÃO | F16: =SUM(F9:F14) -> 0
B18: MÓDULO 2 - ENCARGOS E BENEFÍCIOS ANUAIS, MENSAIS E DIÁRIOS | E18: Percentuais | F18: Valor
B19: Submódulo 2.1 - 13º Salário, Férias e Adicional de Férias
C20: A | D20: 13º Salário - Calculado no Módulo 7 - Destacado | E20: 0 | F20: =ROUND(E20*F$16,2) -> 0
C21: B | D21: Férias e Adicional de Férias | E21: ='Encargos Sociais'!E25+'Encargos Sociais'!E31 -> 0.1212 | F21: =ROUND(E21*F$16,2) -> 0 | H21: * Nota 1 - Provisiona-se, mensalmente, o proporcional a 1/12 dos valores referentes a gratificação natalina, férias e adicional de férias.
H22: * Nota 2 - O adicional de férias contido no Submódulo 2.1 corresponde a 1/3 da remuneração que, por sua vez, é dividida por 12 contome Nota 1.
B23: Submódulo 2.2 - Encargos Previdenciários (GPS), Fundo de Garantia por Tempo de Serviço (FGTS) e Outras Contribuições
C24: A | D24: INSS (art. 22, inciso I, Lei nº 8.212/91) | E24: ='Encargos Sociais'!E14 -> 0.2 | F24: =ROUND(E24*($F$16+$F$41+$F$73),2) -> 0
C25: B | D25: Salário Educação (art. 3º, inciso I, Decreto nº 87.043/82) | E25: ='Encargos Sociais'!E15 -> 0.025 | F25: =ROUND(E25*($F$16+$F$41+$F$73),2) -> 0
C26: C | D26: SAT/RAT (art. 22, II, Lei 8.212/91 e Anexo V, Decreto 6.042/07) - Enquadramento 8211-3/00 | E26: ='Encargos Sociais'!E16 -> 0.01 | F26: 0
C27: D | D27: SESC ou SESI (art. 30, Lei nº 8.036/90 e art. 1º, Lei 8.154/90) | E27: ='Encargos Sociais'!E17 -> 0.015 | F27: 0
C28: E | D28: SENAI ou SENAC (Decreto nº 2.318/86) | E28: ='Encargos Sociais'!E18 -> 0.01 | F28: 0
C29: F | D29: SEBRAE (§ 3º, art. 8º, Lei 8.029/90, alterada pela Lei nº 8.154/90) | E29: ='Encargos Sociais'!E19 -> 0.006 | F29: 0
C30: G | D30: INCRA (art. 1º, I, Decreto Lei 1.146/70 e Lei 7.787, de 30/06/89) | E30: ='Encargos Sociais'!E20 -> 0.002 | F30: 0 | H30: * Nota 1 - Os percentuais dos encargos previdenciários, do FGTS e demais contribuições são estabelecidos por legislação vigente.
C31: H | D31: FGTS (Lei Complementar nº 110/01 e art. 30, Lei nº 8.036/90) | E31: ='Encargos Sociais'!E21 -> 0.08 | F31: 0 | H31: * Nota 2 - O SAT, a depender do grau de risco do serviço, irá variar entre 1%, para risco leve, de 2%, para risco médio, e de 3% para risco grave.
C32: I | D32: SECONCI (Convenções Coletivas de Trabalho da construção) | E32: ='Encargos Sociais'!E22 -> 0 | F32: 0 | H32: * Nota 3 - Os percentuais do Submódulo 2.2 incidem sobre o Módulo 1 e o Submódulo 2.1.
B34: Submódulo 2.3 - Benefícios Mensais e Diários
C35: A | D35: Auxílio Transporte | F35: =HLOOKUP($B$5,'Dados Gerais'!$D$6:$BH$95,83) -> 0
C36: B | D36: Auxílio Alimentação | F36: =HLOOKUP($B$5,'Dados Gerais'!$D$6:$BH$95,90) -> 0
C37: C | D37: Assistência Médica e Familiar | F37: =HLOOKUP($B$5,'Dados Gerais'!$D$6:$BH$103,98) -> 0
C38: D | D38: Outros (Seguro de vida, auxílio funeral, auxílio odontológico e auxílio creche) | F38: =HLOOKUP($B$5,'Dados Gerais'!$D$6:$BH$121,115) -> 0 | H38: * Nota 1 - O valor informado deverá ser o custo real do benefício (descontado o valor eventualmente pago pelo empregado).
H39: * Nota 2 - Observar a previsão dos benefícios contidos em Acordos, Convenções e Dissídios Coletivos de Trabalho e o disposto no art. 6º da IN 5/2017
D40: QUADRO-RESUMO DO MÓDULO 2
D41: 2.1 - 13º Salário, Férias e Adicional de Férias - 13º Destacado - Calculado no Módulo 7 | E41: =SUM(E20:E21) -> 0.1212 | F41: =F20+F21 -> 0
D42: 2.2 - Encargos Previdenciários (GPS), Fundo de Garantia por Tempo de Serviço (FGTS) e Contribuições | E42: =SUM(E24:E32) -> 0.348 | F42: =SUM(F24:F32) -> 0
D43: 2.3 - Benefícios Mensais e Diários | F43: =SUM(F35:F38) -> 0
D45: TOTAL DOS ENCARGOS E BENEFÍCIOS | F45: =SUM(F41:F43) -> 0
B47: MÓDULO 3 - PREVISÃO PARA RESCISÃO | E47: Percentuais | F47: Valor
C48: A | D48: Aviso Prévio Indenizado (Art. 7º, inciso XXI, da CF/1988 e arts. 477, 487, §1º, e 491 da CLT) | E48: ='Encargos Sociais'!E36 -> 0.0035 | F48: =ROUND(E48*$F$16,2) -> 0
C49: B | D49: Incidência do FGTS sobre o Aviso Prévio Indenizado (Súmula 305 TST) | E49: ='Encargos Sociais'!E37 -> 0.0003 | F49: 0 | H49: * Nota 1 - Adotou-se os parâmetros do estudo do STF (http://www.stf.jus.br/arquivo/cms/sobrestfestudosci/anexo/encargos_sociais_03102007.pdf), onde 5% do pessoal é demitido pelo empregador no decurso do contrato (para estes, considerou-se o aviso prévio indenizado). Desprezou-se as demissões por justa causa e os pedidos de demissão.
C50: C | D50: Multa do FGTS e Contribuição Social sobre o Aviso Prévio Indenizado (Art. 18, §1º, da Lei 8.036/1990 e art. 1º da LC nº 110/2001) | E50: ='Encargos Sociais'!E38 -> 0.0011 | F50: 0 | H50: * Nota 2 - No cálculo do percentual, considerou-se 36 dias, correspondendo à metade da duração média dos contratos (2 anos)
C51: D | D51: Aviso Prévio Trabalhado (Art. 488, parágrafo único, CLT) | E51: ='Encargos Sociais'!E39 -> 0.0078 | F51: 0 | H51: * Nota 3 - Incide sobre a Remuneração + 13º salário (1/12) + Férias (1/12) + Adicional de Férias (1/36) x 50% multa (40% para o empregado e 10% de contribuição social) x 8% FGTS
C52: E | D52: Incidência de GPS, FGTS e outras contribuições sobre o Aviso Prévio Trabalhado | E52: ='Encargos Sociais'!E40 -> 0.0027 | F52: 0 | H52: * Nota 4 - Os 95% restantes do cálculo, a um prazo médio de contrato de 4 anos. Assim, calcula-se 7 dias para o 1º ano de contrato e mais 3 dias para os 3 anos seguintes.
C53: F | D53: Multa do FGTS e Contribuição Social sobre o Aviso Prévio Trabalhado | E53: ='Encargos Sociais'!E41 -> 0.0309 | F53: 0
D55: TOTAL DE PREVISÃO PARA RESCISÃO | F55: =SUM(F48:F53) -> 0
B57: MÓDULO 4 - CUSTO DO PROFISSIONAL AUSENTE | E57: Percentuais | F57: Valor
B58: Submódulo 4.1 - Ausências Legais
C59: A | D59: Férias (Arts. 129 e 130, inc. I, da CLT) - Calculado no Submódulo 2.1 | E59: 0 | F59: =ROUND(E59*$F$16,2) -> 0 | H59: * Nota 1 - As alíneas “A” a “F” referem-se somente ao custo que será pago ao repositor pelos dias trabalhados quando da necessidade de substituir a mão de obra alocada na prestação do serviço.
C60: B | D60: Ausências Legais (Arts. 131 e 473 da CLT) | E60: ='Encargos Sociais'!E26 -> 0.0079 | F60: 0 | H60: * Nota 2 - Adotou-se a estimativa do SINAPI de 2 dias por ano.
C61: C | D61: Licença-Paternidade (Art. 7º, XIX, e art. 10, §1º, do ADCT, CF/1988 e Art. 1º, II, da Lei 11.770/2008) | E61: ='Encargos Sociais'!E27 -> 0.0008 | F61: 0 | H61: * Nota 3 - Utilizada a proporção de 50% para homens, 5 dias de afastamento, e a probabilidade de um trabalhador requerer a Licença Paternidade em 5,22%, conforme SINAPI (citando dados da PNAD 2015)
C62: D | D62: Ausência por Acidente de Trabalho (Art. 131, III, da CLT) | E62: ='Encargos Sociais'!E28 -> 0.0009 | F62: 0 | H62: * Nota 4 - Utilzada a estatística de 1,96% dos contribuintes beneficiados com a emissão do auxílio, conforme Anuário Estatístico da Previdência Social. Afastamento de 15 dias a cargo da empresa.
C63: E | D63: Afastamento Maternidade (Art. 71 da Lei nº 8.213/1991) | E63: ='Encargos Sociais'!E29 -> 0.0033 | F63: 0 | H63: * Nota 5 - Utilizada a proporção de 50% para mulheres, 180 dias de afastamento, e a probabilidade de uma trabalhadora requerer a Licença Maternidade em 4,91%, conforme SINAPI (citando dados do IBGE 2016)
C64: F | D64: Auxílio Enfermidade - Doença (Art. 59 da Lei nº 8.213/1991) | E64: ='Encargos Sociais'!E30 -> 0.0071 | F64: 0 | H64: * Nota 6 - Utilizada a estatística de 3,37% dos contribuintes beneficiados com o auxílio, conforme Anuário Estatístico da Previdência Social de 2015 (acrescidos de 2 dias ao ano, para os quais o trabalhador nem requer o benefício da Previdência - conforme SINAPI)
B66: Submódulo 4.2 - Intrajornada
C67: A | D67: Intervalo para repouso ou alimentação | E67: ='Encargos Sociais'!E33 -> 0 | F67: =ROUND(E67*$F$16,2) -> 0
D69: QUADRO-RESUMO DO MÓDULO 4 | F69: Valor
D70: 4.1 - Ausências Legais | E70: =SUM(E59:E64) -> 0.02 | F70: =ROUND(E70*$F$16,2) -> 0
D71: 4.2 - Intrajornada | E71: =E67 -> 0 | F71: =ROUND(E71*$F$16,2) -> 0
D73: TOTAL DE PREVISÃO PARA RESCISÃO E INTERVALO INTRAJORNADA | F73: =SUM(F70:F71) -> 0
B75: MÓDULO 5 - INSUMOS DIVERSOS | F75: Valor
C76: A | D76: Uniformes - aquisição | F76: =ROUND(HLOOKUP($B$5,#REF!,3)/12,2) -> 
C77: B | D77: Materiais de consumo relacionados ao posto - aquisição | F77: =ROUND(HLOOKUP(B5,'Mat Cons'!I11:DX13,3)/12,2) -> 0
C78: C | D78: Ferramentas relacionadas ao posto - remuneração da sua depreciação / manutenção | F78: =HLOOKUP(B5,'Relacion - Ferram'!Q3:EF5,3) -> 0
C79: D | D79: Equipamentos relacionados ao posto - remuneração da sua depreciação / manutenção | F79: =HLOOKUP(B5,'Equip Rel'!Q11:EF13,3) -> 0
C80: E | D80: Equipamentos de Proteção Individual - EPI - aquisição | F80: =ROUND(HLOOKUP(B5,Uniformes!#REF!,3)/12,2) -> 
D82: TOTAL DE INSUMOS DIVERSOS | F82: =SUM(F76:F81) ->  | H82: * Nota - Valores mensais por empregado
B84: MÓDULO 6 - CUSTOS INDIRETOS, TRIBUTOS E LUCRO - BDI | E84: Percentuais | F84: Valor
C85: A | D85: Custos Indiretos | E85: ='BDI - Geral'!E7 -> 0.0391
C86: A.1 | D86: Administração Central | E86: ='BDI - Geral'!E8 -> 0.0337
C87: A.2 | D87: Seguros, Garantias e Riscos | E87: ='BDI - Geral'!E9 -> 0.0054
C88: B | D88: Lucro | E88: ='BDI - Geral'!E11 -> 0.038
C89: C | D89: Tributos | E89: =SUM(E90:E91) -> 0.124
C90: C.1 | D90: Tributos Federais (COFINS, PIS e CPRB) | E90: ='BDI - Geral'!E19 -> 0.074
C91: C.2 | D91: Tributos Distritais (ISS) | E91: ='BDI - Geral'!E24 -> 0.05 | H91: * Nota - Utilizou-se o indicado pelo Sindicato da Arquitetura e da Engenharia (Sinaenco, 2008, p. 22), que adota um percentual redutor de 20% no cálculo dos custos tributários relativos às contribuições PIS e COFINS
C92: D | D92: Despesas Financeiras | E92: ='BDI - Geral'!E14 -> 0.0047
D94: TOTAL DE BDI | E94: ='BDI - Geral'!E27 -> 0.237 | F94: =E94*E102 -> 
D96: QUADRO-RESUMO DO CUSTO MENSAL POR EMPREGADO - SEM O 13º | E96: Valor
D97: Módulo 1 - Composição da Remuneração | E97: =F16 -> 0
D98: Módulo 2 - Encargos e Benefícios Anuais, Mensais e Diários | E98: =F45 -> 0
D99: Módulo 3 - Provisão para Rescisão | E99: =F55 -> 0
D100: Módulo 4 - Custo de Reposição do Profissional Ausente | E100: =F73 -> 0
D101: Módulo 5 - Insumos Diversos | E101: =F82 -> 
D102: SUBTOTAL (A+B+C+D+E) | E102: =SUM(E97:E101) -> 
D103: Módulo 6 - Custos Indiretos, Tributos e Lucro | E103: =F94 -> 
D105: TOTAL DO POSTO | E105: =SUM(E102:E103) -> 
B107: MÓDULO 7 - DESTAQUE DO MÓDULO 2 - 13º SALÁRIO | E107: Percentuais | F107: Valor
C108: A | D108: 13º Salário | E108: ='Encargos Sociais'!E32 -> 0.0833 | F108: =ROUND(E108*F$16,2) -> 0
C109: B | D109: Encargos Sociais sobre o 13º Salário - Taxa calculada no SUBMÓDULO 2.2 | E109: =SUM($E$24:$E$32) -> 0.348 | F109: =ROUND(E109*$F$108,2) -> 0 | H109: * Nota 1 - Provisiona-se, mensalmente, o proporcional a 1/12 dos valores referentes a gratificação natalina e adicional de férias.
C110: C | D110: BDI sobre o 13º Salário - Taxa calculada no MÓDULO 6 | E110: =E94 -> 0.237 | F110: =ROUND(E110*($F$108+$F$109),2) -> 0
D112: TOTAL DO DESTAQUE DO 13º SALÁRIO | F112: =SUM(F108:F110) -> 0
D114: QUADRO-RESUMO DO CUSTO MENSAL POR EMPREGADO | E114: Valor
D115: Custo total - sem o 13º Salário | E115: =ROUND(E105,2) -> 
D116: Destaque do 13º Salário (valor mensal) | E116: =ROUND(F112,2) -> 0
D118: TOTAL DO POSTO | E118: =E115+E116 -> 

Sheet Dados Gerais
B4: INFORMAÇÕES DE ENTRADA
D6: 1 | E6: 2 | F6: 3 | G6: 4 | H6: 5 | I6: 6 | J6: 8 | K6: 9 | L6: 10 | M6: 11 | N6: 12 | O6: 13 | P6: 14 | Q6: 15 | R6: 16 | S6: 17 | T6: 18 | U6: 19 | V6: 20 | W6: 21 | X6: 22 | Y6: 23 | Z6: 24 | AA6: 25 | AB6: 26 | AC6: 27 | AD6: 28 | AE6: 29 | AF6: 30 | AG6: 31 | AH6: 32 | AI6: 33 | AJ6: 34 | AK6: 35 | AL6: 36 | AN6: 40 | AO6: 41 | AP6: 42 | AQ6: 43 | AR6: 44 | AS6: 45 | AT6: 46 | AU6: 47 | AV6: 48 | AW6: 49 | AX6: 50 | AY6: 51 | AZ6: 52 | BA6: 53 | BB6: 54 | BC6: 55 | BD6: 56 | BE6: 57 | BF6: 58 | BG6: 59 | BH6: 60
D7: CARGO 1 | E7: CARGO 2 | F7: CARGO 3 | G7: CARGO 4 | H7: CARGO 5 | I7: CARGO 6 | J7: CARGO 8 | K7: CARGO 9 | L7: CARGO 10 | M7: CARGO 11 | N7: CARGO 12 | O7: CARGO 13 | P7: CARGO 14 | Q7: CARGO 15 | R7: CARGO 16 | S7: CARGO 17 | T7: CARGO 18 | U7: CARGO 19 | V7: CARGO 20 | W7: CARGO 21 | X7: CARGO 22 | Y7: CARGO 23 | Z7: CARGO 24 | AA7: CARGO 25 | AB7: CARGO 26 | AC7: CARGO 27 | AD7: CARGO 28 | AE7: CARGO 29 | AF7: CARGO 30 | AG7: CARGO 31 | AH7: CARGO 32 | AI7: CARGO 33 | AJ7: CARGO 34 | AK7: CARGO 35 | AL7: CARGO 36 | AN7: CARGO 40 | AO7: CARGO 41 | AP7: CARGO 42 | AQ7: CARGO 43 | AR7: CARGO 44 | AS7: CARGO 45 | AT7: CARGO 46 | AU7: CARGO 47 | AV7: CARGO 48 | AW7: CARGO 49 | AX7: CARGO 50 | AY7: CARGO 51 | AZ7: CARGO 52 | BA7: CARGO 53 | BB7: CARGO 54 | BC7: CARGO 55 | BD7: CARGO 56 | BE7: CARGO 57 | BF7: CARGO 58 | BG7: CARGO 59 | BH7: CARGO 60
B8: INFORMAÇÕES BÁSICAS
B10: DESCRIÇÃO DOS POSTOS DE SERVIÇO
D11: OPERADOR DE TRÁFEGO | E11: MOTORISTA EXECUTIVO | F11: HIGIENIZADOR DE VEÍCULOS | G11: ENCARREGADO | H11: MOTORISTA EXECUTIVO - PLANTONISTA DIURNO | I11: MOTORISTA EXECUTIVO - PLANTONISTA NOTURNO
B12: REMUNERAÇÕES | D12: 3300.94 | E12: 4135.51 | F12: 1935.34 | G12: 5061.17 | H12: =E12 -> 4135.51
D13: 3300.94 | E13: 4135.51 | F13: 1935.34 | G13: 5061.17 | H13: =E13 -> 4135.51 | I13: =H13 -> 4135.51
B14: QUANTIDADE DE POSTOS | D14: =IF(D13>D12,"Maior que Edital",0) -> 0 | E14: =IF(E13>E12,"Maior que Edital",0) -> 0 | F14: =IF(F13>F12,"Maior que Edital",0) -> 0 | G14: =IF(G13>G12,"Maior que Edital",0) -> 0 | H14: =IF(H13>H12,"Maior que Edital",0) -> 0
D15: 14 | E15: 95 | F15: 11 | G15: 2 | H15: 0 | I15: =H15 -> 0
B16: JORNADA
C17: HORAS/DIA | D17: 8 | E17: =D17 -> 8 | F17: 8 | G17: 8 | H17: 12 | I17: =H17 -> 12
C18: DIAS/MÊS | D18: 22 | E18: 22 | F18: 22 | G18: 22 | H18: 15 | I18: =H18 -> 15
C19: HORAS/MÊS | D19: 200 | E19: 220 | F19: 200 | G19: 200 | H19: =12*3*5 -> 180 | I19: =H19 -> 180
B20: CCT UTILIZADA
C21: SINDICATOS E REFERÊNCIA | D21: SEAC/DF x SITRATTER/DF CCT 2024/2025 N.º DF000642/2024 | E21: =D21 -> SEAC/DF x SITRATTER/DF CCT 2024/2025 N.º DF000642/2024 | F21: SEAC/DF x SINDISERVIÇOS/DF CCT 2024/2024 N.º DF000012/2024 | G21: =E21 -> SEAC/DF x SITRATTER/DF CCT 2024/2025 N.º DF000642/2024 | H21: =G21 -> SEAC/DF x SITRATTER/DF CCT 2024/2025 N.º DF000642/2024 | I21: =H21 -> SEAC/DF x SITRATTER/DF CCT 2024/2025 N.º DF000642/2024
C22: DATA-BASE | D22: 2024-01-01 | E22: =D22 -> 2024-01-01 | F22: =E22 -> 2024-01-01 | G22: =F22 -> 2024-01-01 | H22: =G22 -> 2024-01-01 | I22: =H22 -> 2024-01-01
B24: ADICIONAIS LEGAIS E GRATIFICAÇÕES
B26: PERICULOSIDADE (PERCENTUAL)
D27: 0 | E27: 0 | F27: 0 | G27: 0 | H27: 0 | I27: =H27 -> 0 | X27: 0.3 | Y27: 0.3 | Z27: 0 | AA27: 0 | AB27: 0 | AC27: 0 | AD27: 0 | AE27: 0 | AF27: 0 | AG27: 0 | AH27: 0 | AI27: 0 | AJ27: 0 | AK27: 0 | AL27: 0
B28: BASE DE CÁLCULO DO ADICIONAL DE PERICULOSIDADE (SALÁRIO BÁSICO)
D29: =D13 -> 3300.94 | E29: =E13 -> 4135.51 | F29: =F13 -> 1935.34 | G29: =G13 -> 5061.17 | H29: =H13 -> 4135.51 | I29: =H29 -> 4135.51 | X29: =X13 -> 0 | Y29: =Y13 -> 0 | Z29: =Z13 -> 0 | AA29: 0 | AB29: 0 | AC29: 0 | AD29: 0 | AE29: 0 | AF29: 0 | AG29: 0 | AH29: 0 | AI29: 0 | AJ29: 0 | AK29: 0 | AL29: 0
B30: VALOR MENSAL DO ADICIONAL DE PERICULOSIDADE
D31: =ROUND(D27*D13,2) -> 0 | E31: =ROUND(E27*E13,2) -> 0 | F31: =ROUND(F27*F13,2) -> 0 | G31: =ROUND(G27*G13,2) -> 0 | H31: =ROUND(H27*H13,2) -> 0 | I31: =H31 -> 0 | X31: =ROUND(X27*X13,2) -> 0 | Y31: =ROUND(Y27*Y13,2) -> 0 | Z31: =ROUND(Z27*Z13,2) -> 0 | AA31: 0 | AB31: 0 | AC31: 0 | AD31: 0 | AE31: 0 | AF31: 0 | AG31: 0 | AH31: 0 | AI31: 0 | AJ31: 0 | AK31: 0 | AL31: 0
B32: INSALUBRIDADE (PERCENTUAL)
D33: 0 | E33: 0 | F33: 0 | G33: 0 | H33: 0 | I33: =H33 -> 0 | X33: 0 | Y33: 0 | Z33: 0 | AA33: 0 | AB33: 0 | AC33: 0 | AD33: 0 | AE33: 0 | AF33: 0 | AG33: 0 | AH33: 0 | AI33: 0 | AJ33: 0 | AK33: 0 | AL33: 0
B34: BASE DE CÁLCULO DO ADICIONAL DE INSALUBRIDADE (SALÁRIO MÍNIMO LEGAL)
D35: 1412 | E35: 1412 | F35: 1412 | G35: 1412 | H35: 1412 | I35: =H35 -> 1412 | X35: 1100 | Y35: 1100 | Z35: 1100 | AA35: 1100 | AB35: 1100 | AC35: 1100 | AK35: 1100
B36: VALOR MENSAL DO ADICIONAL DE INSALUBRIDADE
D37: =ROUND(D33*D35,2) -> 0 | E37: =ROUND(E33*E35,2) -> 0 | F37: =ROUND(F33*F35,2) -> 0 | G37: =ROUND(G33*G35,2) -> 0 | H37: =ROUND(H33*H35,2) -> 0 | I37: =H37 -> 0 | X37: =ROUND(X33*X35,2) -> 0 | Y37: 0 | Z37: 0 | AA37: 0 | AB37: 0 | AC37: 0 | AD37: =ROUND(AD33*AD35,2) -> 0 | AE37: 0 | AF37: 0 | AG37: 0 | AH37: 0 | AI37: 0 | AJ37: 0 | AK37: 0 | AL37: 0
B38: GRATIFICAÇÃO - VALOR MENSAL (R$)
D39: 0 | E39: 0 | F39: 0 | G39: 0 | H39: 0 | I39: =H39 -> 0 | X39: 0 | Y39: 0 | Z39: 0 | AA39: 0 | AB39: 0 | AC39: 0 | AD39: 0 | AE39: 0 | AF39: 0 | AG39: 0 | AH39: 0 | AI39: 0 | AJ39: 0 | AK39: 0 | AL39: 0
B41: ADICIONAL NOTURNO
B43: INCIDÊNCIA (PERCENTUAL)
D44: 0.2 | E44: 0.2 | F44: 0.2 | G44: 0.2 | H44: 0.2 | I44: =H44 -> 0.2 | X44: 0.2 | Y44: 0.2 | Z44: 0.2 | AA44: 0.2 | AB44: 0.2 | AC44: 0.2 | AD44: 0.2 | AE44: 0.2 | AF44: 0.2 | AG44: 0.2 | AH44: 0.2 | AI44: 0.2 | AJ44: 0.2 | AK44: 0.2 | AL44: 0.2
B45: HORAS REAIS POR DIA
D46: 0 | E46: 0 | F46: 0 | G46: 0 | H46: 0 | I46: =H46 -> 0 | X46: 0 | Y46: 0 | Z46: 0 | AA46: 0 | AB46: 0 | AC46: 0 | AD46: 0 | AE46: 0 | AF46: 0 | AG46: 0 | AH46: 0 | AI46: 0 | AJ46: 0 | AK46: 0 | AL46: 0 | AM46: 0
B47: HORAS FICTAS POR DIA
D48: =D46*8/7 -> 0 | E48: 0 | F48: 0 | G48: 0 | H48: 0 | I48: 0 | X48: =X46*8/7 -> 0 | Y48: =Y46*8/7 -> 0 | Z48: =Z46*8/7 -> 0 | AA48: 0 | AB48: 0 | AC48: 0 | AD48: 0 | AE48: 0 | AF48: 0 | AG48: 0 | AH48: 0 | AI48: 0 | AJ48: 0 | AK48: 0 | AL48: 0
B49: BASE DE CÁLCULO DO ADICIONAL NOTURNO (INCLUINDO ADICIONAIS E GRATIFICAÇÕES)
D50: =D13+D31+D37+D39 -> 3300.94 | E50: =E13+E31+E37+E39 -> 4135.51 | F50: =F13+F31+F37+F39 -> 1935.34 | G50: =G13+G31+G37+G39 -> 5061.17 | H50: =H13+H31+H37+H39 -> 4135.51 | I50: =H50 -> 4135.51 | X50: =X13+X31+X37+X39 -> 0 | Y50: =Y13+Y31+Y37+Y39 -> 0 | Z50: =Z13+Z31+Z37+Z39 -> 0 | AA50: 0 | AB50: 0 | AC50: 0 | AD50: 0 | AE50: 0 | AF50: 0 | AG50: 0 | AH50: 0 | AI50: 0 | AJ50: 0 | AK50: 0 | AL50: 0
B51: VALOR MENSAL DO ADICIONAL NOTURNO (HORA NORMAL + HORA REDUZIDA) - POR POSTO
D52: =ROUND(D48*D18*D44*D50/D19,2) -> 0 | E52: 0 | F52: 0 | G52: 0 | H52: 0 | I52: 0 | X52: =ROUND(X48*X18*X44*X50/X19,2) ->  | Y52: =ROUND(Y48*Y18*Y44*Y50/Y19,2) ->  | Z52: =ROUND(Z48*Z18*Z44*Z50/Z19,2) -> 
B54: ADICIONAL DE HORA EXTRA
B56: INCIDÊNCIA (PERCENTUAL 1)
D57: 0.5 | E57: 0.5 | F57: 0.5 | G57: 0.5 | H57: 0.5 | I57: =H57 -> 0.5 | X57: 0.5 | Y57: 0.5 | Z57: 0.5 | AA57: 0.5 | AB57: 0.5 | AC57: 0.5 | AD57: 0.5 | AE57: 0.5 | AF57: 0.5 | AG57: 0.5 | AH57: 0.5 | AI57: 0.5 | AJ57: 0.5 | AK57: 0.5 | AL57: 0.5
B58: HORAS EXTRAS POR MÊS (PERCENTUAL 1)
D59: 0 | E59: 0 | F59: 0 | G59: 0 | H59: 0 | I59: =H59 -> 0 | X59: 0 | Y59: 0 | Z59: 0 | AA59: 0 | AB59: 0 | AC59: 0 | AD59: 0 | AE59: 0 | AF59: 0 | AG59: 0 | AH59: 0 | AI59: 0 | AJ59: 0 | AK59: 0 | AL59: 0
B60: VALOR MENSAL DO ADICIONAL DE HORAS EXTRAS (PERCENTUAL 1) - POR POSTO
D61: =ROUND(D59*D57*D13/D19,2) -> 0 | E61: =ROUND(E59*E57*E13/E19,2) -> 0 | F61: =ROUND(F59*F57*F13/F19,2) -> 0 | G61: =ROUND(G59*G57*G13/G19,2) -> 0 | H61: =ROUND(H59*H57*H13/H19,2) -> 0 | I61: =H61 -> 0 | X61: =ROUND(X59*X57*X13/X19,2) ->  | Y61: =ROUND(Y59*Y57*Y13/Y19,2) ->  | Z61: =ROUND(Z59*Z57*Z13/Z19,2) -> 
B62: INCIDÊNCIA (PERCENTUAL 2)
D63: 1 | E63: 1 | F63: 1 | G63: 1 | H63: 1 | I63: =H63 -> 1 | X63: 1 | Y63: 1 | Z63: 1 | AA63: 1 | AB63: 1 | AC63: 1 | AD63: 1 | AE63: 1 | AF63: 1 | AG63: 1 | AH63: 1 | AI63: 1 | AJ63: 1 | AK63: 1 | AL63: 1
B64: HORAS EXTRAS POR MÊS (PERCENTUAL 2)
D65: 0 | E65: 0 | F65: 0 | G65: 0 | H65: 0 | I65: =H65 -> 0 | X65: 0 | Y65: 0 | Z65: 0 | AA65: 0 | AB65: 0 | AC65: 0 | AD65: 0 | AE65: 0 | AF65: 0 | AG65: 0 | AH65: 0 | AI65: 0 | AJ65: 0 | AK65: 0 | AL65: 0
B66: VALOR MENSAL DO ADICIONAL DE HORAS EXTRAS (PERCENTUAL 2) - POR POSTO
D67: =ROUND(D65*D63*D13/D19,2) -> 0 | E67: =ROUND(E65*E63*E13/E19,2) -> 0 | F67: =ROUND(F65*F63*F13/F19,2) -> 0 | G67: =ROUND(G65*G63*G13/G19,2) -> 0 | H67: =ROUND(H65*H63*H13/H19,2) -> 0 | I67: =H67 -> 0 | X67: =ROUND(X65*X63*X13/X19,2) ->  | Y67: =ROUND(Y65*Y63*Y13/Y19,2) ->  | Z67: =ROUND(Z65*Z63*Z13/Z19,2) -> 
B68: TOTAL MENSAL DOS ADICIONAIS DE HORAS EXTRAS - POR POSTO
D69: =D67+D61 -> 0 | E69: =E67+E61 -> 0 | F69: =F67+F61 -> 0 | G69: =G67+G61 -> 0 | H69: =H67+H61 -> 0 | I69: =H69 -> 0 | X69: =X67+X61 ->  | Y69: =Y67+Y61 ->  | Z69: =Z67+Z61 -> 
B71: BENEFÍCIOS COMUNS - AUXÍLIO TRANSPORTE
B73: DISTRIBUIÇÃO ESTIMADA DE PROCEDÊNCIA
C74: Cidade-satélite | D74: =100%-D75 -> 0.91 | E74: =D74 -> 0.91 | F74: =E74 -> 0.91 | G74: =F74 -> 0.91 | H74: 0.91 | I74: =H74 -> 0.91 | X74: 0.68 | Y74: 0.68 | Z74: 0.68 | AA74: 0.68 | AB74: 0.68 | AC74: 0.68 | AD74: 0.68 | AE74: 0.68 | AF74: 0.68 | AG74: 0.68 | AH74: 0.68 | AI74: 0.68 | AJ74: 0.68 | AK74: 0.68 | AL74: 0.68
C75: Região do entorno (média ponderada do contrato atual) | D75: =ROUND(11/122,2) -> 0.09 | E75: =D75 -> 0.09 | F75: =E75 -> 0.09 | G75: 0.09 | H75: 0.09 | I75: =H75 -> 0.09 | X75: 0.32 | Y75: 0.32 | Z75: 0.32 | AA75: 0.32 | AB75: 0.32 | AC75: 0.32 | AD75: 0.32 | AE75: 0.32 | AF75: 0.32 | AG75: 0.32 | AH75: 0.32 | AI75: 0.32 | AJ75: 0.32 | AK75: 0.32 | AL75: 0.32
C76: Esplanada - apenas para os que vêm do entorno | D76: =D75 -> 0.09 | E76: 0.09 | F76: =E76 -> 0.09 | G76: 0.09 | H76: 0.09 | I76: =H76 -> 0.09 | X76: =X75 -> 0.32 | Y76: =Y75 -> 0.32 | Z76: =Z75 -> 0.32 | AA76: 0.32 | AB76: 0.32 | AC76: 0.32 | AD76: 0.32 | AE76: 0.32 | AF76: 0.32 | AG76: 0.32 | AH76: 0.32 | AI76: 0.32 | AJ76: 0.32 | AK76: 0.32 | AL76: 0.32
B77: VALORES DOS VALES
C78: Cidade-satélite | D78: 5.5 | E78: =D78 -> 5.5 | F78: 5.5 | G78: 5.5 | H78: 5.5 | I78: 5.5 | Z78: =U78 -> 0 | AA78: 0 | AB78: 0 | AC78: 0 | AD78: 0 | AE78: 0 | AF78: 0 | AG78: 0 | AH78: 0 | AI78: 0 | AJ78: 0 | AK78: 0 | AL78: 0
C79: Região do entorno (média ponderada do contrato atual) | D79: 10.75 | E79: 10.75 | F79: 10.75 | G79: 10.75 | H79: 10.75 | I79: 10.75 | Z79: 0 | AA79: 0 | AB79: 0 | AC79: 0 | AD79: 0 | AE79: 0 | AF79: 0 | AG79: 0 | AH79: 0 | AI79: 0 | AJ79: 0 | AK79: 0 | AL79: 0
C80: Esplanada | D80: 2.75 | E80: 2.75 | F80: 2.75 | G80: 2.75 | H80: 2.75 | I80: 2.75 | Z80: 0 | AA80: 0 | AB80: 0 | AC80: 0 | AD80: 0 | AE80: 0 | AF80: 0 | AG80: 0 | AH80: 0 | AI80: 0 | AJ80: 0 | AK80: 0 | AL80: 0
B81: VALOR MENSAL BRUTO DE PAGAMENTO - POR POSTO
D82: =ROUND((D74*D78+D75*D79+D76*D80)*2*D18,2) -> 273.68 | E82: =ROUND((E74*E78+E75*E79+E76*E80)*2*E18,2) -> 273.68 | F82: =ROUND((F74*F78+F75*F79+F76*F80)*2*F18,2) -> 273.68 | G82: =ROUND((G74*G78+G75*G79+G76*G80)*2*G18,2) -> 273.68 | H82: =ROUND((H74*H78+H75*H79+H76*H80)*2*H18,2) -> 186.6 | I82: =H82 -> 186.6 | X82: =ROUND((X74*X78+X75*X79+X76*X80)*2*X18,2) -> 0 | Y82: =ROUND((Y74*Y78+Y75*Y79+Y76*Y80)*2*Y18,2) -> 0 | Z82: =ROUND((Z74*Z78+Z75*Z79+Z76*Z80)*2*Z18,2) -> 0 | AA82: 0 | AB82: 0 | AC82: 0 | AD82: 0 | AE82: 0 | AF82: 0 | AG82: 0 | AH82: 0 | AI82: 0 | AJ82: 0 | AK82: 0 | AL82: 0
B83: PERCENTUAL DE DESCONTO
D84: 0.06 | E84: =D84 -> 0.06 | F84: =E84 -> 0.06 | G84: =F84 -> 0.06 | H84: =G84 -> 0.06 | I84: =H84 -> 0.06 | X84: =W84 -> 0 | Y84: =X84 -> 0 | Z84: =Y84 -> 0 | AA84: 0 | AB84: 0 | AC84: 0 | AD84: 0 | AE84: 0 | AF84: 0 | AG84: 0 | AH84: 0 | AI84: 0 | AJ84: 0 | AK84: 0 | AL84: 0
B85: VALOR MENSAL DO DESCONTO - POR POSTO
D86: =ROUND(D84*D13,2) -> 198.06 | E86: =ROUND(E84*E13,2) -> 248.13 | F86: =ROUND(F84*F13,2) -> 116.12 | G86: =ROUND(G84*G13,2) -> 303.67 | H86: =ROUND(H84*H13,2) -> 248.13 | I86: =H86 -> 248.13 | X86: =ROUND(X84*X13,2) -> 0 | Y86: =ROUND(Y84*Y13,2) -> 0 | Z86: =ROUND(Z84*Z13,2) -> 0 | AA86: 0 | AB86: 0 | AC86: 0 | AD86: 0 | AE86: 0 | AF86: 0 | AG86: 0 | AH86: 0 | AI86: 0 | AJ86: 0 | AK86: 0 | AL86: 0
B87: VALOR MENSAL LÍQUIDO DO VALE TRANSPORTE - POR POSTO
D88: =IF(D82>D86,D82-D86,0) -> 75.62 | E88: =IF(E82>E86,E82-E86,0) -> 25.55 | F88: =IF(F82>F86,F82-F86,0) -> 157.56 | G88: =IF(G82>G86,G82-G86,0) -> 0 | H88: =IF(H82>H86,H82-H86,0) -> 0 | I88: =H88 -> 0 | X88: =IF(X82>X86,X82-X86,0) -> 0 | Y88: =IF(Y82>Y86,Y82-Y86,0) -> 0 | Z88: =IF(Z82>Z86,Z82-Z86,0) -> 0 | AA88: 0 | AB88: 0 | AC88: 0 | AD88: 0 | AE88: 0 | AF88: 0 | AG88: 0 | AH88: 0 | AI88: 0 | AJ88: 0 | AK88: 0 | AL88: 0
D89: =D88*D15 -> 1058.68 | E89: =E88*E15 -> 2427.25 | F89: =F88*F15 -> 1733.16
B90: BENEFÍCIOS COMUNS - AUXÍLIO ALIMENTAÇÃO
C92: VALOR CCT | D92: 46.65 | E92: =D92 -> 46.65 | F92: 42.2 | G92: =E92 -> 46.65 | H92: 46.65 | I92: =H92 -> 46.65 | X92: =W92 -> 0 | Y92: =X92 -> 0 | Z92: =Y92 -> 0 | AA92: 0 | AB92: 0 | AC92: 0 | AD92: 0 | AE92: 0 | AF92: 0 | AG92: 0 | AH92: 0 | AI92: 0 | AJ92: 0 | AK92: 0 | AL92: 0
C93: VALOR CD | D93: 35 | E93: =D93 -> 35 | F93: =E93 -> 35 | G93: 35 | H93: 35 | I93: =H93 -> 35 | X93: 24.31 | Y93: 24.31 | Z93: 24.31 | AA93: 24.31 | AB93: 24.31 | AC93: 24.31 | AD93: 24.31 | AE93: 24.31 | AF93: 24.31 | AG93: 24.31 | AH93: 24.31 | AI93: 24.31 | AJ93: 24.31 | AK93: 24.31 | AL93: 24.31
B94: VALOR MENSAL DO AUXÍLIO ALIMENTAÇÃO - POR POSTO
D95: =ROUND(LARGE(D92:D93,1)*D18,2) -> 1026.3 | E95: =ROUND(LARGE(E92:E93,1)*E18,2) -> 1026.3 | F95: =ROUND(LARGE(F92:F93,1)*F18,2) -> 928.4 | G95: =ROUND(LARGE(G92:G93,1)*G18,2) -> 1026.3 | H95: =ROUND(LARGE(H92:H93,1)*H18,2) -> 699.75 | I95: =H95 -> 699.75 | X95: =ROUND(LARGE(X92:X93,1)*X18,2) -> 0 | Y95: =ROUND(LARGE(Y92:Y93,1)*Y18,2) -> 0 | Z95: =ROUND(LARGE(Z92:Z93,1)*Z18,2) -> 0 | AA95: 0 | AB95: 0 | AC95: 0 | AD95: 0 | AE95: 0 | AF95: 0 | AG95: 0 | AH95: 0 | AI95: 0 | AJ95: 0 | AK95: 0 | AL95: 0
D96: =D95*D15 -> 14368.2 | E96: =E95*E15 -> 97498.5 | F96: =F95*F15 -> 10212.4
B97: BENEFÍCIOS ESPECIAIS - ASSISTÊNCIA MÉDICA E FAMILIAR
C99: OBRIGAÇÃO DE PAGTO | D99: NÃO | E99: NÃO | F99: NÃO | G99: NÃO | H99: NÃO | I99: =H99 -> NÃO | X99: NÃO | Y99: NÃO | Z99: NÃO | AA99: NÃO | AB99: NÃO | AC99: NÃO | AD99: NÃO | AE99: NÃO | AF99: NÃO | AG99: NÃO | AH99: NÃO | AI99: NÃO | AJ99: NÃO | AK99: NÃO | AL99: NÃO
C100: VALOR CCT | D100: 397 | E100: =D100 -> 397 | F100: 187.17 | G100: =E100 -> 397 | H100: =G100 -> 397 | I100: =H100 -> 397 | X100: 0 | Y100: 0 | Z100: 0 | AA100: 0 | AB100: 0 | AC100: 0 | AD100: 0 | AE100: 0 | AF100: 0 | AG100: 0 | AH100: 0 | AI100: 0 | AJ100: 0 | AK100: 0 | AL100: 0
C101: VALOR MERCADO | D101: 0 | E101: 0 | F101: 0 | G101: 0 | H101: 0 | I101: =H101 -> 0 | X101: 0 | Y101: 0 | Z101: 0 | AA101: 0 | AB101: 0 | AC101: 0 | AD101: 0 | AE101: 0 | AF101: 0 | AG101: 0 | AH101: 0 | AI101: 0 | AJ101: 0 | AK101: 0 | AL101: 0
B102: VALOR MENSAL DO AUXÍLIO ESPECIAL - ASSISTÊNCIA MÉDICA E FAMILIAR - POR POSTO
D103: =IF(D99="SIM",ROUND(SMALL(D100:D101,1),2),0) -> 0 | E103: =IF(E99="SIM",ROUND(SMALL(E100:E101,1),2),0) -> 0 | F103: =IF(F99="SIM",ROUND(SMALL(F100:F101,1),2),0) -> 0 | G103: =IF(G99="SIM",ROUND(SMALL(G100:G101,1),2),0) -> 0 | H103: =IF(H99="SIM",ROUND(SMALL(H100:H101,1),2),0) -> 0 | I103: =H103 -> 0 | X103: =IF(X99="SIM",ROUND(SMALL(X100:X101,1),2),0) -> 0 | Y103: 0 | Z103: 0 | AA103: 0 | AB103: 0 | AC103: 0 | AD103: 0 | AE103: 0 | AF103: 0 | AG103: 0 | AH103: 0 | AI103: 0 | AJ103: 0 | AK103: 0 | AL103: 0
B105: BENEFÍCIOS ESPECIAIS - SEGURO DE VIDA E AUXÍLIO-FUNERAL, AUX ODONT, AUX CRECHE
B107: SEGURO DE VIDA E AUXÍLIO FUNERAL
C108: OBRIGAÇÃO DE PAGTO | D108: NÃO | E108: NÃO | F108: NÃO | G108: NÃO | H108: NÃO | I108: =H108 -> NÃO | X108: SIM | Y108: SIM | Z108: SIM | AA108: SIM | AB108: SIM | AC108: SIM | AD108: SIM | AE108: SIM | AF108: SIM | AG108: SIM | AH108: SIM | AI108: SIM | AJ108: SIM | AK108: SIM | AL108: SIM
C109: VALOR CCT | D109: 3.3 | E109: =D109 -> 3.3 | F109: 3.3 | G109: =E109 -> 3.3 | H109: =G109 -> 3.3 | I109: =H109 -> 3.3
C110: VALOR MERCADO | D110: 0 | E110: 0 | F110: 0 | G110: 0 | H110: 0 | I110: =H110 -> 0 | Z110: 18.4 | AA110: 18.4 | AB110: 18.4 | AC110: 18.4 | AD110: 18.4 | AE110: 18.4 | AF110: 18.4 | AG110: 18.4 | AH110: 18.4 | AI110: 18.4 | AJ110: 18.4 | AK110: 18.4 | AL110: 18.4
B111: VALOR MENSAL DO AUXÍLIO ESPECIAL - SEGURO DE VIDA E AUXÍLIO FUNERAL - POR POSTO
D112: =IF(D108="SIM",ROUND(SMALL(D109:D110,1),2),0) -> 0 | E112: =IF(E108="SIM",ROUND(SMALL(E109:E110,1),2),0) -> 0 | F112: =IF(F108="SIM",ROUND(SMALL(F109:F110,1),2),0) -> 0 | G112: =IF(G108="SIM",ROUND(SMALL(G109:G110,1),2),0) -> 0 | H112: =IF(H108="SIM",ROUND(SMALL(H109:H110,1),2),0) -> 0 | I112: =H112 -> 0 | X112: =IF(X108="SIM",ROUND(SMALL(X109:X110,1),2),0) ->  | Z112: 18.4 | AA112: 18.4 | AB112: 18.4 | AC112: 18.4 | AD112: 18.4 | AE112: 18.4 | AF112: 18.4 | AG112: 18.4 | AH112: 18.4 | AI112: 18.4 | AJ112: 18.4 | AK112: 18.4 | AL112: 18.4
B113: AUXÍLIO ODONTOLÓGICO
C114: OBRIGAÇÃO DE PAGTO | D114: SIM | E114: SIM | F114: NÃO | G114: SIM | H114: SIM | I114: =H114 -> SIM | X114: NÃO | Y114: NÃO | Z114: NÃO | AA114: NÃO | AB114: NÃO | AC114: NÃO | AD114: NÃO | AE114: NÃO | AF114: NÃO | AG114: NÃO | AH114: NÃO | AI114: NÃO | AJ114: NÃO | AK114: NÃO | AL114: NÃO
C115: VALOR CCT | D115: 39.34 | E115: =D115 -> 39.34 | F115: 12.81 | G115: =E115 -> 39.34 | H115: =G115 -> 39.34 | I115: =H115 -> 39.34 | X115: 0 | Y115: 0 | Z115: 0 | AA115: 0 | AB115: 0 | AC115: 0 | AD115: 0 | AE115: 0 | AF115: 0 | AG115: 0 | AH115: 0 | AI115: 0 | AJ115: 0 | AK115: 0 | AL115: 0
C116: VALOR MERCADO | X116: 0 | Y116: 0 | Z116: 0 | AA116: 0 | AB116: 0 | AC116: 0 | AD116: 0 | AE116: 0 | AF116: 0 | AG116: 0 | AH116: 0 | AI116: 0 | AJ116: 0 | AK116: 0 | AL116: 0
B117: VALOR MENSAL DO AUXÍLIO ESPECIAL - AUXILIO ODONTOLOGICO - POR POSTO
D118: =IF(D114="SIM",ROUND(SMALL(D115:D116,1),2),0) -> 39.34 | E118: =IF(E114="SIM",ROUND(SMALL(E115:E116,1),2),0) -> 39.34 | F118: =IF(F114="SIM",ROUND(SMALL(F115:F116,1),2),0) -> 0 | G118: =IF(G114="SIM",ROUND(SMALL(G115:G116,1),2),0) -> 39.34 | H118: =IF(H114="SIM",ROUND(SMALL(H115:H116,1),2),0) -> 39.34 | I118: =H118 -> 39.34 | X118: =IF(X114="SIM",ROUND(SMALL(X115:X116,1),2),0) -> 0 | Y118: 0 | Z118: 0 | AA118: 0 | AB118: 0 | AC118: 0 | AD118: 0 | AE118: 0 | AF118: 0 | AG118: 0 | AH118: 0 | AI118: 0 | AJ118: 0 | AK118: 0 | AL118: 0
B119: TOTAL MENSAL DOS AUXÍLIOS ESPECIAIS - POR POSTO
D120: =+D112+D118 -> 39.34 | E120: =+E112+E118 -> 39.34 | F120: =+F112+F118 -> 0 | G120: =+G112+G118 -> 39.34 | H120: =+H112+H118 -> 39.34 | I120: =H120 -> 39.34 | X120: =+X112+X118 ->  | Z120: 18.4 | AA120: 18.4 | AB120: 18.4 | AC120: 18.4 | AD120: 18.4 | AE120: 18.4 | AF120: 18.4 | AG120: 18.4 | AH120: 18.4 | AI120: 18.4 | AJ120: 18.4 | AK120: 18.4 | AL120: 18.4
D124: =D95+D88 -> 1101.92 | E124: =E95+E88 -> 1051.85 | F124: 1085.96 | G124: 1026.3 | H124: 699.75 | I124: 699.75 | X124: 0 | Y124: 0 | Z124: 0 | AA124: 0 | AB124: 0 | AC124: 0 | AD124: 0 | AE124: 0 | AF124: 0 | AG124: 0 | AH124: 0 | AI124: 0 | AJ124: 0 | AK124: 0 | AL124: 0

Sheet Encargos Sociais
B4: ENCARGOS SOCIAIS SOBRE A MÃO DE OBRA
E5: Percentuais
B7: Referência:
C8: SINAPI/MPU
B10: Categorias:
C11: TODAS
B13: GRUPO A: Encargos Sociais Básicos - Previdenciários (GPS), Fundo de Garantia por Tempo de Serviço (FGTS) e Outras Contribuições | E13: =ROUND(SUM(E14:E22),4) -> 0.348
C14: A | D14: INSS (art. 22, inciso I, Lei nº 8.212/91) | E14: 0.2
C15: B | D15: Salário Educação (art. 3º, inciso I, Decreto nº 87.043/82) | E15: 0.025 | G15: * Nota 1 - Os percentuais dos encargos previdenciários, do FGTS e demais contribuições são estabelecidos por legislação vigente.
C16: C | D16: SAT/RAT (art. 22, II, Lei 8.212/91 e Anexo V, Decreto 6.042/07) - Enquadramento 9103-1/00 | E16: 0.01 | G16: * Nota 2 - O SAT, a depender do grau de risco do serviço, irá variar entre 1%, para risco leve, de 2%, para risco médio, e de 3% para risco grave.
C17: D | D17: SESC ou SESI (art. 30, Lei nº 8.036/90 e art. 1º, Lei 8.154/90) | E17: 0.015 | G17: * Nota 3 - Os percentuais do Submódulo 2.2 incidem sobre o Módulo 1, o Submódulo 2.1, o Módulo 3, o Módulo 4 e o Módulo 6.
C18: E | D18: SENAI ou SENAC (Decreto nº 2.318/86) | E18: 0.01
C19: F | D19: SEBRAE (§ 3º, art. 8º, Lei 8.029/90, alterada pela Lei nº 8.154/90) | E19: 0.006
C20: G | D20: INCRA (art. 1º, I, Decreto Lei 1.146/70 e Lei 7.787, de 30/06/89) | E20: 0.002
C21: H | D21: FGTS (Lei Complementar nº 110/01 e art. 30, Lei nº 8.036/90) | E21: 0.08
C22: I | D22: SECONCI (Convenções Coletivas de Trabalho da construção) | E22: 0
B24: GRUPO B: Encargos Sociais Relacionados ao Custo do Profissional Ausente - Ausências Legais | E24: =ROUND(SUM(E25:E33),4) -> 0.2245
C25: A | D25: Férias (Arts. 129 e 130, inc. I, da CLT) | E25: =ROUND(1/11,4) -> 0.0909 | G25: * Nota 1 - As alíneas “A” a “F” referem-se somente ao custo que será pago ao repositor pelos dias trabalhados quando da necessidade de substituir a mão de obra alocada na prestação do serviço.
C26: B | D26: Ausências Legais (Arts. 131 e 473 da CLT) | E26: =ROUND(2/252,4) -> 0.0079 | G26: * Nota 2 - Adotou-se a estimativa do SINAPI de 2 dias por ano. Em 252 dias úteis por ano.
C27: C | D27: Licença-Paternidade (Art. 7º, XIX, e art. 10, §1º, do ADCT, CF/1988 e Art. 1º, II, da Lei 11.770/2008) | E27: =ROUND((5/(30*12))*0.0596,4) -> 0.0008 | G27: * Nota 3 - Utilizada a proporção de 50% para homens, 5 dias de afastamento, e a probabilidade de um trabalhador requerer a Licença Paternidade em 5,96%, conforme SINAPI (Anuário Estatístico da Previdência Social - 2017)
C28: D | D28: Ausência por Acidente de Trabalho (Art. 131, III, da CLT) | E28: =ROUND(0.0205*15/360,4) -> 0.0009 | G28: * Nota 4 - Utilzada a estatística de 2,05% dos contribuintes beneficiados com a emissão do auxílio, conforme Anuário Estatístico da Previdência Social. Afastamento de 15 dias a cargo da empresa.
C29: E | D29: Afastamento Maternidade (Art. 71 da Lei nº 8.213/1991) | E29: =ROUND(0.0508*(120/360)*(30+30*4/3)/360,4) -> 0.0033 | G29: * Nota 5 - Utilizada a estimativa de 120 dias de afastamento, e a probabilidade de uma trabalhadora requerer a Licença Maternidade em 5,08%, conforme SINAPI (citando dados do IBGE 2017) - A própria previdência paga o benefício pelos 120 dias, contudo o empregador arca com o 13º e com as férias
C30: F | D30: Auxílio Enfermidade - Doença (Art. 59 da Lei nº 8.213/1991) | E30: =ROUND(((0.0376*15)+2)/360,4) -> 0.0071 | G30: * Nota 6 - Utilizada a estatística de 3,76% dos contribuintes beneficiados com o auxílio, conforme Anuário Estatístico da Previdência Social de 2016 (acrescidos de 2 dias ao ano, para os quais o trabalhador nem requer o benefício da Previdência - conforme SINAPI)
C31: G | D31: Adicional de Férias (componente do Submódulo 2.1) | E31: =ROUND(1/3*1/11,4) -> 0.0303 | G31: * Nota 7 - O adicional de férias contido no Submódulo 2.1 corresponde a 1/3 da remuneração que, por sua vez, é dividida por 12 contome Nota 1.
C32: H | D32: 13º Salário (destacado na planilha de custos) | E32: 0.0833 | G32: * Nota 8 - Provisiona-se, mensalmente, o proporcional a 1/12 dos valores referentes a gratificação natalina e adicional de férias.
C33: I | D33: Intervalo para repouso ou alimentação (componente do Submódulo 4.2) | E33: 0
B35: GRUPO C: Encargos Sociais Relacionados à Previsão para Rescisão Trabalhista | E35: =ROUND(SUM(E36:E41),4) -> 0.0463
C36: A | D36: Aviso Prévio Indenizado (Art. 7º, inciso XXI, da CF/1988 e arts. 477, 487, §1º, e 491 da CLT) | E36: =ROUND(0.035*30/300,4) -> 0.0035 | G36: * Nota 1 - Considerou-se 3,5% de demitidos sem justa causa ao ano e recebendo aviso indenizado
C37: B | D37: Incidência do FGTS sobre o Aviso Prévio Indenizado (Súmula 305 TST) | E37: =ROUND(E21*E36,4) -> 0.0003
C38: C | D38: Multa do FGTS e Contribuição Social sobre o Aviso Prévio Indenizado (Art. 18, §1º, da Lei 8.036/1990 e art. 1º da LC nº 110/2001) | E38: =ROUND(0.4*E21*0.035,4) -> 0.0011 | G38: * Nota 2 - Incide sobre a Remuneração + 13º salário (1/12) + Férias (1/12) + Adicional de Férias (1/36) x 40% multa para o empregador x 8% FGTS x taxa de rotatividade estimada 3,5%
C39: D | D39: Aviso Prévio Trabalhado (Art. 488, parágrafo único, CLT) | E39: =ROUND((7/360)*12/30,4) -> 0.0078 | G39: * Nota 3 - Considerou-se demissões de 100% ao final do contrato, com um prazo médio estimado de 30 meses
C40: E | D40: Incidência de GPS, FGTS e outras contribuições sobre o Aviso Prévio Trabalhado | E40: =ROUND(E39*E13,4) -> 0.0027
C41: F | D41: Multa do FGTS e Contribuição Social sobre o Aviso Prévio Trabalhado | E41: =ROUND((0.4*E21*(1-0.035)),4) -> 0.0309 | G41: * Nota 4 - Incide sobre a Remuneração + 13º salário (1/12) + Férias (1/12) + Adicional de Férias (1/36) x 40% multa para o empregador x 8% FGTS x (1- taxa de rotatividade estimada Nota2)
B43: GRUPO D: Reincidências | E43: =ROUND(SUM(E44:E44),4) -> 0.0781
C44: A | D44: Reincidência do Grupo A sobre o Grupo B | E44: =ROUND(E13*E24,4) -> 0.0781
D46: SOMATÓRIO - ENCARGOS SOCIAIS SOBRE A MÃO DE OBRA | E46: =E43+E35+E24+E13 -> 0.6969

Sheet Encargos Sociais HE (hidden)
B4: ENCARGOS SOCIAIS SOBRE A MÃO DE OBRA - HORAS EXTRAS
E5: Percentuais
B7: Referência:
B10: Categorias:
C11: TODAS
B13: GRUPO A: Encargos Sociais Básicos - Previdenciários (GPS), Fundo de Garantia por Tempo de Serviço (FGTS) e Outras Contribuições | E13: =ROUND(SUM(E14:E22),4) -> 0.178
C14: A | D14: INSS (art. 22, inciso I, Lei nº 8.212/91) | E14: 0
C15: B | D15: Salário Educação (art. 3º, inciso I, Decreto nº 87.043/82) | E15: 0.025 | G15: * Nota 1 - Os percentuais dos encargos previdenciários, do FGTS e demais contribuições são estabelecidos por legislação vigente.
C16: C | D16: SAT/RAT (art. 22, II, Lei 8.212/91 e Anexo V, Decreto 6.042/07) - Enquadramento 4399-1/01 | E16: 0.03 | G16: * Nota 2 - O SAT, a depender do grau de risco do serviço, irá variar entre 1%, para risco leve, de 2%, para risco médio, e de 3% para risco grave.
C17: D | D17: SESC ou SESI (art. 30, Lei nº 8.036/90 e art. 1º, Lei 8.154/90) | E17: 0.015 | G17: * Nota 3 - Os percentuais do Submódulo 2.2 incidem sobre o Módulo 1, o Submódulo 2.1, o Módulo 3, o Módulo 4 e o Módulo 6.
C18: E | D18: SENAI ou SENAC (Decreto nº 2.318/86) | E18: 0.01
C19: F | D19: SEBRAE (§ 3º, art. 8º, Lei 8.029/90, alterada pela Lei nº 8.154/90) | E19: 0.006
C20: G | D20: INCRA (art. 1º, I, Decreto Lei 1.146/70 e Lei 7.787, de 30/06/89) | E20: 0.002
C21: H | D21: FGTS (Lei Complementar nº 110/01 e art. 30, Lei nº 8.036/90) | E21: 0.08
C22: I | D22: SECONCI (Convenções Coletivas de Trabalho da construção) | E22: 0.01
B24: GRUPO B: Encargos Sociais Relacionados ao Custo do Profissional Ausente - Ausências Legais | E24: =ROUND(SUM(E25:E34),4) -> 0.3912
C25: A | D25: Férias (Arts. 129 e 130, inc. I, da CLT) | E25: =ROUND(1/11,4) -> 0.0909 | G25: * Nota 1 - As alíneas “A” a “F” referem-se somente ao custo que será pago ao repositor pelos dias trabalhados quando da necessidade de substituir a mão de obra alocada na prestação do serviço.
C26: B | D26: Ausências Legais (Arts. 131 e 473 da CLT) | E26: =ROUND(2/252,4) -> 0.0079 | G26: * Nota 2 - Adotou-se a estimativa do SINAPI de 2 dias por ano. Em 252 dias úteis por ano.
C27: C | D27: Licença-Paternidade (Art. 7º, XIX, e art. 10, §1º, do ADCT, CF/1988 e Art. 1º, II, da Lei 11.770/2008) | E27: =ROUND((5/(30*12))*0.0596,4) -> 0.0008 | G27: * Nota 3 - Utilizada a proporção de 50% para homens, 5 dias de afastamento, e a probabilidade de um trabalhador requerer a Licença Paternidade em 5,96%, conforme SINAPI (Anuário Estatístico da Previdência Social - 2017)
C28: D | D28: Ausência por Acidente de Trabalho (Art. 131, III, da CLT) | E28: =ROUND(0.0205*15/360,4) -> 0.0009 | G28: * Nota 4 - Utilzada a estatística de 2,05% dos contribuintes beneficiados com a emissão do auxílio, conforme Anuário Estatístico da Previdência Social. Afastamento de 15 dias a cargo da empresa.
